Workbook

Sheet Overblik
B1: ='A-S Balance'!B2 -> 0
B2: ='A-S Balance'!B3 -> 0 | E2: ='A-S Resultat'!G112 -> 2025 | Q2: ='A-S Resultat'!Q112 -> 2026 | AC2: ='A-S Resultat'!AA112 -> 2027 | AO2: ='A-S Resultat'!AK112 -> 2028 | BR2: =BS2-1 -> 2024 | BS2: =E2 -> 2025 | BT2: =BS2+1 -> 2026 | BU2: =BT2+1 -> 2027 | BV2: =BU2+1 -> 2028
B3: ='A-S Balance'!B4 -> 0 | E3: - 1.000 kr. - | Q3: - 1.000 kr. - | AC3: - 1.000 kr. - | AO3: - 1.000 kr. - | BQ3: Senior privat Egenkapital | BR3: ='Senior Balance'!D109 -> 0 | BS3: =E25 -> 0 | BT3: =Q25 -> 0 | BU3: =AC25 -> 0 | BV3: =AO25 -> 0
B4: Overblik | E4: Senior Privat | F4: =Holding!E31 -> 1 | G4: Senior Holding | I4: ='A-S Balance'!J126 -> 0.9 | J4: A/S Drift | K4: ='A-S Balance'!J127 -> 0.1 | M4: Junior Holding | N4: 1 | O4: Junior Privat | Q4: Senior Privat | R4: =Holding!O31 -> 1 | S4: Senior Holding | U4: ='A-S Balance'!T126 -> 0.9 | V4: A/S Drift | W4: ='A-S Balance'!T127 -> 0.1 | X4: Junior Holding | Z4: 1 | AA4: Junior Privat | AC4: Senior Privat | AD4: =Holding!Y31 -> 1 | AE4: Senior Holding | AG4: ='A-S Balance'!AD126 -> 0.9 | AH4: A/S Drift | AI4: ='A-S Balance'!AD127 -> 0.1 | AJ4: Junior Holding | AL4: 1 | AM4: Junior Privat | AO4: Senior Privat | AP4: =Holding!AI31 -> 1 | AQ4: Senior Holding | AS4: ='A-S Balance'!AN126 -> 0.9 | AT4: A/S Drift | AU4: ='A-S Balance'!AN127 -> 0.1 | AV4: Junior Holding | AX4: 1 | AY4: Junior Privat | BQ4: Junior privat Egenkapital | BR4: ='Junior Balance'!D109 -> 0 | BS4: =O25 -> 0 | BT4: =AA25 -> 0 | BU4: =AM25 -> 0 | BV4: =AY25 -> 0
B5: Resultat og udbytte | BQ5: KK Senior | BR5: ='Senior Balance'!D114 -> 0 | BS5: =E28 -> 0 | BT5: =Q28 -> 0 | BU5: =AC28 -> 0 | BV5: =AO28 -> 0
B6: ='A-S Resultat'!B89 -> Resultat efter finansiering | J6: ='A-S Resultat'!G89/1000 -> 0 | V6: ='A-S Resultat'!Q89/1000 -> 0 | AH6: ='A-S Resultat'!AA89/1000 -> 0 | AT6: ='A-S Resultat'!AK89/1000 -> 0 | BQ6: KK junior | BR6: ='Junior Balance'!D115 -> 0 | BS6: =O28 -> 0 | BT6: =AA28 -> 0 | BU6: =AM28 -> 0 | BV6: =AY28 -> 0
B7: Selskabsskat i A/S Drift | J7: ='A-S Resultat'!G101/1000 -> 0 | V7: ='A-S Resultat'!Q101/1000 -> 0 | AH7: ='A-S Resultat'!AA101/1000 -> 0 | AT7: ='A-S Resultat'!AK101/1000 -> 0 | BQ7: Skat i alt | BR7: 0 | BS7: =J32*-1 -> 0 | BT7: =V32*-1 -> 0 | BU7: =AH32*-1 -> 0 | BV7: =AT32*-1 -> 0
B8: Konsolidering i A/S Drift | J8: ='A-S Resultat'!G107/1000 -> 0 | V8: ='A-S Resultat'!Q107/1000 -> 0 | AH8: ='A-S Resultat'!AA107/1000 -> 0 | AT8: ='A-S Resultat'!AK107/1000 -> 0
B9: Udbytte fra A/S Drift i alt | J9: =(G10+L10) -> 0 | V9: =(S10+X10) -> 0 | AH9: =(AE10+AJ10) -> 0 | AT9: =(AQ10+AV10) -> 0
B10: Udbytte fordelt | G10: ='A-S Resultat'!G103*-1/1000 -> 0 | I10: =I4 -> 0.9 | K10: =K4 -> 0.1 | L10: ='A-S Resultat'!G104*-1/1000 -> 0 | S10: ='A-S Resultat'!Q103*-1/1000 -> 0 | U10: =U4 -> 0.9 | W10: =W4 -> 0.1 | X10: ='A-S Resultat'!Q104*-1/1000 -> 0 | AE10: ='A-S Resultat'!AA103*-1/1000 -> 0 | AG10: =AG4 -> 0.9 | AI10: =AI4 -> 0.1 | AJ10: ='A-S Resultat'!AA104*-1/1000 -> 0 | AQ10: ='A-S Resultat'!AK103*-1/1000 -> 0 | AS10: =AS4 -> 0.9 | AU10: =AU4 -> 0.1 | AV10: ='A-S Resultat'!AK104*-1/1000 -> 0
B12: Resultat før skat | G12: =Holding!E13 -> 0 | L12: =Holding!AO13 -> 0 | S12: =Holding!O13 -> 0 | X12: =Holding!AY13 -> 0 | AE12: =Holding!Y13 -> 0 | AJ12: =Holding!BI13 -> 0 | AQ12: =Holding!AI13 -> 0 | AV12: =Holding!BS13 -> 0
B13: Selskabsskat i Holding | G13: =Holding!E14 -> 0 | L13: =Holding!AO14 -> 0 | S13: =Holding!O14 -> 0 | X13: =Holding!AY14 -> 0 | AE13: =Holding!Y14 -> 0 | AJ13: =Holding!BI14 -> 0 | AQ13: =Holding!AI14 -> 0 | AV13: =Holding!BS14 -> 0
B14: Konsolidering i Holding | G14: =Holding!E17 -> 0 | L14: =Holding!AO17 -> 0 | S14: =Holding!O17 -> 0 | X14: =Holding!AY17 -> 0 | AE14: =Holding!Y17 -> 0 | AJ14: =Holding!BI17 -> 0 | AQ14: =Holding!AI17 -> 0 | AV14: =Holding!BS17 -> 0
B16: Udbytte fra Holding | E16: =G16+L16 -> 0 | F16: =F4 -> 1 | G16: =Holding!E38 -> 0 | H16: =Holding!AO38 -> 0 | L16: =Holding!E39 -> 0 | M16: =Holding!AO39 -> 0 | N16: =N4 -> 1 | O16: =M16+H16 -> 0 | Q16: =S16+X16 -> 0 | R16: =R4 -> 1 | S16: =Holding!O38 -> 0 | T16: =Holding!AY38 -> 0 | X16: =Holding!Q39 -> 0 | Y16: =Holding!AY39 -> 0 | Z16: =Z4 -> 1 | AA16: =Y16+T16 -> 0 | AC16: =AE16+AJ16 -> 0 | AD16: =AD4 -> 1 | AE16: =Holding!Y38 -> 0 | AF16: =Holding!BI38 -> 0 | AJ16: =Holding!Y39 -> 0 | AK16: =Holding!BI39 -> 0 | AL16: =AL4 -> 1 | AM16: =AK16+AF16 -> 0 | AO16: =AQ16+AV16 -> 0 | AP16: =AP4 -> 1 | AQ16: =Holding!AI38 -> 0 | AR16: =Holding!BS38 -> 0 | AV16: =Holding!AI39 -> 0 | AW16: =Holding!BS39 -> 0 | AX16: =AX4 -> 1 | AY16: =AW16+AR16 -> 0
B17: Resultat før skat | E17: =resultat1/1000 -> 0 | O17: =Bresultat1/1000 -> 0 | Q17: =resultat2/1000 -> 0 | AA17: =bresultat2/1000 -> 0 | AC17: =resultat3/1000 -> 0 | AM17: =bresultat3/1000 -> 0 | AO17: =resultat4/1000 -> 0 | AY17: =bresultat4/1000 -> 0
B18: Skat af årets resultat | E18: ='Senior Resultat'!G90/1000 -> 0 | O18: ='Junior Resultat'!G90/1000 -> 0 | Q18: ='Senior Resultat'!Q90/1000 -> 0 | AA18: ='Junior Resultat'!Q90/1000 -> 0 | AC18: ='Senior Resultat'!AA90/1000 -> 0 | AM18: ='Junior Resultat'!AA90/1000 -> 0 | AO18: ='Senior Resultat'!AK90/1000 -> 0 | AY18: ='Junior Resultat'!AK90/1000 -> 0
B19: Resultat efter skat | E19: ='Senior Resultat'!G93/1000 -> 0 | O19: ='Junior Resultat'!G93/1000 -> 0 | Q19: ='Senior Resultat'!Q93/1000 -> 0 | AA19: ='Junior Resultat'!Q93/1000 -> 0 | AC19: ='Senior Resultat'!AA93/1000 -> 0 | AM19: ='Junior Resultat'!AA93/1000 -> 0 | AO19: ='Senior Resultat'!AK93/1000 -> 0 | AY19: ='Junior Resultat'!AK93/1000 -> 0
B20: Egenkapital
B21: Egenkapital i A/S Drift ultimo | J21: ='A-S Balance'!L120 -> 0 | V21: ='A-S Balance'!V120 -> 0 | AH21: ='A-S Balance'!AF120 -> 0 | AT21: ='A-S Balance'!AP120 -> 0
B22: Ejerandel i A/S Drift ultimo | G22: =J21*I22 -> 0 | I22: =I4 -> 0.9 | K22: =K4 -> 0.1 | L22: =K22*J21 -> 0 | S22: =V21*U22 -> 0 | U22: =U4 -> 0.9 | W22: =W4 -> 0.1 | X22: =W22*V21 -> 0 | AE22: =AH21*AG22 -> 0 | AG22: =AG4 -> 0.9 | AI22: =AI4 -> 0.1 | AJ22: =AI22*AH21 -> 0 | AQ22: =AT21*AS22 -> 0 | AS22: =AS4 -> 0.9 | AU22: =AU4 -> 0.1 | AV22: =AU22*AT21 -> 0
B23: EK i alt i Holding ultimo | G23: =Holding!E24 -> 0 | L23: =Holding!AO24 -> 0 | S23: =Holding!O24 -> 0 | X23: =Holding!AY24 -> 0 | AE23: =Holding!Y24 -> 0 | AJ23: =Holding!BI24 -> 0 | AQ23: =Holding!AI24 -> 0 | AV23: =Holding!BS24 -> 0
B24: Ejerandel Holding | E24: =G24 -> 0 | F24: =F4 -> 1 | G24: =G23*F24 -> 0 | H24: =G23*(1-F24) -> 0 | L24: =L23*(1-N24) -> 0 | M24: =L23*N24 -> 0 | N24: =N4 -> 1 | O24: =M24+H24 -> 0 | Q24: =S24 -> 0 | R24: =R4 -> 1 | S24: =S23*R24 -> 0 | T24: =S23*(1-R24) -> 0 | X24: =X23*(1-Z24) -> 0 | Y24: =X23*Z24 -> 0 | Z24: =Z4 -> 1 | AA24: =Y24+T24 -> 0 | AC24: =AE24 -> 0 | AD24: =AD4 -> 1 | AE24: =AE23*AD24 -> 0 | AF24: =AE23*(1-AD24) -> 0 | AJ24: =AJ23*(1-AL24) -> 0 | AK24: =AJ23*AL24 -> 0 | AL24: =AL4 -> 1 | AM24: =AK24+AF24 -> 0 | AO24: =AQ24 -> 0 | AP24: =AP4 -> 1 | AQ24: =AQ23*AP24 -> 0 | AR24: =AQ23*(1-AP24) -> 0 | AV24: =AV23*(1-AX24) -> 0 | AW24: =AV23*AX24 -> 0 | AX24: =AX4 -> 1 | AY24: =AW24+AR24 -> 0
B25: Egenkapital ultimo | E25: ='Senior Balance'!N109 -> 0 | O25: ='Junior Balance'!N109 -> 0 | Q25: ='Senior Balance'!X109 -> 0 | AA25: ='Junior Balance'!X109 -> 0 | AC25: ='Senior Balance'!AH109 -> 0 | AM25: ='Junior Balance'!AH109 -> 0 | AO25: ='Senior Balance'!AR109 -> 0 | AY25: ='Junior Balance'!AR109 -> 0
B26: Egenkapital i alt, Senior + Junior | J26: =E25+O25 -> 0 | V26: =Q25+AA25 -> 0 | AH26: =AC25+AM25 -> 0 | AT26: =AO25+AY25 -> 0
B27: Likviditet
B28: KK/likviditet saldo ultimo | E28: ='Senior Balance'!N114 -> 0 | G28: =Holding!E23 -> 0 | J28: ='A-S Balance'!L130 -> 0 | L28: =Holding!AO23 -> 0 | O28: ='Junior Balance'!N115 -> 0 | Q28: ='Senior Balance'!X114 -> 0 | S28: =Holding!O23 -> 0 | V28: ='A-S Balance'!V130 -> 0 | X28: =Holding!AY23 -> 0 | AA28: ='Junior Balance'!X115 -> 0 | AC28: ='Senior Balance'!AH114 -> 0 | AE28: =Holding!Y23 -> 0 | AH28: ='A-S Balance'!AF130 -> 0 | AJ28: =Holding!BI23 -> 0 | AM28: ='Junior Balance'!AH115 -> 0 | AO28: ='Senior Balance'!AR114 -> 0 | AQ28: =Holding!AI23 -> 0 | AT28: ='A-S Balance'!AP130 -> 0 | AV28: =Holding!BS23 -> 0 | AY28: ='Junior Balance'!AR115 -> 0
B29: KK/likviditet, sum af alle | J29: =SUM(E28:O28) -> 0 | V29: =SUM(Q28:AA28) -> 0 | AH29: =SUM(AC28:AM28) -> 0 | AT29: =SUM(AO28:AY28) -> 0
B30: Skat
B31: Skat af årets resultat | E31: =E18 -> 0 | G31: =G13 -> 0 | J31: =J7 -> 0 | L31: =L13 -> 0 | O31: =O18 -> 0 | Q31: =Q18 -> 0 | S31: =S13 -> 0 | V31: =V7 -> 0 | X31: =X13 -> 0 | AA31: =AA18 -> 0 | AC31: =AC18 -> 0 | AE31: =AE13 -> 0 | AH31: =AH7 -> 0 | AJ31: =AJ13 -> 0 | AM31: =AM18 -> 0 | AO31: =AO18 -> 0 | AQ31: =AQ13 -> 0 | AT31: =AT7 -> 0 | AV31: =AV13 -> 0 | AY31: =AY18 -> 0
B32: Skat i alt | J32: =SUM(E31:O31) -> 0 | V32: =SUM(Q31:AA31) -> 0 | AH32: =SUM(AC31:AM31) -> 0 | AT32: =SUM(AO31:AY31) -> 0

Sheet A-S Resultat
B1: A/S RESULTAT | AK1: ='A-S Balance'!AI1 -> © CHA 02.05.2025 | AM1: Vis | AN1: Skjul
C2: ='A-S Balance'!B2 -> 0
C3: ='A-S Balance'!B3 -> 0
C4: ='A-S Balance'!B4 -> 0 | BJ4: 10 | BQ4: 271159
B5: Moms | G5: a | Q5: b | AA5: c | AK5: d
A6: 1 | B6: A/S DÆKNINGSBIDRAG | G6: ='A-S Balance'!T2 -> 2025 | Q6: =G6+1 -> 2026 | AA6: =Q6+1 -> 2027 | AK6: =AA6+1 -> 2028
A7: 1 | E7: Enhed | G7: DB | O7: Enhed | Q7: DB | Y7: Enhed | AA7: DB | AI7: Enhed | AK7: DB
C8: Køer med opdræt | AM8: 1 | AN8: =IF(G8+Q8+AA8+AK8<>0,1,0) -> 0
C9: Afgræsning | AM9: 1 | AN9: =IF(G9+Q9+AA9+AK9<>0,1,0) -> 0
C10: Sædskiftegræs | AM10: 1 | AN10: 0
C11: Majs helsæd | AM11: 1 | AN11: 0
C12: Vårbyg | AM12: 1 | AN12: 0
C13: Raps | AM13: 1 | AN13: 0
C14: Vinterrug | AM14: 1 | AN14: 0
C15: DB i alt | AM15: 1 | AN15: 0
AM16: 1 | AN16: 0
AM17: 1 | AN17: 0
AM18: 1 | AN18: 0
AM19: 1 | AN19: 0
AM20: 1 | AN20: 0
AM21: 1 | AN21: 0
AM22: 1 | AN22: 0
AM23: 1 | AN23: 0
AL24: 2.57 | AM24: 1 | AN24: 1
B25: m | C25: =C8 -> Køer med opdræt | G25: =G8*E8 -> 0 | Q25: =Q8*O8 -> 0 | AA25: =AA8*Y8 -> 0 | AK25: =AK8*AI8 -> 0 | AM25: 1 | AN25: 0
B26: m | C26: =C9 -> Afgræsning | G26: =G9*E9 -> 0 | Q26: =Q9*O9 -> 0 | AA26: =AA9*Y9 -> 0 | AK26: =AK9*AI9 -> 0 | AM26: 1 | AN26: 0
B27: m | C27: =C10 -> Sædskiftegræs | G27: 0 | Q27: 0 | AA27: 0 | AK27: 0 | AM27: 1 | AN27: 0
B28: m | C28: Majs helsæd | G28: 0 | Q28: 0 | AA28: 0 | AK28: 0 | AM28: 1 | AN28: 0
B29: m | C29: Vårbyg | G29: 0 | Q29: 0 | AA29: 0 | AK29: 0 | AM29: 1 | AN29: 0
B30: m | C30: Raps | G30: 0 | Q30: 0 | AA30: 0 | AK30: 0 | AM30: 1 | AN30: 0
B31: m | C31: Vinterrug | G31: 0 | Q31: 0 | AA31: 0 | AK31: 0 | AM31: 1 | AN31: 0
B32: m | C32: DB i alt | G32: 0 | Q32: 0 | AA32: 0 | AK32: 0 | AM32: 1 | AN32: 0
B33: m | C33: 0 | G33: 0 | Q33: 0 | AA33: 0 | AK33: 0 | AM33: 1 | AN33: 0
B34: m | C34: 0 | G34: 0 | Q34: 0 | AA34: 0 | AK34: 0 | AM34: 1 | AN34: 0
B35: m | C35: 0 | G35: 0 | Q35: 0 | AA35: 0 | AK35: 0 | AM35: 1 | AN35: 0
B36: m | C36: 0 | G36: 0 | Q36: 0 | AA36: 0 | AK36: 0 | AM36: 1 | AN36: 0
B37: m | C37: 0 | G37: 0 | Q37: 0 | AA37: 0 | AK37: 0 | AM37: 1 | AN37: 0
B38: m | C38: 0 | G38: 0 | Q38: 0 | AA38: 0 | AK38: 0 | AM38: 1 | AN38: 0
B39: m | C39: 0 | G39: 0 | Q39: 0 | AA39: 0 | AK39: 0 | AM39: 1 | AN39: 0
B40: m | C40: =C23 -> 0 | G40: 0 | Q40: 0 | AA40: 0 | AK40: 0 | AM40: 1 | AN40: 0
A41: 1 | AM41: 1 | AN41: =IF(AN42<>0,1,0) -> 0
A42: =IF(G42+Q42+AA42+AK42<>0,1,0) -> 0 | B42: Dækningsbidrag | G42: =SUM(G25:G40) -> 0 | Q42: =SUM(Q25:Q40) -> 0 | AA42: =SUM(AA25:AA40) -> 0 | AK42: =SUM(AK25:AK40) -> 0 | AM42: 1 | AN42: =IF(G42+Q42+AA42+AK42<>0,1,0) -> 0
A43: 1 | AM43: 1 | AN43: =IF(AN42<>0,1,0) -> 0
A44: 1 | AM44: 1 | AN44: 1
A45: 1 | B45: KAPACITETSOMKOSTNINGER | O45: Fr.skr.% | AM45: 1 | AN45: 1
A46: 1 | B46: m | C46: Energi | Q46: =IF(ISBLANK(P46),G46*(1+$O46/100),P46) -> 0 | AA46: =IF(ISBLANK(Z46),Q46*(1+$O46/100),Z46) -> 0 | AK46: =IF(ISBLANK(AJ46),AA46*(1+$O46/100),AJ46) -> 0 | AM46: 1 | AN46: =IF(G46+Q46+AA46+AK46<>0,1,0) -> 0
A47: 1 | B47: m | C47: Maskinstation m.v. | Q47: 0 | AA47: 0 | AK47: 0 | AM47: 1 | AN47: 0
A48: 1 | B48: m | C48: Vedligehold | Q48: 0 | AA48: 0 | AK48: 0 | AM48: 1 | AN48: 0
B49: m | C49: Investeringer over driften | Q49: =IF(ISBLANK(P49),G49*(1+$O49/100),P49) -> 0 | AA49: =IF(ISBLANK(Z49),Q49*(1+$O49/100),Z49) -> 0 | AK49: =IF(ISBLANK(AJ49),AA49*(1+$O49/100),AJ49) -> 0 | AM49: 1 | AN49: 0
A50: 1 | C50: Lønomkostninger | Q50: 0 | AA50: 0 | AK50: 0 | AM50: 1 | AN50: 0
C51: Løn Senior privat | Q51: 0 | AA51: 0 | AK51: 0 | AM51: 1 | AN51: 0
C52: Løn Junior privat | Q52: 0 | AA52: 0 | AK52: 0 | AM52: 1 | AN52: 0
A53: 1 | C53: Ejendomsskat og forsikringer | Q53: 0 | AA53: 0 | AK53: 0 | AM53: 1 | AN53: 0
A54: 1 | B54: m | C54: Diverse omkostninger | Q54: 0 | AA54: 0 | AK54: 0 | AM54: 1 | AN54: 0
A55: 1 | AM55: 1 | AN55: =IF(AN56<>0,1,0) -> 0
A56: 1 | B56: Kontante kapacitetsomkostninger | G56: =SUM(G46:G54) -> 0 | Q56: =SUM(Q46:Q54) -> 0 | AA56: =SUM(AA46:AA54) -> 0 | AK56: =SUM(AK46:AK54) -> 0 | AM56: 1 | AN56: 0
A57: 1 | AM57: 1 | AN57: =IF(AN56<>0,1,0) -> 0
A58: =IF(G58+Q58+AA58+AK58<>0,1,0) -> 0 | C58: Afskrivninger | G58: =('A-S Balance'!J81-'A-S Balance'!J66-'A-S Balance'!J32-'A-S Balance'!J36)*1000 -> 0 | Q58: =('A-S Balance'!T81-'A-S Balance'!T66-'A-S Balance'!T32-'A-S Balance'!T36)*1000 -> 0 | AA58: =('A-S Balance'!AD81-'A-S Balance'!AD66-'A-S Balance'!AD32-'A-S Balance'!AD36)*1000 -> 0 | AK58: =('A-S Balance'!AN81-'A-S Balance'!AN66-'A-S Balance'!AN32-'A-S Balance'!AN36)*1000 -> 0 | AM58: 1 | AN58: 0
A59: =IF(G59+Q59+AA59+AK59<>0,1,0) -> 0 | C59: Afskrivninger biler m.v | G59: ='A-S Balance'!J66*1000 -> 0 | Q59: ='A-S Balance'!T66*1000 -> 0 | AA59: ='A-S Balance'!AD66*1000 -> 0 | AK59: ='A-S Balance'!AN66*1000 -> 0 | AM59: 1 | AN59: =IF(G59+Q59+AA59+AK59<>0,1,0) -> 0
A60: 1 | AM60: 1 | AN60: =IF(AN61<>0,1,0) -> 0
A61: 1 | B61: Af- og nedskrivninger landbrug | G61: =SUM(G58:G60) -> 0 | Q61: =SUM(Q58:Q60) -> 0 | AA61: =SUM(AA58:AA60) -> 0 | AK61: =SUM(AK58:AK60) -> 0 | AM61: 1 | AN61: =IF(G61+Q61+AA61+AK61<>0,1,0) -> 0
A62: 1 | AM62: 1 | AN62: =IF(AN61<>0,1,0) -> 0
A63: 1
A64: 1 | B64: Kapacitetsomkostninger i alt | G64: =G56+G61 -> 0 | Q64: =Q56+Q61 -> 0 | AA64: =AA56+AA61 -> 0 | AK64: =AK56+AK61 -> 0 | AM64: 1 | AN64: =IF(G64+Q64+AA64+AK64<>0,1,0) -> 0
A65: 1 | AM65: 1 | AN65: =IF(AN64<>0,1,0) -> 0
A66: 1 | AM66: 1 | AN66: =IF(AN67<>0,1,0) -> 0
A67: 1 | B67: Resultat af primær drift | G67: =G42+G64 -> 0 | Q67: =Q42+Q64 -> 0 | AA67: =AA42+AA64 -> 0 | AK67: =AK42+AK64 -> 0 | AM67: 1 | AN67: =IF(G67+Q67+AA67+AK67<>0,1,0) -> 0
A68: 1 | AM68: 1 | AN68: =IF(AN67<>0,1,0) -> 0
A69: 1 | AM69: 1 | AN69: =IF(AN70<>0,1,0) -> 0
A70: 1 | C70: Anden indtjening og virksomhed | Q70: =IF(ISBLANK(P70),G70*(1+$O70/100),P70) -> 0 | AA70: =IF(ISBLANK(Z70),Q70*(1+$O70/100),Z70) -> 0 | AK70: =IF(ISBLANK(AJ70),AA70*(1+$O70/100),AJ70) -> 0 | AM70: 1 | AN70: =IF(G70+Q70+AA70+AK70<>0,1,0) -> 0
A71: 1 | AM71: 1 | AN71: =AN72 -> 0
A72: 1 | C72: Afkoblet EU-støtte | Q72: =IF(ISBLANK(P72),G72*(1+$O72/100),P72) -> 0 | AA72: =IF(ISBLANK(Z72),Q72*(1+$O72/100),Z72) -> 0 | AK72: =IF(ISBLANK(AJ72),AA72*(1+$O72/100),AJ72) -> 0 | AM72: 1 | AN72: =IF(G72+Q72+AA72+AK72<>0,1,0) -> 0
A73: 1 | AM73: 1 | AN73: =IF(AN74<>0,1,0) -> 0
B74: Resultat før finansiering | G74: =G67+G70+G72 -> 0 | Q74: =Q67+Q70+Q72 -> 0 | AA74: =AA67+AA70+AA72 -> 0 | AK74: =AK67+AK70+AK72 -> 0 | AM74: 1 | AN74: =IF(G74+Q74+AA74+AK74<>0,1,0) -> 0
AM75: 1 | AN75: =IF(AN74<>0,1,0) -> 0
C76: Finansieringstilskud | Q76: =IF(ISBLANK(P76),G76*(1+$O76/100),P76) -> 0 | AA76: =IF(ISBLANK(Z76),Q76*(1+$O76/100),Z76) -> 0 | AK76: =IF(ISBLANK(AJ76),AA76*(1+$O76/100),AJ76) -> 0 | AM76: 1 | AN76: 0
A77: 1 | C77: Forpagtningsafgift | Q77: 0 | AA77: 0 | AK77: 0 | AM77: 1 | AN77: 0
C78: Forpagtning Senior privat | Q78: 0 | AA78: 0 | AK78: 0 | AM78: 1 | AN78: 0
C79: Forpagtning Junior privat | Q79: 0 | AA79: 0 | AK79: 0 | AM79: 1 | AN79: 0
A80: 1 | C80: Renteindtægter | Q80: 0 | AA80: 0 | AK80: 0 | AM80: 1 | AN80: 0
C81: Aktieudbytte, andre aktier | Q81: 0 | AA81: 0 | AK81: 0 | AM81: 1 | AN81: 0
A82: 1 | C82: Renteudgifter mv. | Q82: =IF(ISBLANK(P82),G82*(1+$O82/100),P82) -> 0 | AA82: =IF(ISBLANK(Z82),Q82*(1+$O82/100),Z82) -> 0 | AK82: =IF(ISBLANK(AJ82),AA82*(1+$O82/100),AJ82) -> 0 | AM82: 1 | AN82: 0
A83: 1 | C83: Kassekreditrente | G83: =IF(ISBLANK(F83),IF('A-S Balance'!D130>0,'A-S Balance'!D130*'A-S Balance'!$AF$2,'A-S Balance'!D130*'A-S Balance'!$AF$3)*1000,F83) -> 0 | Q83: =IF(ISBLANK(P83),IF('A-S Balance'!L130>0,'A-S Balance'!L130*'A-S Balance'!$AF$2,'A-S Balance'!L130*'A-S Balance'!$AF$3)*1000,P83) -> 0 | AA83: =IF(ISBLANK(Z83),IF('A-S Balance'!V130>0,'A-S Balance'!V130*'A-S Balance'!$AF$2,'A-S Balance'!V130*'A-S Balance'!$AF$3)*1000,Z83) -> 0 | AK83: =IF(ISBLANK(AJ83),IF('A-S Balance'!AF130>0,'A-S Balance'!AF130*'A-S Balance'!$AF$2,'A-S Balance'!AF130*'A-S Balance'!$AF$3)*1000,AJ83) -> 0 | AM83: 1 | AN83: 0
A84: 1 | C84: Prioritetsomkostninger | AM84: 1 | AN84: 0
A85: =IF(G85+Q85+AA85+AK85<>0,1,0) -> 0
A86: 1 | B86: Finansiering i alt | G86: =SUM(G76:G84) -> 0 | Q86: =SUM(Q76:Q84) -> 0 | AA86: =SUM(AA76:AA84) -> 0 | AK86: =SUM(AK76:AK84) -> 0 | AM86: 1 | AN86: 0
A87: 1 | AM87: =AM86 -> 1 | AN87: =AM87 -> 1
A88: 1 | AM88: 1 | AN88: =AM88 -> 1
A89: 1 | B89: Resultat efter finansiering | G89: =G74+G86 -> 0 | Q89: =Q74+Q86 -> 0 | AA89: =AA74+AA86 -> 0 | AK89: =AK74+AK86 -> 0 | AM89: 1 | AN89: 1
A90: 1 | AM90: 1 | AN90: 1
A91: 1 | AM91: =AM92 -> 0 | AN91: 0
C92: Afskrivning rettigheder | G92: =('A-S Balance'!J32+'A-S Balance'!J36)*1000 -> 0 | Q92: =('A-S Balance'!T32+'A-S Balance'!T36)*1000 -> 0 | AA92: =('A-S Balance'!AD32+'A-S Balance'!AD36)*1000 -> 0 | AK92: =('A-S Balance'!AN32+'A-S Balance'!AN36)*1000 -> 0 | AM92: =IF(G92+Q92+AA92+AK92<>0,1,0) -> 0 | AN92: 0 | AP92: =G92+Q92+AA92+AK92 -> 0 | AV92: =AK92+AA92+Q92+G92 -> 0
AM93: =AM92 -> 0 | AN93: 0
AM94: =AM92 -> 0 | AN94: 0
B95: Resultat før disponering | G95: =G89+G92+korrektion -> 0 | Q95: =Q89+Q92+korrektion2 -> 0 | AA95: =AA89+AA92+korrektion3 -> 0 | AK95: =AK89+AK92+korrektion4 -> 0 | AM95: =AM92 -> 0 | AN95: 0
AM96: =AM92 -> 0 | AN96: =AM96 -> 0
AM97: 1 | AN97: 1
A98: 1 | B98: Disponering af årets resultat: | G98: 0 | Q98: 0 | AA98: 0 | AK98: 0 | AM98: 1 | AN98: 1
AM99: 1 | AN99: 1
C100: Årets resultat før skat | G100: =G95 -> 0 | Q100: =Q95 -> 0 | AA100: =AA95 -> 0 | AK100: =AK95 -> 0 | AM100: 1 | AN100: 1
C101: Skat af årets resultat | G101: =G121 -> 0 | Q101: =Q121 -> 0 | AA101: =AA121 -> 0 | AK101: =AK121 -> 0 | AM101: 1 | AN101: 1
A102: =IF(E102+Q102+AA102+AK102<>0,1,0) -> 0 | C102: Årets resultat efter skat | G102: =G100+G101 -> 0 | Q102: =Q100+Q101 -> 0 | AA102: =AA100+AA101 -> 0 | AK102: =AK100+AK101 -> 0 | AM102: 1 | AN102: 1
A103: 1 | C103: Udbytte Senior Holding, ejer | E103: ='A-S Balance'!J126 -> 0.9 | G103: =IF((G$102-F$107)*E103<0,0,(G$102-F$107)*-E103) -> 0 | O103: ='A-S Balance'!T126 -> 0.9 | Q103: =IF((Q$102-P$107)*O103<0,0,(Q$102-P$107)*-O103) -> 0 | Y103: ='A-S Balance'!AD126 -> 0.9 | AA103: =IF((AA$102-Z$107)*Y103<0,0,(AA$102-Z$107)*-Y103) -> 0 | AI103: ='A-S Balance'!AN126 -> 0.9 | AK103: =IF((AK$102-AJ$107)*AI103<0,0,(AK$102-AJ$107)*-AI103) -> 0 | AM103: 1 | AN103: 1
C104: Udbytte Junior Holding, ejer | E104: ='A-S Balance'!J127 -> 0.1 | G104: =IF((G$102-F$107)*E104<0,0,(G$102-F$107)*-E104) -> 0 | O104: ='A-S Balance'!T127 -> 0.1 | Q104: =IF((Q$102-P$107)*O104<0,0,(Q$102-P$107)*-O104) -> 0 | Y104: ='A-S Balance'!AD127 -> 0.1 | AA104: =IF((AA$102-Z$107)*Y104<0,0,(AA$102-Z$107)*-Y104) -> 0 | AI104: ='A-S Balance'!AN127 -> 0.1 | AK104: =IF((AK$102-AJ$107)*AI104<0,0,(AK$102-AJ$107)*-AI104) -> 0 | AM104: 1 | AN104: 1
AM105: 1 | AN105: 1
A106: 1 | AM106: 1 | AN106: 1
A107: 1 | B107: Hensættelse til konsolidering i A/S | G107: =G102+G103+G104 -> 0 | Q107: =Q102+Q103+Q104 -> 0 | AA107: =AA102+AA103+AA104 -> 0 | AK107: =AK102+AK103+AK104 -> 0 | AM107: 1 | AN107: 1
A108: 1 | AM108: 1 | AN108: 1
A109: 1 | AM109: 0 | AN109: 0
A110: 1 | AM110: 1 | AN110: 1
A111: 1 | AM111: 1 | AN111: 1
A112: 1 | B112: A/S EGENKAPITAL | G112: =G6 -> 2025 | Q112: =Q6 -> 2026 | AA112: =AA6 -> 2027 | AK112: =AK6 -> 2028 | AM112: 1 | AN112: 1
A113: 1 | AM113: 1 | AN113: 1
A114: 1 | AM114: 1 | AN114: 1
A115: 1 | B115: Årets resultat før skat | G115: =G100 -> 0 | Q115: =Q100 -> 0 | AA115: =AA100 -> 0 | AK115: =AK100 -> 0 | AM115: 1 | AN115: =IF(G115+Q115+AA115+AK115<>0,1,0) -> 0
A116: 1 | AM116: 1 | AN116: =IF(AN115<>0,1,0) -> 0
A117: 1 | C117: Udbetalt udbytte til holdingselskaber | G117: =G103+G104 -> 0 | Q117: =Q103+Q104 -> 0 | AA117: =AA103+AA104 -> 0 | AK117: =AK103+AK104 -> 0 | AM117: 1 | AN117: 0
A118: 1 | AM118: 1 | AN118: =IF(AN117<>0,1,0) -> 0
A119: 1 | C119: Betalt skat | G119: ='Betalt Skat'!E21*1000 -> 0 | Q119: ='Betalt Skat'!F21*1000 -> 0 | AA119: ='Betalt Skat'!G21*1000 -> 0 | AK119: ='Betalt Skat'!H21*1000 -> 0 | AM119: 1 | AN119: 0
A120: 1 | C120: Ændring i udskudt skat | G120: ='Betalt Skat'!E22*1000 -> 0 | Q120: ='Betalt Skat'!F22*1000 -> 0 | AA120: ='Betalt Skat'!G22*1000 -> 0 | AK120: ='Betalt Skat'!H22*1000 -> 0 | AM120: 1 | AN120: 0
B121: Skat af årets resultat | G121: =G119+G120 -> 0 | Q121: =Q119+Q120 -> 0 | AA121: =AA119+AA120 -> 0 | AK121: =AK119+AK120 -> 0 | AM121: 1 | AN121: 0
AM122: 1 | AN122: =IF(AN121<>0,1,0) -> 0
A123: 1 | B123: Ændring af egenkapital | G123: =G115+G117+G121 -> 0 | Q123: =Q115+Q117+Q121 -> 0 | AA123: =AA115+AA117+AA121 -> 0 | AK123: =AK115+AK117+AK121 -> 0 | AM123: 1 | AN123: 1
A124: =IF(G124+Q124+AA124+AK124<>0,1,0) -> 0 | AM124: 1 | AN124: 1
C125: Egenkapital primo | G125: ='A-S Balance'!D120*1000 -> 0 | Q125: =G127 -> 0 | AA125: =Q127 -> 0 | AK125: =AA127 -> 0 | AM125: 1 | AN125: 0
A126: 1 | AM126: 1 | AN126: =IF(AN125<>0,1,0) -> 0
A127: 1 | B127: Egenkapital ultimo | G127: =G123+G125 -> 0 | Q127: =Q123+Q125 -> 0 | AA127: =AA123+AA125 -> 0 | AK127: =AK123+AK125 -> 0 | AM127: 1 | AN127: 0
A128: 1 | AM128: 1 | AN128: =IF(AN127<>0,1,0) -> 0
A129: 1 | AM129: 1 | AN129: 1
A130: 1 | B130: A/S LIKVIDITET | G130: =G6 -> 2025 | P130: =Q6 -> 2026 | Z130: =AA6 -> 2027 | AJ130: =AK6 -> 2028 | AM130: 1 | AN130: 1
A131: 1 | AM131: 1 | AN131: 1
AM132: 1 | AN132: =AN133 -> 0
A133: 1 | B133: Årets resultat før skat | G133: =G115 -> 0 | Q133: =Q115 -> 0 | AA133: =AA115 -> 0 | AK133: =AK115 -> 0 | AM133: 1 | AN133: =IF(G133+Q133+AA133+AK133<>0,1,0) -> 0
A134: 1 | AM134: 1 | AN134: =IF(AN133<>0,1,0) -> 0
A135: 1 | C135: Afskrivninger mv. | G135: =-G61-G92 -> 0 | Q135: =-Q61-Q92 -> 0 | AA135: =-AA61-AA92 -> 0 | AK135: =-AK61-AK92 -> 0 | AM135: 1 | AN135: =IF(G135+Q135+AA135+AK135<>0,1,0) -> 0
A136: 1 | C136: Tilbageførsel i alt | G136: =SUM(G135:G135) -> 0 | Q136: =SUM(Q135:Q135) -> 0 | AA136: =SUM(AA135:AA135) -> 0 | AK136: =SUM(AK135:AK135) -> 0 | AM136: 1 | AN136: =IF(G136+Q136+AA136+AK136<>0,1,0) -> 0
A137: 1 | AM137: 1 | AN137: =IF(AN136<>0,1,0) -> 0
C138: Betalt skat | G138: =G119 -> 0 | Q138: =Q119 -> 0 | AA138: =AA119 -> 0 | AK138: =AK119 -> 0 | AM138: 1 | AN138: 0
A139: 1 | C139: Udbetalt udbytte til holdingselskaber | G139: =G117 -> 0 | Q139: =Q117 -> 0 | AA139: =AA117 -> 0 | AK139: =AK117 -> 0 | AM139: 1 | AN139: 0
B140: Skat og udbytter mv. i alt | G140: =SUM(G138:G139) -> 0 | Q140: =SUM(Q138:Q139) -> 0 | AA140: =SUM(AA138:AA139) -> 0 | AK140: =SUM(AK138:AK139) -> 0 | AM140: 1 | AN140: 0
AM141: 1 | AN141: =IF(AN140<>0,1,0) -> 0
A142: 1 | B142: Til investering og afdrag | G142: =G133+G136+G140 -> 0 | Q142: =Q133+Q136+Q140 -> 0 | AA142: =AA133+AA136+AA140 -> 0 | AK142: =AK133+AK136+AK140 -> 0 | AM142: 1 | AN142: =IF(AN140<>0,1,0) -> 0
AM143: 1 | AN143: =IF(AN142<>0,1,0) -> 0
A144: 1 | E144: Reduktion | G144: Forøgelse | O144: Reduktion | Q144: Forøgelse | Y144: Reduktion | AA144: Forøgelse | AI144: Reduktion | AK144: Forøgelse | AM144: 1 | AN144: =IF(AN145+AN146<>0,1,0) -> 0
A145: 1 | B145: m | C145: Besætning | E145: =IF('A-S Balance'!E52<0,('A-S Balance'!E52)*-1000,0) -> 0 | G145: =IF('A-S Balance'!E52>0,('A-S Balance'!E52)*-1000,0) -> 0 | O145: =IF('A-S Balance'!O52<0,('A-S Balance'!O52)*-1000,0) -> 0 | Q145: =IF('A-S Balance'!O52>0,('A-S Balance'!O52)*-1000,0) -> 0 | Y145: =IF('A-S Balance'!Y52<0,('A-S Balance'!Y52)*-1000,0) -> 0 | AA145: =IF('A-S Balance'!Y52>0,('A-S Balance'!Y52)*-1000,0) -> 0 | AI145: =IF('A-S Balance'!AI52<0,('A-S Balance'!AI52)*-1000,0) -> 0 | AK145: =IF('A-S Balance'!AI52>0,('A-S Balance'!AI52)*-1000,0) -> 0 | AM145: 1 | AN145: =IF(G145+Q145+AA145+AK145<>0,1,0) -> 0
A146: 1 | B146: m | C146: Beholdninger | E146: =IF('A-S Balance'!E58<0,'A-S Balance'!E58*-1000,0) -> 0 | G146: =IF('A-S Balance'!E58>0,'A-S Balance'!E58*-1000,0) -> 0 | O146: =IF('A-S Balance'!O58<0,'A-S Balance'!O58*-1000,0) -> 0 | Q146: =IF('A-S Balance'!O58>0,'A-S Balance'!O58*-1000,0) -> 0 | Y146: =IF('A-S Balance'!Y58<0,'A-S Balance'!Y58*-1000,0) -> 0 | AA146: =IF('A-S Balance'!Y58>0,'A-S Balance'!Y58*-1000,0) -> 0 | AI146: =IF('A-S Balance'!AI58<0,'A-S Balance'!AI58*-1000,0) -> 0 | AK146: =IF('A-S Balance'!AI58>0,'A-S Balance'!AI58*-1000,0) -> 0 | AM146: 1 | AN146: =IF(G146+Q146+AA146+AK146<>0,1,0) -> 0
A147: 1 | AM147: 1 | AN147: 1
A148: 1 | AM148: 1 | AN148: =IF(AN149<>0,1,0) -> 0
A149: 1 | B149: Likviditet før anlægsinvesteringer | G149: =E145+G145+E146+G146+G142 -> 0 | Q149: =O145+Q145+O146+Q146+Q142 -> 0 | AA149: =Y145+AA145+Y146+AA146+AA142 -> 0 | AK149: =AI145+AK145+AI146+AK146+AK142 -> 0 | AM149: 1 | AN149: =IF(G149+Q149+AA149+AK149<>0,1,0) -> 0
A150: 1 | AM150: 1 | AN150: =IF(AN149<>0,1,0) -> 0
A151: 1 | AM151: 1 | AN151: 1
A152: 1 | B152: INVESTERINGER | E152: Salg | G152: Køb/forbedring | O152: Salg | Q152: Køb/forbedring | Y152: Salg | AA152: Køb/forbedring | AI152: Salg | AK152: Køb/forbedring | AM152: 1 | AN152: =IF(AN164<>0,1,0) -> 0
A153: 1 | C153: Rettigheder | E153: =IF('A-S Balance'!E36+'A-S Balance'!E32<0,('A-S Balance'!E36+'A-S Balance'!E32)*-1000,0) -> 0 | G153: =IF('A-S Balance'!E36+'A-S Balance'!E32>0,('A-S Balance'!E36+'A-S Balance'!E32)*-1000,0) -> 0 | O153: =IF('A-S Balance'!O36+'A-S Balance'!O32<0,('A-S Balance'!O36+'A-S Balance'!O32)*-1000,0) -> 0 | Q153: =IF('A-S Balance'!O36+'A-S Balance'!O32>0,('A-S Balance'!O36+'A-S Balance'!O32)*-1000,0) -> 0 | Y153: =IF('A-S Balance'!Y36+'A-S Balance'!Y32<0,('A-S Balance'!Y36+'A-S Balance'!Y32)*-1000,0) -> 0 | AA153: =IF('A-S Balance'!Y36+'A-S Balance'!Y32>0,('A-S Balance'!Y36+'A-S Balance'!Y32)*-1000,0) -> 0 | AI153: =IF('A-S Balance'!AI36+'A-S Balance'!AI32<0,('A-S Balance'!AI36+'A-S Balance'!AI32)*-1000,0) -> 0 | AK153: =IF('A-S Balance'!AI36+'A-S Balance'!AI32>0,('A-S Balance'!AI36+'A-S Balance'!AI32)*-1000,0) -> 0 | AM153: 1 | AN153: =IF(E153+G153+O153+Q153+Y153+AA153+AI153+AK153<>0,1,0) -> 0
A154: 1 | C154: Køb/salg jord | E154: =IF('A-S Balance'!E13<0,('A-S Balance'!E13)*-1000,0) -> 0 | G154: =IF('A-S Balance'!E13>0,('A-S Balance'!E13)*-1000,0) -> 0 | O154: =IF('A-S Balance'!O13<0,('A-S Balance'!O13)*-1000,0) -> 0 | Q154: =IF('A-S Balance'!O13>0,('A-S Balance'!O13)*-1000,0) -> 0 | Y154: =IF('A-S Balance'!Y13<0,('A-S Balance'!Y13)*-1000,0) -> 0 | AA154: =IF('A-S Balance'!Y13>0,('A-S Balance'!Y13)*-1000,0) -> 0 | AI154: =IF('A-S Balance'!AI13<0,('A-S Balance'!AI13)*-1000,0) -> 0 | AK154: =IF('A-S Balance'!AI13>0,('A-S Balance'!AI13)*-1000,0) -> 0 | AM154: 1 | AN154: =IF(E154+G154+O154+Q154+Y154+AA154+AI154+AK154<>0,1,0) -> 0
A155: 1 | B155: m | C155: Driftsbygninger | E155: =IF('A-S Balance'!E21<0,'A-S Balance'!E21*-1000,0) -> 0 | G155: =IF('A-S Balance'!E21>0,'A-S Balance'!E21*-1000,0) -> 0 | O155: =IF('A-S Balance'!O21<0,'A-S Balance'!O21*-1000,0) -> 0 | Q155: =IF('A-S Balance'!O21>0,'A-S Balance'!O21*-1000,0) -> 0 | Y155: =IF('A-S Balance'!Y21<0,'A-S Balance'!Y21*-1000,0) -> 0 | AA155: =IF('A-S Balance'!Y21>0,'A-S Balance'!Y21*-1000,0) -> 0 | AI155: =IF('A-S Balance'!AI21<0,'A-S Balance'!AI21*-1000,0) -> 0 | AK155: =IF('A-S Balance'!AI21>0,'A-S Balance'!AI21*-1000,0) -> 0 | AM155: 1 | AN155: 0
A156: 1 | C156: Beboelse (stuehus) | E156: =IF('A-S Balance'!E25<0,'A-S Balance'!E25*-1000,0) -> 0 | G156: =IF('A-S Balance'!E25>0,'A-S Balance'!E25*-1000,0) -> 0 | O156: =IF('A-S Balance'!O25<0,'A-S Balance'!O25*-1000,0) -> 0 | Q156: =IF('A-S Balance'!O25>0,'A-S Balance'!O25*-1000,0) -> 0 | Y156: =IF('A-S Balance'!Y25<0,'A-S Balance'!Y25*-1000,0) -> 0 | AA156: =IF('A-S Balance'!Y25>0,'A-S Balance'!Y25*-1000,0) -> 0 | AI156: =IF('A-S Balance'!AI25<0,'A-S Balance'!AI25*-1000,0) -> 0 | AK156: =IF('A-S Balance'!AI25>0,'A-S Balance'!AI25*-1000,0) -> 0 | AM156: 1 | AN156: 0
A157: 1 | B157: m | C157: Inventar markbrug | E157: =IF('A-S Balance'!E40<0,'A-S Balance'!E40*-1000,0) -> 0 | G157: =IF('A-S Balance'!E40>0,'A-S Balance'!E40*-1000,0) -> 0 | O157: =IF('A-S Balance'!O40<0,'A-S Balance'!O40*-1000,0) -> 0 | Q157: =IF('A-S Balance'!O40>0,'A-S Balance'!O40*-1000,0) -> 0 | Y157: =IF('A-S Balance'!Y40<0,'A-S Balance'!Y40*-1000,0) -> 0 | AA157: =IF('A-S Balance'!Y40>0,'A-S Balance'!Y40*-1000,0) -> 0 | AI157: =IF('A-S Balance'!AI40<0,'A-S Balance'!AI40*-1000,0) -> 0 | AK157: =IF('A-S Balance'!AI40>0,'A-S Balance'!AI40*-1000,0) -> 0 | AM157: 1 | AN157: 0
A158: 1 | B158: m | C158: Inventar husdyrbrug | E158: =IF('A-S Balance'!E44<0,'A-S Balance'!E44*-1000,0) -> 0 | G158: =IF('A-S Balance'!E44>0,'A-S Balance'!E44*-1000,0) -> 0 | O158: =IF('A-S Balance'!O44<0,'A-S Balance'!O44*-1000,0) -> 0 | Q158: =IF('A-S Balance'!O44>0,'A-S Balance'!O44*-1000,0) -> 0 | Y158: =IF('A-S Balance'!Y44<0,'A-S Balance'!Y44*-1000,0) -> 0 | AA158: =IF('A-S Balance'!Y44>0,'A-S Balance'!Y44*-1000,0) -> 0 | AI158: =IF('A-S Balance'!AI44<0,'A-S Balance'!AI44*-1000,0) -> 0 | AK158: =IF('A-S Balance'!AI44>0,'A-S Balance'!AI44*-1000,0) -> 0 | AM158: 1 | AN158: 0
A159: 1 | B159: m | C159: Inventar andet | E159: =IF('A-S Balance'!E48<0,'A-S Balance'!E48*-1000,0) -> 0 | G159: =IF('A-S Balance'!E48>0,'A-S Balance'!E48*-1000,0) -> 0 | O159: =IF('A-S Balance'!O48<0,'A-S Balance'!O48*-1000,0) -> 0 | Q159: =IF('A-S Balance'!O48>0,'A-S Balance'!O48*-1000,0) -> 0 | Y159: =IF('A-S Balance'!Y48<0,'A-S Balance'!Y48*-1000,0) -> 0 | AA159: =IF('A-S Balance'!Y48>0,'A-S Balance'!Y48*-1000,0) -> 0 | AI159: =IF('A-S Balance'!AI48<0,'A-S Balance'!AI48*-1000,0) -> 0 | AK159: =IF('A-S Balance'!AI48>0,'A-S Balance'!AI48*-1000,0) -> 0 | AM159: 1 | AN159: 0
A160: 1 | B160: m | C160: Grundforbedringer | E160: =IF('A-S Balance'!E17<0,'A-S Balance'!E17*-1000,0) -> 0 | G160: =IF('A-S Balance'!E17>0,'A-S Balance'!E17*-1000,0) -> 0 | O160: =IF('A-S Balance'!O17<0,'A-S Balance'!O17*-1000,0) -> 0 | Q160: =IF('A-S Balance'!O17>0,'A-S Balance'!O17*-1000,0) -> 0 | Y160: =IF('A-S Balance'!Y17<0,'A-S Balance'!Y17*-1000,0) -> 0 | AA160: =IF('A-S Balance'!Y17>0,'A-S Balance'!Y17*-1000,0) -> 0 | AI160: =IF('A-S Balance'!AI17<0,'A-S Balance'!AI17*-1000,0) -> 0 | AK160: =IF('A-S Balance'!AI17>0,'A-S Balance'!AI17*-1000,0) -> 0 | AM160: 1 | AN160: 0
A161: 1 | C161: Biler | E161: =IF('A-S Balance'!E66<0,'A-S Balance'!E66*-1000,0) -> 0 | G161: =IF('A-S Balance'!E66>0,'A-S Balance'!E66*-1000,0) -> 0 | O161: =IF('A-S Balance'!O66<0,'A-S Balance'!O66*-1000,0) -> 0 | Q161: =IF('A-S Balance'!O66>0,'A-S Balance'!O66*-1000,0) -> 0 | Y161: =IF('A-S Balance'!Y66<0,'A-S Balance'!Y66*-1000,0) -> 0 | AA161: =IF('A-S Balance'!Y66>0,'A-S Balance'!Y66*-1000,0) -> 0 | AI161: =IF('A-S Balance'!AI66<0,'A-S Balance'!AI66*-1000,0) -> 0 | AK161: =IF('A-S Balance'!AI66>0,'A-S Balance'!AI66*-1000,0) -> 0 | AM161: 1 | AN161: 0
A162: 1 | C162: Aktiver uden for landbrug | E162: =IF('A-S Balance'!E72<0,'A-S Balance'!E72*-1000,0) -> 0 | G162: =IF('A-S Balance'!E72>0,'A-S Balance'!E72*-1000,0) -> 0 | O162: =IF('A-S Balance'!O72<0,'A-S Balance'!O72*-1000,0) -> 0 | Q162: =IF('A-S Balance'!O72>0,'A-S Balance'!O72*-1000,0) -> 0 | Y162: =IF('A-S Balance'!Y72<0,'A-S Balance'!Y72*-1000,0) -> 0 | AA162: =IF('A-S Balance'!Y72>0,'A-S Balance'!Y72*-1000,0) -> 0 | AI162: =IF('A-S Balance'!AI72<0,'A-S Balance'!AI72*-1000,0) -> 0 | AK162: =IF('A-S Balance'!AI72>0,'A-S Balance'!AI72*-1000,0) -> 0 | AM162: 1 | AN162: 0
A163: 1 | AM163: 1 | AN163: =IF(AN164<>0,1,0) -> 0
A164: 1 | C164: Investeringer i alt | G164: =SUM(E153:G162) -> 0 | Q164: =SUM(O153:Q162) -> 0 | AA164: =SUM(Y153:AA162) -> 0 | AK164: =SUM(AI153:AK162) -> 0 | AM164: 1 | AN164: 0
A165: 1 | AM165: 1 | AN165: =IF(AN164<>0,1,0) -> 0
A166: 1 | AM166: 1 | AN166: =IF(AN167<>0,1,0) -> 0
A167: 1 | B167: Likviditetsoverskud/-behov | G167: =G149+G164 -> 0 | Q167: =Q149+Q164 -> 0 | AA167: =AA149+AA164 -> 0 | AK167: =AK149+AK164 -> 0 | AM167: 1 | AN167: =IF(G167+Q167+AA167+AK167<>0,1,0) -> 0
A168: 1 | AM168: 1 | AN168: =IF(AN167<>0,1,0) -> 0
A169: 1 | AM169: 1 | AN169: 1
A170: 1 | B170: ÆNDRING FINANSIELLE AKTIVER OG GÆLD | AM170: 1 | AN170: =IF(AN183<>0,1,0) -> 0
A171: 1 | E171: Anvendelse | G171: Fremskaffelse | O171: Anvendelse | Q171: Fremskaffelse | Y171: Anvendelse | AA171: Fremskaffelse | AI171: Anvendelse | AK171: Fremskaffelse | AM171: 1 | AN171: =IF(AN183<>0,1,0) -> 0
A172: 1 | C172: Tilgodehavender | E172: =IF('A-S Balance'!E74>0,('A-S Balance'!E74)*-1000,0) -> 0 | G172: =IF('A-S Balance'!E74<0,('A-S Balance'!E74)*-1000,0) -> 0 | O172: =IF('A-S Balance'!O74>0,('A-S Balance'!O74)*-1000,0) -> 0 | Q172: =IF('A-S Balance'!O74<0,('A-S Balance'!O74)*-1000,0) -> 0 | Y172: =IF('A-S Balance'!Y74>0,('A-S Balance'!Y74)*-1000,0) -> 0 | AA172: =IF('A-S Balance'!Y74<0,('A-S Balance'!Y74)*-1000,0) -> 0 | AI172: =IF('A-S Balance'!AI74>0,('A-S Balance'!AI74)*-1000,0) -> 0 | AK172: =IF('A-S Balance'!AI74<0,('A-S Balance'!AI74)*-1000,0) -> 0 | AM172: 1 | AN172: =IF(E172+G172+O172+Q172+Y172+AA172+AI172+AK172<>0,1,0) -> 0
A173: 1 | B173: Værdipapirer | C173: Værdipapirer | E173: =IF('A-S Balance'!E75>0,('A-S Balance'!E75)*-1000,0) -> 0 | G173: =IF('A-S Balance'!E75<0,('A-S Balance'!E75)*-1000,0) -> 0 | O173: =IF('A-S Balance'!O75>0,('A-S Balance'!O75)*-1000,0) -> 0 | Q173: =IF('A-S Balance'!O75<0,('A-S Balance'!O75)*-1000,0) -> 0 | Y173: =IF('A-S Balance'!Y75>0,('A-S Balance'!Y75)*-1000,0) -> 0 | AA173: =IF('A-S Balance'!Y75<0,('A-S Balance'!Y75)*-1000,0) -> 0 | AI173: =IF('A-S Balance'!AI75>0,('A-S Balance'!AI75)*-1000,0) -> 0 | AK173: =IF('A-S Balance'!AI75<0,('A-S Balance'!AI75)*-1000,0) -> 0 | AM173: 1 | AN173: 0
C174: Kassekredit (når positiv) | E174: =IF(E189>0,IF(C189>0,-E189,IF(C189+E189>0,(C189+E189)*-1,0)),0) -> 0 | G174: =IF(E189<0,IF(C189>=0,IF(C189+E189>0,-E189,C189),0),0) -> 0 | O174: =IF(O189>0,IF(G189>0,-O189,IF(G189+O189>0,(G189+O189)*-1,0)),0) -> 0 | Q174: =IF(O189<0,IF(G189>=0,IF(G189+O189>0,-O189,G189),0),0) -> 0 | Y174: =IF(Y189>0,IF(Q189>0,-Y189,IF(Q189+Y189>0,(Q189+Y189)*-1,0)),0) -> 0 | AA174: =IF(Y189<0,IF(Q189>=0,IF(Q189+Y189>0,-Y189,Q189),0),0) -> 0 | AI174: =IF(AI189>0,IF(AA189>0,-AI189,IF(AA189+AI189>0,(AA189+AI189)*-1,0)),0) -> 0 | AK174: =IF(AI189<0,IF(AA189>=0,IF(AA189+AI189>0,-AI189,AA189),0),0) -> 0 | AM174: 1 | AN174: 0
A175: 1 | C175: Indlån | E175: =IF('A-S Balance'!E76>0,('A-S Balance'!E76)*-1000,0) -> 0 | G175: =IF('A-S Balance'!E76<0,('A-S Balance'!E76)*-1000,0) -> 0 | O175: =IF('A-S Balance'!O76>0,('A-S Balance'!O76)*-1000,0) -> 0 | Q175: =IF('A-S Balance'!O76<0,('A-S Balance'!O76)*-1000,0) -> 0 | Y175: =IF('A-S Balance'!Y76>0,('A-S Balance'!Y76)*-1000,0) -> 0 | AA175: =IF('A-S Balance'!Y76<0,('A-S Balance'!Y76)*-1000,0) -> 0 | AI175: =IF('A-S Balance'!AI76>0,('A-S Balance'!AI76)*-1000,0) -> 0 | AK175: =IF('A-S Balance'!AI76<0,('A-S Balance'!AI76)*-1000,0) -> 0 | AM175: 1 | AN175: 0
A176: 1 | C176: Realkredit gæld( - = afdrag) | E176: ='A-S Balance'!H96*-1000 -> 0 | G176: ='A-S Balance'!E96*-1000 -> 0 | O176: ='A-S Balance'!R96*-1000 -> 0 | Q176: ='A-S Balance'!O96*-1000 -> 0 | Y176: ='A-S Balance'!AB96*-1000 -> 0 | AA176: ='A-S Balance'!Y96*-1000 -> 0 | AI176: ='A-S Balance'!AL96*-1000 -> 0 | AK176: ='A-S Balance'!AI96*-1000 -> 0 | AM176: 1 | AN176: 0
C177: Pengeinstitutter ( - = afdrag) | E177: ='A-S Balance'!H102*1000*-1 -> 0 | G177: ='A-S Balance'!E102*1000*-1 -> 0 | O177: ='A-S Balance'!R102*1000*-1 -> 0 | Q177: ='A-S Balance'!O102*1000*-1 -> 0 | Y177: ='A-S Balance'!AB102*1000*-1 -> 0 | AA177: ='A-S Balance'!Y102*1000*-1 -> 0 | AI177: ='A-S Balance'!AL102*1000*-1 -> 0 | AK177: ='A-S Balance'!AI102*1000*-1 -> 0 | AM177: 1 | AN177: =IF(E177+G177+O177+Q177+Y177+AA177+AI177+AK177<>0,1,0) -> 0
A178: 1 | C178: Moms og afgift ( - =afdrag) | E178: =IF(G201<0,G201,0) -> 0 | G178: =IF(G201>0,G201,0) -> 0 | O178: =IF(Q201<0,Q201,0) -> 0 | Q178: =IF(Q201>0,Q201,0) -> 0 | Y178: =IF(AA201<0,AA201,0) -> 0 | AA178: =IF(AA201>0,AA201,0) -> 0 | AI178: =IF(AK201<0,AK201,0) -> 0 | AK178: =IF(AK201>0,AK201,0) -> 0 | AM178: 1 | AN178: 0
A179: 1 | C179: Anden gæld i alt | E179: ='A-S Balance'!H106*-1000 -> 0 | G179: ='A-S Balance'!E106*-1000 -> 0 | O179: ='A-S Balance'!R106*-1000 -> 0 | Q179: ='A-S Balance'!O106*-1000 -> 0 | Y179: ='A-S Balance'!AB106*-1000 -> 0 | AA179: ='A-S Balance'!Y106*-1000 -> 0 | AI179: ='A-S Balance'!AL106*-1000 -> 0 | AK179: ='A-S Balance'!AI106*-1000 -> 0 | AM179: 1 | AN179: 0
A180: 1 | C180: Kassekredit (negativ) | E180: =IF(E189>0,IF(C189<0,IF(C189+E189>0,C189,-E189),0),0) -> 0 | G180: =IF(E189<0,IF(C189<0,-E189,IF(E189+C189<0,(C189+E189)*-1,0)),0) -> 0 | O180: =IF(O189>0,IF(G189<0,IF(G189+O189>0,G189,-O189),0),0) -> 0 | Q180: =IF(O189<0,IF(G189<0,-O189,IF(O189+G189<0,(G189+O189)*-1,0)),0) -> 0 | Y180: =IF(Y189>0,IF(Q189<0,IF(Q189+Y189>0,Q189,-Y189),0),0) -> 0 | AA180: =IF(Y189<0,IF(Q189<0,-Y189,IF(Y189+Q189<0,(Q189+Y189)*-1,0)),0) -> 0 | AI180: =IF(AI189>0,IF(AA189<0,IF(AA189+AI189>0,AA189,-AI189),0),0) -> 0 | AK180: =IF(AI189<0,IF(AA189<0,-AI189,IF(AI189+AA189<0,(AA189+AI189)*-1,0)),0) -> 0 | AM180: 1 | AN180: 0
A181: 1 | AM181: 1 | AN181: =IF(AN183<>0,1,0) -> 0
A182: 1 | AM182: 1 | AN182: =IF(AN183<>0,1,0) -> 0
A183: 1 | B183: Likviditetsanvendelse/fremskaffelse | G183: =SUM(E172:G180) -> 0 | Q183: =SUM(O172:Q180) -> 0 | AA183: =SUM(Y172:AA180) -> 0 | AK183: =SUM(AI172:AK180) -> 0 | AM183: 1 | AN183: =IF(G183+Q183+AA183+AK183<>0,1,0) -> 0
A184: 1 | AM184: 1 | AN184: =IF(AN183<>0,1,0) -> 0
A185: 1 | G185: =G167+G183 -> 0 | Q185: =Q167+Q183 -> 0 | AA185: =AA167+AA183 -> 0 | AK185: =AK167+AK183 -> 0 | AM185: 1 | AN185: 1
A186: 1 | B186: A/S kassekredit/likviditet saldo ultimo | G186: =('A-S Balance'!L108+'A-S Balance'!L77)*1000 -> 0 | Q186: =('A-S Balance'!V108+'A-S Balance'!V77)*1000 -> 0 | AA186: =('A-S Balance'!AF108+'A-S Balance'!AF77)*1000 -> 0 | AK186: =('A-S Balance'!AP108+'A-S Balance'!AP77)*1000 -> 0 | AM186: 1 | AN186: =IF(G186+Q186+AA186+AK186<>0,1,0) -> 0
AM187: 1 | AN187: 1
G188: =G186-G189 -> 0 | Q188: =Q186-Q189 -> 0 | AA188: =AA186-AA189 -> 0 | AK188: =AK186-AK189 -> 0 | AM188: 1 | AN188: 1
C189: ='A-S Balance'!C108*1000 -> 0 | E189: =G167+SUM(E172:G173)+SUM(E175:G179) -> 0 | G189: =C189+E189 -> 0 | O189: =Q167+SUM(O172:Q173)+SUM(O175:Q179) -> 0 | Q189: =G189+O189 -> 0 | S189: =O189+Q189 -> 0 | Y189: =AA167+SUM(Y172:AA173)+SUM(Y175:AA179) -> 0 | AA189: =Q189+Y189 -> 0 | AI189: =AK167+SUM(AI172:AK173)+SUM(AI175:AK179) -> 0 | AK189: =AA189+AI189 -> 0 | AM189: 1 | AN189: 1
C190: Moms primo (- = gæld, + = tilgode) | G190: ='A-S Balance'!D107*1000 -> 0 | Q190: =G198 -> 0 | AA190: =Q198 -> 0 | AK190: =AA198 -> 0 | AM190: 1 | AN190: =IF(G190+Q190+AA190+AK190<>0,1,0) -> 0
AM191: 1 | AN191: =IF(AN192<>0,1,0) -> 0
C192: Årets momspligtig omsætning netto | G192: =DSUM($B$5:$AK$183,"a",$BB192:$BB193) -> 0 | Q192: =DSUM($B$5:$AK$183,"b",$BB192:$BB193) -> 0 | AA192: =DSUM($B$5:$AK$183,"c",$BB192:$BB193) -> 0 | AK192: =DSUM($B$5:$AK$183,"d",$BB192:$BB193) -> 0 | AM192: 1 | AN192: =IF(G192+Q192+AA192+AK192<>0,1,0) -> 0 | BB192: Moms
C193: Årets moms heraf, modtaget i året | G193: =TRUNC(G192*0.25,0) -> 0 | Q193: =TRUNC(Q192*0.25,0) -> 0 | AA193: =TRUNC(AA192*0.25,0) -> 0 | AK193: =TRUNC(AK192*0.25,0) -> 0 | AM193: 1 | AN193: =IF(G193+Q193+AA193+AK193<>0,1,0) -> 0 | BB193: m
C194: 3 kvartalers betaling heraf | G194: =G193*0.75 -> 0 | Q194: =Q193*0.75 -> 0 | AA194: =AA193*0.75 -> 0 | AK194: =AK193*0.75 -> 0 | AM194: 1 | AN194: =IF(G194+Q194+AA194+AK194<>0,1,0) -> 0
AM195: 1 | AN195: =IF(AN196<>0,1,0) -> 0
C196: Primo + 3 kvartaler, betalt i året | G196: =G190-G194 -> 0 | Q196: =Q190-Q194 -> 0 | AA196: =AA190-AA194 -> 0 | AK196: =AK190-AK194 -> 0 | AM196: 1 | AN196: =IF(G196+Q196+AA196+AK196<>0,1,0) -> 0
AM197: 1 | AN197: =IF(AN198<>0,1,0) -> 0
C198: Moms ultimo (primo + modtaget - betalt) | G198: =G190-G193-G196 -> 0 | Q198: =Q190-Q193-Q196 -> 0 | AA198: =AA190-AA193-AA196 -> 0 | AK198: =AK190-AK193-AK196 -> 0 | AM198: 1 | AN198: =IF(G198+Q198+AA198+AK198<>0,1,0) -> 0
AM199: 1 | AN199: =IF(AN201<>0,1,0) -> 0
C200: Korrektion: Moms bevægelse | AM200: 1 | AN200: =IF(AN201<>0,1,0) -> 0
... 12 more rows

Sheet A-S Balance
A1: A/S BALANCE & ANLÆGSKARTOTEK | J1: Budgetoplysninger | AI1: © CHA 02.05.2025 | CX1: Vis | CY1: Skjul | DI1: b | DM1: b
A2: Ejendom | J2: Første budgetår | T2: 2025 | Y2: KK positiv saldo, p.a.
A3: Alternativ | J3: Selskabsskatteprocent | T3: 0.22 | Y3: KK negativ saldo, p.a. | AF3: 0.05 | BB3: 2 | BF3: 2 | BO3: 2 | BV3: 2 | BW3: 1 | BX3: 2
A4: Navn | BB4: Tekster til valgboks | BW4: Tekster til valgboks | CI4: 271159
BB5: Nej | BW5: Budget - standard
A6: Windows | J6: Senior: | BB6: Ja | BW6: Budget udvidet med op- og nedskrivninger samt tab og gevinst
J7: Junior:
L8: =IF(ISNUMBER('A-S Resultat'!G127+L120),'A-S Resultat'!G127/1000-'A-S Balance'!L120,0) -> 0 | V8: =IF(ISNUMBER('A-S Resultat'!Q127+V120),'A-S Resultat'!Q127/1000-'A-S Balance'!V120,0) -> 0 | AF8: =IF(ISNUMBER('A-S Resultat'!AA127+AF120),'A-S Resultat'!AA127/1000-'A-S Balance'!AF120,0) -> 0 | AP8: =IF(ISNUMBER('A-S Resultat'!AK127+AP120),'A-S Resultat'!AK127/1000-'A-S Balance'!AP120,0) -> 0
A9: A/S AKTIVER | D9: =T2 -> 2025 | E9: - 1.000 kr - | L9: =D9+1 -> 2026 | M9: - 1.000 kr - | V9: =L9+1 -> 2027 | Y9: - 1.000 kr - | AF9: =V9+1 -> 2028 | AI9: - 1.000 kr - | AP9: =AF9+1 -> 2029 | AT9: Rest måneder vedr. afskrivning
B10: Jord | D10: Primo | E10: Investering | L10: 0 | O10: Investering | V10: 0 | Y10: Investering | AF10: 0 | AI10: Investering | AM10: T/G | CX10: 1 | CY10: =IF(CY13<>0,1,0) -> 0
A11: 1 | K11: =IF(E11+D11=0,0,IF(ISBLANK(H11),IF(C11>0,1/(1/C11-1),0),1/H11)) -> 0 | L11: =D11+E11+F11+I11+J11 -> 0 | U11: =IF(O11+L11=0,0,IF(ISBLANK(R11),IF(K11>0,1/(1/K11-1),0),1/R11)) -> 0 | V11: =IF(CL11=0,L11+O11+P11+S11+T11,0) -> 0 | AE11: =IF(Y11+V11=0,0,IF(ISBLANK(AB11),IF(U11>0,1/(1/U11-1),0),1/AB11)) -> 0 | AF11: =IF(CS11=0,V11+Y11+Z11+AC11+AD11,0) -> 0 | AM11: =IF(CZ11=0,0,-AF11-AI11+CQ11) -> 0 | AO11: =IF(AI11+AF11=0,0,IF(ISBLANK(AL11),IF(AE11>0,1/(1/AE11-1),0),1/AL11)) -> 0 | AP11: =IF(CZ11=0,AF11+AI11+AJ11+AM11+AN11,0) -> 0 | BB11: =IF(ISBLANK(R11),AT11,R11) -> 0 | BL11: =IF(ISBLANK(AB11),BB11,AB11) -> 0 | BV11: =IF(ISBLANK(AL11),BL11,AL11) -> 0 | CX11: 1 | CY11: =IF(D11+L11+V11+AF11+AP11<>0,1,0) -> 0
A12: 2 | K12: =IF(E12+D12=0,0,IF(ISBLANK(H12),IF(C12>0,1/(1/C12-1),0),1/H12)) -> 0 | L12: =D12+E12+F12+I12+J12 -> 0 | V12: =IF(CL12=0,L12+O12+P12+S12+T12,0) -> 0 | AF12: =IF(CS12=0,V12+Y12+Z12+AC12+AD12,0) -> 0 | AM12: =IF(CZ12=0,0,-AF12-AI12+CQ12) -> 0 | AO12: =IF(AI12+AF12=0,0,IF(ISBLANK(AL12),IF(AE12>0,1/(1/AE12-1),0),1/AL12)) -> 0 | AP12: =IF(CZ12=0,AF12+AI12+AJ12+AM12+AN12,0) -> 0 | BB12: =IF(ISBLANK(R12),AT12,R12) -> 0 | BL12: =IF(ISBLANK(AB12),BB12,AB12) -> 0 | BV12: =IF(ISBLANK(AL12),BL12,AL12) -> 0 | CX12: 1 | CY12: =IF(D12+L12+V12+AF12+AP12<>0,1,0) -> 0
D13: =SUM(D11:D12) -> 0 | E13: =SUM(E11:E12) -> 0 | L13: =SUM(L11:L12) -> 0 | O13: =SUM(O11:O12) -> 0 | R13: =SUM(R11:R12) -> 0 | V13: =SUM(V11:V12) -> 0 | Y13: =SUM(Y11:Y12) -> 0 | AF13: =SUM(AF11:AF12) -> 0 | AI13: =SUM(AI11:AI12) -> 0 | AM13: =SUM(AM11:AM12) -> 0 | AP13: =SUM(AP11:AP12) -> 0 | CX13: 1 | CY13: =SUM(CY11:CY12) -> 0
B14: Grundforbedringer | E14: Investering | G14: M | H14: Rest-år | J14: Afskr. | K14: Levetid måneder primo | O14: Investering | Q14: M | R14: Rest-år | T14: Afskr. | U14: Levetid måneder primo | Y14: Investering | AA14: M | AB14: Rest-år | AD14: Afskr. | AE14: Levetid måneder primo | AI14: Investering | AK14: M | AL14: Rest-år | AM14: T/G | AN14: Afskr. | AO14: Levetid måneder primo | CX14: 1 | CY14: =IF(CY17<>0,1,0) -> 0
A15: 1 | J15: =IF(AT15>0,(D15+E15+F15+I15)/-AT15*K15,0) -> 0 | K15: =IF(G15>0,12-G15,12) -> 12 | L15: =D15+E15+F15+I15+J15 -> 0 | T15: =IF(BB15>0,(L15+O15+P15+S15)/-BB15*U15,0) -> 0 | U15: =IF(Q15>0,12-Q15,IF(BB15>12,12,IF(BB15-12>0,BB15-12,BB15))) -> 0 | V15: =IF(CL15=0,L15+O15+P15+S15+T15,0) -> 0 | AD15: =IF(BL15>0,(V15+Y15+Z15+AC15)/-BL15*AE15,0) -> 0 | AE15: =IF(AA15>0,12-AA15,IF(BL15>12,12,IF(BL15-12>0,BL15-12,BL15))) -> 0 | AF15: =IF(CS15=0,V15+Y15+Z15+AC15+AD15,0) -> 0 | AM15: =IF(CZ15=0,0,-AF15-AI15+CQ15) -> 0 | AN15: =IF(BV15>0,(AF15+AI15+AJ15+AM15)/-BV15*AO15,0) -> 0 | AO15: =IF(AK15>0,12-AK15,IF(BV15>12,12,IF(BV15-12>0,BV15-12,BV15))) -> 0 | AP15: =IF(CZ15=0,AF15+AI15+AJ15+AM15+AN15,0) -> 0 | AT15: =H15*12 -> 0 | BB15: =IF(AT15>0,AT15-K15,R15*12) -> 0 | BL15: =IF(BB15>0,BB15-U15,AB15*12) -> 0 | BV15: =IF(BL15>0,BL15-AE15,AL15*12) -> 0 | CX15: 1 | CY15: =IF(D15+L15+V15+AF15+AP15<>0,1,0) -> 0
A16: 2 | J16: =IF(AT16>0,(D16+E16+F16+I16)/-AT16*K16,0) -> 0 | K16: =IF(G16>0,12-G16,12) -> 12 | L16: =D16+E16+F16+I16+J16 -> 0 | T16: =IF(BB16>0,(L16+O16+P16+S16)/-BB16*U16,0) -> 0 | U16: =IF(Q16>0,12-Q16,IF(BB16>12,12,IF(BB16-12>0,BB16-12,BB16))) -> 0 | V16: =IF(CL16=0,L16+O16+P16+S16+T16,0) -> 0 | AD16: =IF(BL16>0,(V16+Y16+Z16+AC16)/-BL16*AE16,0) -> 0 | AE16: =IF(AA16>0,12-AA16,IF(BL16>12,12,IF(BL16-12>0,BL16-12,BL16))) -> 0 | AF16: =IF(CS16=0,V16+Y16+Z16+AC16+AD16,0) -> 0 | AM16: =IF(CZ16=0,0,-AF16-AI16+CQ16) -> 0 | AN16: =IF(BV16>0,(AF16+AI16+AJ16+AM16)/-BV16*AO16,0) -> 0 | AO16: =IF(AK16>0,12-AK16,IF(BV16>12,12,IF(BV16-12>0,BV16-12,BV16))) -> 0 | AP16: =IF(CZ16=0,AF16+AI16+AJ16+AM16+AN16,0) -> 0 | AT16: =H16*12 -> 0 | BB16: =IF(AT16>0,AT16-K16,R16*12) -> 0 | BL16: =IF(BB16>0,BB16-U16,AB16*12) -> 0 | BV16: =IF(BL16>0,BL16-AE16,AL16*12) -> 0 | CX16: 1 | CY16: =IF(D16+L16+V16+AF16+AP16<>0,1,0) -> 0
D17: =SUM(D15:D16) -> 0 | E17: =SUM(E14:E16) -> 0 | J17: =SUM(J14:J16) -> 0 | L17: =SUM(L15:L16) -> 0 | O17: =SUM(O14:O16) -> 0 | T17: =SUM(T14:T16) -> 0 | V17: =SUM(V15:V16) -> 0 | Y17: =SUM(Y14:Y16) -> 0 | AD17: =SUM(AD14:AD16) -> 0 | AF17: =SUM(AF15:AF16) -> 0 | AI17: =SUM(AI14:AI16) -> 0 | AM17: =SUM(AM14:AM16) -> 0 | AN17: =SUM(AN14:AN16) -> 0 | AP17: =SUM(AP15:AP16) -> 0 | CX17: 1 | CY17: =SUM(CY15:CY16) -> 0
B18: Driftsbygninger & installationer | E18: Investering | G18: M | H18: Rest-år | J18: Afskr. | K18: Levetid måneder primo | O18: Investering | Q18: M | R18: Rest-år | T18: Afskr. | U18: Levetid måneder primo | Y18: Investering | AA18: M | AB18: Rest-år | AD18: Afskr. | AE18: Levetid måneder primo | AI18: Investering | AK18: M | AL18: Rest-år | AM18: T/G | AN18: Afskr. | AO18: Levetid måneder primo | CX18: 1 | CY18: =IF(CY21<>0,1,0) -> 0
A19: 1 | J19: =IF(AT19>0,(D19+E19+F19+I19)/-AT19*K19,0) -> 0 | K19: =IF(G19>0,12-G19,12) -> 12 | L19: =D19+E19+F19+I19+J19 -> 0 | T19: =IF(BB19>0,(L19+O19+P19+S19)/-BB19*U19,0) -> 0 | U19: =IF(Q19>0,12-Q19,IF(BB19>12,12,IF(BB19-12>0,BB19-12,BB19))) -> 0 | V19: =IF(CL19=0,L19+O19+P19+S19+T19,0) -> 0 | AD19: =IF(BL19>0,(V19+Y19+Z19+AC19)/-BL19*AE19,0) -> 0 | AE19: =IF(AA19>0,12-AA19,IF(BL19>12,12,IF(BL19-12>0,BL19-12,BL19))) -> 0 | AF19: =IF(CS19=0,V19+Y19+Z19+AC19+AD19,0) -> 0 | AM19: =IF(CZ19=0,0,-AF19-AI19+CQ19) -> 0 | AN19: =IF(BV19>0,(AF19+AI19+AJ19+AM19)/-BV19*AO19,0) -> 0 | AO19: =IF(AK19>0,12-AK19,IF(BV19>12,12,IF(BV19-12>0,BV19-12,BV19))) -> 0 | AP19: =IF(CZ19=0,AF19+AI19+AJ19+AM19+AN19,0) -> 0 | AT19: =H19*12 -> 0 | BB19: =IF(AT19>0,AT19-K19,R19*12) -> 0 | BL19: =IF(BB19>0,BB19-U19,AB19*12) -> 0 | BV19: =IF(BL19>0,BL19-AE19,AL19*12) -> 0 | CX19: 1 | CY19: =IF(D19+L19+V19+AF19+AP19<>0,1,0) -> 0
A20: 2 | J20: =IF(AT20>0,(D20+E20+F20+I20)/-AT20*K20,0) -> 0 | K20: =IF(G20>0,12-G20,12) -> 12 | L20: =D20+E20+F20+I20+J20 -> 0 | T20: =IF(BB20>0,(L20+O20+P20+S20)/-BB20*U20,0) -> 0 | U20: =IF(Q20>0,12-Q20,IF(BB20>12,12,IF(BB20-12>0,BB20-12,BB20))) -> 0 | V20: =IF(CL20=0,L20+O20+P20+S20+T20,0) -> 0 | AD20: =IF(BL20>0,(V20+Y20+Z20+AC20)/-BL20*AE20,0) -> 0 | AE20: =IF(AA20>0,12-AA20,IF(BL20>12,12,IF(BL20-12>0,BL20-12,BL20))) -> 0 | AF20: =IF(CS20=0,V20+Y20+Z20+AC20+AD20,0) -> 0 | AM20: =IF(CZ20=0,0,-AF20-AI20+CQ20) -> 0 | AN20: =IF(BV20>0,(AF20+AI20+AJ20+AM20)/-BV20*AO20,0) -> 0 | AO20: =IF(AK20>0,12-AK20,IF(BV20>12,12,IF(BV20-12>0,BV20-12,BV20))) -> 0 | AP20: =IF(CZ20=0,AF20+AI20+AJ20+AM20+AN20,0) -> 0 | AT20: =H20*12 -> 0 | BB20: =IF(AT20>0,AT20-K20,R20*12) -> 0 | BL20: =IF(BB20>0,BB20-U20,AB20*12) -> 0 | BV20: =IF(BL20>0,BL20-AE20,AL20*12) -> 0 | CX20: 1 | CY20: =IF(D20+L20+V20+AF20+AP20<>0,1,0) -> 0
D21: =SUM(D19:D20) -> 0 | E21: =SUM(E19:E20) -> 0 | J21: =SUM(J19:J20) -> 0 | L21: =SUM(L19:L20) -> 0 | O21: =SUM(O19:O20) -> 0 | T21: =SUM(T19:T20) -> 0 | V21: =SUM(V19:V20) -> 0 | Y21: =SUM(Y19:Y20) -> 0 | AD21: =SUM(AD19:AD20) -> 0 | AF21: =SUM(AF19:AF20) -> 0 | AI21: =SUM(AI19:AI20) -> 0 | AM21: =SUM(AM19:AM20) -> 0 | AN21: =SUM(AN19:AN20) -> 0 | AP21: =SUM(AP19:AP20) -> 0 | CX21: 1 | CY21: =SUM(CY19:CY20) -> 0
B22: Beboelse (stuehus) | E22: Investering | G22: M | H22: Rest-år | J22: Afskr. | K22: Levetid måneder primo | L22: 0 | O22: Investering | Q22: M | R22: Rest-år | T22: Afskr. | U22: Levetid måneder primo | V22: 0 | Y22: Investering | AA22: M | AB22: Rest-år | AD22: Afskr. | AE22: Levetid måneder primo | AF22: 0 | AI22: Investering | AK22: M | AL22: Rest-år | AM22: T/G | AN22: Afskr. | AO22: Levetid måneder primo | CX22: 1 | CY22: =IF(CY25<>0,1,0) -> 0
A23: 1 | J23: =IF(AT23>0,(D23+E23+F23+I23)/-AT23*K23,0) -> 0 | K23: =IF(G23>0,12-G23,12) -> 12 | L23: =D23+E23+F23+I23+J23 -> 0 | T23: =IF(BB23>0,(L23+O23+P23+S23)/-BB23*U23,0) -> 0 | U23: =IF(Q23>0,12-Q23,IF(BB23>12,12,IF(BB23-12>0,BB23-12,BB23))) -> 0 | V23: =IF(CL23=0,L23+O23+P23+S23+T23,0) -> 0 | AD23: =IF(BL23>0,(V23+Y23+Z23+AC23)/-BL23*AE23,0) -> 0 | AE23: =IF(AA23>0,12-AA23,IF(BL23>12,12,IF(BL23-12>0,BL23-12,BL23))) -> 0 | AF23: =IF(CS23=0,V23+Y23+Z23+AC23+AD23,0) -> 0 | AM23: =IF(CZ23=0,0,-AF23-AI23+CQ23) -> 0 | AN23: =IF(BV23>0,(AF23+AI23+AJ23+AM23)/-BV23*AO23,0) -> 0 | AO23: =IF(AK23>0,12-AK23,IF(BV23>12,12,IF(BV23-12>0,BV23-12,BV23))) -> 0 | AP23: =IF(CZ23=0,AF23+AI23+AJ23+AM23+AN23,0) -> 0 | AT23: =H23*12 -> 0 | BB23: =IF(AT23>0,AT23-K23,R23*12) -> 0 | BL23: =IF(BB23>0,BB23-U23,AB23*12) -> 0 | BV23: =IF(BL23>0,BL23-AE23,AL23*12) -> 0 | CX23: 1 | CY23: =IF(D23+L23+V23+AF23+AP23<>0,1,0) -> 0
A24: 2 | J24: =IF(AT24>0,(D24+E24+F24+I24)/-AT24*K24,0) -> 0 | K24: =IF(G24>0,12-G24,12) -> 12 | L24: =D24+E24+F24+I24+J24 -> 0 | T24: =IF(BB24>0,(L24+O24+P24+S24)/-BB24*U24,0) -> 0 | U24: =IF(Q24>0,12-Q24,IF(BB24>12,12,IF(BB24-12>0,BB24-12,BB24))) -> 0 | V24: =IF(CL24=0,L24+O24+P24+S24+T24,0) -> 0 | AD24: =IF(BL24>0,(V24+Y24+Z24+AC24)/-BL24*AE24,0) -> 0 | AE24: =IF(AA24>0,12-AA24,IF(BL24>12,12,IF(BL24-12>0,BL24-12,BL24))) -> 0 | AF24: =IF(CS24=0,V24+Y24+Z24+AC24+AD24,0) -> 0 | AM24: =IF(CZ24=0,0,-AF24-AI24+CQ24) -> 0 | AN24: =IF(BV24>0,(AF24+AI24+AJ24+AM24)/-BV24*AO24,0) -> 0 | AO24: =IF(AK24>0,12-AK24,IF(BV24>12,12,IF(BV24-12>0,BV24-12,BV24))) -> 0 | AP24: =IF(CZ24=0,AF24+AI24+AJ24+AM24+AN24,0) -> 0 | AT24: =H24*12 -> 0 | BB24: =IF(AT24>0,AT24-K24,R24*12) -> 0 | BL24: =IF(BB24>0,BB24-U24,AB24*12) -> 0 | BV24: =IF(BL24>0,BL24-AE24,AL24*12) -> 0 | CX24: 1 | CY24: =IF(D24+L24+V24+AF24+AP24<>0,1,0) -> 0
D25: =SUM(D23:D24) -> 0 | E25: =SUM(E23:E24) -> 0 | J25: =SUM(J23:J24) -> 0 | L25: =SUM(L23:L24) -> 0 | O25: =SUM(O23:O24) -> 0 | T25: =SUM(T23:T24) -> 0 | V25: =SUM(V23:V24) -> 0 | Y25: =SUM(Y23:Y24) -> 0 | AD25: =SUM(AD23:AD24) -> 0 | AF25: =SUM(AF23:AF24) -> 0 | AI25: =SUM(AI23:AI24) -> 0 | AM25: =SUM(AM23:AM24) -> 0 | AN25: =SUM(AN23:AN24) -> 0 | AP25: =SUM(AP23:AP24) -> 0 | CX25: 1 | CY25: =IF(D25+L25+V25+AF25+AP25<>0,1,0) -> 0
CX26: 1 | CY26: 1
A27: Fast ejendom i alt | D27: =D13+D17+D21+D25 -> 0 | E27: =E13+E17+E21+E25 -> 0 | J27: =J13+J17+J21+J25 -> 0 | L27: =L13+L17+L21+L25 -> 0 | O27: =O13+O17+O21+O25 -> 0 | T27: =T13+T17+T21+T25 -> 0 | V27: =V13+V17+V21+V25 -> 0 | Y27: =Y13+Y17+Y21+Y25 -> 0 | AD27: =AD13+AD17+AD21+AD25 -> 0 | AF27: =AF13+AF17+AF21+AF25 -> 0 | AI27: =AI13+AI17+AI21+AI25 -> 0 | AM27: =AM13+AM17+AM21+AM25+AM30 -> 0 | AN27: =AN13+AN17+AN21+AN25 -> 0 | AP27: =AP13+AP17+AP21+AP25 -> 0 | CX27: 1 | CY27: =SUM(CY22:CY25) -> 0
CX28: 1 | CY28: 1
A29: * | B29: Leveringsrettigheder | E29: Investering | G29: M | H29: Rest-år | J29: Afskr.* | O29: Investering | Q29: M | R29: Rest-år | T29: Afskr.* | Y29: Investering | AA29: M | AB29: Rest-år | AD29: Afskr.* | AI29: Investering | AK29: M | AL29: Rest-år | AM29: T/G | AN29: Afskr.* | CX29: 1 | CY29: =IF(CY32<>0,1,0) -> 0
A30: 1 | J30: =IF(AT30>0,(D30+E30+F30+I30)/-AT30*K30,0) -> 0 | K30: =IF(G30>0,12-G30,12) -> 12 | L30: =D30+E30+F30+I30+J30 -> 0 | O30: 0 | T30: =IF(BB30>0,(L30+O30+P30+S30)/-BB30*U30,0) -> 0 | U30: =IF(Q30>0,12-Q30,IF(BB30>12,12,IF(BB30-12>0,BB30-12,BB30))) -> 0 | V30: =IF(CL30=0,L30+O30+P30+S30+T30,0) -> 0 | AD30: =IF(BL30>0,(V30+Y30+Z30+AC30)/-BL30*AE30,0) -> 0 | AE30: =IF(AA30>0,12-AA30,IF(BL30>12,12,IF(BL30-12>0,BL30-12,BL30))) -> 0 | AF30: =IF(CS30=0,V30+Y30+Z30+AC30+AD30,0) -> 0 | AM30: =IF(CZ30=0,0,-AF30-AI30+CQ30) -> 0 | AN30: =IF(BV30>0,(AF30+AI30+AJ30+AM30)/-BV30*AO30,0) -> 0 | AO30: =IF(AK30>0,12-AK30,IF(BV30>12,12,IF(BV30-12>0,BV30-12,BV30))) -> 0 | AP30: =IF(CZ30=0,AF30+AI30+AJ30+AM30+AN30,0) -> 0 | AT30: =H30*12 -> 0 | BB30: =IF(AT30>0,AT30-K30,R30*12) -> 0 | BL30: =IF(BB30>0,BB30-U30,AB30*12) -> 0 | BV30: =IF(BL30>0,BL30-AE30,AL30*12) -> 0 | CX30: 1 | CY30: =IF(D30+L30+V30+AF30+AP30<>0,1,0) -> 0
A31: 2 | J31: =IF(AT31>0,(D31+E31+F31+I31)/-AT31*K31,0) -> 0 | K31: =IF(G31>0,12-G31,12) -> 12 | L31: =D31+E31+F31+I31+J31 -> 0 | T31: =IF(BB31>0,(L31+O31+P31+S31)/-BB31*U31,0) -> 0 | U31: =IF(Q31>0,12-Q31,IF(BB31>12,12,IF(BB31-12>0,BB31-12,BB31))) -> 0 | V31: =IF(CL31=0,L31+O31+P31+S31+T31,0) -> 0 | AD31: =IF(BL31>0,(V31+Y31+Z31+AC31)/-BL31*AE31,0) -> 0 | AE31: =IF(AA31>0,12-AA31,IF(BL31>12,12,IF(BL31-12>0,BL31-12,BL31))) -> 0 | AF31: =IF(CS31=0,V31+Y31+Z31+AC31+AD31,0) -> 0 | AN31: =IF(BV31>0,(AF31+AI31+AJ31+AM31)/-BV31*AO31,0) -> 0 | AO31: =IF(AK31>0,12-AK31,IF(BV31>12,12,IF(BV31-12>0,BV31-12,BV31))) -> 0 | AP31: =IF(CZ31=0,AF31+AI31+AJ31+AM31+AN31,0) -> 0 | AT31: =H31*12 -> 0 | BB31: =IF(AT31>0,AT31-K31,R31*12) -> 0 | BL31: =IF(BB31>0,BB31-U31,AB31*12) -> 0 | BV31: =IF(BL31>0,BL31-AE31,AL31*12) -> 0 | CX31: 1 | CY31: =IF(D31+L31+V31+AF31+AP31<>0,1,0) -> 0
D32: =SUM(D30:D31) -> 0 | E32: =SUM(E30:E31) -> 0 | J32: =SUM(J30:J31) -> 0 | L32: =SUM(L30:L31) -> 0 | O32: =SUM(O30:O31) -> 0 | T32: =SUM(T30:T31) -> 0 | V32: =SUM(V30:V31) -> 0 | Y32: =SUM(Y30:Y31) -> 0 | AD32: =SUM(AD30:AD31) -> 0 | AF32: =SUM(AF30:AF31) -> 0 | AI32: =SUM(AI30:AI31) -> 0 | AN32: =SUM(AN30:AN31) -> 0 | AP32: =SUM(AP30:AP31) -> 0 | CX32: 1 | CY32: =SUM(CY30:CY31) -> 0
A33: * | B33: Andre immaterielle aktiver | E33: Investering | G33: M | H33: Rest-år | J33: Afskr.* | O33: Investering | Q33: M | R33: Rest-år | T33: Afskr.* | Y33: Investering | AA33: M | AB33: Rest-år | AD33: Afskr.* | AI33: Investering | AK33: M | AL33: Rest-år | AN33: Afskr.* | CX33: 1 | CY33: =IF(CY36<>0,1,0) -> 0
A34: 1 | J34: =IF(AT34>0,(D34+E34+F34+I34)/-AT34*K34,0) -> 0 | K34: =IF(G34>0,12-G34,12) -> 12 | L34: =D34+E34+F34+I34+J34 -> 0 | T34: =IF(BB34>0,(L34+O34+P34+S34)/-BB34*U34,0) -> 0 | U34: =IF(Q34>0,12-Q34,IF(BB34>12,12,IF(BB34-12>0,BB34-12,BB34))) -> 0 | V34: =IF(CL34=0,L34+O34+P34+S34+T34,0) -> 0 | AD34: =IF(BL34>0,(V34+Y34+Z34+AC34)/-BL34*AE34,0) -> 0 | AE34: =IF(AA34>0,12-AA34,IF(BL34>12,12,IF(BL34-12>0,BL34-12,BL34))) -> 0 | AF34: =IF(CS34=0,V34+Y34+Z34+AC34+AD34,0) -> 0 | AN34: =IF(BV34>0,(AF34+AI34+AJ34+AM34)/-BV34*AO34,0) -> 0 | AO34: =IF(AK34>0,12-AK34,IF(BV34>12,12,IF(BV34-12>0,BV34-12,BV34))) -> 0 | AP34: =IF(CZ34=0,AF34+AI34+AJ34+AM34+AN34,0) -> 0 | AT34: =H34*12 -> 0 | BB34: =IF(AT34>0,AT34-K34,R34*12) -> 0 | BL34: =IF(BB34>0,BB34-U34,AB34*12) -> 0 | BV34: =IF(BL34>0,BL34-AE34,AL34*12) -> 0 | CX34: 1 | CY34: =IF(D34+L34+V34+AF34+AP34<>0,1,0) -> 0
A35: 2 | J35: =IF(AT35>0,(D35+E35+F35+I35)/-AT35*K35,0) -> 0 | K35: =IF(G35>0,12-G35,12) -> 12 | L35: =D35+E35+F35+I35+J35 -> 0 | T35: =IF(BB35>0,(L35+O35+P35+S35)/-BB35*U35,0) -> 0 | U35: =IF(Q35>0,12-Q35,IF(BB35>12,12,IF(BB35-12>0,BB35-12,BB35))) -> 0 | V35: =IF(CL35=0,L35+O35+P35+S35+T35,0) -> 0 | AD35: =IF(BL35>0,(V35+Y35+Z35+AC35)/-BL35*AE35,0) -> 0 | AE35: =IF(AA35>0,12-AA35,IF(BL35>12,12,IF(BL35-12>0,BL35-12,BL35))) -> 0 | AF35: =IF(CS35=0,V35+Y35+Z35+AC35+AD35,0) -> 0 | AN35: =IF(BV35>0,(AF35+AI35+AJ35+AM35)/-BV35*AO35,0) -> 0 | AO35: =IF(AK35>0,12-AK35,IF(BV35>12,12,IF(BV35-12>0,BV35-12,BV35))) -> 0 | AP35: =IF(CZ35=0,AF35+AI35+AJ35+AM35+AN35,0) -> 0 | AT35: =H35*12 -> 0 | BB35: =IF(AT35>0,AT35-K35,R35*12) -> 0 | BL35: =IF(BB35>0,BB35-U35,AB35*12) -> 0 | BV35: =IF(BL35>0,BL35-AE35,AL35*12) -> 0 | CX35: 1 | CY35: =IF(D35+L35+V35+AF35+AP35<>0,1,0) -> 0
D36: =SUM(D34:D35) -> 0 | E36: =SUM(E33:E35) -> 0 | J36: =SUM(J33:J35) -> 0 | L36: =SUM(L34:L35) -> 0 | O36: =SUM(O33:O35) -> 0 | T36: =SUM(T33:T35) -> 0 | V36: =SUM(V34:V35) -> 0 | Y36: =SUM(Y33:Y35) -> 0 | AD36: =SUM(AD33:AD35) -> 0 | AF36: =SUM(AF34:AF35) -> 0 | AI36: =SUM(AI33:AI35) -> 0 | AN36: =SUM(AN33:AN35) -> 0 | AP36: =SUM(AP34:AP35) -> 0 | CX36: 1 | CY36: =SUM(CY34:CY35) -> 0
B37: Inventar markbrug | E37: Investering | G37: M | H37: Rest-år | J37: Afskr. | K37: M afskr i året | O37: Investering | Q37: M | R37: Rest-år | T37: Afskr. | U37: M afskr | Y37: Investering | AA37: M | AB37: Rest-år | AD37: Afskr. | AE37: M afskr | AI37: Investering | AK37: M | AL37: Rest-år | AN37: Afskr. | AO37: M afskr | CX37: 1 | CY37: =IF(CY40<>0,1,0) -> 0
A38: 1 | J38: =IF(AT38>0,(D38+E38+F38+I38)/-AT38*K38,0) -> 0 | K38: =IF(G38>0,12-G38,12) -> 12 | L38: =D38+E38+F38+I38+J38 -> 0 | T38: =IF(BB38>0,(L38+O38+P38+S38)/-BB38*U38,0) -> 0 | U38: =IF(Q38>0,12-Q38,IF(BB38>12,12,IF(BB38-12>0,BB38-12,BB38))) -> 0 | V38: =IF(CL38=0,L38+O38+P38+S38+T38,0) -> 0 | AD38: =IF(BL38>0,(V38+Y38+Z38+AC38)/-BL38*AE38,0) -> 0 | AE38: =IF(AA38>0,12-AA38,IF(BL38>12,12,IF(BL38-12>0,BL38-12,BL38))) -> 0 | AF38: =IF(CS38=0,V38+Y38+Z38+AC38+AD38,0) -> 0 | AN38: =IF(BV38>0,(AF38+AI38+AJ38+AM38)/-BV38*AO38,0) -> 0 | AO38: =IF(AK38>0,12-AK38,IF(BV38>12,12,IF(BV38-12>0,BV38-12,BV38))) -> 0 | AP38: =IF(CZ38=0,AF38+AI38+AJ38+AM38+AN38,0) -> 0 | AT38: =H38*12 -> 0 | BB38: =IF(AT38>0,AT38-K38,R38*12) -> 0 | BL38: =IF(BB38>0,BB38-U38,AB38*12) -> 0 | BV38: =IF(BL38>0,BL38-AE38,AL38*12) -> 0 | CX38: 1 | CY38: =IF(D38+L38+V38+AF38+AP38<>0,1,0) -> 0
A39: 2 | J39: 0 | K39: 12 | L39: 0 | T39: 0 | U39: 0 | V39: 0 | AD39: 0 | AE39: 0 | AF39: 0 | AN39: 0 | AO39: 0 | AP39: 0 | AT39: =H39*12 -> 0 | BB39: =IF(AT39>0,AT39-K39,R39*12) -> 0 | BL39: =IF(BB39>0,BB39-U39,AB39*12) -> 0 | BV39: =IF(BL39>0,BL39-AE39,AL39*12) -> 0 | CX39: 1 | CY39: 0
D40: =SUM(D38:D39) -> 0 | E40: =SUM(E37:E39) -> 0 | J40: =SUM(J37:J39) -> 0 | L40: =SUM(L38:L39) -> 0 | O40: =SUM(O37:O39) -> 0 | T40: =SUM(T37:T39) -> 0 | V40: =SUM(V38:V39) -> 0 | Y40: =SUM(Y37:Y39) -> 0 | AD40: =SUM(AD37:AD39) -> 0 | AF40: =SUM(AF38:AF39) -> 0 | AI40: =SUM(AI37:AI39) -> 0 | AN40: =SUM(AN37:AN39) -> 0 | AP40: =SUM(AP38:AP39) -> 0 | CX40: 1 | CY40: =SUM(CY38:CY39) -> 0
B41: Inventar husdyrbrug | E41: Investering | G41: M | H41: Rest-år | J41: Afskr. | K41: Levetid måneder primo | O41: Investering | Q41: M | R41: Rest-år | T41: Afskr. | U41: Levetid måneder primo | Y41: Investering | AA41: M | AB41: Rest-år | AD41: Afskr. | AE41: Levetid måneder primo | AI41: Investering | AK41: M | AL41: Rest-år | AN41: Afskr. | AO41: Levetid måneder primo | CX41: 1 | CY41: =IF(CY44<>0,1,0) -> 0
A42: 1 | J42: =IF(AT42>0,(D42+E42+F42+I42)/-AT42*K42,0) -> 0 | K42: =IF(G42>0,12-G42,12) -> 12 | L42: =D42+E42+F42+I42+J42 -> 0 | T42: =IF(BB42>0,(L42+O42+P42+S42)/-BB42*U42,0) -> 0 | U42: =IF(Q42>0,12-Q42,IF(BB42>12,12,IF(BB42-12>0,BB42-12,BB42))) -> 0 | V42: =IF(CL42=0,L42+O42+P42+S42+T42,0) -> 0 | AD42: =IF(BL42>0,(V42+Y42+Z42+AC42)/-BL42*AE42,0) -> 0 | AE42: =IF(AA42>0,12-AA42,IF(BL42>12,12,IF(BL42-12>0,BL42-12,BL42))) -> 0 | AF42: =IF(CS42=0,V42+Y42+Z42+AC42+AD42,0) -> 0 | AN42: =IF(BV42>0,(AF42+AI42+AJ42+AM42)/-BV42*AO42,0) -> 0 | AO42: =IF(AK42>0,12-AK42,IF(BV42>12,12,IF(BV42-12>0,BV42-12,BV42))) -> 0 | AP42: =IF(CZ42=0,AF42+AI42+AJ42+AM42+AN42,0) -> 0 | AT42: =H42*12 -> 0 | BB42: =IF(AT42>0,AT42-K42,R42*12) -> 0 | BL42: =IF(BB42>0,BB42-U42,AB42*12) -> 0 | BV42: =IF(BL42>0,BL42-AE42,AL42*12) -> 0 | CX42: 1 | CY42: =IF(D42+L42+V42+AF42+AP42<>0,1,0) -> 0
A43: 2 | J43: =IF(AT43>0,(D43+E43+F43+I43)/-AT43*K43,0) -> 0 | K43: =IF(G43>0,12-G43,12) -> 12 | L43: =D43+E43+F43+I43+J43 -> 0 | T43: =IF(BB43>0,(L43+O43+P43+S43)/-BB43*U43,0) -> 0 | U43: =IF(Q43>0,12-Q43,IF(BB43>12,12,IF(BB43-12>0,BB43-12,BB43))) -> 0 | V43: =IF(CL43=0,L43+O43+P43+S43+T43,0) -> 0 | AD43: =IF(BL43>0,(V43+Y43+Z43+AC43)/-BL43*AE43,0) -> 0 | AE43: =IF(AA43>0,12-AA43,IF(BL43>12,12,IF(BL43-12>0,BL43-12,BL43))) -> 0 | AF43: =IF(CS43=0,V43+Y43+Z43+AC43+AD43,0) -> 0 | AN43: =IF(BV43>0,(AF43+AI43+AJ43+AM43)/-BV43*AO43,0) -> 0 | AO43: =IF(AK43>0,12-AK43,IF(BV43>12,12,IF(BV43-12>0,BV43-12,BV43))) -> 0 | AP43: =IF(CZ43=0,AF43+AI43+AJ43+AM43+AN43,0) -> 0 | AT43: =H43*12 -> 0 | BB43: =IF(AT43>0,AT43-K43,R43*12) -> 0 | BL43: =IF(BB43>0,BB43-U43,AB43*12) -> 0 | BV43: =IF(BL43>0,BL43-AE43,AL43*12) -> 0 | CX43: 1 | CY43: =IF(D43+L43+V43+AF43+AP43<>0,1,0) -> 0
D44: =SUM(D42:D43) -> 0 | E44: =SUM(E41:E43) -> 0 | J44: =SUM(J41:J43) -> 0 | L44: =SUM(L42:L43) -> 0 | O44: =SUM(O41:O43) -> 0 | T44: =SUM(T41:T43) -> 0 | V44: =SUM(V42:V43) -> 0 | Y44: =SUM(Y41:Y43) -> 0 | AD44: =SUM(AD41:AD43) -> 0 | AF44: =SUM(AF42:AF43) -> 0 | AI44: =SUM(AI41:AI43) -> 0 | AN44: =SUM(AN41:AN43) -> 0 | AP44: =SUM(AP42:AP43) -> 0 | CX44: 1 | CY44: =SUM(CY42:CY43) -> 0
B45: Inventar, andet | E45: Investering | G45: M | H45: Rest-år | J45: Afskr. | K45: Levetid måneder primo | O45: Investering | Q45: M | R45: Rest-år | T45: Afskr. | U45: Levetid måneder primo | Y45: Investering | AA45: M | AB45: Rest-år | AD45: Afskr. | AE45: Levetid måneder primo | AI45: Investering | AK45: M | AL45: Rest-år | AN45: Afskr. | AO45: Levetid måneder primo | CX45: 1 | CY45: =IF(CY48<>0,1,0) -> 0
A46: 1 | J46: =IF(AT46>0,(D46+E46+F46+I46)/-AT46*K46,0) -> 0 | K46: =IF(G46>0,12-G46,12) -> 12 | L46: =D46+E46+F46+I46+J46 -> 0 | T46: =IF(BB46>0,(L46+O46+P46+S46)/-BB46*U46,0) -> 0 | U46: =IF(Q46>0,12-Q46,IF(BB46>12,12,IF(BB46-12>0,BB46-12,BB46))) -> 0 | V46: =IF(CL46=0,L46+O46+P46+S46+T46,0) -> 0 | AD46: =IF(BL46>0,(V46+Y46+Z46+AC46)/-BL46*AE46,0) -> 0 | AE46: =IF(AA46>0,12-AA46,IF(BL46>12,12,IF(BL46-12>0,BL46-12,BL46))) -> 0 | AF46: =IF(CS46=0,V46+Y46+Z46+AC46+AD46,0) -> 0 | AN46: =IF(BV46>0,(AF46+AI46+AJ46+AM46)/-BV46*AO46,0) -> 0 | AO46: =IF(AK46>0,12-AK46,IF(BV46>12,12,IF(BV46-12>0,BV46-12,BV46))) -> 0 | AP46: =IF(CZ46=0,AF46+AI46+AJ46+AM46+AN46,0) -> 0 | AT46: =H46*12 -> 0 | BB46: =IF(AT46>0,AT46-K46,R46*12) -> 0 | BL46: =IF(BB46>0,BB46-U46,AB46*12) -> 0 | BV46: =IF(BL46>0,BL46-AE46,AL46*12) -> 0 | CX46: 1 | CY46: =IF(D46+L46+V46+AF46+AP46<>0,1,0) -> 0
A47: 2 | J47: =IF(AT47>0,(D47+E47+F47+I47)/-AT47*K47,0) -> 0 | K47: =IF(G47>0,12-G47,12) -> 12 | L47: =D47+E47+F47+I47+J47 -> 0 | T47: =IF(BB47>0,(L47+O47+P47+S47)/-BB47*U47,0) -> 0 | U47: =IF(Q47>0,12-Q47,IF(BB47>12,12,IF(BB47-12>0,BB47-12,BB47))) -> 0 | V47: =IF(CL47=0,L47+O47+P47+S47+T47,0) -> 0 | AC47: =IF(CS47=0,0,-V47-Y47+CJ47) -> 0 | AD47: =IF(BL47>0,(V47+Y47+Z47+AC47)/-BL47*AE47,0) -> 0 | AE47: =IF(AA47>0,12-AA47,IF(BL47>12,12,IF(BL47-12>0,BL47-12,BL47))) -> 0 | AF47: =IF(CS47=0,V47+Y47+Z47+AC47+AD47,0) -> 0 | AN47: =IF(BV47>0,(AF47+AI47+AJ47+AM47)/-BV47*AO47,0) -> 0 | AO47: =IF(AK47>0,12-AK47,IF(BV47>12,12,IF(BV47-12>0,BV47-12,BV47))) -> 0 | AP47: =IF(CZ47=0,AF47+AI47+AJ47+AM47+AN47,0) -> 0 | AT47: =H47*12 -> 0 | BB47: =IF(AT47>0,AT47-K47,R47*12) -> 0 | BL47: =IF(BB47>0,BB47-U47,AB47*12) -> 0 | BV47: =IF(BL47>0,BL47-AE47,AL47*12) -> 0 | CX47: 1 | CY47: =IF(D47+L47+V47+AF47+AP47<>0,1,0) -> 0
D48: =SUM(D46:D47) -> 0 | E48: =SUM(E45:E47) -> 0 | J48: =SUM(J45:J47) -> 0 | L48: =SUM(L46:L47) -> 0 | O48: =SUM(O45:O47) -> 0 | T48: =SUM(T45:T47) -> 0 | V48: =SUM(V46:V47) -> 0 | Y48: =SUM(Y45:Y47) -> 0 | AC48: =SUM(AC45:AC47) -> 0 | AD48: =SUM(AD45:AD47) -> 0 | AF48: =SUM(AF46:AF47) -> 0 | AI48: =SUM(AI45:AI47) -> 0 | AN48: =SUM(AN45:AN47) -> 0 | AP48: =SUM(AP46:AP47) -> 0 | CX48: 1 | CY48: =SUM(CY46:CY47) -> 0
B49: Besætning | E49: Forskydning | L49: 0 | O49: Forskydning | V49: 0 | Y49: Forskydning | AF49: 0 | AI49: Forskydning | CX49: 1 | CY49: =IF(CY52<>0,1,0) -> 0
A50: 1 | L50: =D50+E50 -> 0 | V50: =L50+O50+R50 -> 0 | AF50: =V50+Y50+AB50 -> 0 | AP50: =AF50+AI50+AL50 -> 0 | CX50: 1 | CY50: =IF(D50+L50+V50+AF50+AP50<>0,1,0) -> 0
A51: 2 | L51: =D51+E51 -> 0 | V51: =L51+O51+R51 -> 0 | AF51: =V51+Y51+AB51 -> 0 | AP51: =AF51+AI51+AL51 -> 0 | CX51: 1 | CY51: =IF(D51+L51+V51+AF51+AP51<>0,1,0) -> 0
D52: =SUM(D50:D51) -> 0 | E52: =SUM(E50:E51) -> 0 | L52: =SUM(L50:L51) -> 0 | O52: =SUM(O50:O51) -> 0 | V52: =SUM(V50:V51) -> 0 | Y52: =SUM(Y50:Y51) -> 0 | AF52: =SUM(AF50:AF51) -> 0 | AI52: =SUM(AI50:AI51) -> 0 | AP52: =SUM(AP50:AP51) -> 0 | CX52: 1 | CY52: =SUM(CY50:CY51) -> 0
B53: Beholdninger | E53: Forskydning | O53: Forskydning | Y53: Forskydning | AI53: Forskydning | CX53: 1 | CY53: =IF(CY58<>0,1,0) -> 0
B54: Beholdninger, egen avl | L54: =D54+E54 -> 0 | V54: =L54+O54+R54 -> 0 | AE54: =IF(Y54+V54=0,0,IF(ISBLANK(AB54),IF(U54>0,1/(1/U54-1),0),1/AB54)) -> 0 | AF54: =V54+Y54+AB54 -> 0 | AO54: =IF(AI54+AF54=0,0,IF(ISBLANK(AL54),IF(AE54>0,1/(1/AE54-1),0),1/AL54)) -> 0 | AP54: =AF54+AI54+AL54 -> 0 | CX54: 1 | CY54: =IF(D54+L54+V54+AF54+AP54<>0,1,0) -> 0
B55: Beholdninger, indkøbt foder | L55: =D55+E55 -> 0 | V55: =L55+O55+R55 -> 0 | AE55: =IF(Y55+V55=0,0,IF(ISBLANK(AB55),IF(U55>0,1/(1/U55-1),0),1/AB55)) -> 0 | AF55: =V55+Y55+AB55 -> 0 | AO55: =IF(AI55+AF55=0,0,IF(ISBLANK(AL55),IF(AE55>0,1/(1/AE55-1),0),1/AL55)) -> 0 | AP55: =AF55+AI55+AL55 -> 0 | CX55: 1 | CY55: =IF(D55+L55+V55+AF55+AP55<>0,1,0) -> 0
B56: Jordbeholdninger | L56: =D56+E56 -> 0 | V56: =L56+O56+R56 -> 0 | AE56: =IF(Y56+V56=0,0,IF(ISBLANK(AB56),IF(U56>0,1/(1/U56-1),0),1/AB56)) -> 0 | AF56: =V56+Y56+AB56 -> 0 | AO56: =IF(AI56+AF56=0,0,IF(ISBLANK(AL56),IF(AE56>0,1/(1/AE56-1),0),1/AL56)) -> 0 | AP56: =AF56+AI56+AL56 -> 0 | CX56: 1 | CY56: =IF(D56+L56+V56+AF56+AP56<>0,1,0) -> 0
B57: Andre beholdninger | L57: =D57+E57 -> 0 | V57: =L57+O57+R57 -> 0 | AE57: =IF(Y57+V57=0,0,IF(ISBLANK(AB57),IF(U57>0,1/(1/U57-1),0),1/AB57)) -> 0 | AF57: =V57+Y57+AB57 -> 0 | AO57: =IF(AI57+AF57=0,0,IF(ISBLANK(AL57),IF(AE57>0,1/(1/AE57-1),0),1/AL57)) -> 0 | AP57: =AF57+AI57+AL57 -> 0 | CX57: 1 | CY57: =IF(D57+L57+V57+AF57+AP57<>0,1,0) -> 0
D58: =SUM(D54:D57) -> 0 | E58: =SUM(E54:E57) -> 0 | L58: =SUM(L54:L57) -> 0 | O58: =SUM(O54:O57) -> 0 | T58: =SUM(T56:T57) -> 0 | V58: =SUM(V54:V57) -> 0 | Y58: =SUM(Y54:Y57) -> 0 | AD58: =SUM(AD56:AD57) -> 0 | AF58: =SUM(AF54:AF57) -> 0 | AI58: =SUM(AI54:AI57) -> 0 | AN58: =SUM(AN56:AN57) -> 0 | AP58: =SUM(AP54:AP57) -> 0 | CX58: 1 | CY58: =SUM(CY54:CY57) -> 0
E59: Investering | J59: Afskr. | O59: Investering | T59: Afskr. | Y59: Investering | AD59: Afskr. | AI59: Investering | AN59: Afskr. | CX59: 1 | CY59: =IF(CY60<>0,1,0) -> 0
A60: Landbrugsaktiver | D60: =D58+D52+D48+D44+D40+D36+D32+D27 -> 0 | E60: =E27+E32+E36+E40+E44+E48+E52+E58 -> 0 | J60: =J27+J32+J36+J40+J44+J48+J52+J58 -> 0 | L60: =L58+L52+L48+L44+L40+L36+L32+L27 -> 0 | O60: =O27+O32+O36+O40+O44+O48+O52+O58 -> 0 | T60: =T27+T32+T36+T40+T44+T48+T52+T58 -> 0 | V60: =V58+V52+V48+V44+V40+V36+V32+V27 -> 0 | Y60: =Y27+Y32+Y36+Y40+Y44+Y48+Y52+Y58 -> 0 | AD60: =AD27+AD32+AD36+AD40+AD44+AD48+AD52+AD58 -> 0 | AF60: =AF58+AF52+AF48+AF44+AF40+AF36+AF32+AF27 -> 0 | AI60: =AI27+AI32+AI36+AI40+AI44+AI48+AI52+AI58 -> 0 | AN60: =AN27+AN32+AN36+AN40+AN44+AN48+AN52+AN58 -> 0 | AP60: =AP58+AP52+AP48+AP44+AP40+AP36+AP32+AP27 -> 0 | CX60: 1 | CY60: =CY58+CY52+CY48+CY44+CY40+CY36+CY32+CY27 -> 0
CX61: 1 | CY61: 1
B62: Biler mv. | E62: Investering | G62: M | H62: Rest-år | J62: Afskr. | K62: Levetid måneder primo | O62: Investering | Q62: M | R62: Rest-år | T62: Afskr. | U62: Levetid måneder primo | Y62: Investering | AA62: M | AB62: Rest-år | AD62: Afskr. | AE62: Levetid måneder primo | AI62: Investering | AK62: M | AL62: Rest-år | AN62: Afskr. | AO62: Levetid måneder primo | CX62: 1 | CY62: =IF(CY66<>0,1,0) -> 0
A63: 1 | J63: =IF(AT63>0,(D63+E63+F63+I63)/-AT63*K63,0) -> 0 | K63: =IF(G63>0,12-G63,12) -> 12 | L63: =D63+E63+F63+I63+J63 -> 0 | T63: =IF(BB63>0,(L63+O63+P63+S63)/-BB63*U63,0) -> 0 | U63: =IF(Q63>0,12-Q63,IF(BB63>12,12,IF(BB63-12>0,BB63-12,BB63))) -> 0 | V63: =IF(CL63=0,L63+O63+P63+S63+T63,0) -> 0 | AD63: =IF(BL63>0,(V63+Y63+Z63+AC63)/-BL63*AE63,0) -> 0 | AE63: =IF(AA63>0,12-AA63,IF(BL63>12,12,IF(BL63-12>0,BL63-12,BL63))) -> 0 | AF63: =IF(CS63=0,V63+Y63+Z63+AC63+AD63,0) -> 0 | AN63: =IF(BV63>0,(AF63+AI63+AJ63+AM63)/-BV63*AO63,0) -> 0 | AO63: =IF(AK63>0,12-AK63,IF(BV63>12,12,IF(BV63-12>0,BV63-12,BV63))) -> 0 | AP63: =IF(CZ63=0,AF63+AI63+AJ63+AM63+AN63,0) -> 0 | AT63: =H63*12 -> 0 | BB63: =IF(AT63>0,AT63-K63,R63*12) -> 0 | BL63: =IF(BB63>0,BB63-U63,AB63*12) -> 0 | BV63: =IF(BL63>0,BL63-AE63,AL63*12) -> 0 | CX63: 1 | CY63: =IF(D63+L63+V63+AF63+AP63<>0,1,0) -> 0
A64: 2 | J64: =IF(AT64>0,(D64+E64+F64+I64)/-AT64*K64,0) -> 0 | K64: =IF(G64>0,12-G64,12) -> 12 | L64: =D64+E64+F64+I64+J64 -> 0 | T64: =IF(BB64>0,(L64+O64+P64+S64)/-BB64*U64,0) -> 0 | U64: =IF(Q64>0,12-Q64,IF(BB64>12,12,IF(BB64-12>0,BB64-12,BB64))) -> 0 | V64: =IF(CL64=0,L64+O64+P64+S64+T64,0) -> 0 | AD64: =IF(BL64>0,(V64+Y64+Z64+AC64)/-BL64*AE64,0) -> 0 | AE64: =IF(AA64>0,12-AA64,IF(BL64>12,12,IF(BL64-12>0,BL64-12,BL64))) -> 0 | AF64: =IF(CS64=0,V64+Y64+Z64+AC64+AD64,0) -> 0 | AN64: =IF(BV64>0,(AF64+AI64+AJ64+AM64)/-BV64*AO64,0) -> 0 | AO64: =IF(AK64>0,12-AK64,IF(BV64>12,12,IF(BV64-12>0,BV64-12,BV64))) -> 0 | AP64: =IF(CZ64=0,AF64+AI64+AJ64+AM64+AN64,0) -> 0 | AT64: =H64*12 -> 0 | BB64: =IF(AT64>0,AT64-K64,R64*12) -> 0 | BL64: =IF(BB64>0,BB64-U64,AB64*12) -> 0 | BV64: =IF(BL64>0,BL64-AE64,AL64*12) -> 0 | CX64: 1 | CY64: =IF(D64+L64+V64+AF64+AP64<>0,1,0) -> 0
CX65: 1 | CY65: =IF(CY63+CY64>0,1,0) -> 0
A66: Biler mv. | D66: =SUM(D63:D64) -> 0 | E66: =SUM(E62:E64) -> 0 | J66: =SUM(J62:J64) -> 0 | L66: =SUM(L63:L64) -> 0 | O66: =SUM(O62:O64) -> 0 | T66: =SUM(T62:T64) -> 0 | V66: =SUM(V63:V64) -> 0 | Y66: =SUM(Y62:Y64) -> 0 | AD66: =SUM(AD62:AD64) -> 0 | AF66: =SUM(AF63:AF64) -> 0 | AI66: =SUM(AI62:AI64) -> 0 | AN66: =SUM(AN62:AN64) -> 0 | AP66: =SUM(AP63:AP64) -> 0 | CX66: 1 | CY66: =SUM(CY63:CY64) -> 0
CX67: 1 | CY67: =CY66 -> 0
B68: Aktiver udenfor landbrug | E68: Investering | G68: M | H68: Rest-år | J68: Afskr. | K68: Levetid måneder primo | O68: Investering | Q68: M | R68: Rest-år | T68: Afskr. | U68: Levetid måneder primo | Y68: Investering | AA68: M | AB68: Rest-år | AD68: Afskr. | AE68: Levetid måneder primo | AI68: Investering | AK68: M | AL68: Rest-år | AN68: Afskr. | AO68: Levetid måneder primo | CX68: 1 | CY68: =IF(CY72<>0,1,0) -> 0
A69: 1 | J69: =IF(AT69>0,(D69+E69+F69+I69)/-AT69*K69,0) -> 0 | K69: =IF(G69>0,12-G69,12) -> 12 | L69: =D69+E69+F69+I69+J69 -> 0 | T69: =IF(BB69>0,(L69+O69+P69+S69)/-BB69*U69,0) -> 0 | U69: =IF(Q69>0,12-Q69,IF(BB69>12,12,IF(BB69-12>0,BB69-12,BB69))) -> 0 | V69: =IF(CL69=0,L69+O69+P69+S69+T69,0) -> 0 | AD69: =IF(BL69>0,(V69+Y69+Z69+AC69)/-BL69*AE69,0) -> 0 | AE69: =IF(AA69>0,12-AA69,IF(BL69>12,12,IF(BL69-12>0,BL69-12,BL69))) -> 0 | AF69: =IF(CS69=0,V69+Y69+Z69+AC69+AD69,0) -> 0 | AN69: =IF(BV69>0,(AF69+AI69+AJ69+AM69)/-BV69*AO69,0) -> 0 | AO69: =IF(AK69>0,12-AK69,IF(BV69>12,12,IF(BV69-12>0,BV69-12,BV69))) -> 0 | AP69: =IF(CZ69=0,AF69+AI69+AJ69+AM69+AN69,0) -> 0 | AT69: =H69*12 -> 0 | BB69: =IF(AT69>0,AT69-K69,R69*12) -> 0 | BL69: =IF(BB69>0,BB69-U69,AB69*12) -> 0 | BV69: =IF(BL69>0,BL69-AE69,AL69*12) -> 0 | CX69: 1 | CY69: =IF(D69+L69+V69+AF69+AP69<>0,1,0) -> 0
A70: 2 | J70: =IF(AT70>0,(D70+E70+F70+I70)/-AT70*K70,0) -> 0 | K70: =IF(G70>0,12-G70,12) -> 12 | L70: =D70+E70+F70+I70+J70 -> 0 | T70: =IF(BB70>0,(L70+O70+P70+S70)/-BB70*U70,0) -> 0 | U70: =IF(Q70>0,12-Q70,IF(BB70>12,12,IF(BB70-12>0,BB70-12,BB70))) -> 0 | V70: =IF(CL70=0,L70+O70+P70+S70+T70,0) -> 0 | AD70: =IF(BL70>0,(V70+Y70+Z70+AC70)/-BL70*AE70,0) -> 0 | AE70: =IF(AA70>0,12-AA70,IF(BL70>12,12,IF(BL70-12>0,BL70-12,BL70))) -> 0 | AF70: =IF(CS70=0,V70+Y70+Z70+AC70+AD70,0) -> 0 | AN70: =IF(BV70>0,(AF70+AI70+AJ70+AM70)/-BV70*AO70,0) -> 0 | AO70: =IF(AK70>0,12-AK70,IF(BV70>12,12,IF(BV70-12>0,BV70-12,BV70))) -> 0 | AP70: =IF(CZ70=0,AF70+AI70+AJ70+AM70+AN70,0) -> 0 | AT70: =H70*12 -> 0 | BB70: =IF(AT70>0,AT70-K70,R70*12) -> 0 | BL70: =IF(BB70>0,BB70-U70,AB70*12) -> 0 | BV70: =IF(BL70>0,BL70-AE70,AL70*12) -> 0 | CX70: 1 | CY70: =IF(D70+L70+V70+AF70+AP70<>0,1,0) -> 0
CX71: 1 | CY71: =IF(CY69+CY70>0,1,0) -> 0
A72: Aktiver udenfor landbrug | D72: =SUM(D69:D70) -> 0 | E72: =SUM(E68:E70) -> 0 | J72: =SUM(J68:J70) -> 0 | L72: =SUM(L69:L70) -> 0 | O72: =SUM(O68:O70) -> 0 | T72: =SUM(T68:T70) -> 0 | V72: =SUM(V69:V70) -> 0 | Y72: =SUM(Y68:Y70) -> 0 | AD72: =SUM(AD68:AD70) -> 0 | AF72: =SUM(AF69:AF70) -> 0 | AI72: =SUM(AI68:AI70) -> 0 | AN72: =SUM(AN68:AN70) -> 0 | AP72: =SUM(AP69:AP70) -> 0 | CX72: 1 | CY72: =SUM(CY69:CY70) -> 0
E73: Investering | O73: Investering | Y73: Investering | AI73: Investering | CX73: 1 | CY73: =IF(SUM(CY74:CY76)<>0,1,0) -> 0
B74: Tilgodehavender i alt | L74: =D74+E74+H74+F74+I74 -> 0 | U74: =IF(O74+L74=0,0,IF(ISBLANK(R74),IF(K74>0,1/(1/K74-1),0),1/R74)) -> 0 | V74: =IF(CL74=0,L74+O74+P74+S74+T74,0) -> 0 | AE74: =IF(Y74+V74=0,0,IF(ISBLANK(AB74),IF(U74>0,1/(1/U74-1),0),1/AB74)) -> 0 | AF74: =IF(CS74=0,V74+Y74+Z74+AC74+AD74,0) -> 0 | AO74: =IF(AI74+AF74=0,0,IF(ISBLANK(AL74),IF(AE74>0,1/(1/AE74-1),0),1/AL74)) -> 0 | AP74: =IF(CZ74=0,AF74+AI74+AJ74+AM74+AN74,0) -> 0 | CX74: 1 | CY74: =IF(D74+L74+V74+AF74+AP74<>0,1,0) -> 0
B75: Værdipapirer | L75: =D75+E75+H75+F75+I75 -> 0 | U75: =IF(O75+L75=0,0,IF(ISBLANK(R75),IF(K75>0,1/(1/K75-1),0),1/R75)) -> 0 | V75: =IF(CL75=0,L75+O75+P75+S75+T75,0) -> 0 | AE75: =IF(Y75+V75=0,0,IF(ISBLANK(AB75),IF(U75>0,1/(1/U75-1),0),1/AB75)) -> 0 | AF75: =IF(CS75=0,V75+Y75+Z75+AC75+AD75,0) -> 0 | AO75: =IF(AI75+AF75=0,0,IF(ISBLANK(AL75),IF(AE75>0,1/(1/AE75-1),0),1/AL75)) -> 0 | AP75: =IF(CZ75=0,AF75+AI75+AJ75+AM75+AN75,0) -> 0 | BB75: =IF(ISBLANK(R75),AT75,R75) -> 0 | BL75: =IF(ISBLANK(AB75),BB75,AB75) -> 0 | BV75: =IF(ISBLANK(AL75),BL75,AL75) -> 0 | CX75: 1 | CY75: =IF(D75+L75+V75+AF75+AP75<>0,1,0) -> 0
B76: Indlån | K76: =IF(E76+D76=0,0,IF(ISBLANK(H76),IF(C76>0,1/(1/C76-1),0),1/H76)) -> 0 | L76: =D76+E76+F76+I76+J76 -> 0 | U76: =IF(O76+L76=0,0,IF(ISBLANK(R76),IF(K76>0,1/(1/K76-1),0),1/R76)) -> 0 | V76: =IF(CL76=0,L76+O76+P76+S76+T76,0) -> 0 | AE76: =IF(Y76+V76=0,0,IF(ISBLANK(AB76),IF(U76>0,1/(1/U76-1),0),1/AB76)) -> 0 | AF76: =IF(CS76=0,V76+Y76+Z76+AC76+AD76,0) -> 0 | AO76: =IF(AI76+AF76=0,0,IF(ISBLANK(AL76),IF(AE76>0,1/(1/AE76-1),0),1/AL76)) -> 0 | AP76: =IF(CZ76=0,AF76+AI76+AJ76+AM76+AN76,0) -> 0 | CX76: 1 | CY76: =IF(D76+L76+V76+AF76+AP76<>0,1,0) -> 0
B77: KK (når den er positiv) | D77: =IF(C108>=0,C108,-0.000000000000001) -> 0 | E77: ='A-S Resultat'!E174/-1000 -> 0 | H77: ='A-S Resultat'!G174/-1000 -> 0 | L77: =IF('A-S Resultat'!G189>0,'A-S Resultat'!G189/1000,0) -> 0 | O77: ='A-S Resultat'!O174/-1000 -> 0 | R77: ='A-S Resultat'!Q174/-1000 -> 0 | V77: =IF('A-S Resultat'!Q189>0,'A-S Resultat'!Q189/1000,0) -> 0 | Y77: ='A-S Resultat'!Y174/-1000 -> 0 | AB77: ='A-S Resultat'!AA174/-1000 -> 0 | AF77: =IF('A-S Resultat'!AA189>0,'A-S Resultat'!AA189/1000,0) -> 0 | AI77: ='A-S Resultat'!AI174/-1000 -> 0 | AL77: ='A-S Resultat'!AK174/-1000 -> 0 | AP77: =IF('A-S Resultat'!AK189>0,'A-S Resultat'!AK189/1000,0) -> 0 | CX77: 1 | CY77: =IF(D77+L77+V77+AF77+AP77<>0,1,0) -> 0
CX78: 1 | CY78: 1
A79: Finansaktiver | D79: =SUM(D74:D77) -> 0 | E79: =SUM(E74:E77) -> 0 | H79: =SUM(H74:H77) -> 0 | L79: =SUM(L74:L77) -> 0 | O79: =SUM(O74:O77) -> 0 | R79: =SUM(R74:R77) -> 0 | S79: =SUM(S74:S76) -> 0 | V79: =SUM(V74:V77) -> 0 | Y79: =SUM(Y74:Y77) -> 0 | AB79: =SUM(AB74:AB77) -> 0 | AF79: =SUM(AF74:AF77) -> 0 | AI79: =SUM(AI74:AI77) -> 0 | AL79: =SUM(AL74:AL77) -> 0 | AP79: =SUM(AP74:AP77) -> 0 | CX79: 1 | CY79: =SUM(CY74:CY77) -> 0
E80: Investering | J80: Afskr. | O80: Investering | T80: Afskr. | Y80: Investering | AD80: Afskr. | AI80: Investering | AN80: Afskr. | CX80: 1 | CY80: 1
A81: A/S aktiver i alt | D81: =IF(ISNUMBER(SUM(D13:D76)),D79+D60+D66+D72,0) -> 0 | E81: =E60+E66+E72+E79 -> 0 | J81: =J60+J66+J72+J79 -> 0 | L81: =IF(ISNUMBER(SUM(L13:L76)),L79+L60+L66+L72,0) -> 0 | O81: =O60+O66+O72+O79 -> 0 | S81: =S60+S66+S72 -> 0 | T81: =T60+T66+T72+T79 -> 0 | V81: =IF(ISNUMBER(SUM(V13:V76)),V79+V60+V66+V72,0) -> 0 | Y81: =Y60+Y66+Y72+Y79 -> 0 | AD81: =AD60+AD66+AD72+AD79 -> 0 | AF81: =IF(ISNUMBER(SUM(AF13:AF76)),AF79+AF60+AF66+AF72,0) -> 0 | AI81: =AI60+AI66+AI72+AI79 -> 0 | AJ81: =AJ60+AJ66+AJ72+AJ79 -> 0 | AN81: =AN60+AN66+AN72+AN79 -> 0 | AP81: =IF(ISNUMBER(SUM(AP13:AP76)),AP79+AP60+AP66+AP72,0) -> 0 | CX81: 1 | CY81: 1
A82: 0 | CX82: 1 | CY82: 1
A83: 0 | CX83: 1 | CY83: 0
A84: 0 | CX84: 1 | CY84: 0
A85: 0 | BL85: Besætning sum (altid resultatført) | CX85: 1 | CY85: 0
CX86: 1 | CY86: 1
A87: 0 | CX87: 1 | CY87: 1
A88: 0 | CX88: 1 | CY88: 1
A89: A/S PASSIVER | D89: =D9 -> 2025 | E89: - 1.000 kr - | L89: =L9 -> 2026 | M89: - 1.000 kr - | V89: =V9 -> 2027 | Y89: - 1.000 kr - | AF89: =AF9 -> 2028 | AI89: - 1.000 kr - | AP89: =AP9 -> 2029 | CX89: 1 | CY89: 1
CX90: 1 | CY90: 1
A91: =(SUM(A92:A94)-3)/3+2 -> 3 | D91: - Gæld | E91: - Ny gæld | H91: + Afdrag | O91: - Ny gæld | R91: + Afdrag | Y91: - Ny gæld | AB91: + Afdrag | AI91: - Ny gæld | AL91: + Afdrag | CX91: 1 | CY91: =IF(CY96<>0,1,0) -> 0
A92: 1 | B92: Realkredit | K92: =IF(-H92<TabsProcent*(D92+E92),1,0) ->  | L92: =D92+E92+H92 -> 0 | U92: =IF(-R92<TabsProcent*(L92+O92),1,0) ->  | V92: =L92+O92+R92 -> 0 | AE92: =IF(-AB92<TabsProcent*(V92+Y92),1,0) ->  | AF92: =V92+Y92+AB92 -> 0 | AM92: =IF(AO92=1,AF92+AI92+AJ92+AL92,0) -> 0 | AP92: =AF92+AI92+AL92 -> 0 | CX92: 1 | CY92: =IF(D92+L92+V92+AF92+AP92<>0,1,0) -> 0
A93: 3 | B93: Bank | L93: 0 | V93: 0 | AF93: =V93+Y93+AB93 -> 0 | AM93: 0 | AP93: =AF93+AI93+AL93 -> 0 | CX93: 1 | CY93: 0
A94: 2 | L94: 0 | V94: 0 | AF94: 0 | AM94: 0 | AP94: 0 | CX94: 1 | CY94: 0
CX95: 1 | CY95: 1
A96: Realkreditinstitutter | D96: =IF(ISNUMBER(SUM(D92:D94)),SUM(D92:D94),0) -> 0 | E96: =SUM(E92:E94) -> 0 | H96: =SUM(H92:H94) -> 0 | J96: =SUM(J92:J94) -> 0 | L96: =IF(ISNUMBER(SUM(L92:L94)),SUM(L92:L94),0) -> 0 | O96: =SUM(O92:O94) -> 0 | R96: =SUM(R92:R94) -> 0 | T96: =SUM(T92:T94) -> 0 | V96: =IF(ISNUMBER(SUM(V92:V94)),SUM(V92:V94),0) -> 0 | Y96: =SUM(Y92:Y94) -> 0 | AB96: =SUM(AB92:AB94) -> 0 | AD96: =SUM(AD92:AD94) -> 0 | AF96: =IF(ISNUMBER(SUM(AF92:AF94)),SUM(AF92:AF94),0) -> 0 | AI96: =SUM(AI92:AI94) -> 0 | AL96: =SUM(AL92:AL94) -> 0 | AM96: =SUM(AM92:AM94) -> 0 | AN96: =SUM(AN92:AN94) -> 0 | AP96: =IF(ISNUMBER(SUM(AP92:AP94)),SUM(AP92:AP94),0) -> 0 | CX96: 1 | CY96: =SUM(CY92:CY94) -> 0
A97: =(SUM(A98:A100)-3)/3+2 -> 3 | D97: - Gæld | E97: - Ny gæld | H97: + Afdrag | O97: - Ny gæld | R97: + Afdrag | Y97: - Ny gæld | AB97: + Afdrag | AI97: - Ny gæld | AL97: + Afdrag | CX97: 1 | CY97: =IF(CY103<>0,1,0) -> 0
A98: 1 | B98: Bank | K98: =IF(-H98<TabsProcent*(D98+E98),1,0) ->  | L98: =D98+E98+H98 -> 0 | U98: =IF(-R98<TabsProcent*(L98+O98),1,0) ->  | V98: =L98+O98+R98 -> 0 | AE98: =IF(-AB98<TabsProcent*(V98+Y98),1,0) ->  | AF98: =V98+Y98+AB98 -> 0 | AM98: =IF(AO98=1,AF98+AI98+AJ98+AL98,0) -> 0 | AP98: =AF98+AI98+AL98 -> 0 | CX98: 1 | CY98: =IF(D98+L98+V98+AF98+AP98<>0,1,0) -> 0
A99: 3 | B99: Bank | K99: =IF(-H99<TabsProcent*(D99+E99),1,0) ->  | L99: =D99+E99+H99 -> 0 | U99: =IF(-R99<TabsProcent*(L99+O99),1,0) ->  | V99: =L99+O99+R99 -> 0 | AE99: =IF(-AB99<TabsProcent*(V99+Y99),1,0) ->  | AF99: =V99+Y99+AB99 -> 0 | AM99: =IF(AO99=1,AF99+AI99+AJ99+AL99,0) -> 0 | AP99: =AF99+AI99+AL99 -> 0 | CX99: 1 | CY99: =IF(D99+L99+V99+AF99+AP99<>0,1,0) -> 0
A100: 2 | CX100: 1 | CY100: 0
CX101: 1 | CY101: =CY102 -> 0
A102: Pengeinstitutter mv. | D102: =IF(ISNUMBER(SUM(D98:D100)),SUM(D98:D100),0) -> 0 | E102: =SUM(E98:E100) -> 0 | H102: =SUM(H98:H100) -> 0 | J102: =SUM(J100:J100) -> 0 | L102: =IF(ISNUMBER(SUM(L98:L100)),SUM(L98:L100),0) -> 0 | M102: =SUM(M98:M100) -> 0 | O102: =SUM(O98:O100) -> 0 | P102: =SUM(P98:P100) -> 0 | R102: =SUM(R98:R100) -> 0 | T102: =SUM(T100:T100) -> 0 | V102: =IF(ISNUMBER(SUM(V98:V100)),SUM(V98:V100),0) -> 0 | W102: =SUM(W98:W100) -> 0 | Y102: =SUM(Y98:Y100) -> 0 | Z102: =SUM(Z98:Z100) -> 0 | AB102: =SUM(AB98:AB100) -> 0 | AD102: =SUM(AD100:AD100) -> 0 | AF102: =IF(ISNUMBER(SUM(AF98:AF100)),SUM(AF98:AF100),0) -> 0 | AG102: =SUM(AG98:AG100) -> 0 | AI102: =SUM(AI98:AI100) -> 0 | AJ102: =SUM(AJ98:AJ100) -> 0 | AL102: =SUM(AL98:AL100) -> 0 | AM102: =SUM(AM100:AM100) -> 0 | AN102: =SUM(AN100:AN100) -> 0 | AP102: =IF(ISNUMBER(SUM(AP98:AP100)),SUM(AP98:AP100),0) -> 0 | CX102: 1 | CY102: =IF(D102+L102+V102+AF102+AP102<>0,1,0) -> 0
D103: - Gæld | E103: - Ny gæld | H103: + Afdrag | O103: - Ny gæld | R103: + Afdrag | Y103: - Ny gæld | AB103: + Afdrag | AI103: - Ny gæld | AL103: + Afdrag | CX103: 1 | CY103: =CY102 -> 0
A104: 1 | B104: Foderstof | K104: =IF(-H104<TabsProcent*(D104+E104),1,0) ->  | L104: =D104+E104+H104 -> 0 | U104: =IF(-R104<TabsProcent*(L104+O104),1,0) ->  | V104: =L104+O104+R104 -> 0 | AE104: =IF(-AB104<TabsProcent*(V104+Y104),1,0) ->  | AF104: =V104+Y104+AB104 -> 0 | AP104: =AF104+AI104+AL104 -> 0 | CX104: 1 | CY104: =IF(D104+L104+V104+AF104+AP104<>0,1,0) -> 0
A105: 2 | B105: Anden gæld | K105: =IF(-H105<TabsProcent*(D105+E105),1,0) ->  | L105: =D105+E105+H105 -> 0 | U105: =IF(-R105<TabsProcent*(L105+O105),1,0) ->  | V105: =L105+O105+R105 -> 0 | AE105: =IF(-AB105<TabsProcent*(V105+Y105),1,0) ->  | AF105: =V105+Y105+AB105 -> 0 | AP105: =AF105+AI105+AL105 -> 0 | CX105: 1 | CY105: 0
B106: Anden gæld i alt | D106: =IF(ISNUMBER(SUM(D104:D105)),SUM(D104:D105),0) -> 0 | E106: =SUM(E104:E105) -> 0 | H106: =SUM(H104:H105) -> 0 | L106: =IF(ISNUMBER(SUM(L104:L105)),SUM(L104:L105),0) -> 0 | O106: =SUM(O104:O105) -> 0 | R106: =SUM(R104:R105) -> 0 | V106: =IF(ISNUMBER(SUM(V104:V105)),SUM(V104:V105),0) -> 0 | Y106: =SUM(Y104:Y105) -> 0 | AB106: =SUM(AB104:AB105) -> 0 | AF106: =IF(ISNUMBER(SUM(AF104:AF105)),SUM(AF104:AF105),0) -> 0 | AI106: =SUM(AI104:AI105) -> 0 | AL106: =SUM(AL104:AL105) -> 0 | AP106: =IF(ISNUMBER(SUM(AP104:AP105)),SUM(AP104:AP105),0) -> 0 | CX106: 1 | CY106: =SUM(CY104:CY105) -> 0
B107: Moms og afgifter | E107: =-'A-S Resultat'!E178/1000 -> 0 | H107: =-'A-S Resultat'!G178/1000 -> 0 | L107: =D107+E107+H107 -> 0 | O107: =-'A-S Resultat'!O178/1000 -> 0 | R107: =-'A-S Resultat'!Q178/1000 -> 0 | V107: =L107+O107+R107 -> 0 | Y107: =-'A-S Resultat'!Y178/1000 -> 0 | AB107: =-'A-S Resultat'!AA178/1000 -> 0 | AF107: =V107+Y107+AB107 -> 0 | AI107: =-'A-S Resultat'!AI178/1000 -> 0 | AL107: =-'A-S Resultat'!AK178/1000 -> 0 | AP107: =AF107+AI107+AL107 -> 0 | CX107: 1 | CY107: 0
B108: Kassekredit (negativ) | D108: =IF(D109<0,D109,0) -> 0 | E108: ='A-S Resultat'!E180/-1000 -> 0 | H108: ='A-S Resultat'!G180/-1000 -> 0 | L108: =IF('A-S Resultat'!G189<0,'A-S Resultat'!G189/1000,0) -> 0 | O108: ='A-S Resultat'!O180/-1000 -> 0 | R108: ='A-S Resultat'!Q180/-1000 -> 0 | V108: =IF('A-S Resultat'!Q189<0,'A-S Resultat'!Q189/1000,0) -> 0 | Y108: ='A-S Resultat'!Y180/-1000 -> 0 | AB108: ='A-S Resultat'!AA180/-1000 -> 0 | AF108: =IF('A-S Resultat'!AA189<0,'A-S Resultat'!AA189/1000,0) -> 0 | AI108: ='A-S Resultat'!AI180/-1000 -> 0 | AL108: ='A-S Resultat'!AK180/-1000 -> 0 | AP108: =IF('A-S Resultat'!AK189<0,'A-S Resultat'!AK189/1000,0) -> 0 | CX108: 1 | CY108: 0
D109: =C108 -> 0 | L109: =D109+E108+H108 -> 0 | V109: =L109+O108+R108 -> 0 | AF109: =V109+Y108+AB108 -> 0 | AP109: =AF109+AI108+AL108 -> 0 | CX109: 1 | CY109: 1
A110: A/S gæld i alt | D110: =D96+D102+D106+D107+D108 -> 0 | E110: =SUM(E107:E108) -> 0 | H110: =SUM(H107:H108) -> 0 | L110: =L96+L102+L106+L107+L108 -> 0 | O110: =SUM(O107:O108) -> 0 | R110: =SUM(R107:R108) -> 0 | V110: =V96+V102+V106+V107+V108 -> 0 | Y110: =SUM(Y107:Y108) -> 0 | AB110: =SUM(AB107:AB108) -> 0 | AF110: =AF96+AF102+AF106+AF107+AF108 -> 0 | AI110: =SUM(AI107:AI108) -> 0 | AL110: =SUM(AL107:AL108) -> 0 | AP110: =AP96+AP102+AP106+AP107+AP108 -> 0 | CX110: 1 | CY110: =IF(CY96+CY106+CY107+CY108<>0,1,0) -> 0
CX111: 1 | CY111: 1
A112: Hensættelse, udskudt skat | D112: ='Udskudt Skat'!H26*-1 -> 0 | E112: =IF('A-S Resultat'!G120>0,'A-S Resultat'!G120/1000,0) -> 0 | H112: =L112-D112 -> 0 | L112: ='Udskudt Skat'!O26*-1 -> 0 | O112: =IF('A-S Resultat'!Q120>0,'A-S Resultat'!Q120/1000,0) -> 0 | R112: =V112-L112 -> 0 | V112: ='Udskudt Skat'!V26*-1 -> 0 | Y112: =IF('A-S Resultat'!AA120>0,'A-S Resultat'!AA120/1000,0) -> 0 | AB112: =AF112-V112 -> 0 | AF112: ='Udskudt Skat'!AC26*-1 -> 0 | AI112: =IF('A-S Resultat'!AK120>0,'A-S Resultat'!AK120/1000,0) -> 0 | AL112: =AP112-AF112 -> 0 | AP112: ='Udskudt Skat'!AJ26*-1 -> 0 | CX112: 1 | CY112: =IF(D112+L112+T112+AB112+AJ112<>0,1,0) -> 0
CX113: 1 | CY113: =CY112 -> 0
B114: Aktiekapital, antal aktier | C114: 400000 | D114: =C114/1000 -> 400 | L114: =D114 -> 400 | V114: =L114 -> 400 | AF114: =V114 -> 400 | AP114: =AF114 -> 400 | CX114: 1 | CY114: =IF(D114+L114+T114+AB114+AJ114<>0,1,0) -> 1
CX115: 1 | CY115: =CY114 -> 1
B116: Overkurs ved emission | D116: =D81+D110+D112-D114-D118 -> -400 | L116: =D116 -> -400 | V116: =L116 -> -400 | AF116: =V116 -> -400 | AP116: =AF116 -> -400 | CX116: 1 | CY116: =IF(D116+L116+T116+AB116+AJ116<>0,1,0) -> 1
CX117: 1 | CY117: =CY116 -> 1
B118: Overført resultat | D118: =IF(C118<>0,C118,0) -> 0 | E118: =IF('A-S Resultat'!G123<0,'A-S Resultat'!G123/1000,0) -> 0 | H118: =IF('A-S Resultat'!G123>0,'A-S Resultat'!G123/1000,0) -> 0 | L118: =L81+L112+L110-L114-L116 -> 0 | O118: =IF('A-S Resultat'!Q123<0,'A-S Resultat'!Q123/1000,0) -> 0 | R118: =IF('A-S Resultat'!Q123>0,'A-S Resultat'!Q123/1000,0) -> 0 | V118: =L118+O118+R118 -> 0 | Y118: =IF('A-S Resultat'!AA123<0,'A-S Resultat'!AA123/1000,0) -> 0 | AB118: =IF('A-S Resultat'!AA123>0,'A-S Resultat'!AA123/1000,0) -> 0 | AF118: =V118+Y118+AB118 -> 0 | AI118: =IF('A-S Resultat'!AK123<0,'A-S Resultat'!AK123/1000,0) -> 0 | AL118: =IF('A-S Resultat'!AK123>0,'A-S Resultat'!AK123/1000,0) -> 0 | AP118: =AF118+AI118+AL118 -> 0 | CX118: 1 | CY118: =IF(L118+V118+AF118+AP118<>0,1,0) -> 0
CX119: =CX118 -> 1 | CY119: =CY118 -> 0
A120: A/S egenkapital | D120: =D81+D110+D112 -> 0 | E120: =E118 -> 0 | H120: =H118 -> 0 | L120: =L81+L110+L112 -> 0 | O120: =O118 -> 0 | R120: =R118 -> 0 | V120: =V81+V110+V112 -> 0 | Y120: =Y118 -> 0 | AB120: =AB118 -> 0 | AF120: =AF81+AF110+AF112 -> 0 | AI120: =AI118 -> 0 | AL120: =AL118 -> 0 | AP120: =AP81+AP110+AP112 -> 0 | CX120: 1 | CY120: 1
CX121: 1 | CY121: 1
CX122: 1 | CY122: 1
B123: Indre værdi pr. aktie á 1 kr | D123: =IF($C$114>0,D120*1000/$C$114,"-") -> 0 | L123: =IF($C$114>0,L120*1000/$C$114,"-") -> 0 | V123: =IF($C$114>0,V120*1000/$C$114,"-") -> 0 | AF123: =IF($C$114>0,AF120*1000/$C$114,"-") -> 0 | AP123: =IF($C$114>0,AP120*1000/$C$114,"-") -> 0 | CX123: 1 | CY123: 1
CX124: 1 | CY124: 1
B125: Kursværdi af ejerandele | E125: + køb | H125: - salg | O125: + køb | R125: - salg | Y125: + køb | AB125: - salg | AI125: + køb | AL125: - salg | CX125: 1 | CY125: 1
B126: Senior Holding ejerandel | C126: =Holding!B7 -> 0.9 | D126: =D120*$C126 -> 0 | E126: =IF(J126>C126,(J126-C126)*(D126/C126),0) -> 0 | H126: =IF(J126<C126,(J126-C126)*(D126/C126),0) -> 0 | J126: =Holding!E7 -> 0.9 | L126: =J126*L120 -> 0 | O126: =IF(T126>J126,(T126-J126)*(L126/J126),0) -> 0 | R126: =IF(T126<J126,(T126-J126)*(L126/J126),0) -> 0 | T126: =Holding!O7 -> 0.9 | V126: =T126*V120 -> 0 | Y126: =IF(AD126>T126,(AD126-T126)*(V126/T126),0) -> 0 | AB126: =IF(AD126<T126,(AD126-T126)*(V126/T126),0) -> 0 | AD126: =Holding!Y7 -> 0.9 | AF126: =AD126*AF120 -> 0 | AI126: =IF(AN126>AD126,(AN126-AD126)*(AF126/AD126),0) -> 0 | AL126: =IF(AN126<AD126,(AN126-AD126)*(AF126/AD126),0) -> 0 | AN126: =Holding!AI7 -> 0.9 | AP126: =AN126*AP120 -> 0 | CX126: 1 | CY126: 1
B127: Junior Holding ejerandel | C127: =1-C126 -> 0.1 | D127: =D120*$C127 -> 0 | E127: =H126*-1 -> 0 | H127: =E126*-1 -> 0 | J127: =1-J126 -> 0.1 | L127: =J127*L120 -> 0 | O127: =R126*-1 -> 0 | R127: =O126*-1 -> 0 | T127: =1-T126 -> 0.1 | V127: =T127*V120 -> 0 | Y127: =AB126*-1 -> 0 | AB127: =Y126*-1 -> 0 | AD127: =1-AD126 -> 0.1 | AF127: =AD127*AF120 -> 0 | AI127: =AL126*-1 -> 0 | AL127: =AI126*-1 -> 0 | AN127: =1-AN126 -> 0.1 | AP127: =AN127*AP120 -> 0 | CX127: 1 | CY127: 1
D128: =SUM(D126:D127) -> 0 | L128: =SUM(L126:L127) -> 0 | V128: =SUM(V126:V127) -> 0 | AF128: =SUM(AF126:AF127) -> 0 | AP128: =SUM(AP126:AP127) -> 0 | CX128: 1 | CY128: 1
D129: =IF(OR(B126<10%,B127<10%),"Du er kommet under 10 % i ejerandel","") ->  | H129: =IF(L128=0,"",IF(OR(J126<10%,J127<10%),"Du er kommet under 10 % i ejerandel","")) ->  | R129: =IF(V128=0,"",IF(OR(T126<10%,T127<10%),"Du er kommet under 10 % i ejerandel","")) ->  | AB129: =IF(AF128=0,"",IF(OR(AD126<10%,AD127<10%),"Du er kommet under 10 % i ejerandel","")) ->  | AL129: =IF(AP128=0,"",IF(OR(AN126<10%,AN127<10%),"Du er kommet under 10 % i ejerandel","")) ->  | CX129: 1 | CY129: 1
A130: Kassekredit/likviditet i alt | D130: =IF(D77>0,D77,BVkk) -> 0 | L130: =IF(L77>0,L77,L108) -> 0 | V130: =IF(V77>0,V77,V108) -> 0 | AF130: =IF(AF77>0,AF77,AF108) -> 0 | AP130: =IF(AP77>0,AP77,AP108) -> 0
A132: * Stjerne markerer immaterielle aktiver og rettigheder, hvor evt. afskrivning ikke føres sammen med øvrige afskrivninger, men lige før årets resultat før skat.
AQ160: =IF(ISERROR(SUM(B1:AQ146)),1,0) -> 1

Sheet Betalt Skat
A1: BETALT SKAT | J1: ='A-S Balance'!D9 -> 2025 | P1: BETALT SKAT | Y1: =J1+1 -> 2026 | AG1: BETALT SKAT | AP1: =Y1+1 -> 2027 | AX1: BETALT SKAT | BG1: =AP1+1 -> 2028
B2: ='A-S Balance'!$B$2 -> 0
B3: ='A-S Balance'!$B$3 -> 0
B4: ='A-S Balance'!$B$4 -> 0
I5: ='A-S Balance'!AI1 -> © CHA 02.05.2025 | AA5: Simpel | AR5: Simpel | BI5: Simpel
D6: Drifts-primo | E6: Evt | F6: Årets | G6: Afskr. | I6: Årets | J6: Max | S6: Primo | U6: Årets | V6: Afskr. | X6: Årets | Y6: Max | AA6: afskr/nedskr | AJ6: Primo | AL6: Årets | AM6: Afskr. | AO6: Årets | AP6: Max | AR6: afskr/nedskr | BA6: Primo | BC6: Årets | BD6: Afskr. | BF6: Årets | BG6: Max | BI6: afskr/nedskr
B7: Fra A-S Balance-arket | D7: -1.000 kr. - | E7: Korr. | F7: investering | G7: grundlag | H7: Anvendt | I7: afskrivn. | J7: afskr/nedskr | S7: -1.000 - | U7: investering | V7: grundlag | W7: Anvendt | X7: afskrivn. | Y7: afskr/nedskr | AJ7: -1.000 - | AL7: investering | AM7: grundlag | AN7: Anvendt | AO7: afskrivn. | AP7: afskr/nedskr | BA7: -1.000 - | BC7: investering | BD7: grundlag | BE7: Anvendt | BF7: afskrivn. | BG7: afskr/nedskr
B8: Fast ejendom | D8: =IF(ISNUMBER('A-S Balance'!D27),'A-S Balance'!D27,0) -> 0 | F8: -1.000 - | G8: -1.000 - | H8: procent | I8: -1.000 - | J8: -1.000 - | P8: Fast ejendom | U8: -1.000 - | V8: -1.000 - | W8: procent | X8: -1.000 - | Y8: -1.000 - | AG8: Fast ejendom | AL8: -1.000 - | AM8: -1.000 - | AN8: procent | AO8: -1.000 - | AP8: -1.000 - | AX8: Fast ejendom | BC8: -1.000 - | BD8: -1.000 - | BE8: procent | BF8: -1.000 - | BG8: -1.000 -
C9: Straksfradrag | F9: Straksfradrag> | H9: =IF(AaretsBygningsafskrivning1=0,0,5%) -> 0 | I9: =IF(AND(VSfoerAfskr>0,OensketVS<=VSfoerAfskr),IF(VSfoerAfskr-OensketVS>J9,J9*-1,(VSfoerAfskr-OensketVS)*-1),0) -> 0 | J9: =IF(L9>0,L9,0) -> 0 | K9: a | L9: =IF(Straksfradragsats*G9<F10,Straksfradragsats*G9,F10) -> 0 | R9: Straksfradrag | U9: Straksfradrag>>> | W9: =IF(AaretsBygningsafskrivning2=0,0,5%) -> 0 | X9: =IF(AND(VSfoerAfskr2>0,OensketVS2<=VSfoerAfskr2),IF(VSfoerAfskr2-OensketVS2>Y9,Y9*-1,(VSfoerAfskr2-OensketVS2)*-1),0) -> 0 | Y9: =IF(AA9>0,AA9,0) -> 0 | Z9: a | AA9: =IF(Straksfradragsats*V9<U10,Straksfradragsats*V9,U10) -> 0 | AI9: Straksfradrag | AL9: Straksfradrag>>> | AN9: =IF(AaretsBygningsafskrivning3=0,0,5%) -> 0 | AO9: =IF(AND(VSfoerAfskr3>0,OensketVS3<=VSfoerAfskr3),IF(VSfoerAfskr3-OensketVS3>AP9,AP9*-1,(VSfoerAfskr3-OensketVS3)*-1),0) -> 0 | AP9: =IF(AR9>0,AR9,0) -> 0 | AQ9: a | AR9: =IF(Straksfradragsats*AM9<AL10,Straksfradragsats*AM9,AL10) -> 0 | AZ9: Straksfradrag | BC9: Straksfradrag>>> | BE9: =IF(AaretsBygningsafskrivning4=0,0,5%) -> 0 | BF9: =IF(AND(VSfoerAfskr4>0,OensketVS4<=VSfoerAfskr4),IF(VSfoerAfskr4-OensketVS4>BG9,BG9*-1,(VSfoerAfskr4-OensketVS4)*-1),0) -> 0 | BG9: =IF(BI9>0,BI9,0) -> 0 | BH9: a | BI9: =IF(Straksfradragsats*BD9<BC10,Straksfradragsats*BD9,BC10) -> 0
B10: Driftsbygninger | C10: Afskr.grundlag | D10: =IF(ISNUMBER('A-S Balance'!D21),'A-S Balance'!D21,0) -> 0 | F10: =IF(ISNUMBER('A-S Balance'!E21),'A-S Balance'!E21,0) -> 0 | G10: =E10+F10+AaretsStraksafskr1+D10 -> 0 | H10: =I10/(-G10+0.0000001) -> 0 | I10: =IF(AND(VSfoerAfskr>0,VSfoerAfskr>=OensketVS),IF(VSfoerAfskr-OensketVS+AaretsStraksafskr1>J10,J10*-1,(VSfoerAfskr-OensketVS+AaretsStraksafskr1)*-1),0) -> 0 | J10: =IF(L10>0,L10,0) -> 0 | K10: b | L10: =IF(D10+E10+F10>-E11,Bygningsafsrksats*G10,0) -> 0 | P10: Driftsbygninger | R10: Afskr.grundlag | S10: =G10 -> 0 | U10: =IF(ISNUMBER('A-S Balance'!O21),'A-S Balance'!O21,0) -> 0 | V10: =S10+U10+AaretsStraksafskr2 -> 0 | W10: =X10/(-V10+0.0000001) -> 0 | X10: =IF(AND(VSfoerAfskr2>0,VSfoerAfskr2>=OensketVS2),IF(VSfoerAfskr2-OensketVS2+AaretsStraksafskr2>Y10,Y10*-1,(VSfoerAfskr2-OensketVS2+AaretsStraksafskr2)*-1),0) -> 0 | Y10: =IF(AA10>0,AA10,0) -> 0 | Z10: b | AA10: =IF(S10+U10>-S11,Bygningsafsrksats*V10,0) -> 0 | AG10: Driftsbygninger | AI10: Afskr.grundlag | AJ10: =V10 -> 0 | AL10: =IF(ISNUMBER('A-S Balance'!Y21),'A-S Balance'!Y21,0) -> 0 | AM10: =AJ10+AL10+AaretsStraksafskr3 -> 0 | AN10: =AO10/(-AM10+0.0000001) -> 0 | AO10: =IF(AND(VSfoerAfskr3>0,VSfoerAfskr3>=OensketVS3),IF(VSfoerAfskr3-OensketVS3+AaretsStraksafskr3>AP10,AP10*-1,(VSfoerAfskr3-OensketVS3+AaretsStraksafskr3)*-1),0) -> 0 | AP10: =IF(AR10>0,AR10,0) -> 0 | AQ10: b | AR10: =IF(AJ10+AL10>-AJ11,Bygningsafsrksats*AM10,0) -> 0 | AX10: Driftsbygninger | AZ10: Afskr.grundlag | BA10: =AM10 -> 0 | BC10: =IF(ISNUMBER('A-S Balance'!AI21),'A-S Balance'!AI21,0) -> 0 | BD10: =BA10+BC10+AaretsStraksafskr4 -> 0 | BE10: =BF10/(-BD10+0.0000001) -> 0 | BF10: =IF(AND(VSfoerAfskr4>0,VSfoerAfskr4>=OensketVS4),IF(VSfoerAfskr4-OensketVS4+AaretsStraksafskr4>BG10,BG10*-1,(VSfoerAfskr4-OensketVS4+AaretsStraksafskr4)*-1),0) -> 0 | BG10: =IF(BI10>0,BI10,0) -> 0 | BH10: b | BI10: =IF(BA10+BC10>-BA11,Bygningsafsrksats*BD10,0) -> 0
C11: Akk. afskr. bygn. | R11: Akk. afskr. bygn. | S11: =E11+AaretsBygningsafskrivning1 -> 0 | AI11: Akk. afskr. bygn. | AJ11: =S11+AaretsBygningsafskrivning2 -> 0 | AZ11: Akk. afskr. bygn. | BA11: =AJ11+AaretsBygningsafskrivning3 -> 0
B12: Grundforbedringer | D12: =IF(ISNUMBER('A-S Balance'!D17),'A-S Balance'!D17,0) -> 0 | F12: =IF(ISNUMBER('A-S Balance'!E17),'A-S Balance'!E17,0) -> 0 | G12: =D12+E12+F12 -> 0 | H12: =IF(G12=0,"",I12/-G12) ->  | I12: =IF(AND(VSfoerAfskr>0,VSfoerAfskr>=OensketVS),IF(VSfoerAfskr-OensketVS+AaretsBygningsafskrivning1+AaretsStraksafskr1>J12,J12*-1,(VSfoerAfskr-OensketVS+AaretsBygningsafskrivning1+AaretsStraksafskr1)*-1),0) -> 0 | J12: =IF(L12>0,L12,0) -> 0 | K12: c | L12: =Grundforbedringsafskrsats*G12 -> 0 | P12: Grundforbedringer | S12: =G12 -> 0 | U12: =IF(ISNUMBER('A-S Balance'!O17),'A-S Balance'!O17,0) -> 0 | V12: =G12+U12 -> 0 | W12: =IF(V12=0,"",X12/-V12) ->  | X12: =IF(AND(VSfoerAfskr2>0,VSfoerAfskr2>=OensketVS2),IF(VSfoerAfskr2-OensketVS2+AaretsBygningsafskrivning2+AaretsStraksafskr2>Y12,Y12*-1,(VSfoerAfskr2-OensketVS2+AaretsBygningsafskrivning2+AaretsStraksafskr2)*-1),0) -> 0 | Y12: =IF(AA12>0,AA12,0) -> 0 | Z12: c | AA12: =Grundforbedringsafskrsats*V12 -> 0 | AG12: Grundforbedringer | AJ12: =U12 -> 0 | AL12: =IF(ISNUMBER('A-S Balance'!Y17),'A-S Balance'!Y17,0) -> 0 | AM12: =V12+AL12 -> 0 | AN12: =IF(AM12=0,"",AO12/-AM12) ->  | AO12: =IF(AND(VSfoerAfskr3>0,VSfoerAfskr3>=OensketVS3),IF(VSfoerAfskr3-OensketVS3+AaretsBygningsafskrivning3+AaretsStraksafskr3>AP12,AP12*-1,(VSfoerAfskr3-OensketVS3+AaretsBygningsafskrivning3+AaretsStraksafskr3)*-1),0) -> 0 | AP12: =IF(AR12>0,AR12,0) -> 0 | AQ12: c | AR12: =Grundforbedringsafskrsats*AM12 -> 0 | AX12: Grundforbedringer | BA12: =AL12 -> 0 | BC12: =IF(ISNUMBER('A-S Balance'!AI17),'A-S Balance'!AI17,0) -> 0 | BD12: =AM12+BC12 -> 0 | BE12: =IF(BD12=0,"",BF12/-BD12) ->  | BF12: =IF(AND(VSfoerAfskr4>0,VSfoerAfskr4>=OensketVS4),IF(VSfoerAfskr4-OensketVS4+AaretsBygningsafskrivning4+AaretsStraksafskr4>BG12,BG12*-1,(VSfoerAfskr4-OensketVS4+AaretsBygningsafskrivning4+AaretsStraksafskr4)*-1),0) -> 0 | BG12: =IF(BI12>0,BI12,0) -> 0 | BH12: c | BI12: =Grundforbedringsafskrsats*BD12 -> 0
B13: Inventar (mark, husdyr, andet) | D13: =IF(ISNUMBER('A-S Balance'!D40+'A-S Balance'!D44+'A-S Balance'!D48),'A-S Balance'!D40+'A-S Balance'!D44+'A-S Balance'!D48,0) -> 0 | F13: =IF(ISNUMBER('A-S Balance'!E40+'A-S Balance'!E44+'A-S Balance'!E48),'A-S Balance'!E40+'A-S Balance'!E44+'A-S Balance'!E48,0) -> 0 | G13: =D13+E13+F13 -> 0 | H13: =I13/(-G13+0.0000001) -> 0 | I13: =IF(AND(VSfoerAfskr>0,VSfoerAfskr>=OensketVS),IF(VSfoerAfskr-OensketVS+AaretsBygningsafskrivning1+AaretsGrundforbedringsafskr1+AaretsStraksafskr1>J13,J13*-1,(VSfoerAfskr-OensketVS+AaretsBygningsafskrivning1+AaretsGrundforbedringsafskr1+AaretsStraksafskr1)*-1),0) -> 0 | J13: =IF(L13>0,L13,0) -> 0 | K13: d | L13: =Inventarafskrivningssats*G13 -> 0 | P13: Inventar (mark, husdyr, andet) | S13: =G13+AaretsInventarafskr -> 0 | U13: =IF(ISNUMBER('A-S Balance'!O40+'A-S Balance'!O44+'A-S Balance'!O48),'A-S Balance'!O40+'A-S Balance'!O44+'A-S Balance'!O48,0) -> 0 | V13: =G13+U13+AaretsInventarafskr -> 0 | W13: =X13/(-V13+0.0000001) -> 0 | X13: =IF(AND(VSfoerAfskr2>0,VSfoerAfskr2>=OensketVS2),IF(VSfoerAfskr2-OensketVS2+AaretsBygningsafskrivning2+AaretsGrundforbedringsafskr2+AaretsStraksafskr2>Y13,Y13*-1,(VSfoerAfskr2-OensketVS2+AaretsBygningsafskrivning2+AaretsGrundforbedringsafskr2+AaretsStraksafskr2)*-1),0) -> 0 | Y13: =IF(AA13>0,AA13,0) -> 0 | Z13: d | AA13: =Inventarafskrivningssats*V13 -> 0 | AG13: Inventar (mark, husdyr, andet) | AJ13: =V13+AaretsInventarafskr2 -> 0 | AL13: =IF(ISNUMBER('A-S Balance'!Y40+'A-S Balance'!Y44+'A-S Balance'!Y48),'A-S Balance'!Y40+'A-S Balance'!Y44+'A-S Balance'!Y48,0) -> 0 | AM13: =AJ13+AL13 -> 0 | AN13: =AO13/(-AM13+0.0000001) -> 0 | AO13: =IF(AND(VSfoerAfskr3>0,VSfoerAfskr3>=OensketVS3),IF(VSfoerAfskr3-OensketVS3+AaretsBygningsafskrivning3+AaretsGrundforbedringsafskr3+AaretsStraksafskr3>AP13,AP13*-1,(VSfoerAfskr3-OensketVS3+AaretsBygningsafskrivning3+AaretsGrundforbedringsafskr3+AaretsStraksafskr3)*-1),0) -> 0 | AP13: =IF(AR13>0,AR13,0) -> 0 | AQ13: d | AR13: =Inventarafskrivningssats*AM13 -> 0 | AX13: Inventar (mark, husdyr, andet) | BA13: =AM13+AaretsInventarafskr3 -> 0 | BC13: =IF(ISNUMBER('A-S Balance'!AI40+'A-S Balance'!AI44+'A-S Balance'!AI48),'A-S Balance'!AI40+'A-S Balance'!AI44+'A-S Balance'!AI48,0) -> 0 | BD13: =BA13+BC13 -> 0 | BE13: =BF13/(-BD13+0.0000001) -> 0 | BF13: =IF(AND(VSfoerAfskr4>0,VSfoerAfskr4>=OensketVS4),IF(VSfoerAfskr4-OensketVS4+AaretsBygningsafskrivning4+AaretsGrundforbedringsafskr4+AaretsStraksafskr4>BG13,BG13*-1,(VSfoerAfskr4-OensketVS4+AaretsBygningsafskrivning4+AaretsGrundforbedringsafskr4+AaretsStraksafskr4)*-1),0) -> 0 | BG13: =IF(BI13>0,BI13,0) -> 0 | BH13: d | BI13: =Inventarafskrivningssats*BD13 -> 0
B14: Besætning | D14: =IF(ISNUMBER('A-S Balance'!D52),'A-S Balance'!D52,0) -> 0 | F14: =IF(ISNUMBER('A-S Balance'!E52),'A-S Balance'!E52,0) -> 0 | G14: ='A-S Balance'!D52+F14 -> 0 | H14: =I14/(-G14+0.0000001) -> 0 | I14: =IF(AND(VSfoerAfskr>0,VSfoerAfskr>=OensketVS),IF(VSfoerAfskr-OensketVS+AaretsBygningsafskrivning1+AaretsGrundforbedringsafskr1+AaretsInventarafskr+AaretsStraksafskr1>J14,J14*-1,(VSfoerAfskr-OensketVS+AaretsBygningsafskrivning1+AaretsGrundforbedringsafskr1+AaretsInventarafskr+AaretsStraksafskr1)*-1),0) -> 0 | J14: =IF(L14>0,L14,0) -> 0 | K14: e | L14: =Besaetningsnedskrivningssats*G14 -> 0 | P14: Besætning | S14: =G14+I14 -> 0 | U14: =IF(ISNUMBER('A-S Balance'!O52),'A-S Balance'!O52,0) -> 0 | V14: =U14+'A-S Balance'!L52 -> 0 | W14: =X14/(-V14+0.0000001) -> 0 | X14: =IF(AND(VSfoerAfskr2>0,VSfoerAfskr2>=OensketVS2),IF(VSfoerAfskr2-OensketVS2+AaretsBygningsafskrivning2+AaretsGrundforbedringsafskr2+AaretsInventarafskr2+AaretsStraksafskr2>Y14,Y14*-1,(VSfoerAfskr2-OensketVS2+AaretsBygningsafskrivning2+AaretsGrundforbedringsafskr2+AaretsInventarafskr2+AaretsStraksafskr2)*-1),0) -> 0 | Y14: =IF(AA14>0,AA14,0) -> 0 | Z14: e | AA14: =Besaetningsnedskrivningssats*V14 -> 0 | AG14: Besætning | AJ14: =V14+X14 -> 0 | AL14: =IF(ISNUMBER('A-S Balance'!Y52),'A-S Balance'!Y52,0) -> 0 | AM14: =AL14+'A-S Balance'!V52 -> 0 | AN14: =AO14/(-AM14+0.0000001) -> 0 | AO14: =IF(AND(VSfoerAfskr3>0,VSfoerAfskr3>=OensketVS3),IF(VSfoerAfskr3-OensketVS3+AaretsBygningsafskrivning3+AaretsGrundforbedringsafskr3+AaretsInventarafskr3+AaretsStraksafskr3>AP14,AP14*-1,(VSfoerAfskr3-OensketVS3+AaretsBygningsafskrivning3+AaretsGrundforbedringsafskr3+AaretsInventarafskr3+AaretsStraksafskr3)*-1),0) -> 0 | AP14: =IF(AR14>0,AR14,0) -> 0 | AQ14: e | AR14: =Besaetningsnedskrivningssats*AM14 -> 0 | AX14: Besætning | BA14: =AM14+AO14 -> 0 | BC14: =IF(ISNUMBER('A-S Balance'!AI52),'A-S Balance'!AI52,0) -> 0 | BD14: =BC14+'A-S Balance'!AF52 -> 0 | BE14: =BF14/(-BD14+0.0000001) -> 0 | BF14: =IF(AND(VSfoerAfskr4>0,VSfoerAfskr4>=OensketVS4),IF(VSfoerAfskr4-OensketVS4+AaretsBygningsafskrivning4+AaretsGrundforbedringsafskr4+AaretsInventarafskr4+AaretsStraksafskr4>BG14,BG14*-1,(VSfoerAfskr4-OensketVS4+AaretsBygningsafskrivning4+AaretsGrundforbedringsafskr4+AaretsInventarafskr4+AaretsStraksafskr4)*-1),0) -> 0 | BG14: =IF(BI14>0,BI14,0) -> 0 | BH14: e | BI14: =Besaetningsnedskrivningssats*BD14 -> 0
E15: =SUM(E8:E14) -> 0 | F15: Årets af- og nedskrivning i alt | I15: =SUM(I9:I14) -> 0 | J15: =SUM(J9:J14) -> 0 | U15: Årets af- og nedskrivning i alt | X15: =SUM(X9:X14) -> 0 | Y15: =SUM(Y9:Y14) -> 0 | AL15: Årets af- og nedskrivning i alt | AO15: =SUM(AO9:AO14) -> 0 | AP15: =SUM(AP9:AP14) -> 0 | BC15: Årets af- og nedskrivning i alt | BF15: =SUM(BF9:BF14) -> 0 | BG15: =SUM(BG9:BG14) -> 0
E17: OVERBLIK SKAT
D18: År | E18: =J38 -> 2025 | F18: =E18+1 -> 2026 | G18: =F18+1 -> 2027 | H18: =G18+1 -> 2028
C19: Indkomst før af/nedskr. | E19: =VSfoerAfskr -> 0 | F19: =VSfoerAfskr2 -> 0 | G19: =VSfoerAfskr3 -> 0 | H19: =VSfoerAfskr4 -> 0
C20: % afskr. af max | E20: =IF(AfskrMax1<1,0,AaretsAfskrivningerIalt/-AfskrMax1) -> 0 | F20: =IF(AfskrMax2<1,0,AaretsAfskrivningerIalt2/-AfskrMax2) -> 0 | G20: =IF(AfskrMax3<1,0,AaretsAfskrivningerIalt3/-AfskrMax3) -> 0 | H20: =IF(AfskrMax4<1,0,AaretsAfskrivningerIalt4/-AfskrMax4) -> 0
C21: Betalt skat | E21: =G38 -> 0 | F21: =V38 -> 0 | G21: =AM38 -> 0 | H21: =BD38 -> 0
C22: Ændring udskudt skat | E22: ='Udskudt Skat'!K28*-1 -> 0 | F22: ='Udskudt Skat'!R28*-1 -> 0 | G22: ='Udskudt Skat'!Y28*-1 -> 0 | H22: ='Udskudt Skat'!AF28*-1 -> 0
C23: Skat af årets resultat | E23: =E21+E22 -> 0 | F23: =F21+F22 -> 0 | G23: =G21+G22 -> 0 | H23: =H21+H22 -> 0
C24: Ønsket indkomst
G27: - 1.000 kr - | V27: - 1.000 kr - | AM27: - 1.000 kr - | BD27: - 1.000 kr -
C28: Årets resultat før skat | G28: =IF(ISNUMBER('A-S Resultat'!G95/1000),'A-S Resultat'!G95/1000,0) -> 0 | R28: Årets resultat før skat | V28: =IF(ISNUMBER('A-S Resultat'!Q100),'A-S Resultat'!Q100/1000,0) -> 0 | AI28: Årets resultat før skat | AM28: =IF(ISNUMBER('A-S Resultat'!AA100),'A-S Resultat'!AA100/1000,0) -> 0 | AZ28: Årets resultat før skat | BD28: =IF(ISNUMBER('A-S Resultat'!AK100),'A-S Resultat'!AK100/1000,0) -> 0
C29: Tilbageført nedskrivning besætning | G29: =E14*-1 -> 0 | R29: Tilbageført nedskrivning besætning fra året før | V29: =I14*-1 -> 0 | AI29: Tilbageført nedskrivning besætning fra året før | AM29: =X14*-1 -> 0 | AZ29: Tilbageført nedskrivning besætning fra året før | BD29: =AO14*-1 -> 0
C30: Tilbageført driftsmæssige afskrivninger mv. | G30: =IF(ISNUMBER('A-S Resultat'!G136),('A-S Resultat'!G136)/1000,0) -> 0 | R30: Tilbageført driftsmæssige afskrivninger mv. | V30: =IF(ISNUMBER('A-S Resultat'!Q136),('A-S Resultat'!Q136)/1000,0) -> 0 | AI30: Tilbageført driftsmæssige afskrivninger mv. | AM30: =IF(ISNUMBER('A-S Resultat'!AA136),('A-S Resultat'!AA136)/1000,0) -> 0 | AZ30: Tilbageført driftsmæssige afskrivninger mv. | BD30: =IF(ISNUMBER('A-S Resultat'!AK136),('A-S Resultat'!AK136)/1000,0) -> 0
R31: Værdireguleringer tilbageført | V31: 0 | AI31: Værdireguleringer tilbageført | AM31: 0 | AZ31: Værdireguleringer tilbageført | BD31: 0
C32: Prioritetsomk tilbageført | G32: =IF(F32<>0,F32,IF(ISNUMBER([0]!BVPrioritetsomk),[0]!BVPrioritetsomk/-1000,0)) -> 0 | R32: Prioritetsomk tilbageført | V32: =IF(U32<>0,U32,IF(ISNUMBER('A-S Resultat'!Q84),'A-S Resultat'!Q84/-1000,0)) -> 0 | AI32: Prioritetsomk tilbageført | AM32: =IF(AL32<>0,AL32,IF(ISNUMBER('A-S Resultat'!AA84),'A-S Resultat'!AA84/-1000,0)) -> 0 | AZ32: Prioritetsomk tilbageført | BD32: =IF(BC32<>0,BC32,IF(ISNUMBER('A-S Resultat'!AK84),'A-S Resultat'!AK84/-1000,0)) -> 0
C33: Fremført underskud fra tidligere år | G33: =IF(SUM(G28:G32)>OensketVS,IF(B33*-1<SUM(G28:G32)-OensketVS,B33,(SUM(G28:G32)-OensketVS)*-1),0) -> 0 | H33: =B33-G33 -> 0 | I33: Fremført underskud | Q33: =H33 -> 0 | R33: Fremført underskud fra tidligere år | V33: =IF(SUM(V28:V32)>OensketVS2,IF(Q33*-1<SUM(V28:V32)-OensketVS2,Q33,(SUM(V28:V32)-OensketVS2)*-1),0) -> 0 | W33: =IF(VSefterAfskr2<0,VSefterAfskr2,0) -> 0 | X33: Fremført underskud | AH33: =W33 -> 0 | AI33: Fremført underskud fra tidligere år | AM33: =IF(SUM(AM28:AM32)>OensketVS3,IF(AH33*-1<SUM(AM28:AM32)-OensketVS3,AH33,(SUM(AM28:AM32)-OensketVS3)*-1),0) -> 0 | AN33: =IF(VSefterAfskr3<0,VSefterAfskr3,0) -> 0 | AO33: Fremført underskud | AY33: =AN33 -> 0 | AZ33: Fremført underskud fra tidligere år | BD33: =IF(SUM(BD28:BD32)>OensketVS4,IF(AY33*-1<SUM(BD28:BD32)-OensketVS4,AY33,(SUM(BD28:BD32)-OensketVS4)*-1),0) -> 0 | BE33: =IF(VSefterAfskr4<0,VSefterAfskr4,0) -> 0 | BF33: Fremført underskud
C34: Indkomst før af- og nedskrivning | G34: =SUM(G28:G33) -> 0 | R34: Indkomst før af/nedskrivning | V34: =SUM(V28:V33) -> 0 | AI34: Indkomst før af/nedskrivning | AM34: =SUM(AM28:AM33) -> 0 | AZ34: Indkomst før af/nedskrivning | BD34: =SUM(BD28:BD33) -> 0
C35: Årets skattemæssige af- og nedskrivning i alt | G35: =I15 -> 0 | R35: Årets skattemæssige af- og nedskrivning i alt | V35: =X15 -> 0 | AI35: Årets skattemæssige af- og nedskrivning i alt | AM35: =AO15 -> 0 | AZ35: Årets skattemæssige af- og nedskrivning i alt | BD35: =BF15 -> 0
C36: Skattepligtig indkomst | G36: =SUM(G34:G35) -> 0 | H36: =E24 -> 0 | I36: Ønsket indkomst | R36: Skattepligtig indkomst | V36: =SUM(V34:V35) -> 0 | W36: =IF(ISNUMBER(F24),F24,0) -> 0 | X36: Ønsket indkomst | AI36: Skattepligtig indkomst | AM36: =SUM(AM34:AM35) -> 0 | AN36: =G24 -> 0 | AO36: Ønsket indkomst | AZ36: Skattepligtig indkomst | BD36: =SUM(BD34:BD35) -> 0 | BE36: =H24 -> 0 | BF36: Ønsket indkomst
C37: Sambeskatning | G37: =Holding!AO66+Holding!E66 -> 0 | R37: Sambeskatning | V37: =Holding!AY66+Holding!O66 -> 0 | AI37: Sambeskatning | AM37: =Holding!BI66+Holding!Y66 -> 0 | AZ37: Sambeskatning | BD37: =Holding!BS66+Holding!AI66 -> 0
C38: Betalt skat | D38: =Virksomhedsskat -> 0.22 | E38: af | F38: =VSefterAfskr+G37 -> 0 | G38: =ROUND(IF(F38>0,D38*F38*-1,0),0) -> 0 | J38: =J1 -> 2025 | R38: Betalt skat | S38: =Virksomhedsskat -> 0.22 | T38: af | U38: =VSefterAfskr2+V37 -> 0 | V38: =ROUND(IF(U38>0,S38*U38*-1,0),0) -> 0 | Y38: =Y1 -> 2026 | AI38: Betalt skat | AK38: =Virksomhedsskat -> 0.22 | AL38: =VSefterAfskr3+AM37 -> 0 | AM38: =ROUND(IF(AL38>=0,AL38*AK38*-1,0),0) -> 0 | AP38: =AP1 -> 2027 | AZ38: Betalt skat | BA38: =Virksomhedsskat -> 0.22 | BB38: af | BC38: =VSefterAfskr4+BD37 -> 0 | BD38: =ROUND(IF(BC38>0,BA38*BC38*-1,0),0) -> 0 | BG38: =BG1 -> 2028
A43: SATS-TABEL | E43: 2025
C44: Procent tal | F44: Navn i formler
B45: Virksomhedsskattesats | E45: 0.22 | F45: Virksomhedsskat
B46: Straksfradragssats | E46: 0.05 | F46: Straksfradragssats
B47: Bygningsafskr.sats | E47: 0.06 | F47: Bygningsafskrsats
B48: Inventarafskrivningssats | E48: 0.25 | F48: Inventarafskrivningssats
B49: Besætningsnedskrivning | E49: 0.15 | F49: Besætningsnedskrivningssats
B50: Dræning/jordfast vandingsanlæg | E50: 0.2 | F50: Grundforbedringsafskrsats
B51: Laveste sats aktieindkomst | E51: 0.27 | F51: LavUdbytteskat
B52: Højeste sats aktieindkomst | E52: 0.42 | F52: HoejUdbytteskat
B53: Progressionsgrænse aktieindkomst | E53: 67500 | F53: GraenseUdbytte

Sheet Udskudt Skat
A1: UDSKUDT SKAT | AL1: vis | AM1: skjul
A2: ='A-S Balance'!$B$2 -> 0 | AL2: 1 | AM2: 1
A3: ='A-S Balance'!$B$3 -> 0 | E3: - 1.000 kr - | L3: - 1.000 kr - | S3: - 1.000 kr - | Z3: - 1.000 kr - | AF3: - 1.000 kr - | AL3: 1 | AM3: 1
A4: ='A-S Balance'!$B$4 -> 0 | F4: PRIMO | G4: ='A-S Balance'!T2 -> 2025 | M4: PRIMO | N4: =G4+1 -> 2026 | T4: PRIMO | U4: =N4+1 -> 2027 | AA4: PRIMO | AB4: =U4+1 -> 2028 | AH4: PRIMO | AI4: =AB4+1 -> 2029 | AL4: 1 | AM4: 1
F5: Fortj. | G5: Skat% | H5: Skat | J5: Inv. | K5: Afskr. | M5: Fortj. | O5: Skat | Q5: Inv. | R5: Afskr. | T5: Fortj. | V5: Skat | X5: Inv. | Y5: Afskr. | AA5: Fortj. | AC5: Skat | AE5: Inv. | AF5: Afskr. | AH5: Fortj. | AJ5: Skat | AL5: 1 | AM5: 1
A6: Bygninger | AL6: 1 | AM6: =AM9 -> 0
C7: Driftsmæssig værdi | F7: ='Betalt Skat'!D10 -> 0 | J7: =J8 -> 0 | K7: ='A-S Balance'!J21 -> 0 | M7: ='A-S Balance'!L21 -> 0 | Q7: =Q8 -> 0 | R7: ='A-S Balance'!T21 -> 0 | T7: ='A-S Balance'!V21 -> 0 | X7: =X8 -> 0 | Y7: ='A-S Balance'!AD21 -> 0 | AA7: ='A-S Balance'!AF21 -> 0 | AE7: =AE8 -> 0 | AF7: ='A-S Balance'!AN21 -> 0 | AH7: ='A-S Balance'!AP21 -> 0 | AL7: 1 | AM7: =IF(SUM(H7:AJ7)+F7<>0,1,0) -> 0
C8: Skattemæssig værdi | F8: ='Betalt Skat'!D10+'Betalt Skat'!E10+'Betalt Skat'!E11 -> 0 | J8: ='Betalt Skat'!F10 -> 0 | K8: =AaretsBygningsafskrivning1 -> 0 | M8: =F8+J8+K8 -> 0 | Q8: ='Betalt Skat'!U10 -> 0 | R8: =AaretsBygningsafskrivning2 -> 0 | T8: =M8+Q8+R8 -> 0 | X8: ='Betalt Skat'!AL10 -> 0 | Y8: =AaretsBygningsafskrivning3 -> 0 | AA8: =T8+X8+Y8 -> 0 | AE8: ='Betalt Skat'!BC10 -> 0 | AF8: =AaretsBygningsafskrivning4 -> 0 | AH8: =AA8+AE8+AF8 -> 0 | AL8: 1 | AM8: =IF(SUM(H8:AJ8)+F8<>0,1,0) -> 0
C9: Forskel til beskatning (Genvundne) | F9: =IF(F7-F8<'Betalt Skat'!E11*-1,F7-F8,'Betalt Skat'!E11*-1) -> 0 | G9: =IF(A9<>0,A9,Virksomhedsskat) -> 0.22 | H9: =F9*G9 -> 0 | M9: =IF(M7-M8<'Betalt Skat'!S11*-1,M7-M8,'Betalt Skat'!S11*-1) -> 0 | O9: =M9*$G9 -> 0 | T9: =IF(T7-T8<'Betalt Skat'!AJ11*-1,T7-T8,'Betalt Skat'!AJ11*-1) -> 0 | V9: =T9*$G9 -> 0 | AA9: =IF(AA7-AA8<'Betalt Skat'!BA11*-1,AA7-AA8,'Betalt Skat'!BA11*-1) -> 0 | AC9: =AA9*$G9 -> 0 | AH9: =IF(AH7-AH8<('Betalt Skat'!BA11+'Betalt Skat'!BF10)*-1,AH7-AH8,('Betalt Skat'!BA11+'Betalt Skat'!BF10)*-1) -> 0 | AJ9: =AH9*$G9 -> 0 | AL9: 1 | AM9: =IF(SUM(H9:AJ9)+F9<>0,1,0) -> 0
A10: Driftsmidler (Inventar mark, husdyr, andet) | AL10: 1 | AM10: =AM13 -> 0 | XFD10: =XFC10+1 -> 1
C11: Driftsmæssig værdi | F11: ='Betalt Skat'!D13 -> 0 | J11: =J12 -> 0 | K11: ='A-S Balance'!J40+'A-S Balance'!J44+'A-S Balance'!J48 -> 0 | M11: =F11+J11+K11 -> 0 | Q11: =Q12 -> 0 | R11: ='A-S Balance'!T40+'A-S Balance'!T44+'A-S Balance'!T48 -> 0 | T11: =M11+Q11+R11 -> 0 | X11: =X12 -> 0 | Y11: ='A-S Balance'!AD40+'A-S Balance'!AD44+'A-S Balance'!AD48 -> 0 | AA11: =T11+X11+Y11 -> 0 | AE11: =AE12 -> 0 | AF11: ='A-S Balance'!AN40+'A-S Balance'!AN44+'A-S Balance'!AN48 -> 0 | AH11: =AA11+AE11+AF11 -> 0 | AL11: 1 | AM11: =IF(SUM(H11:AJ11)+F11<>0,1,0) -> 0
C12: Skattemæssig værdi | F12: ='Betalt Skat'!D13+'Betalt Skat'!E13 -> 0 | J12: ='Betalt Skat'!F13 -> 0 | K12: =AaretsInventarafskr -> 0 | M12: =F12+J12+K12 -> 0 | Q12: ='Betalt Skat'!U13 -> 0 | R12: =AaretsInventarafskr2 -> 0 | T12: =M12+Q12+R12 -> 0 | X12: ='Betalt Skat'!AL13 -> 0 | Y12: =AaretsInventarafskr3 -> 0 | AA12: =T12+X12+Y12 -> 0 | AE12: ='Betalt Skat'!BC13 -> 0 | AF12: =AaretsInventarafskr4 -> 0 | AH12: =AA12+AE12+AF12 -> 0 | AL12: 1 | AM12: =IF(SUM(H12:AJ12)+F12<>0,1,0) -> 0
C13: Forskel til beskatning | F13: =F11-F12 -> 0 | G13: =IF(A13<>0,A13,Virksomhedsskat) -> 0.22 | H13: =F13*$G13 -> 0 | M13: =M11-M12 -> 0 | O13: =M13*$G13 -> 0 | T13: =T11-T12 -> 0 | V13: =T13*$G13 -> 0 | AA13: =AA11-AA12 -> 0 | AC13: =AA13*$G13 -> 0 | AH13: =AH11-AH12 -> 0 | AJ13: =AH13*$G13 -> 0 | AL13: 1 | AM13: =IF(SUM(H13:AJ13)+F13<>0,1,0) -> 0
A14: Besætning (kvæg/svin) | AL14: 1 | AM14: =AM17 -> 0
C15: Driftsmæssig værdi | F15: ='Betalt Skat'!D14 -> 0 | J15: =J16 -> 0 | M15: =F15+J15 -> 0 | Q15: =Q16 -> 0 | T15: =M15+Q15 -> 0 | X15: =X16 -> 0 | AA15: =T15+X15 -> 0 | AE15: =AE16 -> 0 | AH15: =AA15+AE15 -> 0 | AL15: 1 | AM15: =IF(SUM(H15:AJ15)+F15<>0,1,0) -> 0
C16: Skattemæssig værdi | F16: ='Betalt Skat'!D14+'Betalt Skat'!E14 -> 0 | J16: ='Betalt Skat'!F14 -> 0 | K16: ='Betalt Skat'!I14 -> 0 | M16: ='Betalt Skat'!G14+'Betalt Skat'!I14 -> 0 | Q16: ='Betalt Skat'!U14 -> 0 | R16: ='Betalt Skat'!X14 -> 0 | T16: ='Betalt Skat'!V14+'Betalt Skat'!X14 -> 0 | X16: ='Betalt Skat'!AL14 -> 0 | Y16: ='Betalt Skat'!AO14 -> 0 | AA16: ='Betalt Skat'!AM14+'Betalt Skat'!AO14 -> 0 | AE16: ='Betalt Skat'!BC14 -> 0 | AF16: ='Betalt Skat'!BF14 -> 0 | AH16: ='Betalt Skat'!BD14+'Betalt Skat'!BF14 -> 0 | AL16: 1 | AM16: 0
C17: Forskel til beskatning | F17: =F15-F16 -> 0 | G17: =IF(A17<>0,A17,Virksomhedsskat) -> 0.22 | H17: =F17*$G$17 -> 0 | M17: =M15-M16 -> 0 | O17: =M17*$G$17 -> 0 | T17: =T15-T16 -> 0 | V17: =T17*$G$17 -> 0 | AA17: =AA15-AA16 -> 0 | AC17: =AA17*$G$17 -> 0 | AH17: =AH15-AH16 -> 0 | AJ17: =AH17*$G$17 -> 0 | AL17: 1 | AM17: 0
A18: Fremført underskud fra tidligere år | J18: Fremf. | K18: Brugt | Q18: Fremf. | R18: Brugt | X18: Fremf. | Y18: Brugt | AE18: Fremf. | AF18: Brugt | AL18: 1 | AM18: =AM19 -> 0
C19: Underskud modregnes | F19: ='Betalt Skat'!B33 -> 0 | G19: =IF(A19<>0,A19,Virksomhedsskat) -> 0.22 | H19: =F19*G19 -> 0 | J19: ='Betalt Skat'!H33 -> 0 | K19: ='Betalt Skat'!G33*-1 -> 0 | M19: =F19+K19 -> 0 | O19: =M19*$G19 -> 0 | Q19: ='Betalt Skat'!W33 -> 0 | R19: ='Betalt Skat'!V33*-1 -> 0 | T19: =M19+R19 -> 0 | V19: =T19*$G19 -> 0 | X19: ='Betalt Skat'!AN33 -> 0 | Y19: ='Betalt Skat'!AM33*-1 -> 0 | AA19: =T19+Y19 -> 0 | AC19: =AA19*$G19 -> 0 | AE19: ='Betalt Skat'!BE33 -> 0 | AF19: ='Betalt Skat'!BD33*-1 -> 0 | AH19: =AA19+AF19 -> 0 | AJ19: =AH19*$G19 -> 0 | AL19: 1 | AM19: =IF(AJ19+AC19+V19+O19+H19+F19<>0,1,0) -> 0
A20: Ejendomsavancebeskatning | F20: Avance | M20: Avance | T20: Avance | AA20: Avance | AH20: Avance | AL20: 1 | AM20: =AM21 -> 0
C21: Opskrivning jordpris | F21: ='Betalt Skat'!E8*-1 -> 0 | G21: =IF(A21<>0,A21,Virksomhedsskat) -> 0.22 | H21: =F21*G21 -> 0 | M21: =F21 -> 0 | O21: =M21*$G21 -> 0 | T21: =M21 -> 0 | V21: =T21*$G21 -> 0 | AA21: =T21 -> 0 | AC21: =AA21*$G21 -> 0 | AH21: =AA21 -> 0 | AJ21: =AH21*$G21 -> 0 | AL21: 1 | AM21: =IF(SUM(H21:AJ21)+F21<>0,1,0) -> 0
A22: Korrektion af udskudt skat | AL22: 1 | AM22: =AM23+AM24+AM25 -> 0
G23: =IF(A23<>0,A23,Virksomhedsskat) -> 0.22 | H23: =F23*$G23 -> 0 | M23: =F23 -> 0 | O23: =M23*$G23 -> 0 | T23: =M23 -> 0 | V23: =T23*$G23 -> 0 | AA23: =T23 -> 0 | AC23: =AA23*$G23 -> 0 | AH23: =AA23 -> 0 | AJ23: =AH23*$G23 -> 0 | AL23: 1 | AM23: =IF(SUM(H23:AJ23)+F23<>0,1,0) -> 0 | AU23: =IF(V23+O23+O25+V25<>0,"Man","") ->  | AV23: =IF(AC23+V23+V25+AC25<>0,"Man","") ->  | AW23: =IF(AJ23+AC23+AC25+AJ25<>0,"Man","") -> 
G24: =IF(A24<>0,A24,Virksomhedsskat) -> 0.22 | H24: 0 | M24: =F24 -> 0 | O24: 0 | T24: =M24 -> 0 | V24: 0 | AA24: =T24 -> 0 | AC24: 0 | AH24: =AA24 -> 0 | AJ24: 0 | AL24: 1 | AM24: =IF(SUM(H24:AJ24)+F24<>0,1,0) -> 0
G25: =IF(A25<>0,A25,Virksomhedsskat) -> 0.22 | H25: 0 | M25: 0 | O25: 0 | T25: 0 | V25: 0 | AA25: 0 | AC25: 0 | AH25: 0 | AJ25: 0 | AL25: 1 | AM25: =IF(SUM(H25:AJ25)+F25<>0,1,0) -> 0
C26: Skønnet udskudt skat | H26: =ROUND(SUM(H6:H25),0) -> 0 | J26: Skønnet udskudt skat | O26: =ROUND(SUM(O6:O25),0) -> 0 | Q26: Skønnet udskudt skat | V26: =ROUND(SUM(V6:V25),0) -> 0 | X26: Skønnet udskudt skat | AC26: =ROUND(SUM(AC6:AC25),0) -> 0 | AE26: Skønnet udskudt skat | AJ26: =ROUND(SUM(AJ6:AJ25),0) -> 0 | AL26: 1 | AM26: =IF(AJ26+AC26+V26+O26+H26<>0,1,0) -> 0
AL27: 1 | AM27: 1
C28: Ændring i udskudt skat i balance og resultat | K28: =ROUND(O26-H26,0) -> 0 | L28: Ændring i udskudt skat | R28: =ROUND(V26-O26,0) -> 0 | T28: Ændring i udskudt skat | Y28: =ROUND(AC26-V26,0) -> 0 | Z28: Ændring i udskudt skat | AF28: =ROUND(AJ26-AC26,0) -> 0 | AL28: 1 | AM28: =IF(AF28+Y28+R28+K28<>0,1,0) -> 0
I31: 1 | L31: 1 | N31: 1 | P31: 1 | S31: 1 | U31: 1 | W31: 1 | Z31: 1 | AB31: 1 | AD31: 1 | AG31: 1 | AI31: 1
F87: -1234 | G87: 1 | H87: -1234 | I87: 1 | J87: 123 | K87: -123 | L87: 1 | M87: -1234 | O87: -1234 | P87: 1 | Q87: 123 | R87: -123 | S87: 1 | T87: -1234 | U87: 1 | V87: -1234 | W87: 1 | X87: 123 | Y87: -123 | Z87: 1 | AA87: -1234 | AB87: 1 | AC87: -1234 | AD87: 1 | AE87: 123 | AF87: -123 | AG87: 1 | AH87: -1234 | AI87: 1 | AJ87: -1234

Sheet Nulpunkt
A1: NULPUNKTSBEREGNING | Z1: © CHA 22.04.24
A2: ='A-S Balance'!B2 -> 0
A3: ='A-S Balance'!B3 -> 0
A4: ='A-S Balance'!B4 -> 0
X5: 1 | Y5: 1
X6: 1 | Y6: 1
G7: =IF(AND($C$231=1,$F$31>0),"Notering",IF(AND($C$231=2,$F$22+$F$13>=1),"Smågrisepris",IF(AND($C$231=3,$F$34>1),"Mælkepris",IF(AND($C$231=4,$F$38>1),"Kr pr. hkg","Mangler produktionsoplysninger")))) -> Mangler produktionsoplysninger | X7: 1 | Y7: 1
X8: 1 | Y8: 1
A9: NULPUNKT | F9: ='A-S Balance'!T2 -> 2025 | K9: =F9+1 -> 2026 | P9: =K9+1 -> 2027 | U9: =P9+1 -> 2028 | X9: 1 | Y9: 1
A10: SØER | E10: Antal årssøer | X10: =IF(F10+K10+P10+U10<>0,1,0) -> 0 | Y10: 1 | AA10: Kg tilvækst produceret | AF10: Kg tilvækst produceret | AK10: Kg tilvækst produceret | AP10: Kg tilvækst produceret
E11: Grise pr. årsso produceret | X11: =X10 -> 0 | Y11: 1
E12: Kg pr. smågris UD | X12: =X11 -> 0 | Y12: 1 | Z12: Tilvækst fravænnede | AA12: =F10*F11*F12 -> 0 | AE12: Tilvækst fravænnede | AF12: =K10*K11*K12 -> 0 | AJ12: Tilvækst fravænnede | AK12: =P10*P11*P12 -> 0 | AO12: Tilvækst fravænnede | AP12: =U10*U11*U12 -> 0
E13: Anvendt afregningspris, kr. pr. pattegris | X13: =X12 -> 0 | Y13: 1
E14: Antal smågrise produceret i alt | F14: =F10*F11 -> 0 | K14: =K10*K11 -> 0 | P14: =P10*P11 -> 0 | U14: =U10*U11 -> 0 | X14: =X13 -> 0 | Y14: 1
A15: SMÅGRISE | F15: =IF(AND(F12>0,F17>0),IF(F12<>F17,"Vægt ud/ind!",""),"") ->  | K15: =IF(AND(K12>0,K17>0),IF(K12<>K17,"Vægt ud/ind!",""),"") ->  | P15: =IF(AND(P12>0,P17>0),IF(P12<>P17,"Vægt ud/ind!",""),"") ->  | U15: =IF(AND(U12>0,U17>0),IF(U12<>U17,"Vægt ud/ind!",""),"") ->  | X15: =X16 -> 0 | Y15: 1
E16: Antal indsatte smågrise i alt | F16: =IF(F18<>0,F19*(1+F18),0) -> 0 | K16: =IF(K18<>0,K19*(1+K18),0) -> 0 | P16: =IF(P18<>0,P19*(1+P18),0) -> 0 | U16: =IF(U18<>0,U19*(1+U18),0) -> 0 | X16: =X17 -> 0 | Y16: 1
E17: Kg pr. smågris IND | X17: =X18 -> 0 | Y17: 1
E18: Dødelighed % smågrise IND | X18: =X19 -> 0 | Y18: 1
E19: Antal producerede smågrise i alt | G19: =F14/(1+F18) -> 0 | L19: =K14/(1+K18) -> 0 | Q19: =P14/(1+P18) -> 0 | V19: =U14/(1+U18) -> 0 | X19: =IF(F19+K19+P19+U19<>0,1,0) -> 0 | Y19: 1
E20: Dødelighed % smågrise UD | X20: =X19 -> 0 | Y20: 1 | Z20: Tilvækst smågrise | AA20: =(1-F20)*F21-(1+F18)*F17 -> 0 | AE20: Tilvækst smågrise | AF20: =(1-K20)*K21-(1+K18)*K17 -> 0 | AJ20: Tilvækst smågrise | AK20: =(1-P20)*P21-(1+P18)*P17 -> 0 | AO20: Tilvækst smågrise | AP20: =(1-U20)*U21-(1+U18)*U17 -> 0
E21: Kg pr. smågris UD | X21: =X20 -> 0 | Y21: 1 | Z21: I alt tilvækst smågrise | AA21: =F19*AA20 -> 0 | AE21: I alt tilvækst smågrise | AF21: =K19*AF20 -> 0 | AJ21: I alt tilvækst smågrise | AK21: =P19*AK20 -> 0 | AO21: I alt tilvækst smågrise | AP21: =U19*AP20 -> 0
E22: Anvendt afregningspris, kr. pr. smågris | X22: =X21 -> 0 | Y22: 1
E23: Antal leverede smågrise i alt | F23: =TRUNC(IF(ISNUMBER(F19),F19*(1-F20),F19),0) -> 0 | K23: =TRUNC(IF(ISNUMBER(K19),K19*(1-K20),K19),0) -> 0 | P23: =TRUNC(IF(ISNUMBER(P19),P19*(1-P20),P19),0) -> 0 | U23: =TRUNC(IF(ISNUMBER(U19),U19*(1-U20),U19),0) -> 0 | X23: =X22 -> 0 | Y23: 1
A24: SLAGTESVIN | F24: =IF(AND(F21>0,F26>0),IF(F21<>F26,"Vægt ud/ind!",""),"") ->  | K24: =IF(AND(K21>0,K26>0),IF(K21<>K26,"Vægt ud/ind!",""),"") ->  | P24: =IF(AND(P21>0,P26>0),IF(P21<>P26,"Vægt ud/ind!",""),"") ->  | U24: =IF(AND(U21>0,U26>0),IF(U21<>U26,"Vægt ud/ind!",""),"") ->  | X24: =X25 -> 0 | Y24: 1
E25: Antal indsatte smågrise i alt | F25: =IF(F28<>0,F28*(1+F27),0) -> 0 | K25: =IF(K28<>0,K28*(1+K27),0) -> 0 | P25: =IF(P28<>0,P28*(1+P27),0) -> 0 | U25: =IF(U28<>0,U28*(1+U27),0) -> 0 | X25: =X26 -> 0 | Y25: 1
E26: Kg pr. smågris IND | X26: =X27 -> 0 | Y26: 1
E27: Dødelighed % smågrise IND | X27: =X28 -> 0 | Y27: 1
E28: Antal producerede slagtesvin i alt | G28: =F23/(1+F27) -> 0 | L28: =K23/(1+K27) -> 0 | Q28: =P23/(1+P27) -> 0 | V28: =U23/(1+U27) -> 0 | X28: =IF(F28+K28+P28+U28<>0,1,0) -> 0 | Y28: 1 | Z28: Tilvækst slagtesvin | AA28: =(1-F29)*F30-(1+F27)*F26 -> 0 | AE28: Tilvækst slagtesvin | AF28: =(1-K29)*K30-(1+K27)*K26 -> 0 | AJ28: Tilvækst slagtesvin | AK28: =(1-P29)*P30-(1+P27)*P26 -> 0 | AO28: Tilvækst slagtesvin | AP28: =(1-U29)*U30-(1+U27)*U26 -> 0
E29: Døde/kasserede % slagtesvin UD | X29: =X28 -> 0 | Y29: 1 | Z29: I alt tilvækst slagtesvin | AA29: =AA28*F28 -> 0 | AE29: I alt tilvækst slagtesvin | AF29: =AF28*K28 -> 0 | AJ29: I alt tilvækst slagtesvin | AK29: =AK28*P28 -> 0 | AO29: I alt tilvækst slagtesvin | AP29: =AP28*U28 -> 0
E30: Kg leveret, slagtevægt UD | X30: =X29 -> 0 | Y30: 1
E31: Kr/kg, anvendt afregning | X31: =IF(F31+K31+P31+U31<>0,1,0) -> 0 | Y31: 1
E32: Antal leverede slagtesvin i alt | F32: =IF(F28<>0,F28*(1-F29),0) -> 0 | K32: =IF(K28<>0,K28*(1-K29),0) -> 0 | P32: =IF(P28<>0,P28*(1-P29),0) -> 0 | U32: =IF(U28<>0,U28*(1-U29),0) -> 0 | X32: =X28 -> 0 | Y32: 1 | Z32: Tilvækst svin i alt, kg | AA32: =AA29+AA21+AA12 -> 0 | AE32: Tilvækst svin i alt, kg | AF32: =AF29+AF21+AF12 -> 0 | AJ32: Tilvækst svin i alt, kg | AK32: =AK29+AK21+AK12 -> 0 | AO32: Tilvækst svin i alt, kg | AP32: =AP29+AP21+AP12 -> 0
A33: KØER | X33: =IF($C$231=3,1,0) -> 1 | Y33: 1 | Z33: Antal dyr med afgangsvægt pattegrise eller smågrise | AA33: =IFERROR(IF(F19<>0,AA32/F21,AA32/F12),0) -> 0 | AE33: Antal dyr med afgangsvægt | AF33: =IFERROR(IF(K19<>0,AF32/K21,AF32/K12),0) -> 0 | AJ33: Antal dyr med afgangsvægt | AK33: =IFERROR(IF(P19<>0,AK32/P21,AK32/P12),0) -> 0 | AO33: Antal dyr med afgangsvægt | AP33: =IFERROR(IF(U19<>0,AP32/U21,AP32/U12),0) -> 0
E34: Stk årskøer | X34: =IF($C$231=3,1,0) -> 1 | Y34: 1 | Z34: Svin netto 1 kr. | AA34: =F44+F48+F52 -> 0 | AE34: Svin netto 1 kr. | AF34: =K44+K48+K52 -> 0 | AJ34: Svin netto 1 kr. | AK34: =P44+P48+P52 -> 0 | AO34: Svin netto 1 kr. | AP34: =U44+U48+U52 -> 0
E35: Kg EKM pr. årsko | X35: =IF($C$231=3,1,0) -> 1 | Y35: 1 | Z35: Omregnet til ændring i smågrisepris | AA35: =IFERROR(AA34/AA33,0) -> 0 | AE35: Omregnet til ændring i smågrisepris | AF35: =IFERROR(AF34/AF33,0) -> 0 | AJ35: Omregnet til ændring i smågrisepris | AK35: =IFERROR(AK34/AK33,0) -> 0 | AO35: Omregnet til ændring i smågrisepris | AP35: =IFERROR(AP34/AP33,0) -> 0
E36: Anvendt mælkepris, kr/kg EKM | X36: =IF($C$231=3,1,0) -> 1 | Y36: 1
A37: AFGRØDE | X37: =IF($C$231=4,1,0) -> 0 | Y37: 1
E38: Ha med afgrøden | X38: =IF($C$231=4,1,0) -> 0 | Y38: 1
E39: Hkg pr. ha | X39: =IF($C$231=4,1,0) -> 0 | Y39: 1
E40: Anvendt afregningspris, kr/hkg | X40: =IF($C$231=4,1,0) -> 0 | Y40: 1
F41: =IF(GrisPrisBudget1<>0,GrisPrisBudget1,F13) -> 0 | K41: =IF(GrisPrisBudget2<>0,GrisPrisBudget2,K13) -> 0 | P41: =IF(GrisPrisBudget3<>0,GrisPrisBudget3,P13) -> 0 | U41: =IF(GrisPrisBudget4<>0,GrisPrisBudget4,U13) -> 0 | X41: 1 | Y41: 1
A42: Beregning af fald på 1 kr | X42: 1 | Y42: 1
B43: 1 kr notering på smågris afgang | F43: =IF(F14<>0,-F174,"") ->  | K43: =IF(K14<>0,-K174,"") ->  | P43: =IF(P14<>0,-P174,"") ->  | U43: =IF(U14<>0,-U174,"") ->  | X43: =IF(OR($C$231=1,$C$231=2),1,0) -> 0 | Y43: 1
B44: 1 kr på fravænnede grise fra søer, i alt | F44: =IF(F14<>0,F14*F43,0) -> 0 | K44: =IF(K14<>0,K14*K43,0) -> 0 | P44: =IF(P14<>0,P14*P43,0) -> 0 | U44: =IF(U14<>0,U14*U43,0) -> 0 | X44: 0 | Y44: 1
B45: 1 kr notering på smågris indgang | F45: =IF(F19<>0,F190,"") ->  | K45: =IF(K19<>0,K190,"") ->  | P45: =IF(P19<>0,P190,"") ->  | U45: =IF(U19<>0,U190,"") ->  | X45: 0 | Y45: 1
B46: 1 kr notering på smågris afgang | F46: =IF(F19<>0,-F207,"") ->  | K46: =IF(K19<>0,-K207,"") ->  | P46: =IF(P19<>0,-P207,"") ->  | U46: =IF(U19<>0,-U207,"") ->  | X46: 0 | Y46: 1
B47: Netto 1 kr smågrise med dødelighed | F47: =IF(F19<>0,(F46*(1-F20)+F45*(1+F18)),"") ->  | K47: =IF(K19<>0,(K46*(1-K20)+K45*(1+K18)),"") ->  | P47: =IF(P19<>0,(P46*(1-P20)+P45*(1+P18)),"") ->  | U47: =IF(U19<>0,(U46*(1-U20)+U45*(1+U18)),"") ->  | X47: 0 | Y47: 1
B48: Netto 1 kr, smågrise i alt | F48: =IF(F19<>0,F47*F19,0) -> 0 | K48: =IF(K19<>0,K47*K19,0) -> 0 | P48: =IF(P19<>0,P47*P19,0) -> 0 | U48: =IF(U19<>0,U47*U19,0) -> 0 | X48: 0 | Y48: 1
B49: 1 kr notering på smågris indgang | F49: =IF(F28<>0,F224,"") ->  | K49: =IF(K28<>0,K224,"") ->  | P49: =IF(P28<>0,P224,"") ->  | U49: =IF(U28<>0,U224,"") ->  | X49: 0 | Y49: 1
B50: 1 kr notering på slagtesvin afgang | F50: =IF(F28<>0,-F30,"") ->  | K50: =IF(K28<>0,-K30,"") ->  | P50: =IF(P28<>0,-P30,"") ->  | U50: =IF(U28<>0,-U30,"") ->  | X50: 0 | Y50: 1
B51: Netto 1 kr slagtesvin med dødelighed | F51: =IF(F28<>0,F49*(1+F27)+F50*(1-F29),"") ->  | K51: =IF(K28<>0,K49*(1+K27)+K50*(1-K29),"") ->  | P51: =IF(P28<>0,P49*(1+P27)+P50*(1-P29),"") ->  | U51: =IF(U28<>0,U49*(1+U27)+U50*(1-U29),"") ->  | X51: 0 | Y51: 1
B52: Netto 1 kr, slagtesvin i alt | F52: =IF(F28<>0,F51*F28,0) -> 0 | K52: =IF(K28<>0,K51*K28,0) -> 0 | P52: =IF(P28<>0,P51*P28,0) -> 0 | U52: =IF(U28<>0,U51*U28,0) -> 0 | X52: 0 | Y52: 1
B53: Netto 1 kr køer | F53: =F34*-F35 -> 0 | K53: =K34*-K35 -> 0 | P53: =P34*-P35 -> 0 | U53: =U34*-U35 -> 0 | X53: =IF($C$231=3,1,0) -> 1 | Y53: 1
B54: Netto 1 kr markafgrøder | F54: =F39*-F38 -> 0 | K54: =K39*-K38 -> 0 | P54: =P39*-P38 -> 0 | U54: =U39*-U38 -> 0 | X54: =IF($C$231=4,1,0) -> 0 | Y54: 1
B55: Netto 1 kr i beregningen | F55: =IF($C231=3,F53,IF($C$231=4,F54,F44+F48+F52)) -> 0 | K55: =IF($C231=3,K53,IF($C$231=4,K54,K44+K48+K52)) -> 0 | P55: =IF($C231=3,P53,IF($C$231=4,P54,P44+P48+P52)) -> 0 | U55: =IF($C231=3,U53,IF($C$231=4,U54,U44+U48+U52)) -> 0 | X55: 1 | Y55: 1
A56: Budgettet | X56: 1 | Y56: 1
B57: Årets resultat efter skat | F57: ='A-S Resultat'!G102 -> 0 | K57: ='A-S Resultat'!Q102 -> 0 | P57: ='A-S Resultat'!AA102 -> 0 | U57: ='A-S Resultat'!AK102 -> 0 | X57: 1 | Y57: 1
B58: Budget ændring for nul i resultat | F58: ='A-S Resultat'!G100*-1 -> 0 | K58: ='A-S Resultat'!Q100*-1 -> 0 | P58: ='A-S Resultat'!AA100*-1 -> 0 | U58: ='A-S Resultat'!AK100*-1 -> 0 | X58: 1 | Y58: 1
B59: Ændring i kr/kg før skat | F59: =IF(F55<>0,F58/-F55,0) -> 0 | K59: =IF(K55<>0,K58/-K55,0) -> 0 | P59: =IF(P55<>0,P58/-P55,0) -> 0 | U59: =IF(U55<>0,U58/-U55,0) -> 0 | X59: 1 | Y59: 1
A60: 1 | B60: Hvis 1, dvs. notering | F60: =F31+F59 -> 0 | K60: =K31+K59 -> 0 | P60: =P31+P59 -> 0 | U60: =U31+U59 -> 0 | X60: 0 | Y60: 0
A61: 2 | B61: Hvis 2, dvs. smågrise pris | F61: =F59*AA35*-1+IF(F19<>0,GrisPrisBudget1,F13) -> 0 | K61: =K59*AF35*-1+IF(K19<>0,GrisPrisBudget2,K13) -> 0 | P61: =P59*AK35*-1+IF(P19<>0,GrisPrisBudget3,P13) -> 0 | U61: =U59*AP35*-1+IF(U19<>0,GrisPrisBudget4,U13) -> 0 | X61: 0 | Y61: 0
A62: 3 | B62: Hvis 3, dvs mælkepris | F62: =F36+F59 -> 0 | K62: =K36+K59 -> 0 | P62: =P36+P59 -> 0 | U62: =U36+U59 -> 0 | X62: 0 | Y62: 0
A63: 4 | B63: Hvis 4, dvs. kornpris | F63: =F40+F59 -> 0 | K63: =K40+K59 -> 0 | P63: =P40+P59 -> 0 | U63: =U40+U59 -> 0 | X63: 0 | Y63: 0
A64: Konsolideringsnulpunkt | E64: =IF(AND($C$231=1,$F$31>0),"Notering",IF(AND($C$231=2,$F$22+$F$13>=1),"Smågrisepris",IF(AND($C$231=3,$F$34>1),"Mælkepris",IF(AND($C$231=4,$F$38>1),"Kr pr. hkg","Ej data")))) -> Ej data | F64: =INDEX(F60:F63,$C$231) -> 0 | K64: =INDEX(K60:K63,$C$231) -> 0 | P64: =INDEX(P60:P63,$C$231) -> 0 | U64: =INDEX(U60:U63,$C$231) -> 0 | X64: 1 | Y64: 1
B65: Til investering og afdrag | F65: ='A-S Resultat'!G133+'A-S Resultat'!G136+'A-S Resultat'!G138 -> 0 | K65: ='A-S Resultat'!Q133+'A-S Resultat'!Q136+'A-S Resultat'!Q138 -> 0 | P65: ='A-S Resultat'!AA133+'A-S Resultat'!AA136+'A-S Resultat'!AA138 -> 0 | U65: ='A-S Resultat'!AK133+'A-S Resultat'!AK136+'A-S Resultat'!AK138 -> 0 | X65: 1 | Y65: 1
B66: Budget ændring for nul i selvfinansiering | F66: =('A-S Resultat'!G100+'A-S Resultat'!G135)*-1 -> 0 | K66: =('A-S Resultat'!Q100+'A-S Resultat'!Q135)*-1 -> 0 | P66: =('A-S Resultat'!AA100+'A-S Resultat'!AA135)*-1 -> 0 | U66: =('A-S Resultat'!AK100+'A-S Resultat'!AK135)*-1 -> 0 | X66: 1 | Y66: 1
B67: Ændring i kr/kg før skat | F67: =IF(F55<>0,F66/-F55,0) -> 0 | K67: =IF(K55<>0,K66/-K55,0) -> 0 | P67: =IF(P55<>0,P66/-P55,0) -> 0 | U67: =IF(U55<>0,U66/-U55,0) -> 0 | X67: 1 | Y67: 1
A68: 1 | B68: Hvis 1, dvs. notering | F68: =F31+F67 -> 0 | K68: =K31+K67 -> 0 | P68: =P31+P67 -> 0 | U68: =U31+U67 -> 0 | X68: 0 | Y68: 0
A69: 2 | B69: Hvis 2, dvs. smågrise pris | F69: =F67*AA35*-1+GrisPris1 -> 0 | K69: =K67*AF35*-1+GrisPris2 -> 0 | P69: =P67*AK35*-1+GrisPris3 -> 0 | U69: =U67*AP35*-1+GrisPris4 -> 0 | X69: 0 | Y69: 0
A70: 3 | B70: Hvis 3, dvs mælkepris | F70: =F67+F36 -> 0 | K70: =K67+K36 -> 0 | P70: =P67+P36 -> 0 | U70: =U67+U36 -> 0 | X70: 0 | Y70: 0
A71: 4 | B71: Hvis 4, dvs. kornpris | F71: =F67+F40 -> 0 | K71: =K67+K40 -> 0 | P71: =P67+P40 -> 0 | U71: =U67+U40 -> 0 | X71: 0 | Y71: 0
A72: Likviditetsnulpunkt | E72: =IF(AND($C$231=1,$F$31>0),"Notering",IF(AND($C$231=2,$F$22+$F$13>=1),"Smågrisepris",IF(AND($C$231=3,$F$34>1),"Mælkepris",IF(AND($C$231=4,$F$38>1),"Kr pr. hkg","Ej data")))) -> Ej data | F72: =INDEX(F68:F71,$C$231) -> 0 | K72: =INDEX(K68:K71,$C$231) -> 0 | P72: =INDEX(P68:P71,$C$231) -> 0 | U72: =INDEX(U68:U71,$C$231) -> 0 | X72: 1 | Y72: 1
X73: 1 | Y73: 1
X74: 1 | Y74: 1
X75: 1 | Y75: 1
X76: 1 | Y76: 1
X77: 1 | Y77: 1
X78: 1 | Y78: 1
X79: 1 | Y79: 1
X80: 1 | Y80: 1
X81: 1 | Y81: 1
X82: 1 | Y82: 1
X83: 1 | Y83: 1
X84: 1 | Y84: 1
X85: 1 | Y85: 1
X86: 1 | Y86: 1
X87: 1 | Y87: 1
X88: 1 | Y88: 1
X89: 1 | Y89: 1
A90: Omregning mellem notering og smågrisepris opdateret til 45,10 kr/30 kg og 31,08 kr/7 kg, februar 2021 | X90: 1 | Y90: 1
E116: Omregner af den beregnede notering | W116: 21.01.2025
F117: Basis | K117: Målt | P117: Basis | U117: Plus 1 kr.
F118: Notering | K118: ved | P118: 10.4 | U118: =P118+1 -> 11.4 | W118: Ændring
K119: 30 kg | P119: 405.11 | U119: 451.26 | W119: =U119-P119 -> 46.15
K120: 25 kg | P120: 374.71 | U120: 419.46 | W120: =U120-P120 -> 44.75
K121: 12 kg | P121: 282.28 | U121: 317.15 | W121: 34.87
K122: 9 kg | P122: 250.33 | U122: 285.71 | W122: 35.38
K123: 7 kg | P123: 228.93 | U123: 260.87 | W123: 31.94
K124: 5 kg | P124: 207.53 | U124: 236.03 | W124: 28.5
F125: Basis | K125: Målt | P125: Basis pris | U125: Plus 1 kr.
F126: Kg regulering | K126: ved | P126: 10.4 | U126: =P126+1 -> 11.4 | W126: Ændring
E127: 30-40 kg | F127: 5.98 | K127: 35 kg | P127: 435.01 | U127: 482.71 | W127: =U127-P127 -> 47.7
E128: 25-30 kg | F128: 6.08 | K128: 27 kg | P128: 386.87 | U128: 432.18 | W128: =U128-P128 -> 45.31
E129: 12-25 kg | F129: 7.11 | K129: 18 kg | P129: 325.16 | U129: 364.6 | W129: 39.44
E130: 9-12 kg | F130: 10.65 | K130: 10 kg | P130: 260.98 | U130: 296.19 | W130: 35.21
E131: 7-9 kg | F131: 10.7 | K131: 8 kg | P131: 239.63 | U131: 273.29 | W131: 33.66
E132: 5-7 kg | F132: 13.7 | K132: 6 kg | P132: 218.23 | U132: 248.45 | W132: 30.22
F134: Basis | K134: Målt | P134: Basis pris | U134: Plus 1 kr. | AQ134: 1 kr betydning
F135: Kg regulering | K135: ved | P135: 10.4 | U135: =P135+1 -> 11.4 | W135: Ændring | AQ135: ved 1 kg ændring
E136: 30-40 kg | F136: 5.98 | K136: 36 kg | P136: 440.99 | U136: 489 | W136: =U136-P136 -> 48.01 | AQ136: =W136-W127 -> 0.31
E137: 25-30 kg | F137: 6.08 | K137: 28 kg | P137: 392.95 | U137: 438.54 | W137: =U137-P137 -> 45.59 | AQ137: =W137-W128 -> 0.28
E138: 12-25 kg | F138: 7.11 | K138: 19 kg | P138: 332.27 | U138: 372.47 | W138: 40.2 | AQ138: 0.76
E139: 9-12 kg | F139: 10.65 | K139: 11 kg | P139: 271.63 | U139: 306.67 | W139: 35.04 | AQ139: -0.17
E140: 7-9 kg | F140: 10.7 | K140: 9 kg | P140: 250.33 | U140: 285.71 | W140: 35.38 | AQ140: 1.72
E141: 5-7 kg | F141: 13.7 | K141: 7 kg | P141: 228.93 | U141: 260.87 | W141: 31.94 | AQ141: 1.72
B144: Fælles | E144: Tab/gevinst på standard grise ved 1 kr. | Z144: Den beregnede notering, Kg regulering ved ændring i notering 07.02.2010
E145: 30 kg | F145: =W119 -> 46.15 | K145: 45.1 | P145: 45.1 | U145: 45.1 | Z145: Notering | AA145: 9.5 | AB145: 10.5 | AC145: Forskel
E146: 25 kg | F146: =W120 -> 44.75 | K146: 43.75 | P146: 43.75 | U146: 43.75 | Z146: 30-40 kg | AA146: 13.07 | AB146: 14.85 | AC146: 1.78
E147: 12 kg | F147: 34.87 | K147: 34.13 | P147: 34.13 | U147: 34.13 | Z147: 25-30 kg | AA147: 10.07 | AB147: 11.85 | AC147: 1.78
E148: 9 kg | F148: 35.38 | K148: 34.64 | P148: 34.64 | U148: 34.64 | Z148: 12-25 kg | AA148: 8.83 | AB148: 8.66 | AC148: -0.17
E149: 7 kg | F149: 31.94 | K149: 31.08 | P149: 31.08 | U149: 31.08 | Z149: 9-12 kg | AA149: 6.95 | AB149: 7.69 | AC149: 0.74
E150: 5 kg | F150: 28.5 | K150: 27.52 | P150: 27.52 | U150: 27.52 | Z150: 7-9 kg | AA150: 5.97 | AB150: 6.24 | AC150: 0.27
Z151: 5-7 kg | AA151: 5.78 | AB151: 6.11 | AC151: 0.33
E152: Korrektion pr. kg i vægtintervaller ved ændring af notering på 1 kr. | Z152: Udgangspunkt tab/gevinst pr. smågris kg
E153: 30-40 kg | F153: =AQ136 -> 0.31 | K153: 5.78 | P153: 5.78 | U153: 5.78 | Z153: 30 | AA153: 387.83 | AB153: 432.93 | AC153: 45.1
E154: 25-30 kg | F154: =AQ137 -> 0.28 | K154: 5.97 | P154: 5.97 | U154: 5.97 | Z154: 25 | AA154: 357.98 | AB154: 401.73 | AC154: 43.75
E155: 12-25 kg | F155: 0.76 | K155: 6.95 | P155: 6.95 | U155: 6.95 | Z155: 12 | AA155: 267.63 | AB155: 301.76 | AC155: 34.13
E156: 9-12 kg | F156: -0.17 | K156: 8.83 | P156: 8.83 | U156: 8.83 | Z156: 9 | AA156: 241.14 | AB156: 275.78 | AC156: 34.64
E157: 7-9 kg | F157: 1.72 | K157: 10.07 | P157: 10.07 | U157: 10.07 | Z157: 7 | AA157: 221 | AB157: 252.08 | AC157: 31.08
E158: 5-7 kg | F158: 1.72 | K158: 13.07 | P158: 13.07 | U158: 13.07 | Z158: 5 | AA158: 200.86 | AB158: 228.38 | AC158: 27.52
B160: Søer | E160: Vægt interval
B161: Afgående smågris | E161: 30-<40 kg | F161: 0 | K161: 0 | P161: 0 | U161: 0
B162: celle F12 | E162: 25-<30 kg | F162: 0 | K162: 0 | P162: 0 | U162: 0
E163: 12-<25 kg | F163: 0 | K163: 0 | P163: 0 | U163: 0
E164: 9-<12 kg | F164: 0 | K164: 0 | P164: 0 | U164: 0
E165: 7-<9 kg | F165: 7 | K165: 7 | P165: 7 | U165: 7
E166: 5-<7 kg | F166: 0 | K166: 0 | P166: 0 | U166: 0
E167: Tab/gevinst ved 1 kr. i notering pr. gris
E168: 30-40 kg | F168: 0 | K168: 0 | P168: 0 | U168: 0
E169: 25-30 kg | F169: 0 | K169: 0 | P169: 0 | U169: 0
E170: 12-25 kg | F170: 0 | K170: 0 | P170: 0 | U170: 0
E171: 9-12 kg | F171: 0 | K171: 0 | P171: 0 | U171: 0
E172: 7-9 kg | F172: 31.08 | K172: 31.08 | P172: 31.08 | U172: 31.08
E173: 5-7 kg | F173: 0 | K173: 0 | P173: 0 | U173: 0
B174: Tab/gevinst ved 1 kr. pr. gris | F174: 31.08 | K174: 31.08 | P174: 31.08 | U174: 31.08
B176: SMÅGRISE | E176: Vægt interval
B177: Indgående gris | E177: 30-<40 kg | F177: 0 | K177: 0 | P177: 0 | U177: 0
B178: celle F17 | E178: 25-<30 kg | F178: 0 | K178: 0 | P178: 0 | U178: 0
E179: 12-<25 kg | F179: 0 | K179: 0 | P179: 0 | U179: 0
E180: 9-<12 kg | F180: 0 | K180: 0 | P180: 0 | U180: 0
E181: 7-<9 kg | F181: 7 | K181: 7 | P181: 7 | U181: 7
E182: 5-<7 kg | F182: 0 | K182: 0 | P182: 0 | U182: 0
E183: Tab/gevinst ved 1 kr. i notering pr. gris
E184: 30-40 kg | F184: 0 | K184: 0 | P184: 0 | U184: 0
E185: 25-30 kg | F185: 0 | K185: 0 | P185: 0 | U185: 0
E186: 12-25 kg | F186: 0 | K186: 0 | P186: 0 | U186: 0
E187: 9-12 kg | F187: 0 | K187: 0 | P187: 0 | U187: 0
E188: 7-9 kg | F188: 31.08 | K188: 31.08 | P188: 31.08 | U188: 31.08
E189: 5-7 kg | F189: 0 | K189: 0 | P189: 0 | U189: 0
B190: Tab/gevinst ved 1 kr. pr. gris | F190: 31.08 | K190: 31.08 | P190: 31.08 | U190: 31.08
B193: SMÅGRISE | E193: Vægt interval
B194: Udgående gris | E194: 30-<40 kg | F194: 30 | K194: 30 | P194: 30 | U194: 30
B195: celle F21 | E195: 25-<30 kg | F195: 0 | K195: 0 | P195: 0 | U195: 0
E196: 12-<25 kg | F196: 0 | K196: 0 | P196: 0 | U196: 0
E197: 9-<12 kg | F197: 0 | K197: 0 | P197: 0 | U197: 0
E198: 7-<9 kg | F198: 0 | K198: 0 | P198: 0 | U198: 0
E199: 5-<7 kg | F199: 0 | K199: 0 | P199: 0 | U199: 0
E200: Tab/gevinst ved 1 kr. i notering pr. gris
E201: 30-40 kg | F201: 45.1 | K201: 45.1 | P201: 45.1 | U201: 45.1
E202: 25-30 kg | F202: 0 | K202: 0 | P202: 0 | U202: 0
E203: 12-25 kg | F203: 0 | K203: 0 | P203: 0 | U203: 0
E204: 9-12 kg | F204: 0 | K204: 0 | P204: 0 | U204: 0
E205: 7-9 kg | F205: 0 | K205: 0 | P205: 0 | U205: 0
E206: 5-7 kg | F206: 0 | K206: 0 | P206: 0 | U206: 0
B207: Tab/gevinst ved 1 kr. pr. gris | F207: 45.1 | K207: 45.1 | P207: 45.1 | U207: 45.1
B210: Smågris ved | E210: Vægt interval
B211: slagtesvin | E211: 30-<40 kg | F211: 30 | K211: 30 | P211: 30 | U211: 30
B212: celle F26 | E212: 25-<30 kg | F212: 0 | K212: 0 | P212: 0 | U212: 0
E213: 12-<25 kg | F213: 0 | K213: 0 | P213: 0 | U213: 0
E214: 9-<12 kg | F214: 0 | K214: 0 | P214: 0 | U214: 0
E215: 7-<9 kg | F215: 0 | K215: 0 | P215: 0 | U215: 0
E216: 5-<7 kg | F216: 0 | K216: 0 | P216: 0 | U216: 0
E217: Tab/gevinst ved 1 kr. i notering pr. gris
E218: 30-40 kg | F218: 45.1 | K218: 45.1 | P218: 45.1 | U218: 45.1
E219: 25-30 kg | F219: 0 | K219: 0 | P219: 0 | U219: 0
E220: 12-25 kg | F220: 0 | K220: 0 | P220: 0 | U220: 0
E221: 9-12 kg | F221: 0 | K221: 0 | P221: 0 | U221: 0
E222: 7-9 kg | F222: 0 | K222: 0 | P222: 0 | U222: 0
E223: 5-7 kg | F223: 0 | K223: 0 | P223: 0 | U223: 0
B224: Tab/gevinst ved 1 kr. pr. gris | F224: 45.1 | K224: 45.1 | P224: 45.1 | U224: 45.1
B229: Notering | F229: Budgettereret | H229: Nulpunkt | P229: Nulpunkt | U229: Nulpunkt
B230: Smågrisepris | D230: Overførsel | F230: afregningspris | K230: Årstal | P230: Kons | U230: Likviditet
B231: Mælkepris | C231: 3 | D231: Budgetteret notering kr/kg | F231: =IF($C$231=1,F31,IF($C$231=2,GrisPris1,IF($C$231=3,F36,IF($C$231=4,F40)))) -> 0 | H231: =F72 -> 0 | K231: =F9 -> 2025 | P231: =F64 -> 0 | U231: =F72 -> 0
B232: Kornpris | D232: Budgetteret notering kr/kg | F232: =IF($C$231=1,K31,IF($C$231=2,GrisPris2,IF($C$231=3,K36,IF($C$231=4,K40)))) -> 0 | H232: =K72 -> 0 | K232: =K231+1 -> 2026 | P232: =K64 -> 0 | U232: =K72 -> 0
D233: Budgetteret notering kr/kg | F233: =IF($C$231=1,P31,IF($C$231=2,GrisPris3,IF($C$231=3,P36,IF($C$231=4,P40)))) -> 0 | H233: =P72 -> 0 | K233: =K232+1 -> 2027 | P233: =P64 -> 0 | U233: =P72 -> 0
D234: Budgetteret notering kr/kg | F234: =IF($C$231=1,U31,IF($C$231=2,GrisPris4,IF($C$231=3,U36,IF($C$231=4,U40)))) -> 0 | H234: =U72 -> 0 | K234: =K233+1 -> 2028 | P234: =U64 -> 0 | U234: =U72 -> 0

Sheet A-S Nogletal
A1: A/S NØGLETAL | AH1: ='A-S Balance'!AI1 -> © CHA 02.05.2025 | AJ1: VIS | AK1: SKJUL
B2: ='A-S Balance'!B2 -> 0 | AJ2: 1 | AK2: 1
B3: ='A-S Balance'!B3 -> 0 | AJ3: 1 | AK3: 1
B4: ='A-S Balance'!B4 -> 0 | AJ4: 1 | AK4: 1
F5: ='A-S Balance'!T2 -> 2025 | N5: =F5+1 -> 2026 | V5: =N5+1 -> 2027 | AD5: =V5+1 -> 2028 | AJ5: 1 | AK5: 1
B6: Arbejdstimer i alt i A/S Drift | AJ6: 1 | AK6: =IF(SUM(F6:AD6)<>0,1,0) -> 0
AH7: Gns 4 år | AJ7: 1 | AK7: 1
A8: RENTABILITET | AJ8: 1 | AK8: 1
B9: Resultat før finansiering | F9: ='A-S Resultat'!G74 -> 0 | N9: ='A-S Resultat'!Q74 -> 0 | V9: ='A-S Resultat'!AA74 -> 0 | AD9: ='A-S Resultat'!AK74 -> 0 | AH9: =SUM(F9:AF9)/4 -> 0 | AJ9: 1 | AK9: =IF(SUM(F9:AD9)<>0,1,0) -> 0
B10: - forpagtningsafgift i alt | F10: ='A-S Resultat'!G77+'A-S Resultat'!G78+'A-S Resultat'!G79 -> 0 | N10: ='A-S Resultat'!Q77+'A-S Resultat'!Q78+'A-S Resultat'!Q79 -> 0 | V10: ='A-S Resultat'!AA77+'A-S Resultat'!AA78+'A-S Resultat'!AA79 -> 0 | AD10: ='A-S Resultat'!AK77+'A-S Resultat'!AK78+'A-S Resultat'!AK79 -> 0 | AH10: =SUM(F10:AF10)/4 -> 0 | AJ10: 1 | AK10: 0
B11: Nettoudbytte A/S | F11: =F9+F10 -> 0 | N11: =N9+N10 -> 0 | V11: =V9+V10 -> 0 | AD11: =AD9+AD10 -> 0 | AH11: =SUM(F11:AF11)/4 -> 0 | AJ11: 1 | AK11: 0
AJ12: 1 | AK12: =AK11 -> 0
B13: Afkastningsgrad | AH13: =SUM(T13:AF13)/4 -> 0 | AJ13: 1 | AK13: =AK14 -> 0
B14: Nettoudbytte A/S | F14: =F11 -> 0 | N14: =N11 -> 0 | V14: =V11 -> 0 | AD14: =AD11 -> 0 | AH14: =SUM(F14:AF14)/4 -> 0 | AJ14: 1 | AK14: =IF(SUM(F14:AD14)<>0,1,0) -> 0
B15: / aktiver i alt i gns. * 100 | F15: =('A-S Balance'!D81+'A-S Balance'!L81)/2*1000 -> 0 | N15: =('A-S Balance'!L81+'A-S Balance'!V81)/2*1000 -> 0 | V15: =('A-S Balance'!V81+'A-S Balance'!AF81)/2*1000 -> 0 | AD15: =('A-S Balance'!AF81+'A-S Balance'!AP81)/2*1000 -> 0 | AH15: =SUM(F15:AF15)/4 -> 0 | AJ15: 1 | AK15: 0
A16: Afkastningsgrad (AG): | F16: =IF(F15<>0,F14/F15,0) -> 0 | N16: =IF(N15<>0,N14/N15,0) -> 0 | V16: =IF(V15<>0,V14/V15,0) -> 0 | AD16: =IF(AD15<>0,AD14/AD15,0) -> 0 | AH16: =(F16+N16+V16+AD16)/4 -> 0 | AJ16: 1 | AK16: 0
AJ17: 1 | AK17: =AK16 -> 0
B18: Gældsrente | AJ18: 1 | AK18: =AK19 -> 0
B19: Finansieringsomkostninger A/S | F19: =-F28 -> 0 | N19: =-N28 -> 0 | V19: =-V28 -> 0 | AD19: =-AD28 -> 0 | AJ19: 1 | AK19: =IF(SUM(F19:AD19)<>0,1,0) -> 0
B20: / Gæld/hensættelse gns. *100 | F20: =('A-S Balance'!D112+'A-S Balance'!L112+'A-S Balance'!L110+'A-S Balance'!D110)/2*-1000 -> 0 | N20: =('A-S Balance'!L112+'A-S Balance'!V112+'A-S Balance'!V110+'A-S Balance'!L110)/2*-1000 -> 0 | V20: =('A-S Balance'!V112+'A-S Balance'!AF112+'A-S Balance'!AF110+'A-S Balance'!V110)/2*-1000 -> 0 | AD20: =('A-S Balance'!AF112+'A-S Balance'!AP112+'A-S Balance'!AP110+'A-S Balance'!AF110)/2*-1000 -> 0 | AJ20: 1 | AK20: 0
A21: Gældsrente (GR): | F21: =F19/(F20+0.000000001) -> 0 | N21: =N19/(N20+0.000000001) -> 0 | V21: =V19/(V20+0.000000001) -> 0 | AD21: =AD19/(AD20+0.000000001) -> 0 | AH21: =(F21+N21+V21+AD21)/4 -> 0 | AJ21: 1 | AK21: 0
AJ22: 1 | AK22: =AK21 -> 0
B23: Afkastningsgrad | F23: =F16 -> 0 | N23: =N16 -> 0 | V23: =V16 -> 0 | AD23: =AD16 -> 0 | AH23: =(F23+N23+V23+AD23)/4 -> 0 | AJ23: 1 | AK23: 0
B24: - gældsrente | F24: =F21*-1 -> 0 | N24: =N21*-1 -> 0 | V24: =V21*-1 -> 0 | AD24: =AD21*-1 -> 0 | AH24: =(F24+N24+V24+AD24)/4 -> 0 | AJ24: 1 | AK24: 0
A25: Rentemarginal (RM) | F25: =F16-F21 -> 0 | N25: =N16-N21 -> 0 | V25: =V16-V21 -> 0 | AD25: =AD16-AD21 -> 0 | AH25: =(F25+N25+V25+AD25)/4 -> 0 | AJ25: 1 | AK25: 0
AJ26: 1 | AK26: =AK25 -> 0
B27: Nettoudbytte A/S | F27: =F14 -> 0 | N27: =N14 -> 0 | V27: =V14 -> 0 | AD27: =AD14 -> 0 | AJ27: 1 | AK27: 0
B28: - finansieringsomkostninger | F28: ='A-S Resultat'!G86-F10 -> 0 | N28: ='A-S Resultat'!Q86-N10 -> 0 | V28: ='A-S Resultat'!AA86-V10 -> 0 | AD28: ='A-S Resultat'!AK86-AD10 -> 0 | AJ28: 1 | AK28: 0
B29: = rest til forrentning af egenkapital | F29: =F27+F28 -> 0 | N29: =N27+N28 -> 0 | V29: =V27+V28 -> 0 | AD29: =AD27+AD28 -> 0 | AJ29: 1 | AK29: 0
B30: / Egenkapital gns. * 100 | F30: =('A-S Balance'!D120+'A-S Balance'!L120)/2*1000 -> 0 | N30: =('A-S Balance'!L120+'A-S Balance'!V120)/2*1000 -> 0 | V30: =('A-S Balance'!V120+'A-S Balance'!AF120)/2*1000 -> 0 | AD30: =('A-S Balance'!AF120+'A-S Balance'!AP120)/2*1000 -> 0 | AJ30: 1 | AK30: 0
A31: Egenkapitalens forrentning (EKF): | F31: =IF(F30<>0,IF(F30<0,"Neg. EK",F29/F30),0) -> 0 | N31: =IF(N30<>0,IF(N30<0,"Neg. EK",N29/N30),0) -> 0 | V31: =IF(V30<>0,IF(V30<0,"Neg. EK",V29/V30),0) -> 0 | AD31: =IF(AD30<>0,IF(AD30<0,"Neg. EK",AD29/AD30),0) -> 0 | AH31: =(F31+N31+V31+AD31)/4 -> 0 | AJ31: 1 | AK31: 0
AJ32: 1 | AK32: =AK31 -> 0
B33: Lønningsevne A/S | AJ33: 1 | AK33: 0
B34: Resultat før finansiering A/S | F34: =F9 -> 0 | N34: =N9 -> 0 | V34: =V9 -> 0 | AD34: =AD9 -> 0 | AJ34: 1 | AK34: 0
B35: + lønomkostninger A/S | F35: =('A-S Resultat'!G50+'A-S Resultat'!G51+'A-S Resultat'!G52)*-1 -> 0 | N35: =('A-S Resultat'!Q50+'A-S Resultat'!Q51+'A-S Resultat'!Q52)*-1 -> 0 | V35: =('A-S Resultat'!AA50+'A-S Resultat'!AA51+'A-S Resultat'!AA52)*-1 -> 0 | AD35: =('A-S Resultat'!AK50+'A-S Resultat'!AK51+'A-S Resultat'!AK52)*-1 -> 0 | AJ35: 1 | AK35: 0
B36: - 4 pct. rente af egne landbrugsaktiver | F36: =-F15*4% -> 0 | N36: =-N15*4% -> 0 | V36: =-V15*4% -> 0 | AD36: =-AD15*4% -> 0 | AJ36: 1 | AK36: 0
B37: - forpagtningsafgift A/S | F37: =F10 -> 0 | N37: =N10 -> 0 | V37: =V10 -> 0 | AD37: =AD10 -> 0 | AJ37: 1 | AK37: 0
B38: Lønningsevne i alt | F38: =SUM(F34:F37) -> 0 | N38: =SUM(N34:N37) -> 0 | V38: =SUM(V34:V37) -> 0 | AD38: =SUM(AD34:AD37) -> 0 | AJ38: 1 | AK38: 0
A39: Lønningsevne, kr. pr. time | F39: =IF(F6<>0,F38/F6,0) -> 0 | N39: =IF(N6<>0,N38/N6,0) -> 0 | V39: =IF(V6<>0,V38/V6,0) -> 0 | AD39: =IF(AD6<>0,AD38/AD6,0) -> 0 | AH39: =(F39+N39+V39+AD39)/4 -> 0 | AJ39: 1 | AK39: 0
AJ40: 1 | AK40: =AK42 -> 0
B41: Kapacitetsgrad A/S | AJ41: 1 | AK41: =AK42 -> 0
B42: Dækningsbidrag i alt | F42: ='A-S Resultat'!G42 -> 0 | N42: ='A-S Resultat'!Q42 -> 0 | V42: ='A-S Resultat'!AA42 -> 0 | AD42: ='A-S Resultat'!AK42 -> 0 | AH42: =SUM(F42:AF42)/4 -> 0 | AJ42: 1 | AK42: =IF(SUM(F42:AD42)<>0,1,0) -> 0
B43: / Kapacitetsomk. | F43: ='A-S Resultat'!G64*-1 -> 0 | N43: ='A-S Resultat'!Q64*-1 -> 0 | V43: ='A-S Resultat'!AA64*-1 -> 0 | AD43: ='A-S Resultat'!AK64*-1 -> 0 | AH43: =SUM(F43:AF43)/4 -> 0 | AJ43: 1 | AK43: 0
A44: Kapacitetsgrad | F44: =IF(F43<>0,F42/F43,0) -> 0 | N44: =IF(N43<>0,N42/N43,0) -> 0 | V44: =IF(V43<>0,V42/V43,0) -> 0 | AD44: =IF(AD43<>0,AD42/AD43,0) -> 0 | AH44: =(F44+N44+V44+AD44)/4 -> 0 | AJ44: 1 | AK44: 0
AJ45: 1 | AK45: =AK44 -> 0
A46: LIKVIDITET | AJ46: 1 | AK46: =AK48 -> 0
B47: Afskrivningernes dækningsgrad | AJ47: 1 | AK47: =AK48 -> 0
B48: Likviditet før anlægsinvesteringer | F48: ='A-S Resultat'!G149 -> 0 | N48: ='A-S Resultat'!Q149 -> 0 | V48: ='A-S Resultat'!AA149 -> 0 | AD48: ='A-S Resultat'!AK149 -> 0 | AH48: =SUM(F48:AF48)/4 -> 0 | AJ48: 1 | AK48: =IF(SUM(F48:AD48)<>0,1,0) -> 0
B49: / Afskrivningerne i alt | F49: ='A-S Balance'!J81*-1000 -> 0 | N49: ='A-S Balance'!T81*-1000 -> 0 | V49: ='A-S Balance'!AD81*-1000 -> 0 | AD49: ='A-S Balance'!AN81*-1000 -> 0 | AH49: =SUM(F49:AF49)/4 -> 0 | AJ49: 1 | AK49: 0
A50: Afskrivningernes dækningsgrad | F50: =IF(F49=0,0,F48/F49) -> 0 | N50: =IF(N49=0,0,N48/N49) -> 0 | V50: =IF(V49=0,0,V48/V49) -> 0 | AD50: =IF(AD49=0,0,AD48/AD49) -> 0 | AH50: =(F50+N50+V50+AD50)/4 -> 0 | AJ50: 1 | AK50: 0
AJ51: 1 | AK51: =AK53 -> 0
B52: Selvfinansieringsgrad | AJ52: 1 | AK52: =AK53 -> 0
B53: Likviditet før anlægsinvesteringer | F53: =F48 -> 0 | N53: =N48 -> 0 | V53: =V48 -> 0 | AD53: =AD48 -> 0 | AH53: =SUM(F53:AF53)/4 -> 0 | AJ53: 1 | AK53: 0
B54: / Investeringer i alt | F54: =('A-S Balance'!E60+'A-S Balance'!E66+'A-S Balance'!E72)*1000 -> 0 | N54: =('A-S Balance'!O60+'A-S Balance'!O66+'A-S Balance'!O72)*1000 -> 0 | V54: =('A-S Balance'!Y60+'A-S Balance'!Y66+'A-S Balance'!Y72)*1000 -> 0 | AD54: =('A-S Balance'!AI60+'A-S Balance'!AI66+'A-S Balance'!AI72)*1000 -> 0 | AH54: =SUM(F54:AF54)/4 -> 0 | AJ54: 1 | AK54: 0
A55: Selvfinansieringsgrad | F55: =IF(F54=0,0,F53/F54) -> 0 | N55: =IF(N54=0,0,N53/N54) -> 0 | V55: =IF(V54=0,0,V53/V54) -> 0 | AD55: =IF(AD54=0,0,AD53/AD54) -> 0 | AH55: =(F55+N55+V55+AD55)/4 -> 0 | AJ55: 1 | AK55: 0
AJ56: 1 | AK56: =AK55 -> 0
A57: Kassekredit ultimo | F57: ='A-S Resultat'!G186 -> 0 | N57: ='A-S Resultat'!Q186 -> 0 | V57: ='A-S Resultat'!AA186 -> 0 | AD57: ='A-S Resultat'!AK186 -> 0 | AH57: =(F57+N57+V57+AD57)/4 -> 0 | AJ57: 1 | AK57: 0
AJ58: 1 | AK58: =AK57 -> 0
A59: SOLIDITET | AJ59: 1 | AK59: =AK60 -> 0
B60: Soliditetsgrad A/S | AJ60: 1 | AK60: =AK61 -> 0
B61: Egenkapital | D61: Ultimo | F61: ='A-S Balance'!L120*1000 -> 0 | N61: ='A-S Balance'!V120*1000 -> 0 | V61: ='A-S Balance'!AF120*1000 -> 0 | AD61: ='A-S Balance'!AP120*1000 -> 0 | AJ61: 1 | AK61: =IF(SUM(F61:AD61)<>0,1,0) -> 0
B62: / Aktiver i alt*100 | D62: Ultimo | F62: ='A-S Balance'!L81*1000 -> 0 | N62: ='A-S Balance'!V81*1000 -> 0 | V62: ='A-S Balance'!AF81*1000 -> 0 | AD62: ='A-S Balance'!AP81*1000 -> 0 | AJ62: 1 | AK62: 0
A63: Soliditetsgrad | F63: =IF(F62<>0,F61/F62,0) -> 0 | N63: =IF(N62<>0,N61/N62,0) -> 0 | V63: =IF(V62<>0,V61/V62,0) -> 0 | AD63: =IF(AD62<>0,AD61/AD62,0) -> 0 | AH63: =(F63+N63+V63+AD63)/4 -> 0 | AJ63: 1 | AK63: 0
AJ64: 1 | AK64: =AK65 -> 0
B65: Gæld og hensættelser gns. | F65: =F20 -> 0 | N65: =N20 -> 0 | V65: =V20 -> 0 | AD65: =AD20 -> 0 | AH65: =SUM(F65:AF65)/4 -> 0 | AJ65: 1 | AK65: 0
B66: / Egenkapital gns. | F66: =F30 -> 0 | N66: =N30 -> 0 | V66: =V30 -> 0 | AD66: =AD30 -> 0 | AH66: =SUM(F66:AF66)/4 -> 0 | AJ66: 1 | AK66: 0
A67: Finansiel gearing | F67: =IF(F66<=0,0,F65/F66) -> 0 | N67: =IF(N66<=0,0,N65/N66) -> 0 | V67: =IF(V66<=0,0,V65/V66) -> 0 | AD67: =IF(AD66<=0,0,AD65/AD66) -> 0 | AH67: =(F67+N67+V67+AD67)/4 -> 0 | AJ67: 1 | AK67: 0
AJ68: 1 | AK68: 1
A69: Årets ændring af egenkapital | F69: ='A-S Resultat'!G123 -> 0 | N69: ='A-S Resultat'!Q123 -> 0 | V69: ='A-S Resultat'!AA123 -> 0 | AD69: ='A-S Resultat'!AK123 -> 0 | AH69: =(F69+N69+V69+AD69)/4 -> 0 | AJ69: 1 | AK69: 1

Sheet Holding
A1: HOLDING SELSKABER
A2: ='A-S Balance'!B2 -> 0 | O2: Likviditet positiv, % p.a. | AI2: 0.02 | AY2: Likviditet positiv, % p.a. | BS2: 0.02 | BU2: 1 | BV2: 1
A3: ='A-S Balance'!B3 -> 0 | O3: KK negativ, % p.a. | AI3: 0.04 | AY3: KK negativ, % p.a. | BS3: 0.04 | BU3: 1 | BV3: 1
A4: ='A-S Balance'!B4 -> 0 | BU4: 1 | BV4: 1
D5: - 1000 kroner - | AN5: - 1000 kroner -
A6: SENIOR HOLDING | E6: ='A-S Balance'!T2 -> 2025 | O6: =E6+1 -> 2026 | Y6: =O6+1 -> 2027 | AI6: =Y6+1 -> 2028 | AK6: JUNIOR HOLDING | AO6: =E6 -> 2025 | AY6: =O6 -> 2026 | BI6: =Y6 -> 2027 | BS6: =AI6 -> 2028 | BU6: 1 | BV6: 1
A7: Ejerandel A/S Drift i % | B7: 0.9 | E7: =IF(ISNUMBER(D7),D7,B7) -> 0.9 | O7: =IF(ISNUMBER(N7),N7,E7) -> 0.9 | Y7: =IF(ISNUMBER(X7),X7,O7) -> 0.9 | AI7: =IF(ISNUMBER(AH7),AH7,Y7) -> 0.9 | AK7: Ejerandel A/S Drift i % | AL7: =1-B7 -> 0.1 | AO7: =1-E7 -> 0.1 | AY7: =1-O7 -> 0.1 | BI7: =1-Y7 -> 0.1 | BS7: =1-AI7 -> 0.1 | BU7: 1 | BV7: 1
BU8: 1 | BV8: 1
A9: Andel af resultat A/S Drift | E9: =E7*'A-S Resultat'!G102/1000 -> 0 | O9: =O7*'A-S Resultat'!Q102/1000 -> 0 | Y9: =Y7*'A-S Resultat'!AA102/1000 -> 0 | AI9: =AI7*'A-S Resultat'!AK102/1000 -> 0 | AK9: Andel af resultat | AO9: =AO7*'A-S Resultat'!G102/1000 -> 0 | AY9: =AY7*'A-S Resultat'!Q102/1000 -> 0 | BI9: =BI7*'A-S Resultat'!AA102/1000 -> 0 | BS9: =BS7*'A-S Resultat'!AK102/1000 -> 0 | BU9: =IF(E9+O9+Y9+AI9+AO9+AY9+BI9+BS9<>0,1,0) -> 0 | BV9: 1
A10: Renter Likviditet/KK | E10: =IF(B23>0,B23*AI2,B23*AI3) -> 0 | O10: =IF(E23>0,E23*$AI$2,E23*$AI$3) -> 0 | Y10: =IF(O23>0,O23*$AI$2,O23*$AI$3) -> 0 | AI10: =IF(Y23>0,Y23*$AI$2,Y23*$AI$3) -> 0 | AK10: Renter Likviditet/KK | AO10: =IF(AL23>0,AL23*BS2,AL23*BS3) -> 0 | AY10: =IF(AO23>0,AO23*$BS$2,AO23*$BS$3) -> 0 | BI10: =IF(AY23>0,AY23*$BS$2,AY23*$BS$3) -> 0 | BS10: =IF(BI23>0,BI23*$BS$2,BI23*$BS$3) -> 0 | BU10: =IF(SUM(E10:BS10)<>0,1,0) -> 0 | BV10: 1
A11: Renteindtægter | AK11: Renteindtægter | BS11: =BI11 -> 0 | BU11: =IF(SUM(E11:BS11)<>0,1,0) -> 0 | BV11: 1
A12: Renteudgifter | AK12: Renteudgifter | BU12: 0 | BV12: 1
A13: Resultat før skat | E13: =SUM(E9:E12) -> 0 | O13: =SUM(O9:O12) -> 0 | Y13: =SUM(Y9:Y12) -> 0 | AI13: =SUM(AI9:AI12) -> 0 | AK13: Resultat før skat | AO13: =SUM(AO9:AO12) -> 0 | AY13: =SUM(AY9:AY12) -> 0 | BI13: =SUM(BI9:BI12) -> 0 | BS13: =SUM(BS9:BS12) -> 0 | BU13: 0 | BV13: 1
A14: Skat af årets resultat excl A/S Drift | E14: =IF(SUM(E10:E12)>0,Virksomhedsskat*SUM(E10:E12)*-1,0) -> 0 | O14: =IF(SUM(O10:O12)>0,Virksomhedsskat*SUM(O10:O12)*-1,0) -> 0 | Y14: =IF(SUM(Y10:Y12)>0,Virksomhedsskat*SUM(Y10:Y12)*-1,0) -> 0 | AI14: =IF(SUM(AI10:AI12)>0,Virksomhedsskat*SUM(AI10:AI12)*-1,0) -> 0 | AK14: Skat af årets resultat excl A/S Drift | AO14: =IF(SUM(AO10:AO12)>0,Virksomhedsskat*SUM(AO10:AO12)*-1,0) -> 0 | AY14: =IF(SUM(AY10:AY12)+AO61>0,Virksomhedsskat*SUM(AY10:AY12)*-1,0) -> 0 | BI14: =IF(SUM(BI10:BI12)+AY61>0,Virksomhedsskat*SUM(BI10:BI12)*-1,0) -> 0 | BS14: =IF(SUM(BS10:BS12)+BI61>0,Virksomhedsskat*SUM(BS10:BS12)*-1,0) -> 0 | BU14: 0 | BV14: 1
A15: Årets resultat efter skat tkr. | B15: aut. | D15: korr. | E15: =SUM(E13:E14) -> 0 | N15: korr. | O15: =SUM(O13:O14) -> 0 | X15: korr. | Y15: =SUM(Y13:Y14) -> 0 | AH15: korr. | AI15: =SUM(AI13:AI14) -> 0 | AK15: Årets resultat efter skat tkr. | AL15: aut. | AN15: korr. | AO15: =SUM(AO13:AO14) -> 0 | AX15: korr. | AY15: =SUM(AY13:AY14) -> 0 | BH15: korr. | BI15: =SUM(BI13:BI14) -> 0 | BR15: korr. | BS15: =SUM(BS13:BS14) -> 0 | BU15: =IF(SUM(E15:BS15)<>0,1,0) -> 0 | BV15: 1
A16: Senior Holding udbytte kr. pr. anpart | B16: =IF(ISNUMBER(D16),D16,E42/B25) -> 3.375 | E16: =IF(E15>0,IF(E15>=$B$25*$B$16,$B$25*$B$16*-1,E15*-1),0) -> 0 | M16: =IF(ISNUMBER(N16),N16,B16) -> 3.375 | O16: =IF(O15>0,IF(O15>=$B$25*$B$16,$B$25*$B$16*-1,O15*-1),0) -> 0 | W16: =IF(ISNUMBER(X16),X16,M16) -> 3.375 | Y16: =IF(Y15>0,IF(Y15>=$B$25*$B$16,$B$25*$B$16*-1,Y15*-1),0) -> 0 | AG16: =IF(ISNUMBER(AH16),AH16,W16) -> 3.375 | AI16: =IF(AI15>0,IF(AI15>=$B$25*$B$16,$B$25*$B$16*-1,AI15*-1),0) -> 0 | AK16: Junior Holding udbytte kr. pr. anpart | AL16: =IF(ISNUMBER(AN16),AN16,AO42/AL25) -> 3.375 | AO16: =IF(AO15>0,IF(AO15>=$AL$25*$AL$16,$AL$25*$AL$16*-1,AO15*-1),0) -> 0 | AW16: =IF(ISNUMBER(AX16),AX16,AL16) -> 3.375 | AY16: =IF(AY15>0,IF(AY15>=$AL$25*$AL$16,$AL$25*$AL$16*-1,AY15*-1),0) -> 0 | BG16: =IF(ISNUMBER(BH16),BH16,AW16) -> 3.375 | BI16: =IF(BI15>0,IF(BI15>=$AL$25*$AL$16,$AL$25*$AL$16*-1,BI15*-1),0) -> 0 | BQ16: =IF(ISNUMBER(BR16),BR16,BG16) -> 3.375 | BS16: =IF(BS15>0,IF(BS15>=$AL$25*$AL$16,$AL$25*$AL$16*-1,BS15*-1),0) -> 0 | BU16: =IF(B16+AL16<>0,1,0) -> 1 | BV16: 1
A17: Konsolidering tkr. | E17: =SUM(E15:E16) -> 0 | O17: =SUM(O15:O16) -> 0 | Y17: =SUM(Y15:Y16) -> 0 | AI17: =SUM(AI15:AI16) -> 0 | AK17: Konsolidering tkr. | AO17: =IF(AND(AN17>0,AN17<AO15),AN17,SUM(AO15:AO16)) -> 0 | AY17: =IF(AND(AX17>0,AX17<AY15),AX17,SUM(AY15:AY16)) -> 0 | BI17: =IF(AND(BH17>0,BH17<BI15),BH17,SUM(BI15:BI16)) -> 0 | BS17: =IF(AND(BR17>0,BR17<BS15),BR17,SUM(BS15:BS16)) -> 0 | BU17: =IF(SUM(E17:BS17)<>0,1,0) -> 0 | BV17: 1
BU18: =BU19 -> 0 | BV18: 1
A19: BALANCE | B19: Primo | E19: =E6 -> 2025 | O19: =O6 -> 2026 | Y19: =Y6 -> 2027 | AI19: =AI6 -> 2028 | AK19: BALANCE | AL19: Primo | AO19: =AO6 -> 2025 | AY19: =AY6 -> 2026 | BI19: =BI6 -> 2027 | BS19: =BS6 -> 2028 | BU19: =BU20 -> 0 | BV19: 1
A20: + Ejerandel A/S Drift i tkr | B20: ='A-S Balance'!D120*B7 -> 0 | E20: ='A-S Balance'!L120*Holding!E7 -> 0 | O20: ='A-S Balance'!V120*Holding!O7 -> 0 | Y20: ='A-S Balance'!AF120*Holding!Y7 -> 0 | AI20: ='A-S Balance'!AP120*Holding!AI7 -> 0 | AK20: + Ejerandel A/S Drift i tkr | AL20: ='A-S Balance'!D120*AL7 -> 0 | AO20: ='A-S Balance'!L120*Holding!AO7 -> 0 | AY20: ='A-S Balance'!V120*Holding!AY7 -> 0 | BI20: ='A-S Balance'!AF120*Holding!BI7 -> 0 | BS20: ='A-S Balance'!AP120*Holding!BS7 -> 0 | BU20: =IF(SUM(E20:BS20)<>0,1,0) -> 0 | BV20: 1
A21: + Tilgodehavende | E21: =B21+D21 -> 0 | O21: =E21+N21 -> 0 | Y21: =O21+X21 -> 0 | AI21: =Y21+AH21 -> 0 | AK21: + Tilgodehavende | AO21: =AL21+AN21 -> 0 | AY21: =AO21+AX21 -> 0 | BI21: =AY21+BH21 -> 0 | BS21: =BI21+BR21 -> 0 | BU21: =IF(SUM(E21:BS21)<>0,1,0) -> 0 | BV21: 1
A22: - Lån | E22: =B22+D22 -> 0 | O22: =E22+N22 -> 0 | Y22: =O22+X22 -> 0 | AI22: =Y22+AH22 -> 0 | AK22: - Lån | AO22: =AL22+AN22 -> 0 | AY22: =AO22+AX22 -> 0 | BI22: =AY22+BH22 -> 0 | BS22: =BI22+BR22 -> 0 | BU22: 0 | BV22: 1
A23: + / - Likviditet/KK/køb/salg | D23: =(E7-B7)*('A-S Balance'!L120-'A-S Balance'!E120) -> 0 | E23: =B23+E14+SUM(E10:E12)+SUM(E16:E16)+E9-D22-D21-(E20-B20) -> 0 | N23: =(O7-E7)*('A-S Balance'!V120-'A-S Balance'!O120) -> 0 | O23: =E23+O14+SUM(O10:O12)+SUM(O16:O16)+O9-N22-N21-(O20-E20) -> 0 | X23: =(Y7-O7)*('A-S Balance'!AF120-'A-S Balance'!Y120) -> 0 | Y23: =O23+Y14+SUM(Y10:Y12)+SUM(Y16:Y16)+Y9-X22-X21-(Y20-O20) -> 0 | AH23: =(AI7-Y7)*('A-S Balance'!AP120-'A-S Balance'!AI120) -> 0 | AI23: =Y23+AI14+SUM(AI10:AI12)+SUM(AI16:AI16)+AI9-AH22-AH21-(AI20-Y20) -> 0 | AK23: + / - Likviditet/KK/køb/salg | AN23: =(AO7-AL7)*('A-S Balance'!L120-'A-S Balance'!E120) -> 0 | AO23: =AL23+AO14+SUM(AO10:AO12)+AO16+AO9-AN22-AN21-(AO20-AL20) -> 0 | AX23: =(AY7-AO7)*('A-S Balance'!BF120-'A-S Balance'!AY120) -> 0 | AY23: =AO23+AY14+SUM(AY10:AY12)+SUM(AY16:AY16)+AY9-AX22-AX21-(AY20-AO20) -> 0 | BH23: =(BI7-AY7)*('A-S Balance'!BP120-'A-S Balance'!BI120) -> 0 | BI23: =AY23+BI14+SUM(BI10:BI12)+SUM(BI16:BI16)+BI9-BH22-BH21-(BI20-AY20) -> 0 | BR23: =(BS7-BI7)*('A-S Balance'!BZ120-'A-S Balance'!BS120) -> 0 | BS23: =BI23+BS14+SUM(BS10:BS12)+SUM(BS16:BS16)+BS9-BR22-BR21-(BS20-BI20) -> 0 | BU23: 0 | BV23: 1
A24: = Egenkapital tkr. | B24: =SUM(B20:B23) -> 0 | E24: =SUM(E20:E23) -> 0 | O24: =SUM(O20:O23) -> 0 | Y24: =SUM(Y20:Y23) -> 0 | AI24: =SUM(AI20:AI23) -> 0 | AK24: = Egenkapital tkr. | AL24: =SUM(AL20:AL23) -> 0 | AO24: =SUM(AO20:AO23) -> 0 | AY24: =SUM(AY20:AY23) -> 0 | BI24: =SUM(BI20:BI23) -> 0 | BS24: =SUM(BS20:BS23) -> 0 | BU24: 0 | BV24: 1
A25: heraf anpartskapital (20.000) | B25: 20 | E25: =B24+E17-E24 -> 0 | O25: =E24+O17-O24 -> 0 | Y25: =O24+Y17-Y24 -> 0 | AI25: =Y24+AI17-AI24 -> 0 | AK25: heraf anpartskapital (20.000) | AL25: 20 | AO25: =AL24+AO17-AO24 -> 0 | AY25: =AO24+AY17-AY24 -> 0 | BI25: =AY24+BI17-BI24 -> 0 | BS25: =BI24+BS17-BS24 -> 0 | BU25: 1 | BV25: 1
A26: Indre værdi pr. anpart á 1 kr. ultimo | E26: =E24/$B25 -> 0 | O26: =O24/$B25 -> 0 | Y26: =Y24/$B25 -> 0 | AI26: =AI24/$B25 -> 0 | AK26: Indre værdi pr. anpart á 1 kr. ultimo | AO26: =AO24/$AL25 -> 0 | AY26: =AY24/$AL25 -> 0 | BI26: =BI24/$AL25 -> 0 | BS26: =BS24/$AL25 -> 0
BU27: 1 | BV27: 1
BU28: 1 | BV28: 1
BU29: 1 | BV29: 1
A30: Senior Mellemregning tkr. | AK30: Junior Mellemregning tkr. | BU30: 1 | BV30: 1
A31: Ejerandel Senior Holding i % | B31: 1 | E31: =IF(ISNUMBER(D31),D31,B31) -> 1 | O31: =IF(ISNUMBER(N31),N31,E31) -> 1 | Y31: =IF(ISNUMBER(X31),X31,O31) -> 1 | AI31: =IF(ISNUMBER(AH31),AH31,Y31) -> 1 | AK31: Ejerandel Senior Holding i % | AL31: =1-B31 -> 0 | AO31: =1-E31 -> 0 | AP31: =IF(AO31<>0,AO31,AL31) -> 0 | AY31: =1-O31 -> 0 | AZ31: =IF(AY31<>0,AY31,AP31) -> 0 | BI31: =1-Y31 -> 0 | BJ31: =IF(BI31<>0,BI31,AZ31) -> 0 | BS31: =1-AI31 -> 0 | BT31: Kun Senior kan sælge sit Holdingselskab til Junior. Junior kan ikke sælge sit Holdingselskab til Senior. | BU31: =IF(SUM(E31:BS31)<>0,1,0) -> 1 | BV31: 1
A32: Ejerandel Junior Holding i % | E32: =IF(ISNUMBER(D32),D32,B32) -> 0 | O32: =IF(ISNUMBER(N32),N32,E32) -> 0 | Y32: =IF(ISNUMBER(X32),X32,O32) -> 0 | AI32: =IF(ISNUMBER(AH32),AH32,Y32) -> 0 | AK32: Ejerandel Junior Holding i % | AL32: =1-B32 -> 1 | AO32: =1-E32 -> 1 | AP32: =IF(AO32<>0,AO32,AL32) -> 1 | AY32: =1-O32 -> 1 | AZ32: =IF(AY32<>0,AY32,AP32) -> 1 | BI32: =1-Y32 -> 1 | BJ32: =IF(BI32<>0,BI32,AZ32) -> 1 | BS32: =1-AI32 -> 1 | BU32: 1 | BV32: 1
BU33: 1 | BV33: 1
A34: Andel af resultat efter skat Senior Holding | E34: =E31*E15 -> 0 | O34: =O31*O15 -> 0 | Y34: =Y31*Y15 -> 0 | AI34: =AI31*AI15 -> 0 | AK34: Andel af resultat efter skat Senior Holding | AO34: =AO31*E15 -> 0 | AY34: =AY31*O15 -> 0 | BI34: =BI31*Y15 -> 0 | BS34: =BS31*AI15 -> 0 | BU34: 0 | BV34: 1
A35: Andel af resultat efter skat Junior Holding | E35: =E32*AO15 -> 0 | O35: =O32*AY15 -> 0 | Y35: =Y32*BI15 -> 0 | AI35: =AI32*BS15 -> 0 | AK35: Andel af resultat efter skat Junior Holding | AO35: =AO32*AO15 -> 0 | AY35: =AY32*AY15 -> 0 | BI35: =BI32*BI15 -> 0 | BS35: =BS32*BS15 -> 0 | BU35: 0 | BV35: 1
A36: Indtægtsføres i Seniors resultat | E36: =SUM(E34:E35) -> 0 | O36: =SUM(O34:O35) -> 0 | Y36: =SUM(Y34:Y35) -> 0 | AI36: =SUM(AI34:AI35) -> 0 | AK36: Indtægtsføres i Junior resultat | AO36: =SUM(AO34:AO35) -> 0 | AY36: =SUM(AY34:AY35) -> 0 | BI36: =SUM(BI34:BI35) -> 0 | BS36: =SUM(BS34:BS35) -> 0 | BU36: 0 | BV36: 1
BU37: 0 | BV37: 1
A38: Udbytte fra Senior Holding | E38: =E16*-1*E31 -> 0 | O38: =O16*-1*O31 -> 0 | Y38: =Y16*-1*Y31 -> 0 | AI38: =AI16*-1*AI31 -> 0 | AK38: Udbytte fra Senior Holding | AO38: =E16*-1*AO31 -> 0 | AY38: =O16*-1*AY31 -> 0 | BI38: =Y16*-1*BI31 -> 0 | BS38: =AI16*-1*BS31 -> 0 | BU38: 0 | BV38: 1
A39: Udbytte fra Junior Holding | E39: =AO16*-1*E32 -> 0 | O39: =AY16*-1*O32 -> 0 | Y39: =BI16*-1*Y32 -> 0 | AI39: =BS16*-1*AI32 -> 0 | AK39: Udbytte fra Junior Holding | AO39: =AO16*-1*AO32 -> 0 | AY39: =AY16*-1*AY32 -> 0 | BI39: =BI16*-1*BI32 -> 0 | BS39: =BS16*-1*BS32 -> 0 | BU39: 0 | BV39: 1
A40: Udbytte i alt indtægtsført i Senior | E40: =SUM(E38:E39) -> 0 | O40: =SUM(O38:O39) -> 0 | Y40: =SUM(Y38:Y39) -> 0 | AI40: =SUM(AI38:AI39) -> 0 | AK40: Udbytte i alt indtægtsført i Junior | AO40: =SUM(AO38:AO39) -> 0 | AY40: =SUM(AY38:AY39) -> 0 | BI40: =SUM(BI38:BI39) -> 0 | BS40: =SUM(BS38:BS39) -> 0 | BU40: 0 | BV40: 1
BU41: 1 | BV41: 1
A42: Grænse aktieindkomst Senior | E42: =IF(B70=1,GraenseUdbytte/1000,2*GraenseUdbytte/1000) -> 67.5 | O42: =E42 -> 67.5 | Y42: =O42 -> 67.5 | AI42: =Y42 -> 67.5 | AK42: Grænse aktieindkomst Junior | AO42: =IF(AL70=1,GraenseUdbytte/1000,2*GraenseUdbytte/1000) -> 67.5 | AY42: =AO42 -> 67.5 | BI42: =AY42 -> 67.5 | BS42: =BI42 -> 67.5 | BU42: 1 | BV42: 1
A43: Udbytte til lav beskatning | E43: =IF(E40-E42>0,E42,E40) -> 0 | O43: =IF(O40-O42>0,O42,O40) -> 0 | Y43: =IF(Y40-Y42>0,Y42,Y40) -> 0 | AI43: =IF(AI40-AI42>0,AI42,AI40) -> 0 | AK43: Udbytte til lav beskatning | AO43: =IF(AO40-AO42>0,AO42,AO40) -> 0 | AY43: =IF(AY40-AY42>0,AY42,AY40) -> 0 | BI43: =IF(BI40-BI42>0,BI42,BI40) -> 0 | BS43: =IF(BS40-BS42>0,BS42,BS40) -> 0 | BU43: 0 | BV43: 1
A44: Udbytte til høj beskatning | E44: =IF(E40-E42>0,E40-E42,0) -> 0 | O44: =IF(O40-O42>0,O40-O42,0) -> 0 | Y44: =IF(Y40-Y42>0,Y40-Y42,0) -> 0 | AI44: =IF(AI40-AI42>0,AI40-AI42,0) -> 0 | AK44: Udbytte til høj beskatning | AO44: =IF(AO40-AO42>0,AO40-AO42,0) -> 0 | AY44: =IF(AY40-AY42>0,AY40-AY42,0) -> 0 | BI44: =IF(BI40-BI42>0,BI40-BI42,0) -> 0 | BS44: =IF(BS40-BS42>0,BS40-BS42,0) -> 0 | BU44: 0 | BV44: 1
A45: Aktieindkomstskat, lav sats | B45: =LavUdbytteskat -> 0.27 | E45: =E43*LavUdbytteskat*-1 -> 0 | O45: =O43*LavUdbytteskat*-1 -> 0 | Y45: =Y43*LavUdbytteskat*-1 -> 0 | AI45: =AI43*LavUdbytteskat*-1 -> 0 | AK45: Aktieindkomstskat, lav sats | AL45: =B45 -> 0.27 | AO45: =AO43*LavUdbytteskat*-1 -> 0 | AY45: =AY43*LavUdbytteskat*-1 -> 0 | BI45: =BI43*LavUdbytteskat*-1 -> 0 | BS45: =BS43*LavUdbytteskat*-1 -> 0 | BU45: =IF(E45+O45+Y45+AI45+AO45+AY45+BI45+BS45<>0,1,0) -> 0 | BV45: 1
A46: Aktieindkomstskat, høj sats | B46: ='Betalt Skat'!E52 -> 0.42 | E46: =IF(E44>0,E44*$B46*-1,0) -> 0 | O46: =IF(O44>0,O44*$B46*-1,0) -> 0 | Y46: =IF(Y44>0,Y44*$B46*-1,0) -> 0 | AI46: =IF(AI44>0,AI44*$B46*-1,0) -> 0 | AK46: Aktieindkomstskat, høj sats | AL46: =B46 -> 0.42 | AO46: =IF(AO44>0,AO44*$B46*-1,0) -> 0 | AY46: =IF(AY44>0,AY44*$B46*-1,0) -> 0 | BI46: =IF(BI44>0,BI44*$B46*-1,0) -> 0 | BS46: =IF(BS44>0,BS44*$B46*-1,0) -> 0 | BU46: =IF(SUM(E46:AI46)+SUM(AO46:BS46)<>0,1,0) -> 0 | BV46: 1
A47: Udbytte skat i alt udgiftsført i Senior | E47: =E45+E46 -> 0 | O47: =O45+O46 -> 0 | Y47: =Y45+Y46 -> 0 | AI47: =AI45+AI46 -> 0 | AK47: Udbytte skat i alt udgiftsført i Junior | AO47: =AO45+AO46 -> 0 | AY47: =AY45+AY46 -> 0 | BI47: =BI45+BI46 -> 0 | BS47: =BS45+BS46 -> 0 | BU47: 0 | BV47: 1
A48: Udbytte efter skat | E48: =IF(E40>0,E40+E45+E46,0) -> 0 | O48: =IF(O40>0,O40+O45+O46,0) -> 0 | Y48: =IF(Y40>0,Y40+Y45+Y46,0) -> 0 | AI48: =IF(AI40>0,AI40+AI45+AI46,0) -> 0 | AK48: Udbytte efter skat | AO48: =IF(AO40>0,AO40+AO45+AO46,0) -> 0 | AY48: =IF(AY40>0,AY40+AY45+AY46,0) -> 0 | BI48: =IF(BI40>0,BI40+BI45+BI46,0) -> 0 | BS48: =IF(BS40>0,BS40+BS45+BS46,0) -> 0 | BU48: 0 | BV48: 1
BU49: 0 | BV49: 1
A50: EJERANDELE SENIOR PRIVAT | B50: Primo | E50: =E19 -> 2025 | O50: =O19 -> 2026 | Y50: =Y19 -> 2027 | AI50: =AI19 -> 2028 | AK50: EJERANDELE JUNIOR PRIVAT | AL50: Primo | AO50: =E50 -> 2025 | AP50: =AP19 -> 0 | AY50: =O50 -> 2026 | AZ50: =AZ19 -> 0 | BI50: =Y50 -> 2027 | BJ50: =BJ19 -> 0 | BS50: =AI50 -> 2028 | BU50: =BU51 -> 0 | BV50: 1
A51: + Ejerandel Senior Holding i tkr | B51: =B31*B24 -> 0 | E51: =E31*E24 -> 0 | O51: =O31*O24 -> 0 | Y51: =Y31*Y24 -> 0 | AI51: =AI31*AI24 -> 0 | AK51: + Ejerandel Senior Holding i tkr | AL51: =AL31*B24 -> 0 | AO51: =AO31*E24 -> 0 | AY51: =AY31*O24 -> 0 | BI51: =BI31*Y24 -> 0 | BS51: =BS31*AI24 -> 0 | BU51: =IF(SUM(E51:BS51)<>0,1,0) -> 0 | BV51: 1
A52: + salg / - køb * | E52: =(B31-E31)*B24 -> 0 | O52: =(E31-O31)*E24 -> 0 | Y52: =(O31-Y31)*O24 -> 0 | AI52: =(Y31-AI31)*Y24 -> 0 | AK52: + salg / - køb * | AO52: =(AL31-AO31)*B24 -> 0 | AY52: =(AO31-AY31)*E24 -> 0 | BI52: =(AY31-BI31)*O24 -> 0 | BS52: =(BI31-BS31)*Y24 -> 0 | BU52: =IF(SUM(E52:BS52)<>0,1,0) -> 0 | BV52: 1
A53: Gaver og passivpost | B53: 0 | E53: 0 | O53: 0 | Y53: 0 | AI53: 0 | AK53: (kun Senior kan give gaver) | BU53: 0 | BV53: 1
A54: + Ejerandel Junior Holding i tkr | B54: 0 | E54: 0 | O54: 0 | Y54: 0 | AI54: 0 | AK54: + Ejerandel Junior Holding i tkr | AL54: =AL32*AL24 -> 0 | AO54: =AO32*AO24 -> 0 | AY54: =AY32*AY24 -> 0 | BI54: =BI32*BI24 -> 0 | BS54: =BS32*BS24 -> 0 | BU54: 0 | BV54: 1
A55: EJERANDELE SENIOR I ALT | B55: =B51+B54 -> 0 | E55: =E51+E54 -> 0 | O55: =O51+O54 -> 0 | Y55: =Y51+Y54 -> 0 | AI55: =AI51+AI54 -> 0 | AK55: EJERANDELE JUNIOR I ALT | AL55: =AL51+AL54 -> 0 | AO55: =AO51+AO54 -> 0 | AY55: =AY51+AY54 -> 0 | BI55: =BI51+BI54 -> 0 | BS55: =BS51+BS54 -> 0 | BU55: 0 | BV55: 1
BU56: 1 | BV56: 1
BU57: 1 | BV57: 1
A58: * Kun Senior kan sælge og kun til Junior. Senior sælger 1. januar i året, så hele årets udbytte og resultat tilfalder Junior. | BU58: 1 | BV58: 1
BU59: 1 | BV59: 1
A60: Evt. Sambeskatning Senior | E60: =E50 -> 2025 | O60: =O50 -> 2026 | Y60: =Y50 -> 2027 | AI60: =AI50 -> 2028 | AK60: Evt. Sambeskatning Junior | AO60: =AO50 -> 2025 | AY60: =AY50 -> 2026 | BI60: =BI50 -> 2027 | BS60: =BS50 -> 2028 | BU60: 1 | BV60: 1
A61: Evt fremført skatte underskud | E61: =IF(SUM(E10:E12)<0,SUM(E10:E12),0) -> 0 | O61: =IF(SUM(O10:O12)<0,SUM(O10:O12)+E61,IF(E61<=-0.5,SUM(O10:O12)+E61,0)) -> 0 | Y61: =IF(SUM(Y10:Y12)<0,SUM(Y10:Y12)+O61,IF(O61<=-0.5,SUM(Y10:Y12)+O61,0)) -> 0 | AI61: =IF(SUM(AI10:AI12)<0,SUM(AI10:AI12)+Y61,IF(Y61<=-0.5,SUM(AI10:AI12)+Y61,0)) -> 0 | AK61: Evt fremført skatte underskud | AO61: =IF(SUM(AO10:AO12)<0,SUM(AO10:AO12),0) -> 0 | AY61: =IF(SUM(AY10:AY12)<0,SUM(AY10:AY12)+AO61,IF(AO61<=-0.5,SUM(AY10:AY12)+AO61,0)) -> 0 | BI61: =IF(SUM(BI10:BI12)<0,SUM(BI10:BI12)+AY61,IF(AY61<=-0.5,SUM(BI10:BI12)+AY61,0)) -> 0 | BS61: =IF(SUM(BS10:BS12)<0,SUM(BS10:BS12)+BI61,IF(BI61<=-0.5,SUM(BS10:BS12)+BI61,0)) -> 0 | BT61: Hvis der skattemæssigt er underskud, kan det fremføres i følgende år | BU61: =IF(E61+O61+Y61+AI61+AO61+AY61+BI61+BS61<>0,1,0) -> 0 | BV61: 1
A62: Holding ejerandel over 50 %? | B62: =IF(B7>0.5,"Ja","Nej") -> Ja | E62: =IF(E7>0.5,"Ja","Nej") -> Ja | O62: =IF(O7>0.5,"Ja","Nej") -> Ja | Y62: =IF(Y7>0.5,"Ja","Nej") -> Ja | AI62: =IF(AI7>0.5,"Ja","Nej") -> Ja | AK62: Holding ejerandel over 50 %? | AL62: =IF(AL7>0.5,"Ja","Nej") -> Nej | AO62: =IF(AO7>0.5,"Ja","Nej") -> Nej | AY62: =IF(AY7>0.5,"Ja","Nej") -> Nej | BI62: =IF(BI7>0.5,"Ja","Nej") -> Nej | BS62: =IF(BS7>0.5,"Ja","Nej") -> Nej | BT62: Hvis moderselskab har bestemmende indflydelse, er sambeskatning obligatorisk | BU62: 1 | BV62: 1
A63: Underskud i ét, overskud i andet? | E63: =IF(AND(SUM(E10:E12)<0,VSefterAfskr>0),"ja",IF(AND(SUM(E10:E12)>0,VSefterAfskr<0),"Ja","Nej")) -> Nej | O63: =IF(AND(SUM(O10:O12)<0,VSefterAfskr2>0),"ja",IF(AND(SUM(O10:O12)>0,VSefterAfskr2<0),"Ja","Nej")) -> Nej | Y63: =IF(AND(SUM(Y10:Y12)<0,VSefterAfskr3>0),"ja",IF(AND(SUM(Y10:Y12)>0,VSefterAfskr3<0),"Ja","Nej")) -> Nej | AI63: =IF(AND(SUM(AI10:AI12)<0,VSefterAfskr4>0),"ja",IF(AND(SUM(AI10:AI12)>0,VSefterAfskr4<0),"Ja","Nej")) -> Nej | AK63: Underskud i kun ét, overskud i andet? | AO63: =IF(AND(SUM(AO10:AO12)<0,VSefterAfskr>0),"ja",IF(AND(SUM(AO10:AO12)>0,VSefterAfskr<0),"Ja","Nej")) -> Nej | AY63: =IF(AND(SUM(AY10:AY12)<0,VSefterAfskr2>0),"ja",IF(AND(SUM(AY10:AY12)>0,VSefterAfskr2<0),"Ja","Nej")) -> Nej | BI63: =IF(AND(SUM(BI10:BI12)<0,VSefterAfskr3>0),"ja",IF(AND(SUM(BI10:BI12)>0,VSefterAfskr3<0),"Ja","Nej")) -> Nej | BS63: =IF(AND(SUM(BS10:BS12)<0,VSefterAfskr4>0),"ja",IF(AND(SUM(BS10:BS12)>0,VSefterAfskr4<0),"Ja","Nej")) -> Nej | BT63: Sambeskatning gør ingen økonomisk forskel, hvis ikke der er overskud i et selskab og underskud i et andet selskab | BU63: 1 | BV63: 1
A64: Sambeskatning, indkomst Holding | E64: =IF(AND(E62="ja",E63="ja"),SUM(E10:E12),0) -> 0 | O64: =IF(AND(O62="ja",O63="ja"),SUM(O10:O12),0) -> 0 | Y64: =IF(AND(Y62="ja",Y63="ja"),SUM(Y10:Y12),0) -> 0 | AI64: =IF(AND(AI62="ja",AI63="ja"),SUM(AI10:AI12),0) -> 0 | AK64: Sambeskatning, indkomst Holding | AO64: =IF(AND(AO62="ja",AO63="ja"),SUM(AO10:AO12),0) -> 0 | AY64: =IF(AND(AY62="ja",AY63="ja"),SUM(AY10:AY12),0) -> 0 | BI64: =IF(AND(BI62="ja",BI63="ja"),SUM(BI10:BI12),0) -> 0 | BS64: =IF(AND(BS62="ja",BS63="ja"),SUM(BS10:BS12),0) -> 0 | BT64: Holdingselskabets resultat (uden datterselskaber) = skattepligtig indkomst | BU64: =IF(E64+O64+Y64+AI64+AO64+AY64+BI64+BS64<>0,1,0) -> 0 | BV64: 1
A65: Sambeskatning, indkomst A/S Drift | E65: =IF(AND(E62="ja",E63="ja"),VSefterAfskr,0) -> 0 | O65: =IF(AND(O62="ja",O63="ja"),VSefterAfskr2,0) -> 0 | Y65: =IF(AND(Y62="ja",Y63="ja"),VSefterAfskr3,0) -> 0 | AI65: =IF(AND(AI62="ja",AI63="ja"),VSefterAfskr4,0) -> 0 | AK65: Sambeskatning, indkomst A/S Drift | AO65: =IF(AND(AO62="ja",AO63="ja"),VSefterAfskr,0) -> 0 | AY65: =IF(AND(AY62="ja",AY63="ja"),VSefterAfskr2,0) -> 0 | BI65: =IF(AND(BI62="ja",BI63="ja"),VSefterAfskr3,0) -> 0 | BS65: =IF(AND(BS62="ja",BS63="ja"),VSefterAfskr4,0) -> 0 | BT65: Driftselskabets skattepligtige indkomst fra Betalt skat | BU65: =IF(E65+O65+Y65+AI65+AO65+AY65+BI65+BS65<>0,1,0) -> 0 | BV65: 1
A66: Samlet indkomst, fradrag sambeskatning | E66: =IF(E65>E64*-1,E64,E65) -> 0 | O66: =IF(O65>O64*-1,O64,O65) -> 0 | Y66: =IF(Y65>Y64*-1,Y64,Y65) -> 0 | AI66: =IF(AI65>AI64*-1,AI64,AI65) -> 0 | AK66: Samlet indkomst, fradrag sambeskatning | AO66: =IF(AO65>AO64*-1,AO64,AO65) -> 0 | AY66: =IF(AY65>AY64*-1,AY64,AY65) -> 0 | BI66: =IF(BI65>BI64*-1,BI64,BI65) -> 0 | BS66: =IF(BS65>BS64*-1,BS64,BS65) -> 0 | BT66: Fradraget bruges til at korrigere Driftselskabets skattepligtige indkomst | BU66: =IF(E66+O66+Y66+AI66+AO66+AY66+BI66+BS66<>0,1,0) -> 0 | BV66: 1
BU67: 1 | BV67: 1
B68: Ugift | AL68: Ugift
B69: Gift | AL69: Gift
B70: 1 | AL70: 1

Sheet Senior Resultat
B1: SENIOR RESULTAT OG LIKVIDITET | AB1: 0 | AH1: ='A-S Balance'!AI1 -> © CHA 02.05.2025 | AL1: Vis | AM1: Skjul
C2: ='Senior Balance'!B2 -> 0 | AL2: 1 | AM2: 1
C3: ='Senior Balance'!B3 -> 0 | AL3: 1 | AM3: 1
C4: ='Senior Balance'!B4 -> 0 | AL4: 1 | AM4: 1 | BJ4: 10 | BQ4: 271159
B5: Moms | G5: a | Q5: b | AA5: c | AK5: d | AL5: 0 | AM5: 0
A6: 1 | B6: DÆKNINGSBIDRAG | G6: ='A-S Balance'!T2 -> 2025 | Q6: =G6+1 -> 2026 | AA6: =Q6+1 -> 2027 | AK6: =AA6+1 -> 2028 | AL6: 1 | AM6: 1
A7: 1 | B7: SAMMENDRAG | E7: Enhed | G7: DB | O7: Enhed | Q7: DB | W7: Enhed | AA7: DB | AG7: Enhed | AK7: DB | AL7: 1 | AM7: 1
C8: Brak | AL8: 1 | AM8: =IF(SUM(E8:AK8)<>0,1,0) -> 0
C9: Vårbyg | AL9: 1 | AM9: 0
C10: Sædskiftegræs | AL10: 1 | AM10: 0
C11: Vinterhvede | AL11: 1 | AM11: 0
C12: Vedvarende græs | AL12: 1 | AM12: 0
C13: Vinterhvede 2. års | AL13: 1 | AM13: 0
C14: Vinterrug | AL14: 1 | AM14: 0
C15: Vinterraps | AL15: 1 | AM15: 0
C16: Køer med opdræt | AL16: 1 | AM16: 0
C17: Søer 7 kg | AL17: 1 | AM17: 0
E18: 8.57 | F18: 1.5 | G18: 10.57 | N18: 2.57 | O18: 8.57 | P18: 1.5 | Q18: 10.57 | V18: 2.57 | W18: 8.57 | X18: 1.5 | AA18: 10.57 | AF18: 2.57 | AG18: 8.57 | AH18: 1.5 | AK18: 10.57 | AL18: 1 | AM18: 1
B19: m | C19: =C8 -> Brak | G19: =G8*E8 -> 0 | Q19: =Q8*O8 -> 0 | AA19: =AA8*W8 -> 0 | AK19: =AK8*AG8 -> 0 | AL19: 1 | AM19: 0
B20: m | C20: Vårbyg | G20: 0 | Q20: 0 | AA20: 0 | AK20: 0 | AL20: 1 | AM20: 0
B21: m | C21: Sædskiftegræs | G21: 0 | Q21: 0 | AA21: 0 | AK21: 0 | AL21: 1 | AM21: 0
B22: m | C22: Vinterhvede | G22: 0 | Q22: 0 | AA22: 0 | AK22: 0 | AL22: 1 | AM22: 0
B23: m | C23: Vedvarende græs | G23: 0 | Q23: 0 | AA23: 0 | AK23: 0 | AL23: 1 | AM23: 0
B24: m | C24: Vinterhvede 2. års | G24: 0 | Q24: 0 | AA24: 0 | AK24: 0 | AL24: 1 | AM24: 0
B25: m | C25: Vinterrug | G25: 0 | Q25: 0 | AA25: 0 | AK25: 0 | AL25: 1 | AM25: 0
B26: m | C26: Vinterraps | G26: 0 | Q26: 0 | AA26: 0 | AK26: 0 | AL26: 1 | AM26: 0
B27: m | C27: Køer med opdræt | G27: 0 | Q27: 0 | AA27: 0 | AK27: 0 | AL27: 1 | AM27: 0
B28: m | C28: Søer 7 kg | G28: 0 | Q28: 0 | AA28: 0 | AK28: 0 | AL28: 1 | AM28: 0
A29: 1 | AL29: 1 | AM29: =AM30 -> 1
A30: =IF(G30+Q30+AA30+AK30<>0,1,0) -> 0 | B30: Dækningsbidrag | G30: =SUM(G19:G28) -> 0 | Q30: =SUM(Q19:Q28) -> 0 | AA30: =SUM(AA19:AA28) -> 0 | AK30: =SUM(AK19:AK28) -> 0 | AL30: 1 | AM30: 1
A31: 1 | AL31: 1 | AM31: =AM30 -> 1
A32: 1 | AL32: 1 | AM32: =AM33 -> 0
A33: 1 | B33: KAPACITETSOMKOSTNINGER / PRIVAT | O33: Fr.skr.% | AL33: 1 | AM33: =AM49 -> 0
A34: 1 | B34: m | C34: Energi | Q34: =IF(ISBLANK(P34),G34*(1+$O34/100),P34) -> 0 | AA34: =IF(ISBLANK(X34),Q34*(1+$O34/100),X34) -> 0 | AK34: =IF(ISBLANK(AH34),AA34*(1+$O34/100),AH34) -> 0 | AL34: 1 | AM34: =IF(SUM(E34:AK34)<>0,1,0) -> 0
A35: 1 | B35: m | C35: Maskinstation m.v. | Q35: 0 | AA35: 0 | AK35: 0 | AL35: 1 | AM35: 0
A36: 1 | B36: m | C36: Vedligehold | Q36: 0 | AA36: 0 | AK36: 0 | AL36: 1 | AM36: 0
B37: m | C37: Investeringer over driften | Q37: =IF(ISBLANK(P37),G37*(1+$O37/100),P37) -> 0 | AA37: =IF(ISBLANK(X37),Q37*(1+$O37/100),X37) -> 0 | AK37: =IF(ISBLANK(AH37),AA37*(1+$O37/100),AH37) -> 0 | AL37: 1 | AM37: 0
A38: 1 | C38: Lønomkostninger | Q38: 0 | AA38: 0 | AK38: 0 | AL38: 1 | AM38: 0
A39: 1 | C39: Ejendomsskat og forsikringer | Q39: 0 | AA39: 0 | AK39: 0 | AL39: 1 | AM39: 0
A40: 1 | B40: m | C40: Diverse omkostninger | Q40: 0 | AA40: 0 | AK40: 0 | AL40: 1 | AM40: 0
A41: 1 | AL41: 1 | AM41: =AM42 -> 0
A42: 1 | B42: Kontante kapacitetsomkostninger | G42: =SUM(G34:G40) -> 0 | Q42: =SUM(Q34:Q40) -> 0 | AA42: =SUM(AA34:AA40) -> 0 | AK42: =SUM(AK34:AK40) -> 0 | AL42: 1 | AM42: 0
A43: 1 | AL43: 1 | AM43: =AM42 -> 0
A44: =IF(G44+Q44+AA44+AK44<>0,1,0) -> 0 | C44: Afskrivninger | G44: =('Senior Balance'!J78-'Senior Balance'!J63-'Senior Balance'!J29-'Senior Balance'!J33)*1000 -> 0 | Q44: =('Senior Balance'!T78-'Senior Balance'!T63-'Senior Balance'!T29-'Senior Balance'!T33)*1000 -> 0 | AA44: =('Senior Balance'!AD78-'Senior Balance'!AD63-'Senior Balance'!AD29-'Senior Balance'!AD33)*1000 -> 0 | AK44: =('Senior Balance'!AN78-'Senior Balance'!AN63-'Senior Balance'!AN29-'Senior Balance'!AN33)*1000 -> 0 | AL44: 1 | AM44: =IF(SUM(E44:AK44)<>0,1,0) -> 0
A45: =IF(G45+Q45+AA45+AK45<>0,1,0) -> 0 | C45: Afskrivninger biler m.v | G45: ='Senior Balance'!J63*'Senior Balance'!$T$3*1000 -> 0 | Q45: ='Senior Balance'!T63*'Senior Balance'!$T$3*1000 -> 0 | AA45: ='Senior Balance'!AD63*'Senior Balance'!$T$3*1000 -> 0 | AK45: ='Senior Balance'!AN63*'Senior Balance'!$T$3*1000 -> 0 | AL45: 1 | AM45: 0
A46: 1 | AL46: 1 | AM46: =AM45 -> 0
A47: 1 | B47: Af- og nedskrivninger landbrug | G47: =SUM(G44:G46) -> 0 | Q47: =SUM(Q44:Q46) -> 0 | AA47: =SUM(AA44:AA46) -> 0 | AK47: =SUM(AK44:AK46) -> 0 | AL47: 1 | AM47: =AM46 -> 0
A48: 1 | AL48: 1 | AM48: =AM49 -> 0
A49: 1 | B49: Kapacitetsomkostninger i alt | G49: =G42+G47 -> 0 | Q49: =Q42+Q47 -> 0 | AA49: =AA42+AA47 -> 0 | AK49: =AK42+AK47 -> 0 | AL49: 1 | AM49: 0
A50: 1 | AL50: 1 | AM50: =AM49 -> 0
A51: 1 | AL51: 1 | AM51: 1
A52: 1 | B52: Resultat af primær drift | G52: =G30+G49 -> 0 | Q52: =Q30+Q49 -> 0 | AA52: =AA30+AA49 -> 0 | AK52: =AK30+AK49 -> 0 | AL52: 1 | AM52: 1
A53: 1 | AL53: 1 | AM53: 1
A54: 1 | AL54: 1 | AM54: =AM57 -> 0
A55: 1 | C55: Anden virksomhed | Q55: =IF(ISBLANK(P55),G55*(1+$O55/100),P55) -> 0 | AA55: =IF(ISBLANK(X55),Q55*(1+$O55/100),X55) -> 0 | AK55: =IF(ISBLANK(AH55),AA55*(1+$O55/100),AH55) -> 0 | AL55: 1 | AM55: =IF(SUM(E55:AK55)<>0,1,0) -> 0
AL56: 1 | AM56: =AM55 -> 0
A57: 1 | C57: Andel resultat Holdingselskaber | G57: =Holding!E36*1000 -> 0 | Q57: =Holding!O36*1000 -> 0 | AA57: =Holding!Y36*1000 -> 0 | AK57: =Holding!AI36*1000 -> 0 | AL57: 1 | AM57: =IF(SUM(E57:AK57)<>0,1,0) -> 0
AL58: 1 | AM58: =AM57 -> 0
A59: 1 | C59: Afkoblet EU-støtte | Q59: =IF(ISBLANK(P59),G59*(1+$O59/100),P59) -> 0 | AA59: =IF(ISBLANK(X59),Q59*(1+$O59/100),X59) -> 0 | AK59: =IF(ISBLANK(AH59),AA59*(1+$O59/100),AH59) -> 0 | AL59: 1 | AM59: =IF(SUM(E59:AK59)<>0,1,0) -> 0
A60: 1 | AL60: 1 | AM60: =AM59 -> 0
B61: Resultat før finansiering | G61: =SUM(G52:G60) -> 0 | O61: Fr.skr.% | Q61: =SUM(Q52:Q60) -> 0 | AA61: =SUM(AA52:AA60) -> 0 | AK61: =SUM(AK52:AK60) -> 0 | AL61: 1 | AM61: =IF(SUM(E61:AK61)<>0,1,0) -> 0
AL62: 1 | AM62: =AM61 -> 0
C63: Finansieringstilskud | Q63: =IF(ISBLANK(P63),G63*(1+$O63/100),P63) -> 0 | AA63: =IF(ISBLANK(X63),Q63*(1+$O63/100),X63) -> 0 | AK63: =IF(ISBLANK(AH63),AA63*(1+$O63/100),AH63) -> 0 | AL63: 1 | AM63: =IF(SUM(E63:AK63)<>0,1,0) -> 0
A64: 1 | C64: Forpagtningsafgift | Q64: =IF(ISBLANK(P64),G64*(1+$O64/100),P64) -> 0 | AA64: =IF(ISBLANK(X64),Q64*(1+$O64/100),X64) -> 0 | AK64: =IF(ISBLANK(AH64),AA64*(1+$O64/100),AH64) -> 0 | AL64: 1 | AM64: 0
C65: Forpagtning fra A/S | G65: ='A-S Resultat'!G78*-1 -> 0 | Q65: ='A-S Resultat'!Q78*-1 -> 0 | AA65: ='A-S Resultat'!AA78*-1 -> 0 | AK65: ='A-S Resultat'!AK78*-1 -> 0 | AL65: 1 | AM65: 0
A66: 1 | C66: Renteindtægter | Q66: =IF(ISBLANK(P66),G66*(1+$O66/100),P66) -> 0 | AA66: =IF(ISBLANK(X66),Q66*(1+$O66/100),X66) -> 0 | AK66: =IF(ISBLANK(AH66),AA66*(1+$O66/100),AH66) -> 0 | AL66: 1 | AM66: 0
C67: Aktieudbytte | Q67: =IF(ISBLANK(P67),G67*(1+$O67/100),P67) -> 0 | AA67: =IF(ISBLANK(X67),Q67*(1+$O67/100),X67) -> 0 | AK67: =IF(ISBLANK(AH67),AA67*(1+$O67/100),AH67) -> 0 | AL67: 1 | AM67: 0
A68: 1 | C68: Renteudgifter mv. | Q68: =IF(ISBLANK(P68),G68*(1+$O68/100),P68) -> 0 | AA68: =IF(ISBLANK(X68),Q68*(1+$O68/100),X68) -> 0 | AK68: =IF(ISBLANK(AH68),AA68*(1+$O68/100),AH68) -> 0 | AL68: 1 | AM68: 0
A69: 1 | C69: Kassekreditrente | G69: =IF(ISBLANK(F69),IF('Senior Balance'!D114>0,'Senior Balance'!D114*'Senior Balance'!$AH$2,'Senior Balance'!D114*'Senior Balance'!$AH$3)*1000,F69) -> 0 | Q69: =IF(ISBLANK(P69),IF('Senior Balance'!N114>0,'Senior Balance'!N114*'Senior Balance'!$AH$2,'Senior Balance'!N114*'Senior Balance'!$AH$3)*1000,P69) -> 0 | AA69: =IF(ISBLANK(Z69),IF('Senior Balance'!X114>0,'Senior Balance'!X114*'Senior Balance'!$AH$2,'Senior Balance'!X114*'Senior Balance'!$AH$3)*1000,Z69) -> 0 | AK69: =IF(ISBLANK(AJ69),IF('Senior Balance'!AH114>0,'Senior Balance'!AH114*'Senior Balance'!$AH$2,'Senior Balance'!AH114*'Senior Balance'!$AH$3)*1000,AJ69) -> 0 | AL69: 1 | AM69: 0
A70: 1 | C70: Prioritetsomkostninger | AL70: 1 | AM70: 0
A71: 1 | C71: Finansiering i alt | G71: =SUM(G63:G70) -> 0 | Q71: =SUM(Q63:Q70) -> 0 | AA71: =SUM(AA63:AA70) -> 0 | AK71: =SUM(AK63:AK70) -> 0 | AL71: 1 | AM71: 0
AL72: 1 | AM72: =AM71 -> 0
A73: 1 | AL73: 1 | AM73: =AM74 -> 0
A74: 1 | B74: Resultat efter finansiering | G74: =G71+G61 -> 0 | Q74: =Q71+Q61 -> 0 | AA74: =AA71+AA61 -> 0 | AK74: =AK71+AK61 -> 0 | AL74: 1 | AM74: =IF(SUM(E74:AK74)<>0,1,0) -> 0
A75: 1 | AL75: 1 | AM75: =AM74 -> 0
A76: 1 | AL76: 1 | AM76: =AM77 -> 0
C77: Løn fra A/S Drift | G77: ='A-S Resultat'!G51*-1 -> 0 | Q77: ='A-S Resultat'!Q51*-1 -> 0 | AA77: ='A-S Resultat'!AA51*-1 -> 0 | AK77: ='A-S Resultat'!AK51*-1 -> 0 | AL77: 1 | AM77: =IF(SUM(E77:AK77)<>0,1,0) -> 0
A78: 1 | C78: Private indtægter i øvrigt | Q78: =IF(ISBLANK(P78),G78*(1+$O78/100),P78) -> 0 | AA78: =IF(ISBLANK(X78),Q78*(1+$O78/100),X78) -> 0 | AK78: =IF(ISBLANK(AH78),AA78*(1+$O78/100),AH78) -> 0 | AL78: 1 | AM78: 0
A79: 1 | AL79: 1 | AM79: =AM78+AM77 -> 0
A80: 1 | AL80: =AL81 -> 0 | AM80: =AM81 -> 0
A81: 1 | B81: Resultat før regulering og skat | G81: =G74+G77+G78 -> 0 | Q81: =Q74+Q77+Q78 -> 0 | AA81: =AA74+AA77+AA78 -> 0 | AK81: =AK74+AK77+AK78 -> 0 | AL81: =AL84 -> 0 | AM81: =AM84 -> 0
A82: 1 | AL82: =AL81 -> 0 | AM82: =AM81 -> 0
A83: 1 | AL83: =AL84 -> 0 | AM83: =AM84 -> 0
C84: Afskrivning rettigheder | G84: =('Senior Balance'!J29+'Senior Balance'!J33)*1000 -> 0 | Q84: =('Senior Balance'!T29+'Senior Balance'!T33)*1000 -> 0 | AA84: =('Senior Balance'!AD29+'Senior Balance'!AD33)*1000 -> 0 | AK84: =('Senior Balance'!AN29+'Senior Balance'!AN33)*1000 -> 0 | AL84: =IF(G84+Q84+AA84+AK84<>0,1,0) -> 0 | AM84: =IF(SUM(E84:AK84)<>0,1,0) -> 0 | AT84: =G84+Q84+AA84+AK84 -> 0 | AV84: =SUM(G84:AK84) -> 0
AL85: =AL84 -> 0 | AM85: =AM84 -> 0
A86: 1 | AL86: 1 | AM86: =AM87 -> 0
A87: 1 | B87: Resultat før skat | G87: =G81+G84 -> 0 | Q87: =Q81+Q84 -> 0 | AA87: =AA81+AA84 -> 0 | AK87: =AK81+AK84 -> 0 | AL87: 1 | AM87: =IF(SUM(E87:AK87)<>0,1,0) -> 0
A88: 1 | AL88: 1 | AM88: =AM87 -> 0
A89: 1 | AL89: 1 | AM89: =AM90 -> 0
A90: 1 | C90: =IF(OR(ISNUMBER(F90),ISNUMBER(P90),ISNUMBER(X90),ISNUMBER(AH90)),"Manuel korrektion af skat","Skat af årets resultat") -> Skat af årets resultat | G90: =ROUND(IF((resultat1-AUdbytte1-APersonfradrag)*-ASkatteprocent>0,0,(resultat1-AUdbytte1-APersonfradrag)*-ASkatteprocent)+Holding!E47*1000,-3) -> 0 | Q90: =ROUND(IF((resultat2-Audbytte2-APersonfradrag)*-ASkatteprocent>0,0,(resultat2-Audbytte2-APersonfradrag)*-ASkatteprocent)+Holding!O47*1000,-3) -> 0 | AA90: =ROUND(IF((resultat3-AUdbytte3-APersonfradrag)*-ASkatteprocent>0,0,(resultat3-AUdbytte3-APersonfradrag)*-ASkatteprocent)+Holding!Y47*1000,-3) -> 0 | AK90: =ROUND(IF((resultat4-AUdbytte4-APersonfradrag)*-ASkatteprocent>0,0,(resultat4-AUdbytte4-APersonfradrag)*-ASkatteprocent)+Holding!AI47*1000,-3) -> 0 | AL90: 1 | AM90: =IF(SUM(E90:AK90)<>0,1,0) -> 0
A91: 1 | AL91: 1 | AM91: =AM90 -> 0
A92: 1 | AL92: 1 | AM92: =AM93 -> 0
A93: 1 | B93: Resultat efter skat | G93: =G87+G90 -> 0 | Q93: =Q87+Q90 -> 0 | AA93: =AA87+AA90 -> 0 | AK93: =AK87+AK90 -> 0 | AL93: 1 | AM93: =IF(SUM(E93:AK93)<>0,1,0) -> 0
A94: 1 | AL94: 1 | AM94: =AM93 -> 0
A95: 1 | AL95: 1 | AM95: 1
A96: 1 | AL96: 1 | AM96: 1
A97: 1 | B97: EGENKAPITALFORKLARING | G97: =G6 -> 2025 | Q97: =Q6 -> 2026 | AA97: =AA6 -> 2027 | AK97: =AK6 -> 2028 | AL97: 1 | AM97: 1
A98: 1 | AL98: 1 | AM98: 1
A99: 1 | AL99: 1 | AM99: =AM100 -> 0
A100: 1 | B100: Resultat efter finansiering | G100: =G74 -> 0 | Q100: =Q74 -> 0 | AA100: =AA74 -> 0 | AK100: =AK74 -> 0 | AL100: 1 | AM100: =IF(SUM(E100:AK100)<>0,1,0) -> 0
A101: 1 | AL101: 1 | AM101: =AM100 -> 0
A102: 1 | C102: Personlig indtjening | G102: =G78+G77 -> 0 | Q102: =Q78+Q77 -> 0 | AA102: =AA78+AA77 -> 0 | AK102: =AK78+AK77 -> 0 | AL102: 1 | AM102: =IF(SUM(E102:AK102)<>0,1,0) -> 0
A103: 1 | AL103: 1 | AM103: =AM102 -> 0
A104: 1 | B104: Resultat før regulering og privat | G104: =SUM(G100:G103) -> 0 | O104: Fr.skr.% | Q104: =SUM(Q100:Q103) -> 0 | AA104: =SUM(AA100:AA103) -> 0 | AK104: =SUM(AK100:AK103) -> 0 | AL104: 1 | AM104: =IF(SUM(E104:AK104)<>0,1,0) -> 0
A105: 1 | AL105: 1 | AM105: =AM104 -> 0
A106: 1 | C106: Privat kontant mv. | Q106: =IF(ISBLANK(P106),G106,P106) -> 0 | AA106: =IF(ISBLANK(X106),Q106,X106) -> 0 | AK106: =IF(ISBLANK(AH106),AA106,AH106) -> 0 | AL106: 1 | AM106: =IF(SUM(E106:AK106)<>0,1,0) -> 0
A107: 1 | C107: Privat andel bil afskrivning | G107: ='Senior Balance'!J63*1000*(1-'Senior Balance'!$T$3) -> 0 | Q107: ='Senior Balance'!T63*1000*(1-'Senior Balance'!$T$3) -> 0 | AA107: ='Senior Balance'!AD63*1000*(1-'Senior Balance'!$T$3) -> 0 | AK107: ='Senior Balance'!AN63*1000*(1-'Senior Balance'!$T$3) -> 0 | AL107: 1 | AM107: 0
A108: 1 | C108: Passivpost og gave ved succession | G108: =Holding!E53*1000*-1 -> 0 | Q108: =Holding!O53*1000*-1 -> 0 | AA108: =Holding!Y53*1000*-1 -> 0 | AK108: =Holding!AI53*1000*-1 -> 0 | AL108: 1 | AM108: 0
A109: 1 | C109: Formueindtægter/udgifter | Q109: =IF(ISBLANK(P109),G109*(1+$O109/100),P109) -> 0 | AA109: =IF(ISBLANK(X109),Q109*(1+$O109/100),X109) -> 0 | AK109: =IF(ISBLANK(AH109),AA109*(1+$O109/100),AH109) -> 0 | AL109: 1 | AM109: 0
A110: 1 | B110: Privat udtræk | G110: =SUM(G106:G109) -> 0 | Q110: =SUM(Q106:Q109) -> 0 | AA110: =SUM(AA106:AA109) -> 0 | AK110: =SUM(AK106:AK109) -> 0 | AL110: 1 | AM110: 0
A111: 1 | AL111: 1 | AM111: =AM110 -> 0
A112: 1 | C112: Betalt skat | G112: =G90-G113 -> 0 | Q112: =Q90-Q113 -> 0 | AA112: =AA90-AA113 -> 0 | AK112: =AK90-AK113 -> 0 | AL112: 1 | AM112: =IF(SUM(E112:AK112)<>0,1,0) -> 0
A113: 1 | C113: Ændring i udskudt skat | AL113: 1 | AM113: 0
B114: Skat af årets resultat | G114: =SUM(G112:G113) -> 0 | Q114: =SUM(Q112:Q113) -> 0 | AA114: =SUM(AA112:AA113) -> 0 | AK114: =SUM(AK112:AK113) -> 0 | AL114: 1 | AM114: 0
AL115: 1 | AM115: =AM114 -> 0
C116: Regulering i alt | G116: =G84 -> 0 | Q116: =Q84 -> 0 | AA116: =AA84 -> 0 | AK116: =AK84 -> 0 | AL116: 1 | AM116: =IF(SUM(E116:AK116)<>0,1,0) -> 0
A117: 1 | C117: Pensionsindbetaling | Q117: =IF(ISBLANK(P117),G117*(1+$O117/100),P117) -> 0 | AA117: =IF(ISBLANK(X117),Q117*(1+$O117/100),X117) -> 0 | AK117: =IF(ISBLANK(AH117),AA117*(1+$O117/100),AH117) -> 0 | AL117: 1 | AM117: 0
AL118: 1 | AM118: =AM119 -> 0
B119: Ændring af egenkapital | G119: =G100+G102+G110+G114+G116+G117 -> 0 | Q119: =Q100+Q102+Q110+Q114+Q116+Q117 -> 0 | AA119: =AA100+AA102+AA110+AA114+AA116+AA117 -> 0 | AK119: =AK100+AK102+AK110+AK114+AK116+AK117 -> 0 | AL119: 1 | AM119: =IF(SUM(E119:AK119)<>0,1,0) -> 0
AL120: 1 | AM120: =AM119 -> 0
A121: 1 | C121: Egenkapital primo | G121: ='Senior Balance'!D109*1000 -> 0 | Q121: =G123 -> 0 | AA121: =Q123 -> 0 | AK121: =AA123 -> 0 | AL121: 1 | AM121: =IF(SUM(E121:AK121)<>0,1,0) -> 0
A122: 1 | AL122: 1 | AM122: =AM123 -> 0
A123: 1 | B123: Egenkapital ultimo | G123: =G121+G119 -> 0 | Q123: =Q121+Q119 -> 0 | AA123: =AA121+AA119 -> 0 | AK123: =AK121+AK119 -> 0 | AL123: 1 | AM123: =IF(SUM(E123:AK123)<>0,1,0) -> 0
A124: 1 | AL124: 1 | AM124: =AM123 -> 0
A125: 1 | AL125: 1 | AM125: 1
A126: 1 | B126: LIKVIDITET | D126: =G6 -> 2025 | P126: =Q6 -> 2026 | X126: =AA6 -> 2027 | AA126: =AA97 -> 2027 | AH126: =AK6 -> 2028 | AK126: =AK97 -> 2028 | AL126: 1 | AM126: 1
A127: 1 | AL127: 1 | AM127: 1
AL128: 1 | AM128: 1
A129: 1 | B129: Årets resultat før skat | G129: =G87 -> 0 | Q129: =Q87 -> 0 | AA129: =AA87 -> 0 | AK129: =AK87 -> 0 | AL129: 1 | AM129: =IF(SUM(E129:AK129)<>0,1,0) -> 0
A130: 1 | AL130: 1 | AM130: =AM129 -> 0
A131: 1 | C131: Afskrivninger mv. | G131: =-G47-G84 -> 0 | Q131: =-Q47-Q84 -> 0 | AA131: =-AA47-AA84 -> 0 | AK131: =-AK47-AK84 -> 0 | AL131: 1 | AM131: =IF(SUM(E131:AK131)<>0,1,0) -> 0
C132: Andel resultat Holdingselskaber, tlbf. | G132: =AUdbytte1*-1+Holding!E40*1000 -> 0 | Q132: =Audbytte2*-1+Holding!O40*1000 -> 0 | AA132: =AUdbytte3*-1+Holding!Y40*1000 -> 0 | AK132: =AUdbytte4*-1+Holding!AI40*1000 -> 0 | AL132: 1 | AM132: 0
A133: 1 | C133: Tilbageførsel i alt | G133: =SUM(G131:G132) -> 0 | Q133: =SUM(Q131:Q132) -> 0 | AA133: =SUM(AA131:AA132) -> 0 | AK133: =SUM(AK131:AK132) -> 0 | AL133: 1 | AM133: 0
A134: 1 | AL134: 1 | AM134: =AM133 -> 0
A135: 1 | C135: Betalt skat | G135: =G112 -> 0 | Q135: =Q112 -> 0 | AA135: =AA112 -> 0 | AK135: =AK112 -> 0 | AL135: 1 | AM135: 0
A136: 1 | C136: Privat | G136: =G106+G107 -> 0 | Q136: =Q106+Q107 -> 0 | AA136: =AA106+AA107 -> 0 | AK136: =AK106+AK107 -> 0 | AL136: 1 | AM136: 0
A137: 1 | C137: Afskrivninger privat tlbf. | G137: =G107*-1 -> 0 | Q137: =Q107*-1 -> 0 | AA137: =AA107*-1 -> 0 | AK137: =AK107*-1 -> 0 | AL137: 1 | AM137: 0
A138: 1 | C138: Formueudgifter/indtægter | G138: =G109 -> 0 | Q138: =Q109 -> 0 | AA138: =AA109 -> 0 | AK138: =AK109 -> 0 | AL138: 1 | AM138: 0
A139: 1 | C139: Pensionsindbetaling | G139: =G117 -> 0 | Q139: =Q117 -> 0 | AA139: =AA117 -> 0 | AK139: =AK117 -> 0 | AL139: 1 | AM139: 0
A140: 1 | C140: Privat udtræk, skat og pension i alt | G140: =SUM(G135:G139) -> 0 | Q140: =SUM(Q135:Q139) -> 0 | AA140: =SUM(AA135:AA139) -> 0 | AK140: =SUM(AK135:AK139) -> 0 | AL140: 1 | AM140: 0
AL141: 1 | AM141: =AM140 -> 0
C142: Til investering og afdrag | G142: =G129+G133+G140 -> 0 | Q142: =Q129+Q133+Q140 -> 0 | AA142: =AA129+AA133+AA140 -> 0 | AK142: =AK129+AK133+AK140 -> 0 | AL142: 1 | AM142: 0
A143: 1 | E143: Reduktion | G143: Forøgelse | O143: Reduktion | Q143: Forøgelse | W143: Reduktion | AA143: Forøgelse | AG143: Reduktion | AK143: Forøgelse | AL143: 1 | AM143: =AM144+AM145 -> 0
A144: 1 | B144: m | C144: Besætning | E144: =IF('Senior Balance'!E49<0,('Senior Balance'!E49)*-1000,0) -> 0 | G144: =IF('Senior Balance'!E49>0,('Senior Balance'!E49)*-1000,0) -> 0 | O144: =IF('Senior Balance'!O49<0,('Senior Balance'!O49)*-1000,0) -> 0 | Q144: =IF('Senior Balance'!O49>0,('Senior Balance'!O49)*-1000,0) -> 0 | W144: =IF('Senior Balance'!Y49<0,('Senior Balance'!Y49)*-1000,0) -> 0 | AA144: =IF('Senior Balance'!Y49>0,('Senior Balance'!Y49)*-1000,0) -> 0 | AG144: =IF('Senior Balance'!AI49<0,('Senior Balance'!AI49)*-1000,0) -> 0 | AK144: =IF('Senior Balance'!AI49>0,('Senior Balance'!AI49)*-1000,0) -> 0 | AL144: 1 | AM144: 0
A145: 1 | B145: m | C145: Beholdninger | E145: =IF('Senior Balance'!E55<0,'Senior Balance'!E55*-1000,0) -> 0 | G145: =IF('Senior Balance'!E55>0,'Senior Balance'!E55*-1000,0) -> 0 | O145: =IF('Senior Balance'!O55<0,'Senior Balance'!O55*-1000,0) -> 0 | Q145: =IF('Senior Balance'!O55>0,'Senior Balance'!O55*-1000,0) -> 0 | W145: =IF('Senior Balance'!Y55<0,'Senior Balance'!Y55*-1000,0) -> 0 | AA145: =IF('Senior Balance'!Y55>0,'Senior Balance'!Y55*-1000,0) -> 0 | AG145: =IF('Senior Balance'!AI55<0,'Senior Balance'!AI55*-1000,0) -> 0 | AK145: =IF('Senior Balance'!AI55>0,'Senior Balance'!AI55*-1000,0) -> 0 | AL145: 1 | AM145: 0
A146: 1 | AL146: 1 | AM146: =AM142 -> 0
A147: 1 | AL147: 1 | AM147: =AM148 -> 0
A148: 1 | B148: Likviditet før anlægsinvesteringer | G148: =G142+SUM(E144:G145) -> 0 | Q148: =Q142+SUM(O144:Q145) -> 0 | AA148: =AA142+SUM(Y144:AA145) -> 0 | AK148: =AK142+SUM(AI144:AK145) -> 0 | AL148: 1 | AM148: =IF(SUM(E148:AK148)<>0,1,0) -> 0
A149: 1 | AL149: 1 | AM149: =AM148 -> 0
A150: 1 | AL150: 1 | AM150: 1
A151: 1 | B151: INVESTERINGER | E151: Salg | G151: Køb/forbedring | O151: Salg | Q151: Køb/forbedring | W151: Salg | AA151: Køb/forbedring | AG151: Salg | AK151: Køb/forbedring | AL151: 1 | AM151: =AM163 -> 0
A152: 1 | C152: Rettigheder | E152: =IF('Senior Balance'!E29+'Senior Balance'!E33<0,('Senior Balance'!E29+'Senior Balance'!E33)*-1000,0) -> 0 | G152: =IF('Senior Balance'!E29+'Senior Balance'!E33>0,('Senior Balance'!E29+'Senior Balance'!E33)*-1000,0) -> 0 | O152: =IF('Senior Balance'!O29+'Senior Balance'!O33<0,('Senior Balance'!O29+'Senior Balance'!O33)*-1000,0) -> 0 | Q152: =IF('Senior Balance'!O29+'Senior Balance'!O33>0,('Senior Balance'!O29+'Senior Balance'!O33)*-1000,0) -> 0 | W152: =IF('Senior Balance'!Y29+'Senior Balance'!Y33<0,('Senior Balance'!Y29+'Senior Balance'!Y33)*-1000,0) -> 0 | AA152: =IF('Senior Balance'!Y29+'Senior Balance'!Y33>0,('Senior Balance'!Y29+'Senior Balance'!Y33)*-1000,0) -> 0 | AG152: =IF('Senior Balance'!AI29+'Senior Balance'!AI33<0,('Senior Balance'!AI29+'Senior Balance'!AI33)*-1000,0) -> 0 | AK152: =IF('Senior Balance'!AI29+'Senior Balance'!AI33>0,('Senior Balance'!AI29+'Senior Balance'!AI33)*-1000,0) -> 0 | AL152: 1 | AM152: =IF(SUM(E152:AK152)<>0,1,0) -> 0
A153: 1 | C153: Køb/salg jord | E153: =IF('Senior Balance'!E10<0,('Senior Balance'!E10)*-1000,0) -> 0 | G153: =IF('Senior Balance'!E10>0,('Senior Balance'!E10)*-1000,0) -> 0 | O153: =IF('Senior Balance'!O10<0,('Senior Balance'!O10)*-1000,0) -> 0 | Q153: =IF('Senior Balance'!O10>0,('Senior Balance'!O10)*-1000,0) -> 0 | W153: =IF('Senior Balance'!Y10<0,('Senior Balance'!Y10)*-1000,0) -> 0 | AA153: =IF('Senior Balance'!Y10>0,('Senior Balance'!Y10)*-1000,0) -> 0 | AG153: =IF('Senior Balance'!AI10<0,('Senior Balance'!AI10)*-1000,0) -> 0 | AK153: =IF('Senior Balance'!AI10>0,('Senior Balance'!AI10)*-1000,0) -> 0 | AL153: 1 | AM153: 0
A154: 1 | B154: m | C154: Driftsbygninger | E154: =IF('Senior Balance'!E18<0,'Senior Balance'!E18*-1000,0) -> 0 | G154: =IF('Senior Balance'!E18>0,'Senior Balance'!E18*-1000,0) -> 0 | O154: =IF('Senior Balance'!O18<0,'Senior Balance'!O18*-1000,0) -> 0 | Q154: =IF('Senior Balance'!O18>0,'Senior Balance'!O18*-1000,0) -> 0 | W154: =IF('Senior Balance'!Y18<0,'Senior Balance'!Y18*-1000,0) -> 0 | AA154: =IF('Senior Balance'!Y18>0,'Senior Balance'!Y18*-1000,0) -> 0 | AG154: =IF('Senior Balance'!AI18<0,'Senior Balance'!AI18*-1000,0) -> 0 | AK154: =IF('Senior Balance'!AI18>0,'Senior Balance'!AI18*-1000,0) -> 0 | AL154: 1 | AM154: 0
A155: 1 | C155: Beboelse (stuehus) | E155: =IF('Senior Balance'!E22<0,'Senior Balance'!E22*-1000,0) -> 0 | G155: =IF('Senior Balance'!E22>0,'Senior Balance'!E22*-1000,0) -> 0 | O155: =IF('Senior Balance'!O22<0,'Senior Balance'!O22*-1000,0) -> 0 | Q155: =IF('Senior Balance'!O22>0,'Senior Balance'!O22*-1000,0) -> 0 | W155: =IF('Senior Balance'!Y22<0,'Senior Balance'!Y22*-1000,0) -> 0 | AA155: =IF('Senior Balance'!Y22>0,'Senior Balance'!Y22*-1000,0) -> 0 | AG155: =IF('Senior Balance'!AI22<0,'Senior Balance'!AI22*-1000,0) -> 0 | AK155: =IF('Senior Balance'!AI22>0,'Senior Balance'!AI22*-1000,0) -> 0 | AL155: 1 | AM155: 0
A156: 1 | B156: m | C156: Inventar markbrug | E156: =IF('Senior Balance'!E37<0,'Senior Balance'!E37*-1000,0) -> 0 | G156: =IF('Senior Balance'!E37>0,'Senior Balance'!E37*-1000,0) -> 0 | O156: =IF('Senior Balance'!O37<0,'Senior Balance'!O37*-1000,0) -> 0 | Q156: =IF('Senior Balance'!O37>0,'Senior Balance'!O37*-1000,0) -> 0 | W156: =IF('Senior Balance'!Y37<0,'Senior Balance'!Y37*-1000,0) -> 0 | AA156: =IF('Senior Balance'!Y37>0,'Senior Balance'!Y37*-1000,0) -> 0 | AG156: =IF('Senior Balance'!AI37<0,'Senior Balance'!AI37*-1000,0) -> 0 | AK156: =IF('Senior Balance'!AI37>0,'Senior Balance'!AI37*-1000,0) -> 0 | AL156: 1 | AM156: 0
A157: 1 | B157: m | C157: Inventar husdyrbrug | E157: =IF('Senior Balance'!E41<0,'Senior Balance'!E41*-1000,0) -> 0 | G157: =IF('Senior Balance'!E41>0,'Senior Balance'!E41*-1000,0) -> 0 | O157: =IF('Senior Balance'!O41<0,'Senior Balance'!O41*-1000,0) -> 0 | Q157: =IF('Senior Balance'!O41>0,'Senior Balance'!O41*-1000,0) -> 0 | W157: =IF('Senior Balance'!Y41<0,'Senior Balance'!Y41*-1000,0) -> 0 | AA157: =IF('Senior Balance'!Y41>0,'Senior Balance'!Y41*-1000,0) -> 0 | AG157: =IF('Senior Balance'!AI41<0,'Senior Balance'!AI41*-1000,0) -> 0 | AK157: =IF('Senior Balance'!AI41>0,'Senior Balance'!AI41*-1000,0) -> 0 | AL157: 1 | AM157: 0
A158: 1 | B158: m | C158: Inventar andet | E158: =IF('Senior Balance'!E45<0,'Senior Balance'!E45*-1000,0) -> 0 | G158: =IF('Senior Balance'!E45>0,'Senior Balance'!E45*-1000,0) -> 0 | O158: =IF('Senior Balance'!O45<0,'Senior Balance'!O45*-1000,0) -> 0 | Q158: =IF('Senior Balance'!O45>0,'Senior Balance'!O45*-1000,0) -> 0 | W158: =IF('Senior Balance'!Y45<0,'Senior Balance'!Y45*-1000,0) -> 0 | AA158: =IF('Senior Balance'!Y45>0,'Senior Balance'!Y45*-1000,0) -> 0 | AG158: =IF('Senior Balance'!AI45<0,'Senior Balance'!AI45*-1000,0) -> 0 | AK158: =IF('Senior Balance'!AI45>0,'Senior Balance'!AI45*-1000,0) -> 0 | AL158: 1 | AM158: 0
A159: 1 | B159: m | C159: Grundforbedringer | E159: =IF('Senior Balance'!E14<0,'Senior Balance'!E14*-1000,0) -> 0 | G159: =IF('Senior Balance'!E14>0,'Senior Balance'!E14*-1000,0) -> 0 | O159: =IF('Senior Balance'!O14<0,'Senior Balance'!O14*-1000,0) -> 0 | Q159: =IF('Senior Balance'!O14>0,'Senior Balance'!O14*-1000,0) -> 0 | W159: =IF('Senior Balance'!Y14<0,'Senior Balance'!Y14*-1000,0) -> 0 | AA159: =IF('Senior Balance'!Y14>0,'Senior Balance'!Y14*-1000,0) -> 0 | AG159: =IF('Senior Balance'!AI14<0,'Senior Balance'!AI14*-1000,0) -> 0 | AK159: =IF('Senior Balance'!AI14>0,'Senior Balance'!AI14*-1000,0) -> 0 | AL159: 1 | AM159: 0
A160: 1 | C160: Biler | E160: =IF('Senior Balance'!E63<0,'Senior Balance'!E63*-1000,0) -> 0 | G160: =IF('Senior Balance'!E63>0,'Senior Balance'!E63*-1000,0) -> 0 | O160: =IF('Senior Balance'!O63<0,'Senior Balance'!O63*-1000,0) -> 0 | Q160: =IF('Senior Balance'!O63>0,'Senior Balance'!O63*-1000,0) -> 0 | W160: =IF('Senior Balance'!Y63<0,'Senior Balance'!Y63*-1000,0) -> 0 | AA160: =IF('Senior Balance'!Y63>0,'Senior Balance'!Y63*-1000,0) -> 0 | AG160: =IF('Senior Balance'!AI63<0,'Senior Balance'!AI63*-1000,0) -> 0 | AK160: =IF('Senior Balance'!AI63>0,'Senior Balance'!AI63*-1000,0) -> 0 | AL160: 1 | AM160: 0
A161: 1 | C161: Aktiver uden for landbrug | E161: =IF('Senior Balance'!E68<0,'Senior Balance'!E68*-1000,0) -> 0 | G161: =IF('Senior Balance'!E68>0,'Senior Balance'!E68*-1000,0) -> 0 | O161: =IF('Senior Balance'!O68<0,'Senior Balance'!O68*-1000,0) -> 0 | Q161: =IF('Senior Balance'!O68>0,'Senior Balance'!O68*-1000,0) -> 0 | W161: =IF('Senior Balance'!Y68<0,'Senior Balance'!Y68*-1000,0) -> 0 | AA161: =IF('Senior Balance'!Y68>0,'Senior Balance'!Y68*-1000,0) -> 0 | AG161: =IF('Senior Balance'!AI68<0,'Senior Balance'!AI68*-1000,0) -> 0 | AK161: =IF('Senior Balance'!AI68>0,'Senior Balance'!AI68*-1000,0) -> 0 | AL161: 1 | AM161: 0
A162: 1 | AL162: 1 | AM162: 0
A163: 1 | C163: Investeringer i alt | G163: =SUM(E152:G161) -> 0 | Q163: =SUM(O152:Q161) -> 0 | AA163: =SUM(W152:AA161) -> 0 | AK163: =SUM(AG152:AK161) -> 0 | AL163: 1 | AM163: 0
A164: 1 | AL164: 1 | AM164: 0
A165: 1 | AL165: 1 | AM165: =AM166 -> 0
A166: 1 | B166: Likviditetsoverskud/-behov | G166: =G148+G163 -> 0 | Q166: =Q148+Q163 -> 0 | AA166: =AA148+AA163 -> 0 | AK166: =AK148+AK163 -> 0 | AL166: 1 | AM166: =IF(SUM(E166:AK166)<>0,1,0) -> 0
A167: 1 | AL167: 1 | AM167: =AM166 -> 0
A168: 1 | AL168: 1 | AM168: 1
A169: 1 | B169: ÆNDRING FINANSIELLE AKTIVER OG GÆLD | AL169: 1 | AM169: =AM170 -> 0
A170: 1 | E170: Anvendelse | G170: Fremskaffelse | O170: Anvendelse | Q170: Fremskaffelse | W170: Anvendelse | AA170: Fremskaffelse | AG170: Anvendelse | AK170: Fremskaffelse | AL170: 1 | AM170: =AM178 -> 0
C171: Holding aktier | E171: =IF('Senior Balance'!E70>0,'Senior Balance'!E70*-1000,0) -> 0 | G171: =IF('Senior Balance'!E70<0,('Senior Balance'!E70+Holding!E53)*-1000,0) -> 0 | O171: =IF('Senior Balance'!O70>0,'Senior Balance'!O70*-1000,0) -> 0 | Q171: =IF('Senior Balance'!O70<0,('Senior Balance'!O70+Holding!O53)*-1000,0) -> 0 | W171: =IF('Senior Balance'!W70>0,'Senior Balance'!W70*-1000,0) -> 0 | Y171: =IF('Senior Balance'!AG70<0,'Senior Balance'!AG70*-1000,0) -> 0 | AA171: =IF('Senior Balance'!Y70<0,('Senior Balance'!Y70+Holding!Y53)*-1000,0) -> 0 | AG171: =IF('Senior Balance'!AI70>0,'Senior Balance'!AI70*-1000,0) -> 0 | AI171: =IF('Senior Balance'!AQ70<0,'Senior Balance'!AQ70*-1000,0) -> 0 | AK171: =IF('Senior Balance'!AI70<0,('Senior Balance'!AI70+Holding!AI53)*-1000,0) -> 0 | AL171: 1 | AM171: =IF(SUM(E171:AK171)<>0,1,0) -> 0
A172: 1 | C172: Tilgodehavender | E172: =IF('Senior Balance'!E71>0,('Senior Balance'!E71)*-1000,0) -> 0 | G172: =IF('Senior Balance'!E71<0,('Senior Balance'!E71)*-1000,0) -> 0 | O172: =IF('Senior Balance'!O71>0,('Senior Balance'!O71)*-1000,0) -> 0 | Q172: =IF('Senior Balance'!O71<0,('Senior Balance'!O71)*-1000,0) -> 0 | W172: =IF('Senior Balance'!Y71>0,('Senior Balance'!Y71)*-1000,0) -> 0 | AA172: =IF('Senior Balance'!Y71<0,('Senior Balance'!Y71)*-1000,0) -> 0 | AG172: =IF('Senior Balance'!AI71>0,('Senior Balance'!AI71)*-1000,0) -> 0 | AK172: =IF('Senior Balance'!AI71<0,('Senior Balance'!AI71)*-1000,0) -> 0 | AL172: 1 | AM172: 0
A173: 1 | B173: Værdipapirer | C173: Værdipapirer | E173: =IF('Senior Balance'!E72<0,('Senior Balance'!E72)*-1000,0) -> 0 | G173: =IF('Senior Balance'!E72>0,('Senior Balance'!E72)*-1000,0) -> 0 | O173: =IF('Senior Balance'!O72<0,('Senior Balance'!O72)*-1000,0) -> 0 | Q173: =IF('Senior Balance'!O72>0,('Senior Balance'!O72)*-1000,0) -> 0 | W173: =IF('Senior Balance'!Y72<0,('Senior Balance'!Y72)*-1000,0) -> 0 | AA173: =IF('Senior Balance'!Y72>0,('Senior Balance'!Y72)*-1000,0) -> 0 | AG173: =IF('Senior Balance'!AI72<0,('Senior Balance'!AI72)*-1000,0) -> 0 | AK173: =IF('Senior Balance'!AI72>0,('Senior Balance'!AI72)*-1000,0) -> 0 | AL173: 1 | AM173: 0
A174: 1 | C174: Indlån | E174: =IF('Senior Balance'!E73<0,('Senior Balance'!E73)*-1000,0) -> 0 | G174: =IF('Senior Balance'!E73>0,('Senior Balance'!E73)*-1000,0) -> 0 | O174: =IF('Senior Balance'!O73<0,('Senior Balance'!O73)*-1000,0) -> 0 | Q174: =IF('Senior Balance'!O73>0,('Senior Balance'!O73)*-1000,0) -> 0 | W174: =IF('Senior Balance'!Y73<0,('Senior Balance'!Y73)*-1000,0) -> 0 | AA174: =IF('Senior Balance'!Y73>0,('Senior Balance'!Y73)*-1000,0) -> 0 | AG174: =IF('Senior Balance'!AI73<0,('Senior Balance'!AI73)*-1000,0) -> 0 | AK174: =IF('Senior Balance'!AI73>0,('Senior Balance'!AI73)*-1000,0) -> 0 | AL174: 1 | AM174: 0
A175: 1 | C175: Prioritets gæld( - = afdrag) | E175: =IF('Senior Balance'!H91+'Senior Balance'!E91>0,('Senior Balance'!H91+'Senior Balance'!E91)*-1000,0) -> 0 | G175: =IF('Senior Balance'!E91+'Senior Balance'!H91<0,('Senior Balance'!E91+'Senior Balance'!H91)*-1000,0) -> 0 | O175: =IF('Senior Balance'!R91+'Senior Balance'!O91>0,('Senior Balance'!R91+'Senior Balance'!O91)*-1000,0) -> 0 | Q175: =IF('Senior Balance'!O91+'Senior Balance'!R91<0,('Senior Balance'!O91+'Senior Balance'!R91)*-1000,0) -> 0 | W175: =IF('Senior Balance'!AB91+'Senior Balance'!Y91>0,('Senior Balance'!AB91+'Senior Balance'!Y91)*-1000,0) -> 0 | AA175: =IF('Senior Balance'!Y91+'Senior Balance'!AB91<0,('Senior Balance'!Y91+'Senior Balance'!AB91)*-1000,0) -> 0 | AG175: =IF('Senior Balance'!AL91+'Senior Balance'!AI91>0,('Senior Balance'!AL91+'Senior Balance'!AI91)*-1000,0) -> 0 | AK175: =IF('Senior Balance'!AI91+'Senior Balance'!AL91<0,('Senior Balance'!AI91+'Senior Balance'!AL91)*-1000,0) -> 0 | AL175: 1 | AM175: 0
A176: 1 | C176: Moms og afgift ( - =afdrag) | E176: =IF(G199<0,G199,0) -> 0 | G176: =IF(G199>0,G199,0) -> 0 | O176: =IF(Q199<0,Q199,0) -> 0 | Q176: =IF(Q199>0,Q199,0) -> 0 | W176: =IF(AA199<0,AA199,0) -> 0 | AA176: =IF(AA199>0,AA199,0) -> 0 | AG176: =IF(AK199<0,AK199,0) -> 0 | AK176: =IF(AK199>0,AK199,0) -> 0 | AL176: 1 | AM176: 0
A177: 1 | C177: Anden gæld i alt | E177: =IF('Senior Balance'!H97>0,'Senior Balance'!H97*-1000,0) -> 0 | G177: =IF('Senior Balance'!E97<0,'Senior Balance'!E97*-1000,0) -> 0 | O177: =IF('Senior Balance'!R97>0,'Senior Balance'!R97*-1000,0) -> 0 | Q177: =IF('Senior Balance'!O97<0,'Senior Balance'!O97*-1000,0) -> 0 | W177: =IF('Senior Balance'!AB97>0,'Senior Balance'!AB97*-1000,0) -> 0 | AA177: =IF('Senior Balance'!Y97<0,'Senior Balance'!Y97*-1000,0) -> 0 | AG177: =IF('Senior Balance'!AL97>0,'Senior Balance'!AL97*-1000,0) -> 0 | AK177: =IF('Senior Balance'!AI97<0,'Senior Balance'!AI97*-1000,0) -> 0 | AL177: 1 | AM177: 0
A178: 1 | C178: Kassekredit ( - = sat ind på) | E178: =IF((SUM(E171:M177)+G166)*-1<0,(SUM(E171:G177)+G166)*-1,0) -> 0 | G178: =IF((SUM(E171:M177)+G166)*-1>0,(SUM(E171:G177)+G166)*-1,0) -> 0 | O178: =IF((SUM(O171:Q177)+Q166)*-1<0,(SUM(O171:Q177)+Q166)*-1,0) -> 0 | Q178: =IF((SUM(O171:Q177)+Q166)*-1>0,(SUM(O171:Q177)+Q166)*-1,0) -> 0 | W178: =IF((SUM(W171:AA177)+AA166)*-1<0,(SUM(W171:AA177)+AA166)*-1,0) -> 0 | AA178: =IF((SUM(W171:AE177)+AA166)*-1>0,(SUM(W171:AA177)+AA166)*-1,0) -> 0 | AG178: =IF((SUM(AG171:AK177)+AK166)*-1<0,(SUM(AG171:AK177)+AK166)*-1,0) -> 0 | AK178: =IF((SUM(AG171:AK177)+AK166)*-1>0,(SUM(AG171:AK177)+AK166)*-1,0) -> 0 | AL178: 1 | AM178: 0
A179: 1 | AL179: 1 | AM179: =AM178 -> 0
A180: 1 | AL180: 1 | AM180: =AM181 -> 0
A181: 1 | B181: Likviditetsanvendelse/fremskaffelse | G181: =SUM(E171:M178) -> 0 | Q181: =SUM(O171:U178) -> 0 | AA181: =SUM(W171:AA178) -> 0 | AK181: =SUM(AG171:AK178) -> 0 | AL181: 1 | AM181: =IF(SUM(E181:AK181)<>0,1,0) -> 0
A182: 1 | AL182: 1 | AM182: =AM181 -> 0
A183: 1 | G183: =G166+G181 -> 0 | Q183: =Q166+Q181 -> 0 | AA183: =AA166+AA181 -> 0 | AK183: =AK166+AK181 -> 0 | AL183: 1 | AM183: 1
A184: 1 | B184: Kassekredit/likviditet i alt | G184: ='Senior Balance'!N114*1000 -> 0 | Q184: ='Senior Balance'!X114*1000 -> 0 | AA184: ='Senior Balance'!AH114*1000 -> 0 | AK184: ='Senior Balance'!AR114*1000 -> 0 | AL184: 1 | AM184: =IF(SUM(E184:AK184)<>0,1,0) -> 0
C188: Moms primo (- = gæld, + = tilgode) | G188: ='Senior Balance'!D98*1000 -> 0 | Q188: =G196 -> 0 | AA188: =Q196 -> 0 | AK188: =AA196 -> 0
C190: Årets momspligtig omsætning netto | G190: =DSUM($B$5:$AK$181,"a",$BB190:$BB191) -> 0 | Q190: =DSUM($B$5:$AK$181,"b",$BB190:$BB191) -> 0 | AA190: =DSUM($B$5:$AK$181,"c",$BB190:$BB191) -> 0 | AK190: =DSUM($B$5:$AK$181,"d",$BB190:$BB191) -> 0 | BB190: Moms
C191: Årets moms heraf, modtaget i året | G191: =TRUNC(G190*0.25,0) -> 0 | Q191: =TRUNC(Q190*0.25,0) -> 0 | AA191: =TRUNC(AA190*0.25,0) -> 0 | AK191: =TRUNC(AK190*0.25,0) -> 0 | BB191: m
C192: 3 kvartalers betaling heraf | G192: =G191*0.75 -> 0 | Q192: =Q191*0.75 -> 0 | AA192: =AA191*0.75 -> 0 | AK192: =AK191*0.75 -> 0
C194: Primo + 3 kvartaler, betalt i året | G194: =G188-G192 -> 0 | Q194: =Q188-Q192 -> 0 | AA194: =AA188-AA192 -> 0 | AK194: =AK188-AK192 -> 0
C196: Moms ultimo (primo + modtaget - betalt) | G196: =G188-G191-G194 -> 0 | Q196: =Q188-Q191-Q194 -> 0 | AA196: =AA188-AA191-AA194 -> 0 | AK196: =AK188-AK191-AK194 -> 0
C198: Korrektion: Moms bevægelse
C199: Momsbevægelse primo til ultimo | G199: =IF(ISBLANK(G198),G188-G196,G198) -> 0 | Q199: =IF(ISBLANK(Q198),Q188-Q196,Q198) -> 0 | AA199: =IF(ISBLANK(AA198),AA188-AA196,AA198) -> 0 | AK199: =IF(ISBLANK(AK198),AK188-AK196,AK198) -> 0
E257: =E3 -> 0

Sheet Senior Balance
A1: SENIOR BALANCE & ANLÆGSKARTOTEK | N1: ='A-S Balance'!L6 -> 0 | AS1: 1 | AT1: =BudgetType ->  | AU1: Hvis 2 udvidet budget, hvis 1 begrænset | CC1: vis | CD1: skjul | DI1: b | DM1: b | DO1: b
B2: ='A-S Balance'!B2 -> 0 | N2: Første budgetår | T2: ='A-S Balance'!T2 -> 2025 | Y2: KK positiv saldo, p.a. | AT2: 1 | AU2: Hvis 1 enlig, hvis 2 ægtefællebeskatning | CC2: 1 | CD2: 1
B3: ='A-S Balance'!B3 -> 0 | N3: Pct. erhverv bil (typisk 25%) | T3: 0 | Y3: KK negativ saldo, p.a. | AH3: 0.04 | AT3: =IF(AND(BudgetType=1,TotalSumVærdireg<>0),2,1) ->  | AU3: Hvis 2 skal makro om værdireg starte | BD3: 2 | BH3: 2 | BQ3: 2 | BX3: 2 | BY3: 1 | BZ3: 2 | CC3: 1 | CD3: 1
B4: ='A-S Balance'!B4 -> 0 | N4: Simpel skatteberegning, skatte% | T4: 0.4 | Y4: 1 eller 2 personfradrag | AH4: =51600*2 -> 103200 | AT4: Tekster til valgboks | BD4: Tekster til valgboks | BY4: Tekster til valgboks | CC4: 1 | CD4: 1 | CK4: 271159
N5: =IF(ISNUMBER('Senior Resultat'!G123+N109),'Senior Resultat'!G123/1000-'Senior Balance'!N109,0) -> 0 | O5: =N5*1000 -> 0 | X5: =IF(ISNUMBER('Senior Resultat'!Q123+X109),'Senior Resultat'!Q123/1000-'Senior Balance'!X109,0) -> 0 | AH5: =IF(ISNUMBER('Senior Resultat'!AA123+AH109),'Senior Resultat'!AA123/1000-'Senior Balance'!AH109,0) -> 0 | AR5: =IF(ISNUMBER('Senior Resultat'!AK123+AR109),'Senior Resultat'!AK123/1000-'Senior Balance'!AR109,0) -> 0 | AT5: Sum af fejl | AU5: =IF(StopMensOverfoer=0,0,TRUNC(SUM(K5:AR5),0)) ->  | CC5: 1 | CD5: 1
A6: AKTIVER | D6: =T2 -> 2025 | E6: - 1.000 kr - | N6: =D6+1 -> 2026 | O6: - 1.000 kr - | X6: =N6+1 -> 2027 | Y6: - 1.000 kr - | AH6: =X6+1 -> 2028 | AI6: - 1.000 kr - | AR6: =AH6+1 -> 2029 | AU6: =IF(StopMensOverfoer=0,0,IF(ISERROR(SUM(AU7:AU96)),0,SUM(AU7:AU96))) ->  | AV6: Rest måneder vedr. afskrivning | CC6: 1 | CD6: 1
B7: Jord | D7: Primo | E7: Investering | N7: 0 | O7: Investering | X7: 0 | Y7: Investering | AH7: 0 | AI7: Investering | CC7: 1 | CD7: =CD10 -> 0
A8: 1 | K8: =IF(E8+D8=0,0,IF(ISBLANK(H8),IF(C8>0,1/(1/C8-1),0),1/H8)) -> 0 | N8: =D8+E8+F8+I8+J8 -> 0 | U8: =IF(O8+N8=0,0,IF(ISBLANK(R8),IF(K8>0,1/(1/K8-1),0),1/R8)) -> 0 | X8: =IF(CN8=0,N8+O8+P8+S8+T8,0) -> 0 | AE8: =IF(Y8+X8=0,0,IF(ISBLANK(AB8),IF(U8>0,1/(1/U8-1),0),1/AB8)) -> 0 | AH8: =X8+Y8+Z8+AC8+AD8 -> 0 | AO8: =IF(AI8+AH8=0,0,IF(ISBLANK(AL8),IF(AE8>0,1/(1/AE8-1),0),1/AL8)) -> 0 | AR8: =AH8+AI8+AJ8+AM8+AN8 -> 0 | AU8: =IF(AND(F8<>0,D8+E8=0),1,IF(AND(P8<>0,N8+O8=0),1,IF(AND(Z8<>0,X8+Y8=0),1,IF(AND(AJ8<>0,AH8+AI8=0),1,0)))) -> 0 | AV8: =H8 -> 0 | BD8: =IF(ISBLANK(R8),AV8,R8) -> 0 | BN8: =IF(ISBLANK(AB8),BD8,AB8) -> 0 | BX8: =IF(ISBLANK(AL8),BN8,AL8) -> 0 | CC8: 1 | CD8: =IF(AR8+AH8+X8+N8+D8<>0,1,0) -> 0
A9: 2 | K9: =IF(E9+D9=0,0,IF(ISBLANK(H9),IF(C9>0,1/(1/C9-1),0),1/H9)) -> 0 | N9: =D9+E9+F9+I9+J9 -> 0 | X9: =IF(CN9=0,N9+O9+P9+S9+T9,0) -> 0 | AH9: =X9+Y9+Z9+AC9+AD9 -> 0 | AO9: =IF(AI9+AH9=0,0,IF(ISBLANK(AL9),IF(AE9>0,1/(1/AE9-1),0),1/AL9)) -> 0 | AR9: =AH9+AI9+AJ9+AM9+AN9 -> 0 | AU9: =IF(AND(F9<>0,D9+E9=0),1,IF(AND(P9<>0,N9+O9=0),1,IF(AND(Z9<>0,X9+Y9=0),1,IF(AND(AJ9<>0,AH9+AI9=0),1,0)))) -> 0 | AV9: =H9 -> 0 | BD9: =IF(ISBLANK(R9),AV9,R9) -> 0 | BN9: =IF(ISBLANK(AB9),BD9,AB9) -> 0 | BX9: =IF(ISBLANK(AL9),BN9,AL9) -> 0 | CC9: 1 | CD9: 0
D10: =SUM(D8:D9) -> 0 | E10: =SUM(E8:E9) -> 0 | N10: =SUM(N8:N9) -> 0 | O10: =SUM(O8:O9) -> 0 | R10: =SUM(R8:R9) -> 0 | X10: =SUM(X8:X9) -> 0 | Y10: =SUM(Y8:Y9) -> 0 | AH10: =SUM(AH8:AH9) -> 0 | AI10: =SUM(AI8:AI9) -> 0 | AR10: =SUM(AR8:AR9) -> 0 | CC10: 1 | CD10: =IF(AR10+AH10+X10+N10+D10<>0,1,0) -> 0
B11: Grundforbedringer | E11: Investering | G11: M | H11: Rest-år | J11: Afskr. | K11: Levetid måneder primo | O11: Investering | Q11: M | R11: Rest-år | T11: Afskr. | U11: Levetid måneder primo | Y11: Investering | AA11: M | AB11: Rest-år | AD11: Afskr. | AE11: Levetid måneder primo | AI11: Investering | AK11: M | AL11: Rest-år | AN11: Afskr. | AO11: Levetid måneder primo | CC11: 1 | CD11: =CD14 -> 0
A12: 1 | J12: =IF(AV12>0,(D12+E12+F12+I12)/-AV12*K12,0) -> 0 | K12: =IF(G12>0,12-G12,12) -> 12 | N12: =D12+E12+F12+I12+J12 -> 0 | T12: =IF(BD12>0,(N12+O12+P12+S12)/-BD12*U12,0) -> 0 | U12: =IF(Q12>0,12-Q12,IF(BD12>12,12,IF(BD12-12>0,BD12-12,BD12))) -> 0 | X12: =N12+O12+P12+S12+T12 -> 0 | AD12: =IF(BN12>0,(X12+Y12+Z12+AC12)/-BN12*AE12,0) -> 0 | AE12: =IF(AA12>0,12-AA12,IF(BN12>12,12,IF(BN12-12>0,BN12-12,BN12))) -> 0 | AH12: =X12+Y12+Z12+AC12+AD12 -> 0 | AN12: =IF(BX12>0,(AH12+AI12+AJ12+AM12)/-BX12*AO12,0) -> 0 | AO12: =IF(AK12>0,12-AK12,IF(BX12>12,12,IF(BX12-12>0,BX12-12,BX12))) -> 0 | AR12: =AH12+AI12+AJ12+AM12+AN12 -> 0 | AU12: =IF(AND(F12<>0,D12+E12=0),1,IF(AND(P12<>0,N12+O12=0),1,IF(AND(Z12<>0,X12+Y12=0),1,IF(AND(AJ12<>0,AH12+AI12=0),1,0)))) -> 0 | AV12: =H12*12 -> 0 | BD12: =IF(AV12>0,AV12-K12,R12*12) -> 0 | BN12: =IF(BD12>0,BD12-U12,AB12*12) -> 0 | BX12: =IF(BN12>0,BN12-AE12,AL12*12) -> 0 | CC12: 1 | CD12: =IF(AR12+AH12+X12+N12+D12<>0,1,0) -> 0
A13: 2 | J13: =IF(AV13>0,(D13+E13+F13+I13)/-AV13*K13,0) -> 0 | K13: =IF(G13>0,12-G13,12) -> 12 | N13: =D13+E13+F13+I13+J13 -> 0 | T13: =IF(BD13>0,(N13+O13+P13+S13)/-BD13*U13,0) -> 0 | U13: =IF(Q13>0,12-Q13,IF(BD13>12,12,IF(BD13-12>0,BD13-12,BD13))) -> 0 | X13: =N13+O13+P13+S13+T13 -> 0 | AD13: =IF(BN13>0,(X13+Y13+Z13+AC13)/-BN13*AE13,0) -> 0 | AE13: =IF(AA13>0,12-AA13,IF(BN13>12,12,IF(BN13-12>0,BN13-12,BN13))) -> 0 | AH13: =X13+Y13+Z13+AC13+AD13 -> 0 | AN13: =IF(BX13>0,(AH13+AI13+AJ13+AM13)/-BX13*AO13,0) -> 0 | AO13: =IF(AK13>0,12-AK13,IF(BX13>12,12,IF(BX13-12>0,BX13-12,BX13))) -> 0 | AR13: =AH13+AI13+AJ13+AM13+AN13 -> 0 | AU13: =IF(AND(F13<>0,D13+E13=0),1,IF(AND(P13<>0,N13+O13=0),1,IF(AND(Z13<>0,X13+Y13=0),1,IF(AND(AJ13<>0,AH13+AI13=0),1,0)))) -> 0 | AV13: =H13*12 -> 0 | BD13: =IF(AV13>0,AV13-K13,R13*12) -> 0 | BN13: =IF(BD13>0,BD13-U13,AB13*12) -> 0 | BX13: =IF(BN13>0,BN13-AE13,AL13*12) -> 0 | CC13: 1 | CD13: 0
D14: =SUM(D12:D13) -> 0 | E14: =SUM(E11:E13) -> 0 | J14: =SUM(J11:J13) -> 0 | N14: =SUM(N12:N13) -> 0 | O14: =SUM(O11:O13) -> 0 | T14: =SUM(T11:T13) -> 0 | X14: =SUM(X12:X13) -> 0 | Y14: =SUM(Y11:Y13) -> 0 | AD14: =SUM(AD11:AD13) -> 0 | AH14: =SUM(AH12:AH13) -> 0 | AI14: =SUM(AI11:AI13) -> 0 | AN14: =SUM(AN11:AN13) -> 0 | AR14: =SUM(AR12:AR13) -> 0 | CC14: 1 | CD14: =IF(SUM(D14:AR14)<>0,1,0) -> 0
B15: Driftsbygninger | E15: Investering | G15: M | H15: Rest-år | J15: Afskr. | K15: Levetid måneder primo | O15: Investering | Q15: M | R15: Rest-år | T15: Afskr. | U15: Levetid måneder primo | Y15: Investering | AA15: M | AB15: Rest-år | AD15: Afskr. | AE15: Levetid måneder primo | AI15: Investering | AK15: M | AL15: Rest-år | AN15: Afskr. | AO15: Levetid måneder primo | CC15: 1 | CD15: =CD18 -> 0
A16: 1 | J16: =IF(AV16>0,(D16+E16+F16+I16)/-AV16*K16,0) -> 0 | K16: =IF(G16>0,12-G16,12) -> 12 | N16: =D16+E16+F16+I16+J16 -> 0 | T16: =IF(BD16>0,(N16+O16+P16+S16)/-BD16*U16,0) -> 0 | U16: =IF(Q16>0,12-Q16,IF(BD16>12,12,IF(BD16-12>0,BD16-12,BD16))) -> 0 | X16: =N16+O16+P16+S16+T16 -> 0 | AD16: =IF(BN16>0,(X16+Y16+Z16+AC16)/-BN16*AE16,0) -> 0 | AE16: =IF(AA16>0,12-AA16,IF(BN16>12,12,IF(BN16-12>0,BN16-12,BN16))) -> 0 | AH16: =X16+Y16+Z16+AC16+AD16 -> 0 | AN16: =IF(BX16>0,(AH16+AI16+AJ16+AM16)/-BX16*AO16,0) -> 0 | AO16: =IF(AK16>0,12-AK16,IF(BX16>12,12,IF(BX16-12>0,BX16-12,BX16))) -> 0 | AR16: =AH16+AI16+AJ16+AM16+AN16 -> 0 | AU16: =IF(AND(F16<>0,D16+E16=0),1,IF(AND(P16<>0,N16+O16=0),1,IF(AND(Z16<>0,X16+Y16=0),1,IF(AND(AJ16<>0,AH16+AI16=0),1,0)))) -> 0 | AV16: =H16*12 -> 0 | BD16: =IF(AV16>0,AV16-K16,R16*12) -> 0 | BN16: =IF(BD16>0,BD16-U16,AB16*12) -> 0 | BX16: =IF(BN16>0,BN16-AE16,AL16*12) -> 0 | CC16: 1 | CD16: =IF(AR16+AH16+X16+N16+D16<>0,1,0) -> 0
A17: 2 | J17: =IF(AV17>0,(D17+E17+F17+I17)/-AV17*K17,0) -> 0 | K17: =IF(G17>0,12-G17,12) -> 12 | N17: =D17+E17+F17+I17+J17 -> 0 | T17: =IF(BD17>0,(N17+O17+P17+S17)/-BD17*U17,0) -> 0 | U17: =IF(Q17>0,12-Q17,IF(BD17>12,12,IF(BD17-12>0,BD17-12,BD17))) -> 0 | X17: =N17+O17+P17+S17+T17 -> 0 | AD17: =IF(BN17>0,(X17+Y17+Z17+AC17)/-BN17*AE17,0) -> 0 | AE17: =IF(AA17>0,12-AA17,IF(BN17>12,12,IF(BN17-12>0,BN17-12,BN17))) -> 0 | AH17: =X17+Y17+Z17+AC17+AD17 -> 0 | AN17: =IF(BX17>0,(AH17+AI17+AJ17+AM17)/-BX17*AO17,0) -> 0 | AO17: =IF(AK17>0,12-AK17,IF(BX17>12,12,IF(BX17-12>0,BX17-12,BX17))) -> 0 | AR17: =AH17+AI17+AJ17+AM17+AN17 -> 0 | AU17: =IF(AND(F17<>0,D17+E17=0),1,IF(AND(P17<>0,N17+O17=0),1,IF(AND(Z17<>0,X17+Y17=0),1,IF(AND(AJ17<>0,AH17+AI17=0),1,0)))) -> 0 | AV17: =H17*12 -> 0 | BD17: =IF(AV17>0,AV17-K17,R17*12) -> 0 | BN17: =IF(BD17>0,BD17-U17,AB17*12) -> 0 | BX17: =IF(BN17>0,BN17-AE17,AL17*12) -> 0 | CC17: 1 | CD17: =IF(AR17+AH17+X17+N17+D17<>0,1,0) -> 0
D18: =SUM(D16:D17) -> 0 | E18: =SUM(E16:E17) -> 0 | J18: =SUM(J16:J17) -> 0 | N18: =SUM(N16:N17) -> 0 | O18: =SUM(O16:O17) -> 0 | T18: =SUM(T16:T17) -> 0 | X18: =SUM(X16:X17) -> 0 | Y18: =SUM(Y16:Y17) -> 0 | AD18: =SUM(AD16:AD17) -> 0 | AH18: =SUM(AH16:AH17) -> 0 | AI18: =SUM(AI16:AI17) -> 0 | AN18: =SUM(AN16:AN17) -> 0 | AR18: =SUM(AR16:AR17) -> 0 | CC18: 1 | CD18: 0
B19: Beboelse (stuehus) | E19: Investering | H19: Rest-år | J19: Afskr. | K19: Levetid måneder primo | O19: Investering | R19: Rest-år | T19: Afskr. | U19: Levetid måneder primo | Y19: Investering | AB19: Rest-år | AD19: Afskr. | AE19: Levetid måneder primo | AI19: Investering | AL19: Rest-år | AN19: Afskr. | AO19: Levetid måneder primo | CC19: 1 | CD19: =CD22 -> 0
A20: 1 | J20: =IF(AV20>0,(D20+E20+F20+I20)/-AV20*K20,0) -> 0 | K20: =IF(G20>0,12-G20,12) -> 12 | N20: =D20+E20+F20+I20+J20 -> 0 | T20: =IF(BD20>0,(N20+O20+P20+S20)/-BD20*U20,0) -> 0 | U20: =IF(Q20>0,12-Q20,IF(BD20>12,12,IF(BD20-12>0,BD20-12,BD20))) -> 0 | X20: =N20+O20+P20+S20+T20 -> 0 | AD20: =IF(BN20>0,(X20+Y20+Z20+AC20)/-BN20*AE20,0) -> 0 | AE20: =IF(AA20>0,12-AA20,IF(BN20>12,12,IF(BN20-12>0,BN20-12,BN20))) -> 0 | AH20: =X20+Y20+Z20+AC20+AD20 -> 0 | AN20: =IF(BX20>0,(AH20+AI20+AJ20+AM20)/-BX20*AO20,0) -> 0 | AO20: =IF(AK20>0,12-AK20,IF(BX20>12,12,IF(BX20-12>0,BX20-12,BX20))) -> 0 | AR20: =AH20+AI20+AJ20+AM20+AN20 -> 0 | AU20: =IF(AND(F20<>0,D20+E20=0),1,IF(AND(P20<>0,N20+O20=0),1,IF(AND(Z20<>0,X20+Y20=0),1,IF(AND(AJ20<>0,AH20+AI20=0),1,0)))) -> 0 | AV20: =H20*12 -> 0 | BD20: =IF(AV20>0,AV20-K20,R20*12) -> 0 | BN20: =IF(BD20>0,BD20-U20,AB20*12) -> 0 | BX20: =IF(BN20>0,BN20-AE20,AL20*12) -> 0 | CC20: 1 | CD20: =IF(AR20+AH20+X20+N20+D20<>0,1,0) -> 0
A21: 2 | J21: =IF(AV21>0,(D21+E21+F21+I21)/-AV21*K21,0) -> 0 | K21: =IF(G21>0,12-G21,12) -> 12 | N21: =D21+E21+F21+I21+J21 -> 0 | T21: =IF(BD21>0,(N21+O21+P21+S21)/-BD21*U21,0) -> 0 | U21: =IF(Q21>0,12-Q21,IF(BD21>12,12,IF(BD21-12>0,BD21-12,BD21))) -> 0 | X21: =N21+O21+P21+S21+T21 -> 0 | AD21: =IF(BN21>0,(X21+Y21+Z21+AC21)/-BN21*AE21,0) -> 0 | AE21: =IF(AA21>0,12-AA21,IF(BN21>12,12,IF(BN21-12>0,BN21-12,BN21))) -> 0 | AH21: =X21+Y21+Z21+AC21+AD21 -> 0 | AN21: =IF(BX21>0,(AH21+AI21+AJ21+AM21)/-BX21*AO21,0) -> 0 | AO21: =IF(AK21>0,12-AK21,IF(BX21>12,12,IF(BX21-12>0,BX21-12,BX21))) -> 0 | AR21: =AH21+AI21+AJ21+AM21+AN21 -> 0 | AU21: =IF(AND(F21<>0,D21+E21=0),1,IF(AND(P21<>0,N21+O21=0),1,IF(AND(Z21<>0,X21+Y21=0),1,IF(AND(AJ21<>0,AH21+AI21=0),1,0)))) -> 0 | AV21: =H21*12 -> 0 | BD21: =IF(AV21>0,AV21-K21,R21*12) -> 0 | BN21: =IF(BD21>0,BD21-U21,AB21*12) -> 0 | BX21: =IF(BN21>0,BN21-AE21,AL21*12) -> 0 | CC21: 1 | CD21: 0
D22: =SUM(D20:D21) -> 0 | E22: =SUM(E20:E21) -> 0 | J22: =SUM(J20:J21) -> 0 | N22: =SUM(N20:N21) -> 0 | O22: =SUM(O20:O21) -> 0 | T22: =SUM(T20:T21) -> 0 | X22: =SUM(X20:X21) -> 0 | Y22: =SUM(Y20:Y21) -> 0 | AD22: =SUM(AD20:AD21) -> 0 | AH22: =SUM(AH20:AH21) -> 0 | AI22: =SUM(AI20:AI21) -> 0 | AN22: =SUM(AN20:AN21) -> 0 | AR22: =SUM(AR20:AR21) -> 0 | CC22: 1 | CD22: 0
CC23: 1 | CD23: =CD24 -> 0
A24: FAST EJENDOM I ALT | D24: =D10+D14+D18+D22 -> 0 | E24: =E10+E14+E18+E22 -> 0 | J24: =J10+J14+J18+J22 -> 0 | N24: =N10+N14+N18+N22 -> 0 | O24: =O10+O14+O18+O22 -> 0 | T24: =T10+T14+T18+T22 -> 0 | X24: =X10+X14+X18+X22 -> 0 | Y24: =Y10+Y14+Y18+Y22 -> 0 | AD24: =AD10+AD14+AD18+AD22 -> 0 | AH24: =AH10+AH14+AH18+AH22 -> 0 | AI24: =AI10+AI14+AI18+AI22 -> 0 | AN24: =AN10+AN14+AN18+AN22 -> 0 | AR24: =AR10+AR14+AR18+AR22 -> 0 | CC24: 1 | CD24: 0
CC25: 1 | CD25: =CD24 -> 0
B26: Immaterielle aktiver* | E26: Investering | G26: M | H26: Rest-år | J26: Afskr.* | O26: Investering | Q26: M | R26: Rest-år | T26: Afskr.* | Y26: Investering | AA26: M | AB26: Rest-år | AD26: Afskr.* | AI26: Investering | AK26: M | AL26: Rest-år | AN26: Afskr.* | CC26: 1 | CD26: =CD29 -> 0
A27: 1 | J27: =IF(AV27>0,(D27+E27+F27+I27)/-AV27*K27,0) -> 0 | K27: =IF(G27>0,12-G27,12) -> 12 | N27: =D27+E27+F27+I27+J27 -> 0 | T27: =IF(BD27>0,(N27+O27+P27+S27)/-BD27*U27,0) -> 0 | U27: =IF(Q27>0,12-Q27,IF(BD27>12,12,IF(BD27-12>0,BD27-12,BD27))) -> 0 | X27: =N27+O27+P27+S27+T27 -> 0 | AD27: =IF(BN27>0,(X27+Y27+Z27+AC27)/-BN27*AE27,0) -> 0 | AE27: =IF(AA27>0,12-AA27,IF(BN27>12,12,IF(BN27-12>0,BN27-12,BN27))) -> 0 | AH27: =X27+Y27+Z27+AC27+AD27 -> 0 | AN27: =IF(BX27>0,(AH27+AI27+AJ27+AM27)/-BX27*AO27,0) -> 0 | AO27: =IF(AK27>0,12-AK27,IF(BX27>12,12,IF(BX27-12>0,BX27-12,BX27))) -> 0 | AR27: =AH27+AI27+AJ27+AM27+AN27 -> 0 | AU27: =IF(AND(F27<>0,D27+E27=0),1,IF(AND(P27<>0,N27+O27=0),1,IF(AND(Z27<>0,X27+Y27=0),1,IF(AND(AJ27<>0,AH27+AI27=0),1,0)))) -> 0 | AV27: =H27*12 -> 0 | BD27: =IF(AV27>0,AV27-K27,R27*12) -> 0 | BN27: =IF(BD27>0,BD27-U27,AB27*12) -> 0 | BX27: =IF(BN27>0,BN27-AE27,AL27*12) -> 0 | CC27: 1 | CD27: =IF(AR27+AH27+X27+N27+D27<>0,1,0) -> 0
A28: 2 | J28: =IF(AV28>0,(D28+E28+F28+I28)/-AV28*K28,0) -> 0 | K28: =IF(G28>0,12-G28,12) -> 12 | N28: =D28+E28+F28+I28+J28 -> 0 | T28: =IF(BD28>0,(N28+O28+P28+S28)/-BD28*U28,0) -> 0 | U28: =IF(Q28>0,12-Q28,IF(BD28>12,12,IF(BD28-12>0,BD28-12,BD28))) -> 0 | X28: =N28+O28+P28+S28+T28 -> 0 | AD28: =IF(BN28>0,(X28+Y28+Z28+AC28)/-BN28*AE28,0) -> 0 | AE28: =IF(AA28>0,12-AA28,IF(BN28>12,12,IF(BN28-12>0,BN28-12,BN28))) -> 0 | AH28: =X28+Y28+Z28+AC28+AD28 -> 0 | AM28: =IF(DB28=0,0,-AH28-AI28+CS28) -> 0 | AN28: =IF(BX28>0,(AH28+AI28+AJ28+AM28)/-BX28*AO28,0) -> 0 | AO28: =IF(AK28>0,12-AK28,IF(BX28>12,12,IF(BX28-12>0,BX28-12,BX28))) -> 0 | AR28: =AH28+AI28+AJ28+AM28+AN28 -> 0 | AU28: =IF(AND(F28<>0,D28+E28=0),1,IF(AND(P28<>0,N28+O28=0),1,IF(AND(Z28<>0,X28+Y28=0),1,IF(AND(AJ28<>0,AH28+AI28=0),1,0)))) -> 0 | AV28: =H28*12 -> 0 | BD28: =IF(AV28>0,AV28-K28,R28*12) -> 0 | BN28: =IF(BD28>0,BD28-U28,AB28*12) -> 0 | BX28: =IF(BN28>0,BN28-AE28,AL28*12) -> 0 | CC28: 1 | CD28: 0
D29: =SUM(D27:D28) -> 0 | E29: =SUM(E27:E28) -> 0 | J29: =SUM(J27:J28) -> 0 | N29: =SUM(N27:N28) -> 0 | O29: =SUM(O27:O28) -> 0 | T29: =SUM(T27:T28) -> 0 | X29: =SUM(X27:X28) -> 0 | Y29: =SUM(Y27:Y28) -> 0 | AD29: =SUM(AD27:AD28) -> 0 | AH29: =SUM(AH27:AH28) -> 0 | AI29: =SUM(AI27:AI28) -> 0 | AM29: =SUM(AM27:AM28) -> 0 | AN29: =SUM(AN27:AN28) -> 0 | AR29: =SUM(AR27:AR28) -> 0 | CC29: 1 | CD29: 0
B30: Leveringsrettigheder* | E30: Investering | G30: M | H30: Rest-år | J30: Afskr.* | O30: Investering | Q30: M | R30: Rest-år | T30: Afskr.* | Y30: Investering | AA30: M | AB30: Rest-år | AD30: Afskr.* | AI30: Investering | AK30: M | AL30: Rest-år | AN30: Afskr.* | CC30: 1 | CD30: =CD33 -> 0
A31: 1 | I31: =IF(CG31=0,0,-D31-E31) -> 0 | J31: =IF(AV31>0,(D31+E31+F31+I31)/-AV31*K31,0) -> 0 | K31: =IF(G31>0,12-G31,12) -> 12 | N31: =D31+E31+F31+I31+J31 -> 0 | T31: =IF(BD31>0,(N31+O31+P31+S31)/-BD31*U31,0) -> 0 | U31: =IF(Q31>0,12-Q31,IF(BD31>12,12,IF(BD31-12>0,BD31-12,BD31))) -> 0 | X31: =N31+O31+P31+S31+T31 -> 0 | AD31: =IF(BN31>0,(X31+Y31+Z31+AC31)/-BN31*AE31,0) -> 0 | AE31: =IF(AA31>0,12-AA31,IF(BN31>12,12,IF(BN31-12>0,BN31-12,BN31))) -> 0 | AH31: =X31+Y31+Z31+AC31+AD31 -> 0 | AN31: =IF(BX31>0,(AH31+AI31+AJ31+AM31)/-BX31*AO31,0) -> 0 | AO31: =IF(AK31>0,12-AK31,IF(BX31>12,12,IF(BX31-12>0,BX31-12,BX31))) -> 0 | AR31: =AH31+AI31+AJ31+AM31+AN31 -> 0 | AU31: =IF(AND(F31<>0,D31+E31=0),1,IF(AND(P31<>0,N31+O31=0),1,IF(AND(Z31<>0,X31+Y31=0),1,IF(AND(AJ31<>0,AH31+AI31=0),1,0)))) -> 0 | AV31: =H31*12 -> 0 | BD31: =IF(AV31>0,AV31-K31,R31*12) -> 0 | BN31: =IF(BD31>0,BD31-U31,AB31*12) -> 0 | BX31: =IF(BN31>0,BN31-AE31,AL31*12) -> 0 | CC31: 1 | CD31: =IF(AR31+AH31+X31+N31+D31<>0,1,0) -> 0
A32: 2 | I32: =IF(CG32=0,0,-D32-E32) -> 0 | J32: =IF(AV32>0,(D32+E32+F32+I32)/-AV32*K32,0) -> 0 | K32: =IF(G32>0,12-G32,12) -> 12 | N32: =D32+E32+F32+I32+J32 -> 0 | T32: =IF(BD32>0,(N32+O32+P32+S32)/-BD32*U32,0) -> 0 | U32: =IF(Q32>0,12-Q32,IF(BD32>12,12,IF(BD32-12>0,BD32-12,BD32))) -> 0 | X32: =N32+O32+P32+S32+T32 -> 0 | AD32: =IF(BN32>0,(X32+Y32+Z32+AC32)/-BN32*AE32,0) -> 0 | AE32: =IF(AA32>0,12-AA32,IF(BN32>12,12,IF(BN32-12>0,BN32-12,BN32))) -> 0 | AH32: =X32+Y32+Z32+AC32+AD32 -> 0 | AN32: =IF(BX32>0,(AH32+AI32+AJ32+AM32)/-BX32*AO32,0) -> 0 | AO32: =IF(AK32>0,12-AK32,IF(BX32>12,12,IF(BX32-12>0,BX32-12,BX32))) -> 0 | AR32: =AH32+AI32+AJ32+AM32+AN32 -> 0 | AU32: =IF(AND(F32<>0,D32+E32=0),1,IF(AND(P32<>0,N32+O32=0),1,IF(AND(Z32<>0,X32+Y32=0),1,IF(AND(AJ32<>0,AH32+AI32=0),1,0)))) -> 0 | AV32: =H32*12 -> 0 | BD32: =IF(AV32>0,AV32-K32,R32*12) -> 0 | BN32: =IF(BD32>0,BD32-U32,AB32*12) -> 0 | BX32: =IF(BN32>0,BN32-AE32,AL32*12) -> 0 | CC32: 1 | CD32: 0
D33: =SUM(D31:D32) -> 0 | E33: =SUM(E30:E32) -> 0 | F33: =SUM(F30:F32) -> 0 | I33: =SUM(I30:I32) -> 0 | J33: =SUM(J30:J32) -> 0 | N33: =SUM(N31:N32) -> 0 | O33: =SUM(O30:O32) -> 0 | T33: =SUM(T30:T32) -> 0 | X33: =SUM(X31:X32) -> 0 | Y33: =SUM(Y30:Y32) -> 0 | AD33: =SUM(AD30:AD32) -> 0 | AH33: =SUM(AH31:AH32) -> 0 | AI33: =SUM(AI30:AI32) -> 0 | AJ33: =SUM(AJ30:AJ32) -> 0 | AN33: =SUM(AN30:AN32) -> 0 | AR33: =SUM(AR31:AR32) -> 0 | CC33: 1 | CD33: 0
B34: Inventar, mark | E34: Investering | G34: M | H34: Rest-år | J34: Afskr. | K34: M afskr i året | O34: Investering | Q34: M | R34: Rest-år | T34: Afskr. | U34: M afskr | Y34: Investering | AA34: M | AB34: Rest-år | AD34: Afskr. | AE34: M afskr | AI34: Investering | AK34: M | AL34: Rest-år | AN34: Afskr. | AO34: M afskr | AV34: Rest måneder | CC34: 1 | CD34: =CD37 -> 0
A35: 1 | J35: =IF(AV35>0,(D35+E35+F35+I35)/-AV35*K35,0) -> 0 | K35: =IF(G35>0,12-G35,12) -> 12 | N35: =D35+E35+F35+I35+J35 -> 0 | T35: =IF(BD35>0,(N35+O35+P35+S35)/-BD35*U35,0) -> 0 | U35: =IF(Q35>0,12-Q35,IF(BD35>12,12,IF(BD35-12>0,BD35-12,BD35))) -> 0 | X35: =N35+O35+P35+S35+T35 -> 0 | AD35: =IF(BN35>0,(X35+Y35+Z35+AC35)/-BN35*AE35,0) -> 0 | AE35: =IF(AA35>0,12-AA35,IF(BN35>12,12,IF(BN35-12>0,BN35-12,BN35))) -> 0 | AH35: =X35+Y35+Z35+AC35+AD35 -> 0 | AN35: =IF(BX35>0,(AH35+AI35+AJ35+AM35)/-BX35*AO35,0) -> 0 | AO35: =IF(AK35>0,12-AK35,IF(BX35>12,12,IF(BX35-12>0,BX35-12,BX35))) -> 0 | AR35: =AH35+AI35+AJ35+AM35+AN35 -> 0 | AU35: =IF(AND(F35<>0,D35+E35=0),1,IF(AND(P35<>0,N35+O35=0),1,IF(AND(Z35<>0,X35+Y35=0),1,IF(AND(AJ35<>0,AH35+AI35=0),1,0)))) -> 0 | AV35: =H35*12 -> 0 | BD35: =IF(AV35>0,AV35-K35,R35*12) -> 0 | BN35: =IF(BD35>0,BD35-U35,AB35*12) -> 0 | BX35: =IF(BN35>0,BN35-AE35,AL35*12) -> 0 | CC35: 1 | CD35: =IF(AR35+AH35+X35+N35+D35<>0,1,0) -> 0
A36: 2 | J36: =IF(AV36>0,(D36+E36+F36+I36)/-AV36*K36,0) -> 0 | K36: =IF(G36>0,12-G36,12) -> 12 | N36: =D36+E36+F36+I36+J36 -> 0 | T36: =IF(BD36>0,(N36+O36+P36+S36)/-BD36*U36,0) -> 0 | U36: =IF(Q36>0,12-Q36,IF(BD36>12,12,IF(BD36-12>0,BD36-12,BD36))) -> 0 | X36: =N36+O36+P36+S36+T36 -> 0 | AD36: =IF(BN36>0,(X36+Y36+Z36+AC36)/-BN36*AE36,0) -> 0 | AE36: =IF(AA36>0,12-AA36,IF(BN36>12,12,IF(BN36-12>0,BN36-12,BN36))) -> 0 | AH36: =X36+Y36+Z36+AC36+AD36 -> 0 | AN36: =IF(BX36>0,(AH36+AI36+AJ36+AM36)/-BX36*AO36,0) -> 0 | AO36: =IF(AK36>0,12-AK36,IF(BX36>12,12,IF(BX36-12>0,BX36-12,BX36))) -> 0 | AR36: =AH36+AI36+AJ36+AM36+AN36 -> 0 | AU36: =IF(AND(F36<>0,D36+E36=0),1,IF(AND(P36<>0,N36+O36=0),1,IF(AND(Z36<>0,X36+Y36=0),1,IF(AND(AJ36<>0,AH36+AI36=0),1,0)))) -> 0 | AV36: =H36*12 -> 0 | BD36: =IF(AV36>0,AV36-K36,R36*12) -> 0 | BN36: =IF(BD36>0,BD36-U36,AB36*12) -> 0 | BX36: =IF(BN36>0,BN36-AE36,AL36*12) -> 0 | CC36: 1 | CD36: 0
D37: =SUM(D35:D36) -> 0 | E37: =SUM(E34:E36) -> 0 | J37: =SUM(J34:J36) -> 0 | N37: =SUM(N35:N36) -> 0 | O37: =SUM(O34:O36) -> 0 | T37: =SUM(T34:T36) -> 0 | X37: =SUM(X35:X36) -> 0 | Y37: =SUM(Y34:Y36) -> 0 | AD37: =SUM(AD34:AD36) -> 0 | AH37: =SUM(AH35:AH36) -> 0 | AI37: =SUM(AI34:AI36) -> 0 | AN37: =SUM(AN34:AN36) -> 0 | AR37: =SUM(AR35:AR36) -> 0 | CC37: 1 | CD37: 0
B38: Inventar, stald | E38: Investering | G38: M | H38: Rest-år | J38: Afskr. | K38: Levetid måneder primo | O38: Investering | Q38: M | R38: Rest-år | T38: Afskr. | U38: Levetid måneder primo | Y38: Investering | AA38: M | AB38: Rest-år | AD38: Afskr. | AE38: Levetid måneder primo | AI38: Investering | AK38: M | AL38: Rest-år | AN38: Afskr. | AO38: Levetid måneder primo | AV38: afskrivning | CC38: 1 | CD38: =CD41 -> 0
A39: 1 | J39: =IF(AV39>0,(D39+E39+F39+I39)/-AV39*K39,0) -> 0 | K39: =IF(G39>0,12-G39,12) -> 12 | N39: =D39+E39+F39+I39+J39 -> 0 | T39: =IF(BD39>0,(N39+O39+P39+S39)/-BD39*U39,0) -> 0 | U39: =IF(Q39>0,12-Q39,IF(BD39>12,12,IF(BD39-12>0,BD39-12,BD39))) -> 0 | X39: =N39+O39+P39+S39+T39 -> 0 | AD39: =IF(BN39>0,(X39+Y39+Z39+AC39)/-BN39*AE39,0) -> 0 | AE39: =IF(AA39>0,12-AA39,IF(BN39>12,12,IF(BN39-12>0,BN39-12,BN39))) -> 0 | AH39: =X39+Y39+Z39+AC39+AD39 -> 0 | AN39: =IF(BX39>0,(AH39+AI39+AJ39+AM39)/-BX39*AO39,0) -> 0 | AO39: =IF(AK39>0,12-AK39,IF(BX39>12,12,IF(BX39-12>0,BX39-12,BX39))) -> 0 | AR39: =AH39+AI39+AJ39+AM39+AN39 -> 0 | AU39: =IF(AND(F39<>0,D39+E39=0),1,IF(AND(P39<>0,N39+O39=0),1,IF(AND(Z39<>0,X39+Y39=0),1,IF(AND(AJ39<>0,AH39+AI39=0),1,0)))) -> 0 | AV39: =H39*12 -> 0 | BD39: =IF(AV39>0,AV39-K39,R39*12) -> 0 | BN39: =IF(BD39>0,BD39-U39,AB39*12) -> 0 | BX39: =IF(BN39>0,BN39-AE39,AL39*12) -> 0 | CC39: 1 | CD39: =IF(AR39+AH39+X39+N39+D39<>0,1,0) -> 0
A40: 2 | J40: =IF(AV40>0,(D40+E40+F40+I40)/-AV40*K40,0) -> 0 | K40: =IF(G40>0,12-G40,12) -> 12 | N40: =D40+E40+F40+I40+J40 -> 0 | T40: =IF(BD40>0,(N40+O40+P40+S40)/-BD40*U40,0) -> 0 | U40: =IF(Q40>0,12-Q40,IF(BD40>12,12,IF(BD40-12>0,BD40-12,BD40))) -> 0 | X40: =N40+O40+P40+S40+T40 -> 0 | AD40: =IF(BN40>0,(X40+Y40+Z40+AC40)/-BN40*AE40,0) -> 0 | AE40: =IF(AA40>0,12-AA40,IF(BN40>12,12,IF(BN40-12>0,BN40-12,BN40))) -> 0 | AH40: =X40+Y40+Z40+AC40+AD40 -> 0 | AN40: =IF(BX40>0,(AH40+AI40+AJ40+AM40)/-BX40*AO40,0) -> 0 | AO40: =IF(AK40>0,12-AK40,IF(BX40>12,12,IF(BX40-12>0,BX40-12,BX40))) -> 0 | AR40: =AH40+AI40+AJ40+AM40+AN40 -> 0 | AU40: =IF(AND(F40<>0,D40+E40=0),1,IF(AND(P40<>0,N40+O40=0),1,IF(AND(Z40<>0,X40+Y40=0),1,IF(AND(AJ40<>0,AH40+AI40=0),1,0)))) -> 0 | AV40: =H40*12 -> 0 | BD40: =IF(AV40>0,AV40-K40,R40*12) -> 0 | BN40: =IF(BD40>0,BD40-U40,AB40*12) -> 0 | BX40: =IF(BN40>0,BN40-AE40,AL40*12) -> 0 | CC40: 1 | CD40: 0
D41: =SUM(D39:D40) -> 0 | E41: =SUM(E38:E40) -> 0 | J41: =SUM(J38:J40) -> 0 | N41: =SUM(N39:N40) -> 0 | O41: =SUM(O38:O40) -> 0 | T41: =SUM(T38:T40) -> 0 | X41: =SUM(X39:X40) -> 0 | Y41: =SUM(Y38:Y40) -> 0 | AD41: =SUM(AD38:AD40) -> 0 | AH41: =SUM(AH39:AH40) -> 0 | AI41: =SUM(AI38:AI40) -> 0 | AN41: =SUM(AN38:AN40) -> 0 | AR41: =SUM(AR39:AR40) -> 0 | CC41: 1 | CD41: 0
B42: Inventar, andet | E42: Investering | G42: M | H42: Rest-år | J42: Afskr. | K42: Levetid måneder primo | O42: Investering | Q42: M | R42: Rest-år | T42: Afskr. | U42: Levetid måneder primo | Y42: Investering | AA42: M | AB42: Rest-år | AD42: Afskr. | AE42: Levetid måneder primo | AI42: Investering | AK42: M | AL42: Rest-år | AN42: Afskr. | AO42: Levetid måneder primo | CC42: 1 | CD42: =CD45 -> 0
A43: 1 | J43: =IF(AV43>0,(D43+E43+F43+I43)/-AV43*K43,0) -> 0 | K43: =IF(G43>0,12-G43,12) -> 12 | N43: =D43+E43+F43+I43+J43 -> 0 | T43: =IF(BD43>0,(N43+O43+P43+S43)/-BD43*U43,0) -> 0 | U43: =IF(Q43>0,12-Q43,IF(BD43>12,12,IF(BD43-12>0,BD43-12,BD43))) -> 0 | X43: =N43+O43+P43+S43+T43 -> 0 | AD43: =IF(BN43>0,(X43+Y43+Z43+AC43)/-BN43*AE43,0) -> 0 | AE43: =IF(AA43>0,12-AA43,IF(BN43>12,12,IF(BN43-12>0,BN43-12,BN43))) -> 0 | AH43: =X43+Y43+Z43+AC43+AD43 -> 0 | AN43: =IF(BX43>0,(AH43+AI43+AJ43+AM43)/-BX43*AO43,0) -> 0 | AO43: =IF(AK43>0,12-AK43,IF(BX43>12,12,IF(BX43-12>0,BX43-12,BX43))) -> 0 | AR43: =AH43+AI43+AJ43+AM43+AN43 -> 0 | AU43: =IF(AND(F43<>0,D43+E43=0),1,IF(AND(P43<>0,N43+O43=0),1,IF(AND(Z43<>0,X43+Y43=0),1,IF(AND(AJ43<>0,AH43+AI43=0),1,0)))) -> 0 | AV43: =H43*12 -> 0 | BD43: =IF(AV43>0,AV43-K43,R43*12) -> 0 | BN43: =IF(BD43>0,BD43-U43,AB43*12) -> 0 | BX43: =IF(BN43>0,BN43-AE43,AL43*12) -> 0 | CC43: 1 | CD43: =IF(AR43+AH43+X43+N43+D43<>0,1,0) -> 0
A44: 2 | J44: =IF(AV44>0,(D44+E44+F44+I44)/-AV44*K44,0) -> 0 | K44: =IF(G44>0,12-G44,12) -> 12 | N44: =D44+E44+F44+I44+J44 -> 0 | T44: =IF(BD44>0,(N44+O44+P44+S44)/-BD44*U44,0) -> 0 | U44: =IF(Q44>0,12-Q44,IF(BD44>12,12,IF(BD44-12>0,BD44-12,BD44))) -> 0 | X44: =N44+O44+P44+S44+T44 -> 0 | AD44: =IF(BN44>0,(X44+Y44+Z44+AC44)/-BN44*AE44,0) -> 0 | AE44: =IF(AA44>0,12-AA44,IF(BN44>12,12,IF(BN44-12>0,BN44-12,BN44))) -> 0 | AH44: =X44+Y44+Z44+AC44+AD44 -> 0 | AN44: =IF(BX44>0,(AH44+AI44+AJ44+AM44)/-BX44*AO44,0) -> 0 | AO44: =IF(AK44>0,12-AK44,IF(BX44>12,12,IF(BX44-12>0,BX44-12,BX44))) -> 0 | AR44: =AH44+AI44+AJ44+AM44+AN44 -> 0 | AU44: =IF(AND(F44<>0,D44+E44=0),1,IF(AND(P44<>0,N44+O44=0),1,IF(AND(Z44<>0,X44+Y44=0),1,IF(AND(AJ44<>0,AH44+AI44=0),1,0)))) -> 0 | AV44: =H44*12 -> 0 | BD44: =IF(AV44>0,AV44-K44,R44*12) -> 0 | BN44: =IF(BD44>0,BD44-U44,AB44*12) -> 0 | BX44: =IF(BN44>0,BN44-AE44,AL44*12) -> 0 | CC44: 1 | CD44: 0
D45: =SUM(D43:D44) -> 0 | E45: =SUM(E42:E44) -> 0 | J45: =SUM(J42:J44) -> 0 | N45: =SUM(N43:N44) -> 0 | O45: =SUM(O42:O44) -> 0 | T45: =SUM(T42:T44) -> 0 | X45: =SUM(X43:X44) -> 0 | Y45: =SUM(Y42:Y44) -> 0 | AD45: =SUM(AD42:AD44) -> 0 | AH45: =SUM(AH43:AH44) -> 0 | AI45: =SUM(AI42:AI44) -> 0 | AN45: =SUM(AN42:AN44) -> 0 | AR45: =SUM(AR43:AR44) -> 0 | CC45: 1 | CD45: 0
B46: Besætning | E46: Forskydning | N46: 0 | O46: Forskydning | X46: 0 | Y46: Forskydning | AH46: 0 | AI46: Forskydning | CC46: 1 | CD46: =CD49 -> 0
A47: 1 | N47: =D47+E47 -> 0 | X47: =N47+O47 -> 0 | AH47: =X47+Y47 -> 0 | AR47: =AH47+AI47 -> 0 | AU47: =IF(AND(F47<>0,D47+E47=0),1,IF(AND(P47<>0,N47+O47=0),1,IF(AND(Z47<>0,X47+Y47=0),1,IF(AND(AJ47<>0,AH47+AI47=0),1,0)))) -> 0 | CC47: 1 | CD47: =IF(AR47+AH47+X47+N47+D47<>0,1,0) -> 0
A48: 2 | N48: =D48+E48 -> 0 | X48: =N48+O48 -> 0 | AH48: =X48+Y48 -> 0 | AR48: =AH48+AI48 -> 0 | AU48: =IF(AND(F48<>0,D48+E48=0),1,IF(AND(P48<>0,N48+O48=0),1,IF(AND(Z48<>0,X48+Y48=0),1,IF(AND(AJ48<>0,AH48+AI48=0),1,0)))) -> 0 | CC48: 1 | CD48: 0
D49: =SUM(D47:D48) -> 0 | E49: =SUM(E47:E48) -> 0 | N49: =SUM(N47:N48) -> 0 | O49: =SUM(O47:O48) -> 0 | X49: =SUM(X47:X48) -> 0 | Y49: =SUM(Y47:Y48) -> 0 | AH49: =SUM(AH47:AH48) -> 0 | AI49: =SUM(AI47:AI48) -> 0 | AR49: =SUM(AR47:AR48) -> 0 | CC49: 1 | CD49: 0
B50: Beholdninger | E50: Forskydning | O50: Forskydning | Y50: Forskydning | AI50: Forskydning | CC50: 1 | CD50: =CD55 -> 0
B51: Beholdninger, egen avl | N51: =D51+E51 -> 0 | X51: =N51+O51 -> 0 | AE51: =IF(Y51+X51=0,0,IF(ISBLANK(AB51),IF(U51>0,1/(1/U51-1),0),1/AB51)) -> 0 | AH51: =X51+Y51 -> 0 | AO51: =IF(AI51+AH51=0,0,IF(ISBLANK(AL51),IF(AE51>0,1/(1/AE51-1),0),1/AL51)) -> 0 | AR51: =AH51+AI51 -> 0 | AU51: =IF(AND(F51<>0,D51+E51=0),1,IF(AND(P51<>0,N51+O51=0),1,IF(AND(Z51<>0,X51+Y51=0),1,IF(AND(AJ51<>0,AH51+AI51=0),1,0)))) -> 0 | AV51: =H51 -> 0 | BD51: =IF(ISBLANK(R51),AV51,R51) -> 0 | BN51: =IF(ISBLANK(AB51),BD51,AB51) -> 0 | BX51: =IF(ISBLANK(AL51),BN51,AL51) -> 0 | CC51: 1 | CD51: =IF(AR51+AH51+X51+N51+D51<>0,1,0) -> 0
B52: Beholdninger, indkøbt foder | N52: =D52+E52 -> 0 | X52: =N52+O52 -> 0 | AE52: =IF(Y52+X52=0,0,IF(ISBLANK(AB52),IF(U52>0,1/(1/U52-1),0),1/AB52)) -> 0 | AH52: =X52+Y52 -> 0 | AO52: =IF(AI52+AH52=0,0,IF(ISBLANK(AL52),IF(AE52>0,1/(1/AE52-1),0),1/AL52)) -> 0 | AR52: =AH52+AI52 -> 0 | AU52: =IF(AND(F52<>0,D52+E52=0),1,IF(AND(P52<>0,N52+O52=0),1,IF(AND(Z52<>0,X52+Y52=0),1,IF(AND(AJ52<>0,AH52+AI52=0),1,0)))) -> 0 | AV52: =H52 -> 0 | BD52: =IF(ISBLANK(R52),AV52,R52) -> 0 | BN52: =IF(ISBLANK(AB52),BD52,AB52) -> 0 | BX52: =IF(ISBLANK(AL52),BN52,AL52) -> 0 | CC52: 1 | CD52: 0
B53: Jordbeholdninger | N53: =D53+E53 -> 0 | X53: =N53+O53 -> 0 | AE53: =IF(Y53+X53=0,0,IF(ISBLANK(AB53),IF(U53>0,1/(1/U53-1),0),1/AB53)) -> 0 | AH53: =X53+Y53 -> 0 | AO53: =IF(AI53+AH53=0,0,IF(ISBLANK(AL53),IF(AE53>0,1/(1/AE53-1),0),1/AL53)) -> 0 | AR53: =AH53+AI53 -> 0 | AU53: =IF(AND(F53<>0,D53+E53=0),1,IF(AND(P53<>0,N53+O53=0),1,IF(AND(Z53<>0,X53+Y53=0),1,IF(AND(AJ53<>0,AH53+AI53=0),1,0)))) -> 0 | AV53: =H53 -> 0 | BD53: =IF(ISBLANK(R53),AV53,R53) -> 0 | BN53: =IF(ISBLANK(AB53),BD53,AB53) -> 0 | BX53: =IF(ISBLANK(AL53),BN53,AL53) -> 0 | CC53: 1 | CD53: 0
B54: Andre beholdninger | N54: =D54+E54 -> 0 | X54: =N54+O54 -> 0 | AE54: =IF(Y54+X54=0,0,IF(ISBLANK(AB54),IF(U54>0,1/(1/U54-1),0),1/AB54)) -> 0 | AH54: =X54+Y54 -> 0 | AO54: =IF(AI54+AH54=0,0,IF(ISBLANK(AL54),IF(AE54>0,1/(1/AE54-1),0),1/AL54)) -> 0 | AR54: =AH54+AI54 -> 0 | AU54: =IF(AND(F54<>0,D54+E54=0),1,IF(AND(P54<>0,N54+O54=0),1,IF(AND(Z54<>0,X54+Y54=0),1,IF(AND(AJ54<>0,AH54+AI54=0),1,0)))) -> 0 | AV54: =H54 -> 0 | BD54: =IF(ISBLANK(R54),AV54,R54) -> 0 | BN54: =IF(ISBLANK(AB54),BD54,AB54) -> 0 | BX54: =IF(ISBLANK(AL54),BN54,AL54) -> 0 | CC54: 1 | CD54: 0
B55: Beholdninger i alt | D55: =SUM(D51:D54) -> 0 | E55: =SUM(E51:E54) -> 0 | N55: =SUM(N51:N54) -> 0 | O55: =SUM(O51:O54) -> 0 | T55: =SUM(T53:T54) -> 0 | X55: =SUM(X51:X54) -> 0 | Y55: =SUM(Y51:Y54) -> 0 | AD55: =SUM(AD53:AD54) -> 0 | AH55: =SUM(AH51:AH54) -> 0 | AI55: =SUM(AI51:AI54) -> 0 | AN55: =SUM(AN53:AN54) -> 0 | AR55: =SUM(AR51:AR54) -> 0 | CC55: 1 | CD55: 0
E56: Investering | J56: Afskr. | O56: Investering | T56: Afskr. | Y56: Investering | AD56: Afskr. | AI56: Investering | AN56: Afskr. | CC56: 1 | CD56: =CD57 -> 0
A57: LANDBRUGSAKTIVER | D57: =D55+D49+D45+D41+D37+D33+D29+D24 -> 0 | E57: =E24+E29+E33+E37+E41+E45+E49+E55 -> 0 | J57: =J24+J29+J33+J37+J41+J45+J49+J55 -> 0 | N57: =N55+N49+N45+N41+N37+N33+N29+N24 -> 0 | O57: =O24+O29+O33+O37+O41+O45+O49+O55 -> 0 | T57: =T24+T29+T33+T37+T41+T45+T49+T55 -> 0 | X57: =X55+X49+X45+X41+X37+X33+X29+X24 -> 0 | Y57: =Y24+Y29+Y33+Y37+Y41+Y45+Y49+Y55 -> 0 | AD57: =AD24+AD29+AD33+AD37+AD41+AD45+AD49+AD55 -> 0 | AH57: =AH55+AH49+AH45+AH41+AH37+AH33+AH29+AH24 -> 0 | AI57: =AI24+AI29+AI33+AI37+AI41+AI45+AI49+AI55 -> 0 | AN57: =AN24+AN29+AN33+AN37+AN41+AN45+AN49+AN55 -> 0 | AR57: =AR55+AR49+AR45+AR41+AR37+AR33+AR29+AR24 -> 0 | CC57: 1 | CD57: =IF(AR57+AH57+X57+N57+D57<>0,1,0) -> 0
CC58: 1 | CD58: =CD57 -> 0
B59: Biler mv. | E59: Investering | G59: M | H59: Rest-år | J59: Afskr. | K59: Levetid måneder primo | O59: Investering | Q59: M | R59: Rest-år | T59: Afskr. | U59: Levetid måneder primo | Y59: Investering | AA59: M | AB59: Rest-år | AD59: Afskr. | AE59: Levetid måneder primo | AI59: Investering | AK59: M | AL59: Rest-år | AN59: Afskr. | AO59: Levetid måneder primo | CC59: 1 | CD59: =CD63 -> 0
A60: 1 | J60: =IF(AV60>0,(D60+E60+F60+I60)/-AV60*K60,0) -> 0 | K60: =IF(G60>0,12-G60,12) -> 12 | N60: =D60+E60+F60+I60+J60 -> 0 | T60: =IF(BD60>0,(N60+O60+P60+S60)/-BD60*U60,0) -> 0 | U60: =IF(Q60>0,12-Q60,IF(BD60>12,12,IF(BD60-12>0,BD60-12,BD60))) -> 0 | X60: =N60+O60+P60+S60+T60 -> 0 | AD60: =IF(BN60>0,(X60+Y60+Z60+AC60)/-BN60*AE60,0) -> 0 | AE60: =IF(AA60>0,12-AA60,IF(BN60>12,12,IF(BN60-12>0,BN60-12,BN60))) -> 0 | AH60: =X60+Y60+Z60+AC60+AD60 -> 0 | AN60: =IF(BX60>0,(AH60+AI60+AJ60+AM60)/-BX60*AO60,0) -> 0 | AO60: =IF(AK60>0,12-AK60,IF(BX60>12,12,IF(BX60-12>0,BX60-12,BX60))) -> 0 | AR60: =AH60+AI60+AJ60+AM60+AN60 -> 0 | AU60: =IF(AND(F60<>0,D60+E60=0),1,IF(AND(P60<>0,N60+O60=0),1,IF(AND(Z60<>0,X60+Y60=0),1,IF(AND(AJ60<>0,AH60+AI60=0),1,0)))) -> 0 | AV60: =H60*12 -> 0 | BD60: =IF(AV60>0,AV60-K60,R60*12) -> 0 | BN60: =IF(BD60>0,BD60-U60,AB60*12) -> 0 | BX60: =IF(BN60>0,BN60-AE60,AL60*12) -> 0 | CC60: 1 | CD60: =IF(AR60+AH60+X60+N60+D60<>0,1,0) -> 0
A61: 2 | J61: =IF(AV61>0,(D61+E61+F61+I61)/-AV61*K61,0) -> 0 | K61: =IF(G61>0,12-G61,12) -> 12 | N61: =D61+E61+F61+I61+J61 -> 0 | T61: =IF(BD61>0,(N61+O61+P61+S61)/-BD61*U61,0) -> 0 | U61: =IF(Q61>0,12-Q61,IF(BD61>12,12,IF(BD61-12>0,BD61-12,BD61))) -> 0 | X61: =N61+O61+P61+S61+T61 -> 0 | AD61: =IF(BN61>0,(X61+Y61+Z61+AC61)/-BN61*AE61,0) -> 0 | AE61: =IF(AA61>0,12-AA61,IF(BN61>12,12,IF(BN61-12>0,BN61-12,BN61))) -> 0 | AH61: =X61+Y61+Z61+AC61+AD61 -> 0 | AN61: =IF(BX61>0,(AH61+AI61+AJ61+AM61)/-BX61*AO61,0) -> 0 | AO61: =IF(AK61>0,12-AK61,IF(BX61>12,12,IF(BX61-12>0,BX61-12,BX61))) -> 0 | AR61: =AH61+AI61+AJ61+AM61+AN61 -> 0 | AU61: =IF(AND(F61<>0,D61+E61=0),1,IF(AND(P61<>0,N61+O61=0),1,IF(AND(Z61<>0,X61+Y61=0),1,IF(AND(AJ61<>0,AH61+AI61=0),1,0)))) -> 0 | AV61: =H61*12 -> 0 | BD61: =IF(AV61>0,AV61-K61,R61*12) -> 0 | BN61: =IF(BD61>0,BD61-U61,AB61*12) -> 0 | BX61: =IF(BN61>0,BN61-AE61,AL61*12) -> 0 | CC61: 1 | CD61: 0
CC62: 1 | CD62: =CD63 -> 0
A63: BILER MV. | D63: =SUM(D60:D61) -> 0 | E63: =SUM(E59:E61) -> 0 | J63: =SUM(J59:J61) -> 0 | N63: =SUM(N60:N61) -> 0 | O63: =SUM(O59:O61) -> 0 | T63: =SUM(T59:T61) -> 0 | X63: =SUM(X60:X61) -> 0 | Y63: =SUM(Y59:Y61) -> 0 | AD63: =SUM(AD59:AD61) -> 0 | AH63: =SUM(AH60:AH61) -> 0 | AI63: =SUM(AI59:AI61) -> 0 | AN63: =SUM(AN59:AN61) -> 0 | AR63: =SUM(AR60:AR61) -> 0 | CC63: 1 | CD63: =IF(AR63+AH63+X63+N63+D63<>0,1,0) -> 0
B64: Aktiver udenfor landbrug | E64: Investering | G64: M | H64: Rest-år | J64: Afskr. | K64: Levetid måneder primo | O64: Investering | Q64: M | R64: Rest-år | T64: Afskr. | U64: Levetid måneder primo | Y64: Investering | AA64: M | AB64: Rest-år | AD64: Afskr. | AE64: Levetid måneder primo | AI64: Investering | AK64: M | AL64: Rest-år | AN64: Afskr. | AO64: Levetid måneder primo | CC64: 1 | CD64: =CD68 -> 0
A65: 1 | J65: =IF(AV65>0,(D65+E65+F65+I65)/-AV65*K65,0) -> 0 | K65: =IF(G65>0,12-G65,12) -> 12 | N65: =D65+E65+F65+I65+J65 -> 0 | T65: =IF(BD65>0,(N65+O65+P65+S65)/-BD65*U65,0) -> 0 | U65: =IF(Q65>0,12-Q65,IF(BD65>12,12,IF(BD65-12>0,BD65-12,BD65))) -> 0 | X65: =N65+O65+P65+S65+T65 -> 0 | AD65: =IF(BN65>0,(X65+Y65+Z65+AC65)/-BN65*AE65,0) -> 0 | AE65: =IF(AA65>0,12-AA65,IF(BN65>12,12,IF(BN65-12>0,BN65-12,BN65))) -> 0 | AH65: =X65+Y65+Z65+AC65+AD65 -> 0 | AN65: =IF(BX65>0,(AH65+AI65+AJ65+AM65)/-BX65*AO65,0) -> 0 | AO65: =IF(AK65>0,12-AK65,IF(BX65>12,12,IF(BX65-12>0,BX65-12,BX65))) -> 0 | AR65: =AH65+AI65+AJ65+AM65+AN65 -> 0 | AU65: =IF(AND(F65<>0,D65+E65=0),1,IF(AND(P65<>0,N65+O65=0),1,IF(AND(Z65<>0,X65+Y65=0),1,IF(AND(AJ65<>0,AH65+AI65=0),1,0)))) -> 0 | AV65: =H65*12 -> 0 | BD65: =IF(AV65>0,AV65-K65,R65*12) -> 0 | BN65: =IF(BD65>0,BD65-U65,AB65*12) -> 0 | BX65: =IF(BN65>0,BN65-AE65,AL65*12) -> 0 | CC65: 1 | CD65: =IF(AR65+AH65+X65+N65+D65<>0,1,0) -> 0
A66: 2 | J66: =IF(AV66>0,(D66+E66+F66+I66)/-AV66*K66,0) -> 0 | K66: =IF(G66>0,12-G66,12) -> 12 | N66: =D66+E66+F66+I66+J66 -> 0 | T66: =IF(BD66>0,(N66+O66+P66+S66)/-BD66*U66,0) -> 0 | U66: =IF(Q66>0,12-Q66,IF(BD66>12,12,IF(BD66-12>0,BD66-12,BD66))) -> 0 | X66: =N66+O66+P66+S66+T66 -> 0 | AD66: =IF(BN66>0,(X66+Y66+Z66+AC66)/-BN66*AE66,0) -> 0 | AE66: =IF(AA66>0,12-AA66,IF(BN66>12,12,IF(BN66-12>0,BN66-12,BN66))) -> 0 | AH66: =X66+Y66+Z66+AC66+AD66 -> 0 | AN66: =IF(BX66>0,(AH66+AI66+AJ66+AM66)/-BX66*AO66,0) -> 0 | AO66: =IF(AK66>0,12-AK66,IF(BX66>12,12,IF(BX66-12>0,BX66-12,BX66))) -> 0 | AR66: =AH66+AI66+AJ66+AM66+AN66 -> 0 | AU66: =IF(AND(F66<>0,D66+E66=0),1,IF(AND(P66<>0,N66+O66=0),1,IF(AND(Z66<>0,X66+Y66=0),1,IF(AND(AJ66<>0,AH66+AI66=0),1,0)))) -> 0 | AV66: =H66*12 -> 0 | BD66: =IF(AV66>0,AV66-K66,R66*12) -> 0 | BN66: =IF(BD66>0,BD66-U66,AB66*12) -> 0 | BX66: =IF(BN66>0,BN66-AE66,AL66*12) -> 0 | CC66: 1 | CD66: 0
CC67: 1 | CD67: =CD68 -> 0
A68: AKTIVER UDENFOR LANDBRUG | D68: =SUM(D65:D66) -> 0 | E68: =SUM(E64:E66) -> 0 | J68: =SUM(J64:J66) -> 0 | N68: =SUM(N65:N66) -> 0 | O68: =SUM(O64:O66) -> 0 | T68: =SUM(T64:T66) -> 0 | X68: =SUM(X65:X66) -> 0 | Y68: =SUM(Y64:Y66) -> 0 | AD68: =SUM(AD64:AD66) -> 0 | AH68: =SUM(AH65:AH66) -> 0 | AI68: =SUM(AI64:AI66) -> 0 | AN68: =SUM(AN64:AN66) -> 0 | AR68: =SUM(AR65:AR66) -> 0 | CC68: 1 | CD68: =IF(AR68+AH68+X68+N68+D68<>0,1,0) -> 0
A69: 0 | E69: Investering | H69: kons | O69: Investering | R69: kons | Y69: Investering | AB69: kons | AI69: Investering | AL69: kons | CC69: 1 | CD69: =CD76 -> 0
A70: 0 | B70: Aktier i Holdingselskaber | D70: =Holding!B55 -> 0 | E70: =Holding!E52*-1 -> 0 | H70: =N70-D70-E70 -> 0 | N70: =Holding!E55 -> 0 | O70: =Holding!O52*-1 -> 0 | R70: =X70-N70-O70 -> 0 | X70: =Holding!O55 -> 0 | Y70: =Holding!Y52*-1 -> 0 | AB70: =AH70-X70-Y70 -> 0 | AH70: =Holding!Y55 -> 0 | AI70: =Holding!AI52*-1 -> 0 | AL70: =AR70-AH70-AI70 -> 0 | AR70: =Holding!AI55 -> 0 | CC70: 1 | CD70: =IF(AR70+AH70+X70+N70+D70<>0,1,0) -> 0
A71: 0 | B71: Tilgodehavender i alt | N71: =D71+E71+J71+F71+I71 -> 0 | U71: =IF(O71+N71=0,0,IF(ISBLANK(R71),IF(K71>0,1/(1/K71-1),0),1/R71)) -> 0 | X71: =N71+O71+T71+P71+S71 -> 0 | AE71: =IF(Y71+X71=0,0,IF(ISBLANK(AB71),IF(U71>0,1/(1/U71-1),0),1/AB71)) -> 0 | AH71: =X71+Y71+AD71+Z71+AC71 -> 0 | AO71: =IF(AI71+AH71=0,0,IF(ISBLANK(AL71),IF(AE71>0,1/(1/AE71-1),0),1/AL71)) -> 0 | AR71: =AH71+AI71+AN71+AJ71+AM71 -> 0 | AU71: =IF(AND(F71<>0,D71+E71=0),1,IF(AND(P71<>0,N71+O71=0),1,IF(AND(Z71<>0,X71+Y71=0),1,IF(AND(AJ71<>0,AH71+AI71=0),1,0)))) -> 0 | CC71: 1 | CD71: 0
A72: 0 | B72: Værdipapirer | N72: =D72+E72+H72+F72+I72 -> 0 | U72: =IF(O72+N72=0,0,IF(ISBLANK(R72),IF(K72>0,1/(1/K72-1),0),1/R72)) -> 0 | X72: =N72+O72+R72+P72+S72 -> 0 | AE72: =IF(Y72+X72=0,0,IF(ISBLANK(AB72),IF(U72>0,1/(1/U72-1),0),1/AB72)) -> 0 | AH72: =X72+Y72+AB72+Z72+AC72 -> 0 | AO72: =IF(AI72+AH72=0,0,IF(ISBLANK(AL72),IF(AE72>0,1/(1/AE72-1),0),1/AL72)) -> 0 | AR72: =AH72+AI72+AL72+AJ72+AM72 -> 0 | AU72: =IF(AND(F72<>0,D72+E72=0),1,IF(AND(P72<>0,N72+O72=0),1,IF(AND(Z72<>0,X72+Y72=0),1,IF(AND(AJ72<>0,AH72+AI72=0),1,0)))) -> 0 | AV72: =H72 -> 0 | BD72: =IF(ISBLANK(R72),AV72,R72) -> 0 | BN72: =IF(ISBLANK(AB72),BD72,AB72) -> 0 | BX72: =IF(ISBLANK(AL72),BN72,AL72) -> 0 | CC72: 1 | CD72: 0
A73: 0 | B73: Indlån | K73: =IF(E73+D73=0,0,IF(ISBLANK(H73),IF(C73>0,1/(1/C73-1),0),1/H73)) -> 0 | N73: =D73+E73+F73+I73+J73 -> 0 | U73: =IF(O73+N73=0,0,IF(ISBLANK(R73),IF(K73>0,1/(1/K73-1),0),1/R73)) -> 0 | X73: =N73+O73+P73+S73+T73 -> 0 | AE73: =IF(Y73+X73=0,0,IF(ISBLANK(AB73),IF(U73>0,1/(1/U73-1),0),1/AB73)) -> 0 | AH73: =X73+Y73+Z73+AC73+AD73 -> 0 | AO73: =IF(AI73+AH73=0,0,IF(ISBLANK(AL73),IF(AE73>0,1/(1/AE73-1),0),1/AL73)) -> 0 | AR73: =AH73+AI73+AJ73+AM73+AN73 -> 0 | AU73: =IF(AND(F73<>0,D73+E73=0),1,IF(AND(P73<>0,N73+O73=0),1,IF(AND(Z73<>0,X73+Y73=0),1,IF(AND(AJ73<>0,AH73+AI73=0),1,0)))) -> 0 | CC73: 1 | CD73: 0
B74: Kassekredit (når den er positiv) | D74: =IF(kkSenior>0,kkSenior,0) -> 0 | N74: =IF(N99>0,N99,0) -> 0 | X74: =IF(X99>0,X99,0) -> 0 | AH74: =IF(AH99>0,AH99,0) -> 0 | AR74: =IF(AR99>0,AR99,0) -> 0 | CC74: 1 | CD74: 0
CC75: 1 | CD75: =CD76 -> 0
A76: FINANSAKTIVER | D76: =SUM(D70:D74) -> 0 | E76: =SUM(E70:E74) -> 0 | F76: =F72 -> 0 | H76: =H70 -> 0 | J76: =J70 -> 0 | N76: =SUM(N70:N74) -> 0 | O76: =SUM(O70:O74) -> 0 | R76: =R70 -> 0 | T76: =T70 -> 0 | X76: =SUM(X70:X74) -> 0 | Y76: =SUM(Y70:Y74) -> 0 | AB76: =AB70 -> 0 | AD76: =AD70 -> 0 | AH76: =SUM(AH70:AH74) -> 0 | AI76: =SUM(AI70:AI74) -> 0 | AL76: =AL70 -> 0 | AN76: =AN70 -> 0 | AR76: =SUM(AR70:AR74) -> 0 | CC76: 1 | CD76: =IF(AR76+AH76+X76+N76+D76<>0,1,0) -> 0
A77: 0 | E77: Investering | J77: Afskr. | O77: Investering | T77: Afskr. | Y77: Investering | AD77: Afskr. | AI77: Investering | AN77: Afskr. | CC77: 1 | CD77: =CD76 -> 0
A78: AKTIVER I ALT | D78: =D76+D57+D63+D68 -> 0 | E78: =E57+E63+E68+E76 -> 0 | F78: =F57+F63+F68+F76 -> 0 | J78: =J57+J63+J68 -> 0 | N78: =N76+N57+N63+N68 -> 0 | O78: =O57+O63+O68+O76 -> 0 | T78: =T57+T63+T68 -> 0 | X78: =X76+X57+X63+X68 -> 0 | Y78: =Y57+Y63+Y68+Y76 -> 0 | AD78: =AD57+AD63+AD68 -> 0 | AH78: =AH76+AH57+AH63+AH68 -> 0 | AI78: =AI57+AI63+AI68+AI76 -> 0 | AN78: =AN57+AN63+AN68 -> 0 | AR78: =AR76+AR57+AR63+AR68 -> 0 | BN78: Aktiver sum excl. besætning og værdipapirer | CC78: 1 | CD78: =IF(AR78+AH78+X78+N78+D78<>0,1,0) -> 0
BN79: Urealiseret og realiseret værdipapirer har egen linje i resultatet | CC79: 1 | CD79: =CD78 -> 0
CC80: 1 | CD80: 1
CC81: 1
BN82: Besætning sum (altid resultatført) | CC82: 1
CC83: 1 | CD83: 1
CC84: 1 | CD84: 1
A85: PASSIVER | D85: =D6 -> 2025 | E85: - 1.000 kr - | N85: =N6 -> 2026 | O85: - 1.000 kr - | X85: =X6 -> 2027 | Y85: - 1.000 kr - | AH85: =AH6 -> 2028 | AI85: - 1.000 kr - | AR85: =AR6 -> 2029 | CC85: 1 | CD85: 1
CC86: 1 | CD86: 1
A87: =(SUM(A88:A89)-3)/3+2 -> 2 | D87: - Gæld | E87: - Ny gæld | H87: + Afdrag | O87: - Ny gæld | R87: + Afdrag | Y87: - Ny gæld | AB87: + Afdrag | AI87: - Ny gæld | AL87: + Afdrag | CC87: 1 | CD87: =CD91 -> 0
A88: 1 | B88: Realkredit | K88: =IF(-H88<TabsProcent*(D88+E88),1,0) ->  | N88: =D88+E88+H88 -> 0 | U88: =IF(-R88<TabsProcent*(N88+O88),1,0) ->  | X88: =N88+O88+R88 -> 0 | AE88: =IF(-AB88<TabsProcent*(X88+Y88),1,0) ->  | AH88: =X88+Y88+AB88 -> 0 | AO88: =IF(-AL88<TabsProcent*(AH88+AI88),1,0) ->  | AR88: =AH88+AI88+AL88 -> 0 | AU88: =IF(AND(F88<>0,D88+E88=0),1,IF(AND(P88<>0,N88+O88=0),1,IF(AND(Z88<>0,X88+Y88=0),1,IF(AND(AJ88<>0,AH88+AI88=0),1,0)))) -> 0 | BN88: Indfrielse a gæld registreres i kolonnen før ultimo | CC88: 1 | CD88: =IF(AR88+AH88+X88+N88+D88<>0,1,0) -> 0
A89: 2 | N89: 0 | X89: 0 | AH89: 0 | AR89: 0 | AU89: 0 | CC89: 1 | CD89: 0
CC90: 1 | CD90: =CD91 -> 0
A91: PRIORITETSGÆLD | D91: =IF(ISNUMBER(SUM(D88:D89)),SUM(D88:D89),0) -> 0 | E91: =SUM(E88:E89) -> 0 | H91: =SUM(H88:H89) -> 0 | J91: =SUM(J88:J89) -> 0 | N91: =IF(ISNUMBER(SUM(N88:N89)),SUM(N88:N89),0) -> 0 | O91: =SUM(O88:O89) -> 0 | R91: =SUM(R88:R89) -> 0 | S91: =SUM(S88:S89) -> 0 | T91: =SUM(T88:T89) -> 0 | X91: =IF(ISNUMBER(SUM(X88:X89)),SUM(X88:X89),0) -> 0 | Y91: =SUM(Y88:Y89) -> 0 | AB91: =SUM(AB88:AB89) -> 0 | AD91: =SUM(AD88:AD89) -> 0 | AH91: =IF(ISNUMBER(SUM(AH88:AH89)),SUM(AH88:AH89),0) -> 0 | AI91: =SUM(AI88:AI89) -> 0 | AL91: =SUM(AL88:AL89) -> 0 | AN91: =SUM(AN88:AN89) -> 0 | AR91: =IF(ISNUMBER(SUM(AR88:AR89)),SUM(AR88:AR89),0) -> 0 | CC91: 1 | CD91: =IF(AR91+AH91+X91+N91+D91<>0,1,0) -> 0
D92: - Gæld | E92: - Ny gæld | H92: + Afdrag | O92: - Ny gæld | R92: + Afdrag | Y92: - Ny gæld | AB92: + Afdrag | AI92: - Ny gæld | AL92: + Afdrag | CC92: 1 | CD92: =CD97 -> 0
A93: 1 | B93: Foderstof | K93: =IF(-H93<TabsProcent*(D93+E93),1,0) ->  | N93: =D93+E93+H93 -> 0 | U93: =IF(-R93<TabsProcent*(N93+O93),1,0) ->  | X93: =N93+O93+R93 -> 0 | AE93: =IF(-AB93<TabsProcent*(X93+Y93),1,0) ->  | AH93: =X93+Y93+AB93 -> 0 | AO93: =IF(-AL93<TabsProcent*(AH93+AI93),1,0) ->  | AR93: =AH93+AI93+AL93 -> 0 | AU93: =IF(AND(F93<>0,D93+E93=0),1,IF(AND(P93<>0,N93+O93=0),1,IF(AND(Z93<>0,X93+Y93=0),1,IF(AND(AJ93<>0,AH93+AI93=0),1,0)))) -> 0 | CC93: 1 | CD93: =IF(AR93+AH93+X93+N93+D93<>0,1,0) -> 0
A94: 3 | B94: Maskinstation | K94: =IF(-H94<TabsProcent*(D94+E94),1,0) ->  | N94: =D94+E94+H94 -> 0 | U94: =IF(-R94<TabsProcent*(N94+O94),1,0) ->  | X94: =N94+O94+R94 -> 0 | AE94: =IF(-AB94<TabsProcent*(X94+Y94),1,0) ->  | AH94: =X94+Y94+AB94 -> 0 | AO94: =IF(-AL94<TabsProcent*(AH94+AI94),1,0) ->  | AR94: =AH94+AI94+AL94 -> 0 | AU94: =IF(AND(F94<>0,D94+E94=0),1,IF(AND(P94<>0,N94+O94=0),1,IF(AND(Z94<>0,X94+Y94=0),1,IF(AND(AJ94<>0,AH94+AI94=0),1,0)))) -> 0 | CC94: 1 | CD94: 0
A95: 3 | K95: =IF(-H95<TabsProcent*(D95+E95),1,0) ->  | N95: =D95+E95+H95 -> 0 | U95: =IF(-R95<TabsProcent*(N95+O95),1,0) ->  | X95: =N95+O95+R95 -> 0 | AE95: =IF(-AB95<TabsProcent*(X95+Y95),1,0) ->  | AH95: =X95+Y95+AB95 -> 0 | AO95: =IF(-AL95<TabsProcent*(AH95+AI95),1,0) ->  | AR95: =AH95+AI95+AL95 -> 0 | AU95: =IF(AND(F95<>0,D95+E95=0),1,IF(AND(P95<>0,N95+O95=0),1,IF(AND(Z95<>0,X95+Y95=0),1,IF(AND(AJ95<>0,AH95+AI95=0),1,0)))) -> 0 | CC95: 1 | CD95: 0
A96: 2 | K96: =IF(-H96<TabsProcent*(D96+E96),1,0) ->  | N96: =D96+E96+H96 -> 0 | U96: =IF(-R96<TabsProcent*(N96+O96),1,0) ->  | X96: =N96+O96+R96 -> 0 | AE96: =IF(-AB96<TabsProcent*(X96+Y96),1,0) ->  | AH96: =X96+Y96+AB96 -> 0 | AO96: =IF(-AL96<TabsProcent*(AH96+AI96),1,0) ->  | AR96: =AH96+AI96+AL96 -> 0 | AU96: =IF(AND(F96<>0,D96+E96=0),1,IF(AND(P96<>0,N96+O96=0),1,IF(AND(Z96<>0,X96+Y96=0),1,IF(AND(AJ96<>0,AH96+AI96=0),1,0)))) -> 0 | CC96: 1 | CD96: 0
B97: Anden gæld i alt | D97: =IF(ISNUMBER(SUM(D93:D96)),SUM(D93:D96),0) -> 0 | E97: =SUM(E93:E96) -> 0 | H97: =SUM(H93:H96) -> 0 | N97: =IF(ISNUMBER(SUM(N93:N96)),SUM(N93:N96),0) -> 0 | O97: =SUM(O93:O96) -> 0 | R97: =SUM(R93:R96) -> 0 | X97: =IF(ISNUMBER(SUM(X93:X96)),SUM(X93:X96),0) -> 0 | Y97: =SUM(Y93:Y96) -> 0 | AB97: =SUM(AB93:AB96) -> 0 | AH97: =IF(ISNUMBER(SUM(AH93:AH96)),SUM(AH93:AH96),0) -> 0 | AI97: =SUM(AI93:AI96) -> 0 | AL97: =SUM(AL93:AL96) -> 0 | AR97: =IF(ISNUMBER(SUM(AR93:AR96)),SUM(AR93:AR96),0) -> 0 | CC97: 1 | CD97: 0
B98: Moms og afgifter | E98: =-'Senior Resultat'!G176/1000 -> 0 | H98: =-'Senior Resultat'!E176/1000 -> 0 | N98: =D98+E98+H98 -> 0 | O98: =-'Senior Resultat'!Q176/1000 -> 0 | R98: =-'Senior Resultat'!O176/1000 -> 0 | X98: =N98+O98+R98 -> 0 | Y98: =-'Senior Resultat'!AA176/1000 -> 0 | AB98: =-'Senior Resultat'!W176/1000 -> 0 | AH98: =X98+Y98+AB98 -> 0 | AI98: =-'Senior Resultat'!AK176/1000 -> 0 | AL98: =-'Senior Resultat'!AG176/1000 -> 0 | AR98: =AH98+AI98+AL98 -> 0 | CC98: 1 | CD98: 0
B99: Kassekredit | D99: =kkSenior -> 0 | E99: =-'Senior Resultat'!G178/1000 -> 0 | H99: ='Senior Resultat'!E178/-1000 -> 0 | N99: =D99+E99+H99 -> 0 | O99: =-'Senior Resultat'!Q178/1000 -> 0 | R99: =-'Senior Resultat'!O178/1000 -> 0 | X99: =N99+O99+R99 -> 0 | Y99: ='Senior Resultat'!AA178/-1000 -> 0 | AB99: ='Senior Resultat'!W178/-1000 -> 0 | AH99: =X99+Y99+AB99 -> 0 | AI99: ='Senior Resultat'!AK178/-1000 -> 0 | AL99: ='Senior Resultat'!AG178/-1000 -> 0 | AR99: =AH99+AI99+AL99 -> 0 | CC99: 1 | CD99: 0
CC100: 1 | CD100: 0
A101: GÆLD I ALT | D101: =D91+D97+D98+IF(D99<0,D99,0) -> 0 | E101: =E97+E98+IF(E99<0,E99,0) -> 0 | H101: =H97+H98+IF(N99<0,H99,0) -> 0 | N101: =N91+N97+N98+IF(N99<0,N99,0) -> 0 | O101: =O97+O98+IF(X99<0,O99,0) -> 0 | R101: =R97+R98+IF(X99<0,R99,0) -> 0 | X101: =X91+X97+X98+IF(X99<0,X99,0) -> 0 | Y101: =Y97+Y98+IF(AH99<0,Y99,0) -> 0 | AB101: =AB97+AB98+IF(AH99<0,AB99,0) -> 0 | AH101: =AH91+AH97+AH98+IF(AH99<0,AH99,0) -> 0 | AI101: =AI97+AI98+IF(AR99<0,AI99,0) -> 0 | AL101: =AL97+AL98+IF(AR99<0,AL99,0) -> 0 | AR101: =AR91+AR97+AR98+IF(AR99<0,AR99,0) -> 0 | CC101: 1 | CD101: 0
CC102: 1
A103: HENSÆTTELSE, udskudt skat | E103: =IF('Senior Resultat'!G113>0,'Senior Resultat'!G113/1000,0) -> 0 | H103: =IF('Senior Resultat'!G113<0,'Senior Resultat'!G113/1000,0) -> 0 | N103: =D103+E103+H103 -> 0 | O103: =IF('Senior Resultat'!Q113>0,'Senior Resultat'!Q113/1000,0) -> 0 | R103: =IF('Senior Resultat'!Q113<0,'Senior Resultat'!Q113/1000,0) -> 0 | X103: =N103+O103+R103 -> 0 | Y103: =IF('Senior Resultat'!AA113>0,'Senior Resultat'!AA113/1000,0) -> 0 | AB103: =IF('Senior Resultat'!AA113<0,'Senior Resultat'!AA113/1000,0) -> 0 | AH103: =X103+Y103+AB103 -> 0 | AI103: =IF('Senior Resultat'!AK113>0,'Senior Resultat'!AK113/1000,0) -> 0 | AL103: =IF('Senior Resultat'!AK113<0,'Senior Resultat'!AK113/1000,0) -> 0 | AR103: =AH103+AI103+AL103 -> 0 | CC103: 1 | CD103: =IF(AR103+AH103+X103+N103+D103<>0,1,0) -> 0
CC104: 1 | CD104: =CD105 -> 0
B105: Indskudskapital | D105: =D78+D101+D103 -> 0 | N105: =D105 -> 0 | X105: =N105 -> 0 | AH105: =X105 -> 0 | AR105: =AH105 -> 0 | CC105: 1 | CD105: =IF(AR105+AH105+X105+N105+D105<>0,1,0) -> 0
CC106: 1 | CD106: =CD105 -> 0
B107: Overført resultat | D107: 0 | E107: =E109 -> 0 | N107: =N78+N103+N101-N105 -> 0 | X107: =X78+X103+X101-X105 -> 0 | AH107: =AH78+AH103+AH101-AH105 -> 0 | AR107: =AR78+AR103+AR101-AR105 -> 0 | CC107: 1 | CD107: =IF(AR107+AH107+X107+N107+D107<>0,1,0) -> 0
J108: Overført | T108: Overført | AD108: Overført | AN108: Overført | CC108: 1 | CD108: =CD109 -> 0
A109: EGENKAPITAL | D109: =D78+D101+D103 -> 0 | J109: =N109-D109 -> 0 | N109: =N78+N101+N103 -> 0 | T109: =X109-N109 -> 0 | X109: =X78+X101+X103 -> 0 | AD109: =AH109-X109 -> 0 | AH109: =AH78+AH101+AH103 -> 0 | AN109: =AR109-AH109 -> 0 | AR109: =AR78+AR101+AR103 -> 0 | CC109: 1 | CD109: =IF(AR109+AH109+X109+N109+D109<>0,1,0) -> 0
CC110: 1 | CD110: =CD109 -> 0
D111: =D78+D101+D103-D109 -> 0 | N111: =N78+N101+N103-N109 -> 0 | X111: =X78+X101+X103-X109 -> 0 | AH111: =AH78+AH101+AH103-AH109 -> 0 | AR111: =AR78+AR101+AR103-AR109 -> 0 | CC111: 1 | CD111: 1
A112: * Stjerne markerer immaterielle aktiver og rettigheder, hvor evt. afskrivning ikke føres sammen med øvrige afskrivninger, men lige før årets resultat før skat. | CC112: 1 | CD112: 0
N113: =N109*1000-'Senior Resultat'!G123 -> 0 | X113: =X109*1000-'Senior Resultat'!Q123 -> 0 | AH113: =AH109*1000-'Senior Resultat'!AA123 -> 0 | AR113: =AR109*1000-'Senior Resultat'!AK123 -> 0 | CC113: 1 | CD113: 0
A114: Kassekredit/likviditet i alt | D114: =IF(D99>0,D74,D99) -> 0 | N114: =IF(N99>0,N74,N99) -> 0 | X114: =IF(X99>0,X74,X99) -> 0 | AH114: =IF(AH99>0,AH74,AH99) -> 0 | AR114: =IF(AR99>0,AR74,AR99) -> 0 | CC114: 1 | CD114: =IF(AR114+AH114+X114+N114+D114<>0,1,0) -> 0
S146: timer
AR147: =IF(ISERROR(SUM(A1:AR133)),1,0) -> 1 | AS147: =IF(ISERROR(SUM(B1:AS133)),1,0) -> 1
F155: =F78+F101 -> 0 | P155: =P78+P101 -> 0 | Z155: =Z78+Z101 -> 0 | AJ155: =AJ78+AJ101 -> 0 | AU155: =IF(StopMensOverfoer=0,0,IF(ISERROR(SUM(F155:AM155)),0,TRUNC((ABS(fsum)+ABS(hsum)+ABS(msum)+ABS(osum)+ABS(tsum)+ABS(vsum)+ABS(aasum)+ABS(acsum)),0))) -> 
DK163: Dato | DL163: Version | DM163: Ændringer
DK164: 12.08.06 | DL164: 3 | DM164: Anlægskartotek, udskriftsmenu
DK165: 15.09.06 | DL165: 3.1 | DM165: Skattesatser opdateret i satstabel til 2007 tal. Amtsskat ændret til sundhedsbidrag. Tekst ændret ved kassekredit
DK166: 10.10.06 | DL166: 3.1 | DM166: Automatiseret visningen af kommentarer og scroll for første visning
DK167: 16.10.06 | DL167: 3.1 | DM167: Tilpasset indsat/slet beskedder og automatiseret sletning af ny linie
DK168: 25.10.06 | DL168: 3.1 | DM168: Format med nul i lineær afskr.
DK169: 17.11.06 | DL169: 3.1 | DM169: Knap aut. tilpasning af kolonnebredde
DK170: 04.12.06 | DL170: 3.1 | DM170: Sumformel besætning var ikke beskyttet, er rettet
DK171: 14.03.07 | DL171: 3.1 | DM171: Indsæt linie med ClearContest i stedet for nul, rammer i fast ejd. layout
DK172: 21.06.07 | DL172: 2007 | DM172: Office 2007 med ny menustruktur, 1 side udskrift, afskr. Kvote og rettigheder, DE nøgletal, maxKapafkast samt opsparing tilpasset situation med store kapaafkast
DK173: 11.09.07 | DL173: 2007 | DM173: Ændret makro for udskrift med besked. Alle ark lagt over i ren Excel. Navnekonflikt løst
DK174: 15.09.07 | DL174: 2007 | DM174: Ændret udskriftsmakroer til PrintOut og range. Slettet navne
DK175: 01.10.07 | DL175: 2007 | DM175: Ulåst sum beholdninger låst
DK176: 23.10.07 | DL176: 2007 | DM176: Sammenhæng i beregnet notering opdateret til okt. 07
DK177: 26.10.07 | DL177: 2007 | DM177: Kontrolelementer til nulpunkter
DK178: 08.11.07 | DL178: 2007 | DM178: Endelige skattesatser for året 2008
DK179: 13.01.08 | DL179: 2007.b | DM179: Overførsel fra FV, status gjort mindre, valgfrihed lineær/saldo
DK180: 14.02.08 | DL180: 2007.b | DM180: Flyttet låntæller til a-kolonne, rettet kolonnebreddeknap
DK181: 22.04.08 | DL181: 2007.b | DM181: Ændring i beregnet skat, så store pensionsindbetalinger samtidig med neg resultat regner rigtigt.
DK182: 23.04.08 | DL182: 2007.b | DM182: Ændret kode
DK183: 16.09.08 | DL183: 2007 | DM183: Ændret navn tlbage til 2007
DK184: 23.10.08 | DL184: 2007 | DM184: Opdateret omregning i beregnet notering til feb 08
DK185: 30.10.08 | DL185: 2007 | DM185: Opdateret skattesatser til 2009
DK186: 11.11.08 | DL186: 2007 | DM186: Indlagt atomatisk beregning i opstartsmakro
DK187: 21.01.09 | DL187: 2007 | DM187: Ændret nøgletal til ny definition
DK188: 02.02.09 | DL188: 2007 | DM188: Opdateret beregnet notering i nulpunkt
DK189: 29.08.09 | DL189: 9 | DM189: Ændret nettoudbytte med forpagtning, slettet DE, opdateret beregnet notering
DK190: 07.09.09 | DL190: 9 | DM190: Repereret menu med Ron de Bruins 7-zip
DK191: 23.09.09 | DL191: 9 | DM191: En gang Ron de Bruins en gang til - nu virker det
DK192: 14.12.09 | DL192: 9 | DM192: Åbnet formueudgifter for overskrivning
DK193: 03.01.10 | DL193: 9 | DM193: Tekst og streg rettet formueudgifter
DK194: 06.01.10 | DL194: 9 | DM194: Rettet så nul i ægtefællebeskatning giver enlig beskatning også år 2, 3 og 4
DK195: 07.01.10 | DL195: 9 | DM195: Rettet vba statuskolonnebredde
DK196: 26.08.10 | DL196: 10 | DM196: Ny regnskabspraksis - Ny balance og resultat med værdireguleringer og udskudt skat
DK197: 29.08.10 | DL197: 10 | DM197: Rettet i betalt skat mv.
DK198: 01.09.10 | DL198: 10 | DM198: Rettet i momskorrektion
DK199: 07.09.10 | DL199: 10v | DM199: Rettet ægtefællebeskatning til at gælde alle år i betalt skat, rettet lønningsevne pr. time, skjult nulpunkt, udskriv/kolonnebredde udskudt skat
DK200: 08.09.10 | DL200: 10v | DM200: Kolonnebredde udskudt skat koblet til ikon, udskrift menu tilpasset, format udskudt skat tilpasset
DK201: 08.09.10 | DL201: 10w | DM201: Hvis sætning ved balance%; rettet biler med i O/N
DK202: 10.09.10 | DL202: 10x | DM202: O/N på besætning i linje for sig - VBA tilpasset - hensættelse i balancen skjules også
DK203: 12.09.10 | DL203: 10y | DM203: VBA advarsel ved fejltastninger, skat fejlrettet, havelågefejl fundet
DK204: 20.09.10 | DL204: 10z | DM204: Overfør tilpasset, så eventmakroer stoppes ved overførsel
DK205: 04.10.10 | DL205: 10æ | DM205: Rettet fejl, nye lån med afdrag gav tab
DK206: 08.10.10 | DL206: 10å | DM206: Leveringsrettigheder oprettet som finansielt aktiv, korrektion mulig på fast ejendom i Betalt skat->Udskudt skat
DK207: 11.10.10 | DL207: 10aa | DM207: Afkortning hele tusinder i TotalSumVærdireg
DK208: 15.10.10 | DL208: 10ab | DM208: Ændring i udskudt skat som følge af opskrivning hensættes alene i EK. Udskriftsform layout rettet. Automatisk kolonne tilretning udskudt skat.
DK209: 20.10.10 | DL209: 10ab | DM209: Udskrift resultat + 1 linje
DK210: 29.10.10 | DL210: 10ab | DM210: Fremført primo succession over årene i betalt og i udskudt
DK211: 19.11.10 | DL211: 10ac | DM211: Skift mellem lineær/saldo pr. aktivgruppe rep + O/N rep
DK212: 22.11.10 | DL212: 10ac | DM212: Beskyttet reg gæld og T/G gæld
DK213: 23.11.10 | DL213: 10ad | DM213: Løn enlig pillet ud af VS
DK214: 05.12.10 | DL214: 10ae | DM214: Nulpunkt beregning med iteration og ny beregnet notering
DK215: 15.12.10 | DL215: 10ae | DM215: T/G på værdipapirer rettet. Nedskrivning besætning rettet. Beskyttet sum kortfristet gæld
DK216: 17.12.10 | DL216: 10af | DM216: Rettet række tilpasning til cellenavne ved kolonnebreddemax og min
DK217: 20.12.10 | DL217: 10ag | DM217: Pension fjernet som aktiv. Afskr. lev. rett. talt med.
DK218: 11.01.11 | DL218: 10ag | DM218: Fejl rettet ved salg af kvote
DK219: 17.01.11 | DL219: 10ah | DM219: Fejl rettet ved besætningsnedskrivning i udskudt skat, farver tilføjet, graf tilføjet
DK220: 23.01.11 | DL220: 10ah | DM220: Fejl rettet ved pensionsindbetaling i betalt skat
DK221: 31.01.11 | DL221: 10ah | DM221: Hensættelse med i gældsprocent og gældsrente
DK222: 21.02.11 | DL222: 10ai | DM222: Nulpunkt iteration ændret til KorrNulpunkt fremfor pers indtj. Formel rettet i lkviditet res efter finansiering. Omr. Smågrise ændret
DK223: 07.03.11 | DL223: 10ai | DM223: Opdateret skattesatser til 2011
DK224: 21.03.11 | DL224: 10ai | DM224: Ændret topskatsoptimering, så pensionsindskud kun tæller med ved positiv personlig indkomst
DK225: 22.03.11 | DL225: 10ai | DM225: Ændret topskatsoptimering, så pensionsindskud kun tæller med hvis maxkapafkast ikke pensionsindksud større end Vsafkast
DK226: 25.08.11 | DL226: 11 | DM226: Fjernet Grøn trekant menu - alt er i knapper (Mac). Udskriv trækker form hver gang. Valg af budgettype adskilt fra kolonnetilpasning.
DM227: Tab og gevinst kontrol ændret til undo. Tilpasset resultatopgørelse til Ø90Budget.
DK228: 23.09.11 | DL228: 11 | DM228: Omregning beregnet notering opdateret
DK229: 28.09.11 | DL229: 11 | DM229: Ændret skjult formel ved siden af afskrivning, så den ikke tager c kolonnnen med i beregning
DK230: 03.10.11 | DL230: 11 | DM230: Fejl leveringsrettigheder rettet. Opslag Betalt skat 8 % af ?? rettet.
DK231: 24.10.11 | DL231: 11 | DM231: "Har du husket minus?" tilføjet kapacitetsomk. Skattesatser opdateret til 2012
DK232: 28.11.11 | DL232: 11 | DM232: Kolonne F sættes til 1.57, så korrektion kk rente kan skrives ind
C233: -1234 | D233: -12345 | E233: -1234 | G233: 12 | H233: -1234 | I233: 123 | J233: -1234 | K233: -1234 | N233: -12345 | O233: -1234 | P233: -1234 | Q233: 12 | R233: -1234 | S233: 123 | T233: -1234 | X233: -12345 | Y233: -1234 | Z233: -1234 | AA233: 12 | AB233: -1234 | AC233: 123 | AD233: -1234 | AH233: -12345 | AI233: -1234 | AJ233: -1234 | AK233: 12 | AL233: -1234 | AM233: 123 | AN233: -1234 | AR233: -12345 | DK233: 01.12.11 | DL233: 11 | DM233: BetaltSkat sikret med "er.tal". Balance sikret mod, at "#VÆRDI" giver makrofejl. Endelig har balance advarsel mod indtastning af tekst.
DK234: 04.12.11 | DL234: 12 | DM234: Periodiseret afskrivning. Nye afskrivningsformler.
DK235: 05.12.11 | DL235: 12 | DM235: Rettet indsæt række, så den sletter de rette celler
DK236: 08.12.11 | DL236: 12 | DM236: Rettet fejl ved jord 2. linje
DK237: 19.12.11 | DL237: 12 | DM237: Medtaget blank linje under rettigheder i inv
DK238: 04.02.12 | DL238: 12.1 | DM238: Balance ændret til klasse A opstilling. Overførsel til OneNote. Afskrivning ved investering i anlægsaktiver ændret til erhvervelsestidspunkt

Sheet Junior Resultat
B1: JUNIOR RESULTAT OG LIKVIDITET | AG1: ='A-S Balance'!AI1 -> © CHA 02.05.2025 | AL1: Vis | AM1: Skjul
C2: ='A-S Balance'!B2 -> 0 | AL2: 1 | AM2: 1
C3: ='A-S Balance'!B3 -> 0 | AL3: 1 | AM3: 1
C4: ='A-S Balance'!B4 -> 0 | AL4: 1 | AM4: 1 | BG4: 10 | BJ4: 10 | BQ4: 271159
B5: Moms | G5: a | Q5: b | AA5: c | AK5: d | AL5: 0 | AM5: 0
A6: 1 | B6: DÆKNINGSBIDRAG | G6: ='A-S Balance'!T2 -> 2025 | Q6: =G6+1 -> 2026 | AA6: =Q6+1 -> 2027 | AK6: =AA6+1 -> 2028 | AL6: 1 | AM6: 1
A7: 1 | E7: Enhed | G7: DB | O7: Enhed | Q7: DB | W7: Enhed | AA7: DB | AG7: Enhed | AK7: DB | AL7: 1 | AM7: 1
C8: Brak | AL8: 1 | AM8: =IF(SUM(E8:AK8)<>0,1,0) -> 0
C9: Vårbyg | AL9: 1 | AM9: =IF(SUM(E9:AK9)<>0,1,0) -> 0
C10: Sædskiftegræs | AL10: 1 | AM10: 0
C11: Vinterhvede | AL11: 1 | AM11: 0
C12: Vedvarende græs | AL12: 1 | AM12: 0
C13: Vinterhvede 2. års | AL13: 1 | AM13: 0
C14: Vinterrug | AL14: 1 | AM14: 0
C15: Vinterraps | AL15: 1 | AM15: 0
C16: Køer med opdræt | AL16: 1 | AM16: 0
C17: Søer 7 kg | AL17: 1 | AM17: 0
E18: 8.57 | F18: 1.5 | G18: 10.57 | N18: 2.57 | O18: 8.57 | P18: 1.5 | Q18: 10.57 | V18: 2.57 | W18: 8.57 | X18: 1.5 | AA18: 10.57 | AF18: 2.57 | AG18: 8.57 | AH18: 1.5 | AK18: 10.57 | AL18: 1 | AM18: 1
B19: m | C19: =C8 -> Brak | G19: =G8*E8 -> 0 | Q19: =Q8*O8 -> 0 | AA19: =AA8*W8 -> 0 | AK19: =AK8*AG8 -> 0 | AL19: 1 | AM19: =IF(SUM(E19:AK19)<>0,1,0) -> 0
B20: m | C20: Vårbyg | G20: 0 | Q20: 0 | AA20: 0 | AK20: 0 | AL20: 1 | AM20: 0
B21: m | C21: Sædskiftegræs | G21: 0 | Q21: 0 | AA21: 0 | AK21: 0 | AL21: 1 | AM21: 0
B22: m | C22: Vinterhvede | G22: 0 | Q22: 0 | AA22: 0 | AK22: 0 | AL22: 1 | AM22: 0
B23: m | C23: Vedvarende græs | G23: 0 | Q23: 0 | AA23: 0 | AK23: 0 | AL23: 1 | AM23: 0
B24: m | C24: Vinterhvede 2. års | G24: 0 | Q24: 0 | AA24: 0 | AK24: 0 | AL24: 1 | AM24: 0
B25: m | C25: Vinterrug | G25: 0 | Q25: 0 | AA25: 0 | AK25: 0 | AL25: 1 | AM25: 0
B26: m | C26: Vinterraps | G26: 0 | Q26: 0 | AA26: 0 | AK26: 0 | AL26: 1 | AM26: 0
B27: m | C27: Køer med opdræt | G27: 0 | Q27: 0 | AA27: 0 | AK27: 0 | AL27: 1 | AM27: 0
B28: m | C28: Søer 7 kg | G28: 0 | Q28: 0 | AA28: 0 | AK28: 0 | AL28: 1 | AM28: 0
A29: 1 | AL29: 1 | AM29: 1
A30: =IF(G30+Q30+AA30+AK30<>0,1,0) -> 0 | B30: Dækningsbidrag | G30: =SUM(G19:G28) -> 0 | Q30: =SUM(Q19:Q28) -> 0 | AA30: =SUM(AA19:AA28) -> 0 | AK30: =SUM(AK19:AK28) -> 0 | AL30: 1 | AM30: 1
A31: 1 | AL31: 1 | AM31: 1
A32: 1 | AL32: 1 | AM32: =AM33 -> 0
A33: 1 | B33: KAPACITETSOMKOSTNINGER / PRIVAT | O33: Fr.skr.% | AL33: 1 | AM33: =AM34 -> 0
A34: 1 | B34: m | C34: Energi | Q34: =IF(ISBLANK(P34),G34*(1+$O34/100),P34) -> 0 | AA34: =IF(ISBLANK(X34),Q34*(1+$O34/100),X34) -> 0 | AK34: =IF(ISBLANK(AH34),AA34*(1+$O34/100),AH34) -> 0 | AL34: 1 | AM34: =IF(SUM(E34:AK34)<>0,1,0) -> 0
A35: 1 | B35: m | C35: Maskinstation m.v. | Q35: 0 | AA35: 0 | AK35: 0 | AL35: 1 | AM35: 0
A36: 1 | B36: m | C36: Vedligehold | Q36: 0 | AA36: 0 | AK36: 0 | AL36: 1 | AM36: 0
B37: m | C37: Investeringer over driften | Q37: =IF(ISBLANK(P37),G37*(1+$O37/100),P37) -> 0 | AA37: =IF(ISBLANK(X37),Q37*(1+$O37/100),X37) -> 0 | AK37: =IF(ISBLANK(AH37),AA37*(1+$O37/100),AH37) -> 0 | AL37: 1 | AM37: 0
A38: 1 | C38: Lønomkostninger | Q38: 0 | AA38: 0 | AK38: 0 | AL38: 1 | AM38: 0
A39: 1 | C39: Ejendomsskat og forsikringer | Q39: 0 | AA39: 0 | AK39: 0 | AL39: 1 | AM39: 0
A40: 1 | B40: m | C40: Diverse omkostninger | Q40: 0 | AA40: 0 | AK40: 0 | AL40: 1 | AM40: 0
A41: 1 | AL41: 1 | AM41: =AM42 -> 0
A42: 1 | B42: Kontante kapacitetsomkostninger | G42: =SUM(G34:G40) -> 0 | Q42: =SUM(Q34:Q40) -> 0 | AA42: =SUM(AA34:AA40) -> 0 | AK42: =SUM(AK34:AK40) -> 0 | AL42: 1 | AM42: =IF(SUM(E42:AK42)<>0,1,0) -> 0
A43: 1 | AL43: 1 | AM43: =AM44 -> 0
A44: =IF(G44+Q44+AA44+AK44<>0,1,0) -> 0 | C44: Afskrivninger | G44: =('Junior Balance'!J78-'Junior Balance'!J63-'Junior Balance'!J29-'Junior Balance'!J33)*1000 -> 0 | Q44: =('Junior Balance'!T78-'Junior Balance'!T63-'Junior Balance'!T29-'Junior Balance'!T33)*1000 -> 0 | AA44: =('Junior Balance'!AD78-'Junior Balance'!AD63-'Junior Balance'!AD29-'Junior Balance'!AD33)*1000 -> 0 | AK44: =('Junior Balance'!AN78-'Junior Balance'!AN63-'Junior Balance'!AN29-'Junior Balance'!AN33)*1000 -> 0 | AL44: 1 | AM44: =IF(SUM(E44:AK44)<>0,1,0) -> 0
A45: =IF(G45+Q45+AA45+AK45<>0,1,0) -> 0 | C45: Afskrivninger biler m.v | G45: ='Junior Balance'!J63*'Junior Balance'!$T$3*1000 -> 0 | Q45: ='Junior Balance'!T63*'Junior Balance'!$T$3*1000 -> 0 | AA45: ='Junior Balance'!AD63*'Junior Balance'!$T$3*1000 -> 0 | AK45: ='Junior Balance'!AN63*'Junior Balance'!$T$3*1000 -> 0 | AL45: 1 | AM45: 0
A46: 1 | AL46: 1 | AM46: =AM47 -> 0
A47: 1 | B47: Af- og nedskrivninger landbrug | G47: =SUM(G44:G46) -> 0 | Q47: =SUM(Q44:Q46) -> 0 | AA47: =SUM(AA44:AA46) -> 0 | AK47: =SUM(AK44:AK46) -> 0 | AL47: 1 | AM47: =IF(SUM(E47:AK47)<>0,1,0) -> 0
A48: 1 | AL48: 1 | AM48: =AM47 -> 0
A49: 1 | B49: Kapacitetsomkostninger i alt | G49: =G42+G47 -> 0 | Q49: =Q42+Q47 -> 0 | AA49: =AA42+AA47 -> 0 | AK49: =AK42+AK47 -> 0 | AL49: 1 | AM49: =IF(SUM(E49:AK49)<>0,1,0) -> 0
A50: 1 | AL50: 1 | AM50: =AM49 -> 0
A51: 1 | AL51: 1 | AM51: 1
A52: 1 | B52: Resultat af primær drift | G52: =G30+G49 -> 0 | Q52: =Q30+Q49 -> 0 | AA52: =AA30+AA49 -> 0 | AK52: =AK30+AK49 -> 0 | AL52: 1 | AM52: 1
A53: 1 | AL53: 1 | AM53: 1
A54: 1 | AL54: 1 | AM54: 1
A55: 1 | C55: Anden indtjening og virksomhed | Q55: =IF(ISBLANK(P55),G55*(1+$O55/100),P55) -> 0 | AA55: =IF(ISBLANK(X55),Q55*(1+$O55/100),X55) -> 0 | AK55: =IF(ISBLANK(AH55),AA55*(1+$O55/100),AH55) -> 0 | AL55: 1 | AM55: =IF(SUM(E55:AK55)<>0,1,0) -> 0
AL56: 1 | AM56: =AM55 -> 0
A57: 1 | C57: Andel resultat Holdingselskaber | G57: =Holding!AO36*1000 -> 0 | Q57: =Holding!AY36*1000 -> 0 | AA57: =Holding!BI36*1000 -> 0 | AK57: =Holding!BS36*1000 -> 0 | AL57: 1 | AM57: =IF(SUM(E57:AK57)<>0,1,0) -> 0
A58: 1 | AL58: 1 | AM58: =AM57 -> 0
A59: 1 | C59: Afkoblet EU-støtte | Q59: =IF(ISBLANK(P59),G59*(1+$O59/100),P59) -> 0 | AA59: =IF(ISBLANK(X59),Q59*(1+$O59/100),X59) -> 0 | AK59: =IF(ISBLANK(AH59),AA59*(1+$O59/100),AH59) -> 0 | AL59: 1 | AM59: =IF(SUM(E59:AK59)<>0,1,0) -> 0
A60: 1 | AL60: 1 | AM60: =AM59 -> 0
B61: Resultat før finansiering | G61: =SUM(G52:G60) -> 0 | O61: Fr.skr.% | Q61: =SUM(Q52:Q60) -> 0 | AA61: =SUM(AA52:AA60) -> 0 | AK61: =SUM(AK52:AK60) -> 0 | AL61: 1 | AM61: =IF(SUM(E61:AK61)<>0,1,0) -> 0
AL62: 1 | AM62: =AM61 -> 0
C63: Finansieringstilskud | Q63: =IF(ISBLANK(P63),G63*(1+$O63/100),P63) -> 0 | AA63: =IF(ISBLANK(X63),Q63*(1+$O63/100),X63) -> 0 | AK63: =IF(ISBLANK(AH63),AA63*(1+$O63/100),AH63) -> 0 | AL63: 1 | AM63: =IF(SUM(E63:AK63)<>0,1,0) -> 0
A64: 1 | C64: Forpagtningsafgift | Q64: =IF(ISBLANK(P64),G64*(1+$O64/100),P64) -> 0 | AA64: =IF(ISBLANK(X64),Q64*(1+$O64/100),X64) -> 0 | AK64: =IF(ISBLANK(AH64),AA64*(1+$O64/100),AH64) -> 0 | AL64: 1 | AM64: 0
C65: Forpagtning fra A/S | G65: ='A-S Resultat'!G79*-1 -> 0 | Q65: ='A-S Resultat'!Q79*-1 -> 0 | AA65: ='A-S Resultat'!AA79*-1 -> 0 | AK65: ='A-S Resultat'!AK79*-1 -> 0 | AL65: 1 | AM65: 0
A66: 1 | C66: Renteindtægter | Q66: =IF(ISBLANK(P66),G66*(1+$O66/100),P66) -> 0 | AA66: =IF(ISBLANK(X66),Q66*(1+$O66/100),X66) -> 0 | AK66: =IF(ISBLANK(AH66),AA66*(1+$O66/100),AH66) -> 0 | AL66: 1 | AM66: 0
C67: Aktieudbytte | Q67: =IF(ISBLANK(P67),G67*(1+$O67/100),P67) -> 0 | AA67: =IF(ISBLANK(X67),Q67*(1+$O67/100),X67) -> 0 | AK67: =IF(ISBLANK(AH67),AA67*(1+$O67/100),AH67) -> 0 | AL67: 1 | AM67: 0
A68: 1 | C68: Renteudgifter mv. | Q68: =IF(ISBLANK(P68),G68*(1+$O68/100),P68) -> 0 | AA68: =IF(ISBLANK(X68),Q68*(1+$O68/100),X68) -> 0 | AK68: =IF(ISBLANK(AH68),AA68*(1+$O68/100),AH68) -> 0 | AL68: 1 | AM68: 0
A69: 1 | C69: Kassekreditrente | G69: =IF(ISBLANK(F69),IF('Junior Balance'!D115>0,'Junior Balance'!D115*'Junior Balance'!$AH$2,'Junior Balance'!D115*'Junior Balance'!$AH$3)*1000,F69) -> 0 | Q69: =IF(ISBLANK(P69),IF('Junior Balance'!N115>0,'Junior Balance'!N115*'Junior Balance'!$AH$2,'Junior Balance'!N115*'Junior Balance'!$AH$3)*1000,P69) -> 0 | AA69: =IF(ISBLANK(Z69),IF('Junior Balance'!X115>0,'Junior Balance'!X115*'Junior Balance'!$AH$2,'Junior Balance'!X115*'Junior Balance'!$AH$3)*1000,Z69) -> 0 | AK69: =IF(ISBLANK(AJ69),IF('Junior Balance'!AH115>0,'Junior Balance'!AH115*'Junior Balance'!$AH$2,'Junior Balance'!AH115*'Junior Balance'!$AH$3)*1000,AJ69) -> 0 | AL69: 1 | AM69: 0
A70: 1 | C70: Prioritetsomkostninger | AL70: 1 | AM70: 0
A71: 1 | C71: Finansiering i alt | G71: =SUM(G63:G70) -> 0 | Q71: =SUM(Q63:Q70) -> 0 | AA71: =SUM(AA63:AA70) -> 0 | AK71: =SUM(AK63:AK70) -> 0 | AL71: 1 | AM71: 0
A72: 1 | AL72: 1 | AM72: =AM71 -> 0
A73: 1 | AL73: 1 | AM73: =AM74 -> 0
A74: 1 | B74: Resultat efter finansiering | G74: =G61+G71 -> 0 | Q74: =Q61+Q71 -> 0 | AA74: =AA61+AA71 -> 0 | AK74: =AK61+AK71 -> 0 | AL74: 1 | AM74: =IF(SUM(E74:AK74)<>0,1,0) -> 0
A75: 1 | AL75: 1 | AM75: =AM74 -> 0
A76: 1 | AL76: 1 | AM76: =AM77 -> 0
C77: Løn fra A/S Drift | G77: ='A-S Resultat'!G52*-1 -> 0 | Q77: ='A-S Resultat'!Q52*-1 -> 0 | AA77: ='A-S Resultat'!AA52*-1 -> 0 | AK77: ='A-S Resultat'!AK52*-1 -> 0 | AL77: 1 | AM77: =IF(SUM(E77:AK77)<>0,1,0) -> 0
A78: 1 | C78: Private indtægter i øvrigt | Q78: =IF(ISBLANK(P78),G78*(1+$O78/100),P78) -> 0 | AA78: =IF(ISBLANK(X78),Q78*(1+$O78/100),X78) -> 0 | AK78: =IF(ISBLANK(AH78),AA78*(1+$O78/100),AH78) -> 0 | AL78: 1 | AM78: =IF(SUM(E78:AK78)<>0,1,0) -> 0
A79: 1 | AL79: 1 | AM79: =AM78 -> 0
A80: 1 | AL80: =AL84 -> 0 | AM80: =AM81 -> 0
A81: 1 | B81: Resultat før regulering og skat | G81: =G74+G77+G78 -> 0 | Q81: =Q74+Q77+Q78 -> 0 | AA81: =AA74+AA77+AA78 -> 0 | AK81: =AK74+AK77+AK78 -> 0 | AL81: =AL84 -> 0 | AM81: =AM84 -> 0
A82: 1 | AL82: =AL84 -> 0 | AM82: =AM84 -> 0
A83: 1 | AL83: =AL84 -> 0 | AM83: =AM84 -> 0
A84: =IF(G84+Q84+AA84+AK84<>0,1,0) -> 0 | C84: Afskrivning rettigheder | G84: =('Junior Balance'!J29+'Junior Balance'!J33)*1000 -> 0 | Q84: =('Junior Balance'!T29+'Junior Balance'!T33)*1000 -> 0 | AA84: =('Junior Balance'!AD29+'Junior Balance'!AD33)*1000 -> 0 | AK84: =('Junior Balance'!AN29+'Junior Balance'!AN33)*1000 -> 0 | AL84: =IF(SUM(G84:AK84)<>0,1,0) -> 0 | AM84: =IF(SUM(E84:AK84)<>0,1,0) -> 0 | AR84: =G84+Q84+AA84+AK84 -> 0 | AV84: =SUM(G84:AK84) -> 0
A85: 1 | AL85: =AL84 -> 0 | AM85: =AM84 -> 0
A86: 1 | AL86: 1 | AM86: =AM87 -> 0
A87: 1 | B87: Resultat før skat | G87: =G81+G84 -> 0 | Q87: =Q81+Q84 -> 0 | AA87: =AA81+AA84 -> 0 | AK87: =AK81+AK84 -> 0 | AL87: 1 | AM87: =IF(SUM(E87:AK87)<>0,1,0) -> 0
A88: 1 | AL88: 1 | AM88: =AM87 -> 0
A89: 1 | AL89: 1 | AM89: =AM90 -> 0
A90: 1 | C90: =IF(OR(ISNUMBER(F90),ISNUMBER(P90),ISNUMBER(X90),ISNUMBER(AH90)),"Manuel korrektion af skat","Skat af resultat før skat") -> Skat af resultat før skat | G90: =ROUND(IF((Bresultat1-BUdbytte1-Bpersonfradrag)*-BSkatteprocent>0,0,(Bresultat1-BUdbytte1-Bpersonfradrag)*-BSkatteprocent)+Holding!AO47*1000,-3) -> 0 | Q90: =ROUND(IF((bresultat2-BUdbytte2-Bpersonfradrag)*-BSkatteprocent>0,0,(bresultat2-BUdbytte2-Bpersonfradrag)*-BSkatteprocent)+Holding!AY47*1000,-3) -> 0 | AA90: =ROUND(IF((bresultat3-BUdbytte3-Bpersonfradrag)*-BSkatteprocent>0,0,(bresultat3-BUdbytte3-Bpersonfradrag)*-BSkatteprocent)+Holding!BI47*1000,-3) -> 0 | AK90: =ROUND(IF((bresultat4-Budbytte4-Bpersonfradrag)*-BSkatteprocent>0,0,(bresultat4-Budbytte4-Bpersonfradrag)*-BSkatteprocent)+Holding!BS47*1000,-3) -> 0 | AL90: 1 | AM90: =IF(SUM(E90:AK90)<>0,1,0) -> 0
A91: 1 | AL91: 1 | AM91: =AM90 -> 0
A92: 1 | AL92: 1 | AM92: =AM93 -> 0
A93: 1 | B93: Resultat efter skat | G93: =G87+G90 -> 0 | Q93: =Q87+Q90 -> 0 | AA93: =AA87+AA90 -> 0 | AK93: =AK87+AK90 -> 0 | AL93: 1 | AM93: =IF(SUM(E93:AK93)<>0,1,0) -> 0
A94: 1 | AL94: 1 | AM94: =AM93 -> 0
A95: 1 | AL95: 1 | AM95: 1
A96: 1 | AL96: 1 | AM96: 1
A97: 1 | B97: EGENKAPITALFORKLARING | G97: =G6 -> 2025 | Q97: =Q6 -> 2026 | AA97: =AA6 -> 2027 | AK97: =AK6 -> 2028 | AL97: 1 | AM97: 1
A98: 1 | AL98: 1 | AM98: 1
A99: 1 | AL99: 1 | AM99: 1
A100: 1 | B100: Resultat efter finansiering | G100: =G74 -> 0 | Q100: =Q74 -> 0 | AA100: =AA74 -> 0 | AK100: =AK74 -> 0 | AL100: 1 | AM100: =IF(SUM(E100:AK100)<>0,1,0) -> 0
A101: 1 | AL101: 1 | AM101: =AM100 -> 0
A102: 1 | C102: Personlig indtjening | G102: =G77+G78 -> 0 | Q102: =Q77+Q78 -> 0 | AA102: =AA77+AA78 -> 0 | AK102: =AK77+AK78 -> 0 | AL102: 1 | AM102: 0
A103: 1 | AL103: 1 | AM103: 0
A104: 1 | B104: Resultat før regulering og privat | G104: =SUM(G100:G103) -> 0 | O104: Fr.skr.% | Q104: =SUM(Q100:Q103) -> 0 | AA104: =SUM(AA100:AA103) -> 0 | AK104: =SUM(AK100:AK103) -> 0 | AL104: 1 | AM104: 0
A105: 1 | AL105: 1 | AM105: =AM104 -> 0
A106: 1 | C106: Privat kontant mv. | Q106: =IF(ISBLANK(P106),G106*(1+$O106/100),P106) -> 0 | AA106: =IF(ISBLANK(X106),Q106*(1+$O106/100),X106) -> 0 | AK106: =IF(ISBLANK(AH106),AA106*(1+$O106/100),AH106) -> 0 | AL106: 1 | AM106: 0
A107: 1 | C107: Privat andel bil afskrivning | G107: ='Junior Balance'!J63*1000*(1-'Junior Balance'!$T$3) -> 0 | Q107: ='Junior Balance'!T63*1000*(1-'Junior Balance'!$T$3) -> 0 | AA107: ='Junior Balance'!AD63*1000*(1-'Junior Balance'!$T$3) -> 0 | AK107: ='Junior Balance'!AN63*1000*(1-'Junior Balance'!$T$3) -> 0 | AL107: 1 | AM107: =IF(SUM(E107:AK107)<>0,1,0) -> 0
A108: 1 | C108: Passivpost og gave ved succession | G108: =Holding!E53*1000 -> 0 | Q108: =Holding!O53*1000 -> 0 | AA108: =Holding!Y53*1000 -> 0 | AK108: =Holding!AI53*1000 -> 0 | AL108: 1 | AM108: 0
A109: 1 | C109: Formueindtægter/udgifter | Q109: =IF(ISBLANK(P109),G109*(1+$O109/100),P109) -> 0 | AA109: =IF(ISBLANK(X109),Q109*(1+$O109/100),X109) -> 0 | AK109: =IF(ISBLANK(AH109),AA109*(1+$O109/100),AH109) -> 0 | AL109: 1 | AM109: =IF(SUM(E109:AK109)<>0,1,0) -> 0
A110: 1 | AL110: 1 | AM110: 0
A111: 1 | B111: Privat udtræk | G111: =SUM(G106:G109) -> 0 | Q111: =SUM(Q106:Q109) -> 0 | AA111: =SUM(AA106:AA109) -> 0 | AK111: =SUM(AK106:AK109) -> 0 | AL111: 1 | AM111: 0
A112: 1 | AL112: 1 | AM112: =AM111 -> 0
A113: 1 | C113: Betalt skat | G113: =G90-G114 -> 0 | Q113: =Q90-Q114 -> 0 | AA113: =AA90-AA114 -> 0 | AK113: =AK90-AK114 -> 0 | AL113: 1 | AM113: =IF(SUM(E113:AK113)<>0,1,0) -> 0
A114: 1 | C114: Ændring i udskudt skat | AL114: 1 | AM114: =IF(SUM(E114:AK114)<>0,1,0) -> 0
B115: Skat af årets resultat | G115: =SUM(G113:G114) -> 0 | Q115: =SUM(Q113:Q114) -> 0 | AA115: =SUM(AA113:AA114) -> 0 | AK115: =SUM(AK113:AK114) -> 0 | AL115: 1 | AM115: =IF(SUM(E115:AK115)<>0,1,0) -> 0
AL116: 1 | AM116: =AM115 -> 0
A117: =IF(G117+Q117+AA117+AK117<>0,1,0) -> 0 | C117: Regulering i alt | G117: =G84 -> 0 | Q117: =Q84 -> 0 | AA117: =AA84 -> 0 | AK117: =AK84 -> 0 | AL117: 1 | AM117: =IF(SUM(E117:AK117)<>0,1,0) -> 0
A118: 1 | C118: Pensionsindbetaling | Q118: =IF(ISBLANK(P118),G118*(1+$O118/100),P118) -> 0 | AA118: =IF(ISBLANK(X118),Q118*(1+$O118/100),X118) -> 0 | AH118: 0 | AK118: =IF(ISBLANK(AH118),AA118*(1+$O118/100),AH118) -> 0 | AL118: 1 | AM118: 0
AL119: 1 | AM119: =AM120 -> 0
B120: Ændring af egenkapital | G120: =G100+G102+G111+G115+G117+G118 -> 0 | Q120: =Q100+Q102+Q111+Q115+Q117+Q118 -> 0 | AA120: =AA100+AA102+AA111+AA115+AA117+AA118 -> 0 | AK120: =AK100+AK102+AK111+AK115+AK117+AK118 -> 0 | AL120: 1 | AM120: =IF(SUM(E120:AK120)<>0,1,0) -> 0
AL121: 1 | AM121: =AM120 -> 0
A122: 1 | C122: Egenkapital primo | G122: ='Junior Balance'!D109*1000 -> 0 | Q122: =G124 -> 0 | AA122: =Q124 -> 0 | AK122: =AA124 -> 0 | AL122: 1 | AM122: =IF(SUM(E122:AK122)<>0,1,0) -> 0
A123: 1 | AL123: 1 | AM123: =AM122 -> 0
A124: 1 | B124: Egenkapital ultimo | G124: =G120+G122 -> 0 | Q124: =Q120+Q122 -> 0 | AA124: =AA120+AA122 -> 0 | AK124: =AK120+AK122 -> 0 | AL124: 1 | AM124: =IF(SUM(E124:AK124)<>0,1,0) -> 0
A125: 1 | AL125: 1 | AM125: =AM124 -> 0
A126: 1 | AL126: 1 | AM126: 1
A127: 1 | B127: LIKVIDITET | D127: =G6 -> 2025 | P127: =Q6 -> 2026 | X127: =AA6 -> 2027 | AA127: =AA97 -> 2027 | AH127: =AK6 -> 2028 | AK127: =AK97 -> 2028 | AL127: 1 | AM127: 1
A128: 1 | AL128: 1 | AM128: 1
AL129: 1 | AM129: 1
A130: 1 | B130: Årets resultat før skat | G130: =G87 -> 0 | Q130: =Q87 -> 0 | AA130: =AA87 -> 0 | AK130: =AK87 -> 0 | AL130: 1 | AM130: =IF(SUM(E130:AK130)<>0,1,0) -> 0
A131: 1 | AL131: 1 | AM131: =AM130 -> 0
A132: 1 | C132: Afskrivninger mv. | G132: =-G47-G84 -> 0 | Q132: =-Q47-Q84 -> 0 | AA132: =-AA47-AA84 -> 0 | AK132: =-AK47-AK84 -> 0 | AL132: 1 | AM132: =IF(SUM(E132:AK132)<>0,1,0) -> 0
C133: Andel resultat Holdingselskaber, tlbf. | G133: =BUdbytte1*-1+Holding!AO40*1000 -> 0 | Q133: =BUdbytte2*-1+Holding!AY40*1000 -> 0 | AA133: =BUdbytte3*-1+Holding!BI40*1000 -> 0 | AK133: =Budbytte4*-1+Holding!BS40*1000 -> 0 | AL133: 1 | AM133: 0
A134: 1 | C134: Tilbageførsel i alt | G134: =SUM(G132:G133) -> 0 | Q134: =SUM(Q132:Q133) -> 0 | AA134: =SUM(AA132:AA133) -> 0 | AK134: =SUM(AK132:AK133) -> 0 | AL134: 1 | AM134: 0
A135: 1 | AL135: 1 | AM135: =AM134 -> 0
A136: 1 | C136: Betalt skat | G136: =G113 -> 0 | Q136: =Q113 -> 0 | AA136: =AA113 -> 0 | AK136: =AK113 -> 0 | AL136: 1 | AM136: 0
A137: 1 | C137: Privat | G137: =G106+G107 -> 0 | Q137: =Q106+Q107 -> 0 | AA137: =AA106+AA107 -> 0 | AK137: =AK106+AK107 -> 0 | AL137: 1 | AM137: =IF(SUM(E137:AK137)<>0,1,0) -> 0
A138: 1 | C138: Afskrivninger privat tlbf. | G138: =G107*-1 -> 0 | Q138: =Q107*-1 -> 0 | AA138: =AA107*-1 -> 0 | AK138: =AK107*-1 -> 0 | AL138: 1 | AM138: 0
A139: 1 | C139: Formueindtægter/udgifter | G139: =G109 -> 0 | Q139: =Q109 -> 0 | AA139: =AA109 -> 0 | AK139: =AK109 -> 0 | AL139: 1 | AM139: 0
A140: 1 | C140: Pensionsindbetaling | G140: =G118 -> 0 | Q140: =Q118 -> 0 | AA140: =AA118 -> 0 | AK140: =AK118 -> 0 | AL140: 1 | AM140: 0
A141: 1 | C141: Privat udtræk, skat og pension i alt | G141: =SUM(G136:G140) -> 0 | Q141: =SUM(Q136:Q140) -> 0 | AA141: =SUM(AA136:AA140) -> 0 | AK141: =SUM(AK136:AK140) -> 0 | AL141: 1 | AM141: 0
A142: 1 | AL142: 1 | AM142: =AM143 -> 0
C143: Til investering og afdrag | G143: =G130+G134+G141 -> 0 | Q143: =Q130+Q134+Q141 -> 0 | AA143: =AA130+AA134+AA141 -> 0 | AK143: =AK130+AK134+AK141 -> 0 | AL143: 1 | AM143: 0
E144: Reduktion | G144: Forøgelse | O144: Reduktion | Q144: Forøgelse | W144: Reduktion | AA144: Forøgelse | AG144: Reduktion | AK144: Forøgelse | AL144: 1 | AM144: =AM145+AM146 -> 0
A145: 1 | B145: m | C145: Besætning | E145: =IF('Junior Balance'!E49<0,('Junior Balance'!E49)*-1000,0) -> 0 | G145: =IF('Junior Balance'!E49>0,('Junior Balance'!E49)*-1000,0) -> 0 | O145: =IF('Junior Balance'!O49<0,('Junior Balance'!O49)*-1000,0) -> 0 | Q145: =IF('Junior Balance'!O49>0,('Junior Balance'!O49)*-1000,0) -> 0 | W145: =IF('Junior Balance'!Y49<0,('Junior Balance'!Y49)*-1000,0) -> 0 | AA145: =IF('Junior Balance'!Y49>0,('Junior Balance'!Y49)*-1000,0) -> 0 | AG145: =IF('Junior Balance'!AI49<0,('Junior Balance'!AI49)*-1000,0) -> 0 | AK145: =IF('Junior Balance'!AI49>0,('Junior Balance'!AI49)*-1000,0) -> 0 | AL145: 1 | AM145: =IF(SUM(E145:AK145)<>0,1,0) -> 0
A146: 1 | B146: m | C146: Beholdninger | E146: =IF('Junior Balance'!E55<0,'Junior Balance'!E55*-1000,0) -> 0 | G146: =IF('Junior Balance'!E55>0,'Junior Balance'!E55*-1000,0) -> 0 | O146: =IF('Junior Balance'!O55<0,'Junior Balance'!O55*-1000,0) -> 0 | Q146: =IF('Junior Balance'!O55>0,'Junior Balance'!O55*-1000,0) -> 0 | W146: =IF('Junior Balance'!Y55<0,'Junior Balance'!Y55*-1000,0) -> 0 | AA146: =IF('Junior Balance'!Y55>0,'Junior Balance'!Y55*-1000,0) -> 0 | AG146: =IF('Junior Balance'!AI55<0,'Junior Balance'!AI55*-1000,0) -> 0 | AK146: =IF('Junior Balance'!AI55>0,'Junior Balance'!AI55*-1000,0) -> 0 | AL146: 1 | AM146: =IF(SUM(E146:AK146)<>0,1,0) -> 0
A147: 1 | AL147: 1 | AM147: =AM143 -> 0
A148: 1 | AL148: 1 | AM148: =AM149 -> 0
A149: 1 | B149: Likviditet før anlægsinvesteringer | G149: =G143+SUM(E145:G146) -> 0 | Q149: =Q143+SUM(O145:Q146) -> 0 | AA149: =AA143+SUM(Y145:AA146) -> 0 | AK149: =AK143+SUM(AI145:AK146) -> 0 | AL149: 1 | AM149: =IF(SUM(E149:AK149)<>0,1,0) -> 0
A150: 1 | AL150: 1 | AM150: =AM149 -> 0
A151: 1 | AL151: 1 | AM151: 1
A152: 1 | B152: INVESTERINGER | E152: Salg | G152: Køb/forbedring | O152: Salg | Q152: Køb/forbedring | W152: Salg | AA152: Køb/forbedring | AG152: Salg | AK152: Køb/forbedring | AL152: 1 | AM152: =AM164 -> 0
A153: 1 | C153: Rettigheder | E153: =IF('Junior Balance'!E29+'Junior Balance'!E33<0,('Junior Balance'!E29+'Junior Balance'!E33)*-1000,0) -> 0 | G153: =IF('Junior Balance'!E29+'Junior Balance'!E33>0,('Junior Balance'!E29+'Junior Balance'!E33)*-1000,0) -> 0 | O153: =IF('Junior Balance'!O29+'Junior Balance'!O33<0,('Junior Balance'!O29+'Junior Balance'!O33)*-1000,0) -> 0 | Q153: =IF('Junior Balance'!O29+'Junior Balance'!O33>0,('Junior Balance'!O29+'Junior Balance'!O33)*-1000,0) -> 0 | W153: =IF('Junior Balance'!Y29+'Junior Balance'!Y33<0,('Junior Balance'!Y29+'Junior Balance'!Y33)*-1000,0) -> 0 | AA153: =IF('Junior Balance'!Y29+'Junior Balance'!Y33>0,('Junior Balance'!Y29+'Junior Balance'!Y33)*-1000,0) -> 0 | AG153: =IF('Junior Balance'!AI29+'Junior Balance'!AI33<0,('Junior Balance'!AI29+'Junior Balance'!AI33)*-1000,0) -> 0 | AK153: =IF('Junior Balance'!AI29+'Junior Balance'!AI33>0,('Junior Balance'!AI29+'Junior Balance'!AI33)*-1000,0) -> 0 | AL153: 1 | AM153: =IF(SUM(E153:AK153)<>0,1,0) -> 0
A154: 1 | C154: Køb/salg jord | E154: =IF('Junior Balance'!E10<0,('Junior Balance'!E10)*-1000,0) -> 0 | G154: =IF('Junior Balance'!E10>0,('Junior Balance'!E10)*-1000,0) -> 0 | O154: =IF('Junior Balance'!O10<0,('Junior Balance'!O10)*-1000,0) -> 0 | Q154: =IF('Junior Balance'!O10>0,('Junior Balance'!O10)*-1000,0) -> 0 | W154: =IF('Junior Balance'!Y10<0,('Junior Balance'!Y10)*-1000,0) -> 0 | AA154: =IF('Junior Balance'!Y10>0,('Junior Balance'!Y10)*-1000,0) -> 0 | AG154: =IF('Junior Balance'!AI10<0,('Junior Balance'!AI10)*-1000,0) -> 0 | AK154: =IF('Junior Balance'!AI10>0,('Junior Balance'!AI10)*-1000,0) -> 0 | AL154: 1 | AM154: 0
A155: 1 | B155: m | C155: Driftsbygninger | E155: =IF('Junior Balance'!E18<0,'Junior Balance'!E18*-1000,0) -> 0 | G155: =IF('Junior Balance'!E18>0,'Junior Balance'!E18*-1000,0) -> 0 | O155: =IF('Junior Balance'!O18<0,'Junior Balance'!O18*-1000,0) -> 0 | Q155: =IF('Junior Balance'!O18>0,'Junior Balance'!O18*-1000,0) -> 0 | W155: =IF('Junior Balance'!Y18<0,'Junior Balance'!Y18*-1000,0) -> 0 | AA155: =IF('Junior Balance'!Y18>0,'Junior Balance'!Y18*-1000,0) -> 0 | AG155: =IF('Junior Balance'!AI18<0,'Junior Balance'!AI18*-1000,0) -> 0 | AK155: =IF('Junior Balance'!AI18>0,'Junior Balance'!AI18*-1000,0) -> 0 | AL155: 1 | AM155: 0
A156: 1 | C156: Beboelse (stuehus) | E156: =IF('Junior Balance'!E22<0,'Junior Balance'!E22*-1000,0) -> 0 | G156: =IF('Junior Balance'!E22>0,'Junior Balance'!E22*-1000,0) -> 0 | O156: =IF('Junior Balance'!O22<0,'Junior Balance'!O22*-1000,0) -> 0 | Q156: =IF('Junior Balance'!O22>0,'Junior Balance'!O22*-1000,0) -> 0 | W156: =IF('Junior Balance'!Y22<0,'Junior Balance'!Y22*-1000,0) -> 0 | AA156: =IF('Junior Balance'!Y22>0,'Junior Balance'!Y22*-1000,0) -> 0 | AG156: =IF('Junior Balance'!AI22<0,'Junior Balance'!AI22*-1000,0) -> 0 | AK156: =IF('Junior Balance'!AI22>0,'Junior Balance'!AI22*-1000,0) -> 0 | AL156: 1 | AM156: 0
A157: 1 | B157: m | C157: Inventar markbrug | E157: =IF('Junior Balance'!E37<0,'Junior Balance'!E37*-1000,0) -> 0 | G157: =IF('Junior Balance'!E37>0,'Junior Balance'!E37*-1000,0) -> 0 | O157: =IF('Junior Balance'!O37<0,'Junior Balance'!O37*-1000,0) -> 0 | Q157: =IF('Junior Balance'!O37>0,'Junior Balance'!O37*-1000,0) -> 0 | W157: =IF('Junior Balance'!Y37<0,'Junior Balance'!Y37*-1000,0) -> 0 | AA157: =IF('Junior Balance'!Y37>0,'Junior Balance'!Y37*-1000,0) -> 0 | AG157: =IF('Junior Balance'!AI37<0,'Junior Balance'!AI37*-1000,0) -> 0 | AK157: =IF('Junior Balance'!AI37>0,'Junior Balance'!AI37*-1000,0) -> 0 | AL157: 1 | AM157: 0
A158: 1 | B158: m | C158: Inventar husdyrbrug | E158: =IF('Junior Balance'!E41<0,'Junior Balance'!E41*-1000,0) -> 0 | G158: =IF('Junior Balance'!E41>0,'Junior Balance'!E41*-1000,0) -> 0 | O158: =IF('Junior Balance'!O41<0,'Junior Balance'!O41*-1000,0) -> 0 | Q158: =IF('Junior Balance'!O41>0,'Junior Balance'!O41*-1000,0) -> 0 | W158: =IF('Junior Balance'!Y41<0,'Junior Balance'!Y41*-1000,0) -> 0 | AA158: =IF('Junior Balance'!Y41>0,'Junior Balance'!Y41*-1000,0) -> 0 | AG158: =IF('Junior Balance'!AI41<0,'Junior Balance'!AI41*-1000,0) -> 0 | AK158: =IF('Junior Balance'!AI41>0,'Junior Balance'!AI41*-1000,0) -> 0 | AL158: 1 | AM158: 0
A159: 1 | B159: m | C159: Inventar andet | E159: =IF('Junior Balance'!E45<0,'Junior Balance'!E45*-1000,0) -> 0 | G159: =IF('Junior Balance'!E45>0,'Junior Balance'!E45*-1000,0) -> 0 | O159: =IF('Junior Balance'!O45<0,'Junior Balance'!O45*-1000,0) -> 0 | Q159: =IF('Junior Balance'!O45>0,'Junior Balance'!O45*-1000,0) -> 0 | W159: =IF('Junior Balance'!Y45<0,'Junior Balance'!Y45*-1000,0) -> 0 | AA159: =IF('Junior Balance'!Y45>0,'Junior Balance'!Y45*-1000,0) -> 0 | AG159: =IF('Junior Balance'!AI45<0,'Junior Balance'!AI45*-1000,0) -> 0 | AK159: =IF('Junior Balance'!AI45>0,'Junior Balance'!AI45*-1000,0) -> 0 | AL159: 1 | AM159: 0
A160: 1 | B160: m | C160: Grundforbedringer | E160: =IF('Junior Balance'!E14<0,'Junior Balance'!E14*-1000,0) -> 0 | G160: =IF('Junior Balance'!E14>0,'Junior Balance'!E14*-1000,0) -> 0 | O160: =IF('Junior Balance'!O14<0,'Junior Balance'!O14*-1000,0) -> 0 | Q160: =IF('Junior Balance'!O14>0,'Junior Balance'!O14*-1000,0) -> 0 | W160: =IF('Junior Balance'!Y14<0,'Junior Balance'!Y14*-1000,0) -> 0 | AA160: =IF('Junior Balance'!Y14>0,'Junior Balance'!Y14*-1000,0) -> 0 | AG160: =IF('Junior Balance'!AI14<0,'Junior Balance'!AI14*-1000,0) -> 0 | AK160: =IF('Junior Balance'!AI14>0,'Junior Balance'!AI14*-1000,0) -> 0 | AL160: 1 | AM160: 0
A161: 1 | C161: Biler | E161: =IF('Junior Balance'!E63<0,'Junior Balance'!E63*-1000,0) -> 0 | G161: =IF('Junior Balance'!E63>0,'Junior Balance'!E63*-1000,0) -> 0 | O161: =IF('Junior Balance'!O63<0,'Junior Balance'!O63*-1000,0) -> 0 | Q161: =IF('Junior Balance'!O63>0,'Junior Balance'!O63*-1000,0) -> 0 | W161: =IF('Junior Balance'!Y63<0,'Junior Balance'!Y63*-1000,0) -> 0 | AA161: =IF('Junior Balance'!Y63>0,'Junior Balance'!Y63*-1000,0) -> 0 | AG161: =IF('Junior Balance'!AI63<0,'Junior Balance'!AI63*-1000,0) -> 0 | AK161: =IF('Junior Balance'!AI63>0,'Junior Balance'!AI63*-1000,0) -> 0 | AL161: 1 | AM161: 0
A162: 1 | C162: Aktiver uden for landbrug | E162: =IF('Junior Balance'!E68<0,'Junior Balance'!E68*-1000,0) -> 0 | G162: =IF('Junior Balance'!E68>0,'Junior Balance'!E68*-1000,0) -> 0 | O162: =IF('Junior Balance'!O68<0,'Junior Balance'!O68*-1000,0) -> 0 | Q162: =IF('Junior Balance'!O68>0,'Junior Balance'!O68*-1000,0) -> 0 | W162: =IF('Junior Balance'!Y68<0,'Junior Balance'!Y68*-1000,0) -> 0 | AA162: =IF('Junior Balance'!Y68>0,'Junior Balance'!Y68*-1000,0) -> 0 | AG162: =IF('Junior Balance'!AI68<0,'Junior Balance'!AI68*-1000,0) -> 0 | AK162: =IF('Junior Balance'!AI68>0,'Junior Balance'!AI68*-1000,0) -> 0 | AL162: 1 | AM162: 0
A163: 1 | AL163: 1 | AM163: =AM164 -> 0
A164: 1 | C164: Investeringer i alt | G164: =SUM(E153:G162) -> 0 | Q164: =SUM(O153:Q162) -> 0 | AA164: =SUM(W153:AA162) -> 0 | AK164: =SUM(AG153:AK162) -> 0 | AL164: 1 | AM164: =IF(SUM(E164:AK164)<>0,1,0) -> 0
A165: 1 | AL165: 1 | AM165: =AM164 -> 0
A166: 1 | AL166: 1 | AM166: =AM167 -> 0
A167: 1 | B167: Likviditetsoverskud/-behov | G167: =G149+G164 -> 0 | Q167: =Q149+Q164 -> 0 | AA167: =AA149+AA164 -> 0 | AK167: =AK149+AK164 -> 0 | AL167: 1 | AM167: =IF(SUM(E167:AK167)<>0,1,0) -> 0
A168: 1 | AL168: 1 | AM168: =AM167 -> 0
A169: 1 | AL169: 1 | AM169: 1
A170: 1 | B170: ÆNDRING FINANSIELLE AKTIVER OG GÆLD | AL170: 1 | AM170: 1
A171: 1 | E171: Anvendelse | G171: Fremskaffelse | O171: Anvendelse | Q171: Fremskaffelse | W171: Anvendelse | AA171: Fremskaffelse | AG171: Anvendelse | AK171: Fremskaffelse | AL171: 1 | AM171: 1
C172: Holding aktier | E172: =IF('Junior Balance'!E70>0,('Junior Balance'!E70-Holding!E53)*-1000,0) -> 0 | G172: =IF('Junior Balance'!E70<0,'Junior Balance'!E70*-1000,0) -> 0 | O172: =IF('Junior Balance'!O70>0,('Junior Balance'!O70-Holding!O53)*-1000,0) -> 0 | Q172: =IF('Junior Balance'!O70<0,'Junior Balance'!O70*-1000,0) -> 0 | W172: =IF('Junior Balance'!Y70>0,('Junior Balance'!Y70-Holding!Y53)*-1000,0) -> 0 | AA172: =IF('Junior Balance'!Y70<0,'Junior Balance'!Y70*-1000,0) -> 0 | AG172: =IF('Junior Balance'!AI70>0,('Junior Balance'!AI70-Holding!AI53)*-1000,0) -> 0 | AK172: =IF('Junior Balance'!AI70<0,'Junior Balance'!AI70*-1000,0) -> 0 | AL172: 1 | AM172: =IF(SUM(E172:AK172)<>0,1,0) -> 0
A173: 1 | C173: Tilgodehavender | E173: =IF('Junior Balance'!E71>0,('Junior Balance'!E71)*-1000,0) -> 0 | G173: =IF('Junior Balance'!E71<0,('Junior Balance'!E71)*-1000,0) -> 0 | O173: =IF('Junior Balance'!O71>0,('Junior Balance'!O71)*-1000,0) -> 0 | Q173: =IF('Junior Balance'!O71<0,('Junior Balance'!O71)*-1000,0) -> 0 | W173: =IF('Junior Balance'!Y71>0,('Junior Balance'!Y71)*-1000,0) -> 0 | AA173: =IF('Junior Balance'!Y71<0,('Junior Balance'!Y71)*-1000,0) -> 0 | AG173: =IF('Junior Balance'!AI71>0,('Junior Balance'!AI71)*-1000,0) -> 0 | AK173: =IF('Junior Balance'!AI71<0,('Junior Balance'!AI71)*-1000,0) -> 0 | AL173: 1 | AM173: 0
A174: 1 | B174: Værdipapirer | C174: Værdipapirer | E174: =IF('Junior Balance'!E72>0,('Junior Balance'!E72)*-1000,0) -> 0 | G174: =IF('Junior Balance'!E72<0,('Junior Balance'!E72)*-1000,0) -> 0 | O174: =IF('Junior Balance'!O72>0,('Junior Balance'!O72)*-1000,0) -> 0 | Q174: =IF('Junior Balance'!O72<0,('Junior Balance'!O72)*-1000,0) -> 0 | W174: =IF('Junior Balance'!Y72>0,('Junior Balance'!Y72)*-1000,0) -> 0 | AA174: =IF('Junior Balance'!Y72<0,('Junior Balance'!Y72)*-1000,0) -> 0 | AG174: =IF('Junior Balance'!AI72>0,('Junior Balance'!AI72)*-1000,0) -> 0 | AK174: =IF('Junior Balance'!AI72<0,('Junior Balance'!AI72)*-1000,0) -> 0 | AL174: 1 | AM174: 0
A175: 1 | C175: Indlån | E175: =IF('Junior Balance'!E73>0,('Junior Balance'!E73)*-1000,0) -> 0 | G175: =IF('Junior Balance'!E73<0,('Junior Balance'!E73)*-1000,0) -> 0 | O175: =IF('Junior Balance'!O73>0,('Junior Balance'!O73)*-1000,0) -> 0 | Q175: =IF('Junior Balance'!O73<0,('Junior Balance'!O73)*-1000,0) -> 0 | W175: =IF('Junior Balance'!Y73>0,('Junior Balance'!Y73)*-1000,0) -> 0 | AA175: =IF('Junior Balance'!Y73<0,('Junior Balance'!Y73)*-1000,0) -> 0 | AG175: =IF('Junior Balance'!AI73>0,('Junior Balance'!AI73)*-1000,0) -> 0 | AK175: =IF('Junior Balance'!AI73<0,('Junior Balance'!AI73)*-1000,0) -> 0 | AL175: 1 | AM175: 0
A176: 1 | C176: Prioritets gæld( - = afdrag) | E176: ='Junior Balance'!H92*-1000 -> 0 | G176: ='Junior Balance'!E92*-1000 -> 0 | O176: ='Junior Balance'!R92*-1000 -> 0 | Q176: ='Junior Balance'!O92*-1000 -> 0 | W176: ='Junior Balance'!AB92*-1000 -> 0 | AA176: ='Junior Balance'!Y92*-1000 -> 0 | AG176: ='Junior Balance'!AL92*-1000 -> 0 | AK176: ='Junior Balance'!AI92*-1000 -> 0 | AL176: 1 | AM176: 0
A177: 1 | C177: Moms og afgift ( - =afdrag) | E177: =IF(G200<0,G200,0) -> 0 | G177: =IF(G200>0,G200,0) -> 0 | O177: =IF(Q200<0,Q200,0) -> 0 | Q177: =IF(Q200>0,Q200,0) -> 0 | W177: =IF(AA200<0,AA200,0) -> 0 | AA177: =IF(AA200>0,AA200,0) -> 0 | AG177: =IF(AK200<0,AK200,0) -> 0 | AK177: =IF(AK200>0,AK200,0) -> 0 | AL177: 1 | AM177: 0
A178: 1 | C178: Anden gæld i alt | E178: ='Junior Balance'!H97*-1000 -> 0 | G178: ='Junior Balance'!E97*-1000 -> 0 | O178: ='Junior Balance'!R97*-1000 -> 0 | Q178: ='Junior Balance'!O97*-1000 -> 0 | W178: ='Junior Balance'!AB97*-1000 -> 0 | AA178: ='Junior Balance'!Y97*-1000 -> 0 | AG178: ='Junior Balance'!AL97*-1000 -> 0 | AK178: ='Junior Balance'!AI97*-1000 -> 0 | AL178: 1 | AM178: 0
A179: 1 | C179: Kassekredit ( - = sat ind på) | E179: =IF((SUM(E172:G178)+G167)*-1<0,(SUM(E172:G178)+G167)*-1,0) -> 0 | G179: =IF((SUM(E172:G178)+G167)*-1>0,(SUM(E172:G178)+G167)*-1,0) -> 0 | O179: =IF((SUM(O172:Q178)+Q167)*-1<0,(SUM(O172:Q178)+Q167)*-1,0) -> 0 | Q179: =IF((SUM(O172:Q178)+Q167)*-1>0,(SUM(O172:Q178)+Q167)*-1,0) -> 0 | W179: =IF((SUM(W172:AA178)+AA167)*-1<0,(SUM(W172:AA178)+AA167)*-1,0) -> 0 | AA179: =IF((SUM(W172:AA178)+AA167)*-1>0,(SUM(W172:AA178)+AA167)*-1,0) -> 0 | AG179: =IF((SUM(AG172:AK178)+AK167)*-1<0,(SUM(AG172:AK178)+AK167)*-1,0) -> 0 | AK179: =IF((SUM(AG172:AK178)+AK167)*-1>0,(SUM(AG172:AK178)+AK167)*-1,0) -> 0 | AL179: 1 | AM179: 0
A180: 1 | AL180: 1 | AM180: =AM179 -> 0
A181: 1 | AL181: 1 | AM181: =AM182 -> 0
A182: 1 | B182: Likviditetsanvendelse/fremskaffelse | G182: =SUM(E172:G179) -> 0 | Q182: =SUM(O172:Q179) -> 0 | AA182: =SUM(W172:AA179) -> 0 | AK182: =SUM(AG172:AK179) -> 0 | AL182: 1 | AM182: =IF(SUM(E182:AK182)<>0,1,0) -> 0
A183: 1 | AL183: 1 | AM183: =AM182 -> 0
A184: 1 | G184: =G167+G182 -> 0 | Q184: =Q167+Q182 -> 0 | AA184: =AA167+AA182 -> 0 | AK184: =AK167+AK182 -> 0 | AL184: 1 | AM184: 1
A185: 1 | B185: Kassekredit/likviditet i alt | G185: ='Junior Balance'!N115*1000 -> 0 | Q185: ='Junior Balance'!X115*1000 -> 0 | AA185: ='Junior Balance'!AH115*1000 -> 0 | AK185: ='Junior Balance'!AR115*1000 -> 0 | AL185: 1 | AM185: =IF(SUM(E185:AK185)<>0,1,0) -> 0
C189: Moms primo (- = gæld, + = tilgode) | G189: ='Junior Balance'!D98*1000 -> 0 | Q189: =G197 -> 0 | AA189: =Q197 -> 0 | AK189: =AA197 -> 0
C191: Årets momspligtig omsætning netto | G191: =DSUM($B$5:$AK$182,"a",$BB191:$BB192) -> 0 | Q191: =DSUM($B$5:$AK$182,"b",$BB191:$BB192) -> 0 | AA191: =DSUM($B$5:$AK$182,"c",$BB191:$BB192) -> 0 | AK191: =DSUM($B$5:$AK$182,"d",$BB191:$BB192) -> 0 | BB191: Moms
C192: Årets moms heraf, modtaget i året | G192: =TRUNC(G191*0.25,0) -> 0 | Q192: =TRUNC(Q191*0.25,0) -> 0 | AA192: =TRUNC(AA191*0.25,0) -> 0 | AK192: =TRUNC(AK191*0.25,0) -> 0 | BB192: m
C193: 3 kvartalers betaling heraf | G193: =G192*0.75 -> 0 | Q193: =Q192*0.75 -> 0 | AA193: =AA192*0.75 -> 0 | AK193: =AK192*0.75 -> 0
C195: Primo + 3 kvartaler, betalt i året | G195: =G189-G193 -> 0 | Q195: =Q189-Q193 -> 0 | AA195: =AA189-AA193 -> 0 | AK195: =AK189-AK193 -> 0
C197: Moms ultimo (primo + modtaget - betalt) | G197: =G189-G192-G195 -> 0 | Q197: =Q189-Q192-Q195 -> 0 | AA197: =AA189-AA192-AA195 -> 0 | AK197: =AK189-AK192-AK195 -> 0
C199: Korrektion: Moms bevægelse
C200: Momsbevægelse primo til ultimo | G200: =IF(ISBLANK(G199),G189-G197,G199) -> 0 | Q200: =IF(ISBLANK(Q199),Q189-Q197,Q199) -> 0 | AA200: =IF(ISBLANK(AA199),AA189-AA197,AA199) -> 0 | AK200: =IF(ISBLANK(AK199),AK189-AK197,AK199) -> 0
E258: =E3 -> 0

Sheet Junior Balance
A1: JUNIOR BALANCE & ANLÆGSKARTOTEK | N1: ='A-S Balance'!L7 -> 0 | AS1: 1 | AT1: =BudgetType ->  | AU1: Hvis 2 udvidet budget, hvis 1 begrænset | CC1: vis | CD1: skjul | DI1: b | DM1: b | DO1: b
B2: ='A-S Balance'!B2 -> 0 | N2: Første budgetår | T2: ='A-S Balance'!T2 -> 2025 | Y2: KK positiv saldo, p.a. | AT2: 1 | AU2: Hvis 1 enlig, hvis 2 ægtefællebeskatning | CC2: 1 | CD2: 1
B3: ='A-S Balance'!B3 -> 0 | N3: Pct. erhverv bil (typisk 25%) | T3: 0 | Y3: KK negativ saldo, p.a. | AH3: 0.04 | AT3: =IF(AND(BudgetType=1,TotalSumVærdireg<>0),2,1) ->  | AU3: Hvis 2 skal makro om værdireg starte | BD3: 2 | BH3: 2 | BQ3: 2 | BX3: 2 | BY3: 1 | BZ3: 2 | CC3: 1 | CD3: 1
B4: ='A-S Balance'!B4 -> 0 | N4: Simpel skatteberegning, skatte% | T4: 0.4 | Y4: 1 eller 2 personfradrag | AH4: =51600*2 -> 103200 | AT4: Tekster til valgboks | BD4: Tekster til valgboks | BY4: Tekster til valgboks | CC4: 1 | CD4: 1 | CK4: 271159
A5: 2 | N5: =IF(ISNUMBER('Junior Resultat'!G124+N109),'Junior Resultat'!G124/1000-'Junior Balance'!N109,0) -> 0 | X5: =IF(ISNUMBER('Junior Resultat'!Q124+X109),'Junior Resultat'!Q124/1000-'Junior Balance'!X109,0) -> 0 | AH5: =IF(ISNUMBER('Junior Resultat'!AA124+AH109),'Junior Resultat'!AA124/1000-'Junior Balance'!AH109,0) -> 0 | AR5: =IF(ISNUMBER('Junior Resultat'!AK124+AR109),'Junior Resultat'!AK124/1000-'Junior Balance'!AR109,0) -> 0 | AT5: Sum af fejl | AU5: =IF(StopMensOverfoer=0,0,TRUNC(SUM(D5:AR5),0)) ->  | CC5: 1 | CD5: 1
A6: AKTIVER | D6: =T2 -> 2025 | E6: - 1.000 kr - | N6: =D6+1 -> 2026 | O6: - 1.000 kr - | X6: =N6+1 -> 2027 | Y6: - 1.000 kr - | AH6: =X6+1 -> 2028 | AI6: - 1.000 kr - | AR6: =AH6+1 -> 2029 | AU6: =IF(StopMensOverfoer=0,0,IF(ISERROR(SUM(AU7:AU96)),0,SUM(AU7:AU96))) ->  | AV6: Rest måneder vedr. afskrivning | CC6: 1 | CD6: 1
B7: Jord | D7: Primo | E7: Investering | N7: 0 | O7: Investering | X7: 0 | Y7: Investering | AH7: 0 | AI7: Investering | CC7: 1 | CD7: =CD10 -> 0
A8: 1 | K8: =IF(E8+D8=0,0,IF(ISBLANK(H8),IF(C8>0,1/(1/C8-1),0),1/H8)) -> 0 | N8: =D8+E8+F8+I8+J8 -> 0 | U8: =IF(O8+N8=0,0,IF(ISBLANK(R8),IF(K8>0,1/(1/K8-1),0),1/R8)) -> 0 | X8: =N8+O8+P8+S8+T8 -> 0 | AE8: =IF(Y8+X8=0,0,IF(ISBLANK(AB8),IF(U8>0,1/(1/U8-1),0),1/AB8)) -> 0 | AH8: =X8+Y8+Z8+AC8+AD8 -> 0 | AO8: =IF(AI8+AH8=0,0,IF(ISBLANK(AL8),IF(AE8>0,1/(1/AE8-1),0),1/AL8)) -> 0 | AR8: =AH8+AI8+AJ8+AM8+AN8 -> 0 | AU8: =IF(AND(F8<>0,D8+E8=0),1,IF(AND(P8<>0,N8+O8=0),1,IF(AND(Z8<>0,X8+Y8=0),1,IF(AND(AJ8<>0,AH8+AI8=0),1,0)))) -> 0 | AV8: =H8 -> 0 | BD8: =IF(ISBLANK(R8),AV8,R8) -> 0 | BN8: =IF(ISBLANK(AB8),BD8,AB8) -> 0 | BX8: =IF(ISBLANK(AL8),BN8,AL8) -> 0 | CC8: 1 | CD8: =IF(AR8+AH8+X8+N8+D8<>0,1,0) -> 0
A9: 2 | K9: =IF(E9+D9=0,0,IF(ISBLANK(H9),IF(C9>0,1/(1/C9-1),0),1/H9)) -> 0 | N9: =D9+E9+F9+I9+J9 -> 0 | U9: =IF(O9+N9=0,0,IF(ISBLANK(R9),IF(K9>0,1/(1/K9-1),0),1/R9)) -> 0 | X9: =N9+O9+P9+S9+T9 -> 0 | AE9: =IF(Y9+X9=0,0,IF(ISBLANK(AB9),IF(U9>0,1/(1/U9-1),0),1/AB9)) -> 0 | AH9: =X9+Y9+Z9+AC9+AD9 -> 0 | AO9: =IF(AI9+AH9=0,0,IF(ISBLANK(AL9),IF(AE9>0,1/(1/AE9-1),0),1/AL9)) -> 0 | AR9: =AH9+AI9+AJ9+AM9+AN9 -> 0 | AU9: =IF(AND(F9<>0,D9+E9=0),1,IF(AND(P9<>0,N9+O9=0),1,IF(AND(Z9<>0,X9+Y9=0),1,IF(AND(AJ9<>0,AH9+AI9=0),1,0)))) -> 0 | AV9: =H9 -> 0 | BD9: =IF(ISBLANK(R9),AV9,R9) -> 0 | BN9: =IF(ISBLANK(AB9),BD9,AB9) -> 0 | BX9: =IF(ISBLANK(AL9),BN9,AL9) -> 0 | CC9: 1 | CD9: 0
D10: =SUM(D8:D9) -> 0 | E10: =SUM(E8:E9) -> 0 | N10: =SUM(N8:N9) -> 0 | O10: =SUM(O8:O9) -> 0 | R10: =SUM(R8:R9) -> 0 | X10: =SUM(X8:X9) -> 0 | Y10: =SUM(Y8:Y9) -> 0 | AH10: =SUM(AH8:AH9) -> 0 | AI10: =SUM(AI8:AI9) -> 0 | AR10: =SUM(AR8:AR9) -> 0 | CC10: 1 | CD10: 0
B11: Grundforbedringer | E11: Investering | G11: M | H11: Rest-år | J11: Afskr. | K11: Levetid måneder primo | O11: Investering | Q11: M | R11: Rest-år | T11: Afskr. | U11: Levetid måneder primo | Y11: Investering | AA11: M | AB11: Rest-år | AD11: Afskr. | AE11: Levetid måneder primo | AI11: Investering | AK11: M | AL11: Rest-år | AN11: Afskr. | AO11: Levetid måneder primo | CC11: 1 | CD11: =CD14 -> 0
A12: 1 | J12: =IF(AV12>0,(D12+E12+F12+I12)/-AV12*K12,0) -> 0 | K12: =IF(G12>0,12-G12,12) -> 12 | N12: =D12+E12+F12+I12+J12 -> 0 | T12: =IF(BD12>0,(N12+O12+P12+S12)/-BD12*U12,0) -> 0 | U12: =IF(Q12>0,12-Q12,IF(BD12>12,12,IF(BD12-12>0,BD12-12,BD12))) -> 0 | X12: =N12+O12+P12+S12+T12 -> 0 | AD12: =IF(BN12>0,(X12+Y12+Z12+AC12)/-BN12*AE12,0) -> 0 | AE12: =IF(AA12>0,12-AA12,IF(BN12>12,12,IF(BN12-12>0,BN12-12,BN12))) -> 0 | AH12: =X12+Y12+Z12+AC12+AD12 -> 0 | AN12: =IF(BX12>0,(AH12+AI12+AJ12+AM12)/-BX12*AO12,0) -> 0 | AO12: =IF(AK12>0,12-AK12,IF(BX12>12,12,IF(BX12-12>0,BX12-12,BX12))) -> 0 | AR12: =AH12+AI12+AJ12+AM12+AN12 -> 0 | AU12: =IF(AND(F12<>0,D12+E12=0),1,IF(AND(P12<>0,N12+O12=0),1,IF(AND(Z12<>0,X12+Y12=0),1,IF(AND(AJ12<>0,AH12+AI12=0),1,0)))) -> 0 | AV12: =H12*12 -> 0 | BD12: =IF(AV12>0,AV12-K12,R12*12) -> 0 | BN12: =IF(BD12>0,BD12-U12,AB12*12) -> 0 | BX12: =IF(BN12>0,BN12-AE12,AL12*12) -> 0 | CC12: 1 | CD12: =IF(AR12+AH12+X12+N12+D12<>0,1,0) -> 0
